Workbook

Sheet Pres & Prop Rev
B2: =IF(Base1_Billing2=2,"BILLED","") -> 
A4: WORK PAPER | D4: RESIDENTIAL | E4: GENERAL SVC. | F4: LG. GEN. SVC. | G4: EX LG GEN SVC | H4: PUMPING | I4: ST & AREA LTG
A5: REFERENCE | C5: TOTAL | D5: SCHEDULE 1 | E5: SCH. 11,12 | F5: SCH. 21,22 | G5: SCHEDULE 25 | H5: SCH. 30, 31, 32 | I5: SCH. 41-48 | P5: Print Header for all printed pages on this worksheet:
B6: PRESENT BILL DETERMINANTS | L6: Calculate all revenue exhibits using ____ rates: | P6: ="AVISTA UTILITIES WASHINGTON ELECTRIC PRO FORMA REVENUE UNDER PRESENT AND PROPOSED "&N9&" RATES 12 MONTHS ENDED SEPTEMBER 30, 2015" -> AVISTA UTILITIES WASHINGTON ELECTRIC PRO FORMA REVENUE UNDER PRESENT AND PROPOSED BASE TARIFF RATES 12 MONTHS ENDED SEPTEMBER 30, 2015
B7: KILOWATT HOURS (KWHS) | K7: 1) | L7: BASE TARIFF
A8: PDE-E-10 | B8: BLOCK 1 | D8: ='Bill Determ'!$B$9 -> 1568799173 | E8: ='Bill Determ'!$B$17 -> 417235444.6 | F8: ='Bill Determ'!$B$28 -> 1286691867 | G8: ='Bill Determ'!$B$37 -> 126000000 | H8: =SUM('Bill Determ'!$B$41:$C$41) -> 52021552.46 | L8: or | N8: 1
A9: PDE-E-10 | B9: BLOCK 2 | D9: ='Bill Determ'!$C$9 -> 501965104.3 | E9: ='Bill Determ'!$C$17 -> 184374178.4 | F9: ='Bill Determ'!$C$28 -> 165092233.1 | G9: ='Bill Determ'!$C$37 -> 568211715 | H9: ='Bill Determ'!$D$42 -> 102695896.8 | K9: 2) | L9: BILLING | N9: =CHOOSE(Base1_Billing2,L7,L9) -> BASE TARIFF
A10: PDE-E-10 | B10: BLOCK 3 | D10: ='Bill Determ'!$D$9 -> 289516840.3 | G10: ='Bill Determ'!$D$37 -> 414459826 | N10: =CHOOSE(Base1_Billing2,"Base","Billing") -> Base
B11: BLOCK 4
A12: PDE-E-20 | B12: STREET & AREA LIGHTS | I12: =SUM('Rev Runs 12MESEPT2015'!P56:P63) -> 25597340.29
B14: SUBTOTAL | C14: =SUM(D14:I14) -> 5702661172 | D14: =SUM(D8:D12) -> 2360281118 | E14: 601609623 | F14: 1451784100 | G14: 1108671541 | H14: 154717449.3 | I14: 25597340.29
B17: SUBTOTAL | C17: =SUM(D17:I17) -> 5702661172 | D17: =D14+D15 -> 2360281118 | E17: =E14+E15 -> 601609623 | F17: 1451784100 | G17: 1108671541 | H17: 154717449.3 | I17: 25597340.29
A18: PDE-E-10 | B18: ADJUSTMENT TO ACTUAL | C18: =SUM(D18:I18) -> 0 | D18: ='Bill Determ'!$E$11 -> 0 | E18: ='Bill Determ'!$D$21 -> 0 | F18: ='Bill Determ'!$D$33 -> 0 | G18: 0 | H18: ='Bill Determ'!$E$44 -> 0 | I18: 0
B20: TOTAL BEFORE ADJUSTMENT | C20: =SUM(D20:I20) -> 5702661172 | D20: =D17+D18 -> 2360281118 | E20: 601609623 | F20: 1451784100 | G20: 1108671541 | H20: 154717449.3 | I20: 25597340.29
A21: PDE-E-3 | B21: WEATHER & UNBILLED ADJ. KWHS | C21: =SUM(D21:I21) -> -15098547 | D21: =D142+D145 -> 15716496 | E21: -5126528 | F21: -25855975 | G21: 0 | H21: 167460 | I21: =I142+I145 -> 0
B23: TOTAL PROFORMA KWHS | C23: =IF(ROUND(SUM(D23:I23),3)<>ROUND(SUM(C20:C21),3),#VALUE!,SUM(D23:I23)) -> 5687562625 | D23: =D20+D21 -> 2375997614 | E23: 596483095 | F23: 1425928125 | G23: 1108671541 | H23: 154884909.3 | I23: 25597340.29
A25: PDE-E-10 | B25: TOTAL BILLS | D25: ='Bill Determ'!$F$9 -> 2481909 | E25: ='Bill Determ'!$F$17 -> 369248 | F25: ='Bill Determ'!$F$28 -> 24164 | G25: ='Bill Determ'!$G$37 -> 252 | H25: ='Bill Determ'!$F$41 -> 29170
B26: MINIMUM BILLS
A27: PDE-E-10 | B27: EXCESS DEMAND | E27: ='Bill Determ'!$E$17 -> 407826 | F27: ='Bill Determ'!$E$28 -> 2838029.533 | G27: ='Bill Determ'!$F$37+'Bill Determ'!F38 -> 1293261
B29: PROPOSED BILL DETERMINANTS
B30: KILOWATT HOURS (KWHS)
B31: BLOCK 1 | D31: =D8 -> 1568799173 | E31: 417235444.6 | F31: 1286691867 | G31: 126000000 | H31: 52021552.46 | I31: 0
B32: BLOCK 2 | D32: =D9 -> 501965104.3 | E32: 184374178.4 | F32: 165092233.1 | G32: ='Bill Determ'!$C$37 -> 568211715 | H32: 102695896.8 | I32: 0
B33: BLOCK 3 | D33: 289516840.3 | E33: 0 | F33: 0 | G33: ='Bill Determ'!$D$37 -> 414459826 | H33: 0 | I33: 0
B34: BLOCK 4 | D34: 0 | E34: 0 | F34: 0 | G34: 0 | H34: 0 | I34: 0
B35: STREET & AREA LIGHTS | D35: 0 | E35: 0 | F35: 0 | G35: 0 | H35: 0 | I35: =I12 -> 25597340.29
B37: SUBTOTAL | C37: =SUM(D37:I37) -> 5702661172 | D37: =SUM(D31:D35) -> 2360281118 | E37: 601609623 | F37: 1451784100 | G37: 1108671541 | H37: 154717449.3 | I37: 25597340.29
C38: =SUM(D38:I38) -> 0 | D38: =D15 -> 0 | E38: =E15 -> 0 | F38: 0 | G38: 0 | H38: 0 | I38: 0
B40: SUBTOTAL | C40: =SUM(D40:I40) -> 5702661172 | D40: =D37+D38 -> 2360281118 | E40: 601609623 | F40: 1451784100 | G40: 1108671541 | H40: 154717449.3 | I40: 25597340.29
B41: ADJUSTMENT TO ACTUAL | C41: =SUM(D41:I41) -> 0 | D41: =D18 -> 0 | E41: 0 | F41: 0 | G41: 0 | H41: 0 | I41: 0
B43: TOTAL BEFORE ADJUSTMENT | C43: =SUM(D43:I43) -> 5702661172 | D43: =D40+D41 -> 2360281118 | E43: 601609623 | F43: 1451784100 | G43: 1108671541 | H43: 154717449.3 | I43: 25597340.29
B44: WEATHER & UNBILLED ADJ. KWHS | C44: =SUM(D44:I44) -> -15098547 | D44: =D21 -> 15716496 | E44: -5126528 | F44: -25855975 | G44: 0 | H44: 167460 | I44: 0
B46: TOTAL PROFORMA KWHS | C46: =IF(ROUND(SUM(D46:I46),3)<>ROUND(SUM(C43:C44),3),#VALUE!,SUM(D46:I46)) -> 5687562625 | D46: =D43+D44 -> 2375997614 | E46: 596483095 | F46: 1425928125 | G46: 1108671541 | H46: 154884909.3 | I46: 25597340.29
B48: TOTAL BILLS | D48: =D25 -> 2481909 | E48: =E25 -> 369248 | F48: =F25 -> 24164 | G48: =G25 -> 252 | H48: =H25 -> 29170
B49: MINIMUM BILLS
B50: EXCESS DEMAND | E50: =E27 -> 407826 | F50: =F27 -> 2838029.533 | G50: =G27 -> 1293261
D55: 1 | E55: 2 | F55: 3 | G55: 4 | H55: 5 | I55: 6 | L55: =SUMPRODUCT(--(ISBLANK(D55:I55))) -> 0
A56: WORK PAPER | D56: RESIDENTIAL | E56: GENERAL SVC. | F56: LG. GEN. SVC. | G56: EX LG GEN SVC | H56: PUMPING | I56: ST & AREA LTG | L56: ="selected in cell "&CELL("address",Base1_Billing2)&":" -> selected in cell $N$8:
A57: REFERENCE | C57: TOTAL | D57: SCHEDULE 1 | E57: SCH. 11,12 | F57: SCH. 21,22 | G57: SCHEDULE 25 | H57: SCH. 30, 31, 32 | I57: SCH. 41-48 | L57: =N10 -> Base
B58: PRESENT RATES | L58: ="Rates_"&$L$57&"_Present" -> Rates_Base_Present | N58: - range name where Present Rates table can be found
A59: PDE-E-21 | B59: BASIC CHARGE | D59: =INDEX(INDIRECT($L$58),$K59,D$55) -> 9.5 | E59: 20 | F59: 0 | G59: 0 | H59: 20 | I59: 0 | K59: 1 | L59: ="Rates_"&$L$57&"_Proposed" -> Rates_Base_Proposed | N59: - range name where Proposed Rates table can be found
B60: MONTHLY MINIMUM
A62: PDE-E-21 | B62: BLOCK 1 PER KWH | D62: =INDEX(INDIRECT($L$58),$K62,D$55) -> 7.983 | E62: 12.024 | F62: 7.677 | G62: 5.896 | H62: 10.362 | I62: 0 | K62: 2
A63: PDE-E-21 | B63: BLOCK 2 PER KWH | D63: 9.288 | E63: 8.835 | F63: 6.866 | G63: 5.305 | H63: 7.401 | I63: 0 | K63: 3
A64: PDE-E-21 | B64: BLOCK 3 PER KWH | D64: 10.89 | E64: 0 | F64: 0 | G64: 4.536 | H64: 0 | I64: 0 | K64: 4
B65: BLOCK 4 PER KWH | K65: 5
B67: ADJUST TO ACTUAL PER KWH | D67: =(D124-D111)/D14*100 -> 8.617115108 | E67: =(E124-E111-SUM(E117:E120))/E14*100 -> 11.04667312 | F67: =(F124-F111-SUM(F117:F120))/F14*100 -> 7.58477568 | H67: =(H124-H111-SUM(H117:H120))/H14*100 -> 8.396594341
A69: PDE-E-21 | B69: DEMAND BLOCK 1 | D69: =INDEX(INDIRECT($L$58),$K69,D$55) -> 0 | E69: 0 | F69: 500 | G69: 21000 | H69: 0 | I69: 0 | K69: 6
A70: PDE-E-21 | B70: DEMAND BLOCK 2 | D70: 0 | E70: 6.5 | F70: 6.5 | G70: 6.5 | H70: 0 | I70: 0 | K70: 7
B75: PROPOSED RATES
B76: BASIC CHARGE | D76: =INDEX(INDIRECT($L$59),$K76,D$55) -> 9.5 | E76: =INDEX(INDIRECT($L$59),$K76,E$55) -> 20 | H76: =INDEX(INDIRECT($L$59),$K76,H$55) -> 20 | K76: 1
B77: MONTHLY MINIMUM
B79: BLOCK 1 PER KWH | D79: =INDEX(INDIRECT($L$59),$K79,D$55) -> 8.308 | E79: 12.45 | F79: 8.003 | G79: 6.113 | H79: 10.767 | K79: 2
B80: BLOCK 2 PER KWH | D80: 9.668 | E80: 9.148 | F80: 7.155 | G80: 5.5 | H80: 7.69 | K80: 3
B81: BLOCK 3 PER KWH | D81: 11.335 | G81: 4.703 | K81: 4
B82: BLOCK 4 PER KWH | K82: 5
B84: ADJUST TO ACTUAL PER KWH | D84: =(D177-D164)/D37*100 -> 8.968531496 | E84: =(E177-E164-SUM(E170:E173))/E37*100 -> 11.43804222 | F84: =(F177-F164-SUM(F170:F173))/F37*100 -> 7.906568159 | H84: =(H177-H164-SUM(H170:H173))/H37*100 -> 8.724597693
B86: DEMAND BLOCK 1 | F86: =INDEX(INDIRECT($L$59),$K86,F$55) -> 500 | G86: =INDEX(INDIRECT($L$59),$K86,G$55) -> 21000 | K86: 6
B87: DEMAND BLOCK 2 | E87: =INDEX(INDIRECT($L$59),$K87,E$55) -> 6.5 | F87: =INDEX(INDIRECT($L$59),$K87,F$55) -> 6.5 | G87: =INDEX(INDIRECT($L$59),$K87,G$55) -> 6.5 | K87: 7
B95: =CHOOSE(Base1_Billing2,"Note: Rates do not include BPA Residential Exchange Program Schedule 59, Energy Efficiency Rider Adjustment Schedule 91, or Power Cost Surcharge Schedule 93.","") -> Note: Rates do not include BPA Residential Exchange Program Schedule 59, Energy Efficiency Rider Adjustment Schedule 91, or Power Cost Surcharge Schedule 93.
A107: WORK PAPER | D107: RESIDENTIAL | E107: GENERAL SVC. | F107: LG. GEN. SVC. | G107: EX LG GEN SVC | H107: PUMPING | I107: ST & AREA LTG
A108: REFERENCE | C108: TOTAL | D108: SCHEDULE 1 | E108: SCH. 11,12 | F108: SCH. 21,22 | G108: SCHEDULE 25 | H108: SCH. 30, 31, 32 | I108: SCH. 41-48
B109: PRESENT REVENUE
B110: =UPPER(CHOOSE(Base1_Billing2,$N$9,$N$10))&" REVENUE" -> BASE TARIFF REVENUE
B111: BASIC CHARGE | C111: =SUM(D111:I111) -> 31546495.5 | D111: =D25*D59 -> 23578135.5 | E111: =E25*E59 -> 7384960 | H111: =H25*H59 -> 583400
B112: MONTHLY MINIMUM | C112: 0
B113: BLOCK 1 | C113: 287004395.8 | D113: =ROUND(D8*D62/100,2) -> 125237238 | E113: 50168389.86 | F113: 98779334.63 | G113: 7428960 | H113: 5390473.27
B114: BLOCK 2 | C114: 111991365.1 | D114: 46622518.89 | E114: 16289458.66 | F114: 11335232.72 | G114: 30143631.48 | H114: 7600523.32
B115: BLOCK 3 | C115: 50328281.62 | D115: =ROUND(D10*D64/100,2) -> 31528383.91 | G115: 18799897.71
B116: BLOCK 4 | C116: 0
B117: DEMAND BLOCK 1 | C117: 17374000 | F117: =F25*F69 -> 12082000 | G117: =G25*G69 -> 5292000
B118: DEMAND BLOCK 2 | C118: 29504257.47 | E118: =E27*E70 -> 2650869 | F118: =F27*F70 -> 18447191.97 | G118: =G27*G70 -> 8406196.5
A119: PDE-E-22/23 | B119: POWER FACTOR ADJUSTMENT | C119: 140172.91 | E119: ='Bill Determ'!G17*0.5 -> 6915 | F119: =('Bill Determ'!G28)*0.5 -> 128639.9 | H119: ='Bill Determ'!G41*0.5 -> 4618.01
A120: PDE-E-29/8 | B120: PRIMARY VOLTAGE DISCOUNT | C120: -1303818.4 | F120: -70490 | G120: ='WA Sch 25'!P110 -> -1233328.4
B121: ANNUAL MINIMUM ADJUSTMENT | C121: 0
A122: PDE-E-11 | B122: STREET & AREA LIGHT REVENUE | C122: 7665957.12 | I122: ='Lighting summary'!D19 -> 7665957.12
B124: SUBTOTAL | C124: =IF(ROUND(SUM(C111:C122),3)<>ROUND(SUM(D124:I124),3),#VALUE!,SUM(D124:I124)) -> 534251107.1 | D124: =SUM(D111:D122) -> 226966276.3 | E124: 76500592.52 | F124: 140701909.2 | G124: 68837357.29 | H124: 13579014.6 | I124: 7665957.12
C125: =SUM(D125:I125) -> 0 | D125: =ROUND(D15*D67/100,2) -> 0 | E125: =ROUND(E15*E67/100,2) -> 0 | F125: 0 | G125: =ROUND(G15*G63/100,2) -> 0 | H125: 0
B127: SUBTOTAL | C127: =SUM(D127:I127) -> 534251107.1 | D127: =D124+D125 -> 226966276.3 | E127: 76500592.52 | F127: 140701909.2 | G127: 68837357.29 | H127: 13579014.6 | I127: 7665957.12
B128: ADJUST TO ACTUAL | C128: =SUM(D128:I128) -> 0 | D128: =ROUND(D18*D67/100,2) -> 0 | E128: =ROUND(E18*E67/100,2) -> 0 | F128: 0 | G128: 0 | H128: 0 | I128: 0
B130: ="TOTAL "&UPPER(CHOOSE(Base1_Billing2,$N$9,$N$10))&" REVENUE" -> TOTAL BASE TARIFF REVENUE | C130: =IF(ROUND(SUM(D130:I130),3)<>ROUND(SUM(C127:C128),3),#VALUE!,SUM(D130:I130)) -> 534251107.1 | D130: =D127+D128 -> 226966276.3 | E130: 76500592.52 | F130: 140701909.2 | G130: 68837357.29 | H130: 13579014.6 | I130: 7665957.12
B132: ADJUSTMENT REVENUE
B133: UNBILLED REVENUE ADJUSTMENT | L133: =D8/$D$14 -> 0.6646662389 | N133: =$D$134*L133 -> -14023505.84 | P133: =N133*(D62/100) -> -1119496.471
A134: PDE-E-15 | B134: UNBILLED LOAD KWHS | C134: =SUM(D134:I134) -> -42358120 | D134: ='Rev Runs 12MESEPT2015'!P84+'Rev Runs 12MESEPT2015'!P93 -> -21098568 | E134: ='Rev Runs 12MESEPT2015'!P85+'Rev Runs 12MESEPT2015'!P86+'Rev Runs 12MESEPT2015'!P94+'Rev Runs 12MESEPT2015'!P95 -> -5656561 | F134: ='Rev Runs 12MESEPT2015'!P87+'Rev Runs 12MESEPT2015'!P88+'Rev Runs 12MESEPT2015'!P96+'Rev Runs 12MESEPT2015'!P97 -> -15770451 | H134: ='Rev Runs 12MESEPT2015'!P90+'Rev Runs 12MESEPT2015'!P91+'Rev Runs 12MESEPT2015'!P99+'Rev Runs 12MESEPT2015'!P100 -> 167460 | L134: =D9/$D$14 -> 0.2126717451 | N134: =$D$134*L134 -> -4487069.276 | P134: =N134*(D63/100) -> -416758.9943
A135: PDE-E-5/6 | B135: UNBILLED LOAD RATE | D135: =D67 -> 8.617115108 | E135: =E67 -> 11.04667312 | F135: =F67 -> 7.58477568 | H135: =H67 -> 8.396594341 | L135: =D10/$D$14 -> 0.122662016 | N135: -2587992.886 | P135: =N135*(D64/100) -> -281832.4253
B136: UNBILLED LOAD REVENUE | C136: =SUM(D136:I136) -> -3625042.08 | D136: =ROUND(D134*D135/100,2) -> -1818087.89 | E136: =ROUND(E134*E135/100,2) -> -624861.8 | F136: =ROUND(F134*F135/100,2) -> -1196153.33 | H136: =ROUND(H134*H135/100,2) -> 14060.94 | L136: =SUM(L133:L135) -> 1 | N136: =SUM(N133:N135) -> -21098568 | P136: =SUM(P133:P135) -> -1818087.891
A138: PDE-E-17 | B138: WEATHER-SENSITIVE KWHS | C138: =SUM(D138:I138) -> 0 | D138: 0 | E138: 0 | F138: 0
A139: PDE-E-5/6 | B139: WEATHER-SENSITIVE RATE | D139: =I226 -> 9.919345741 | E139: =I245 -> 8.835 | F139: =I278 -> 6.866
B140: WEATHER-SENSITIVE REVENUE | C140: =SUM(D140:I140) -> 0 | D140: =ROUND(D138*D139/100,2) -> 0 | E140: =ROUND(E138*E139/100,2) -> 0 | F140: =ROUND(F138*F139/100,2) -> 0
A142: PDE-E-15 | B142: TOTAL UNBILLED KWH ADJUST | C142: =IF(ROUND(C134+C138,3)<>ROUND(SUM(D142:I142),3),#VALUE!,C134+C138) -> -42358120 | D142: =D134+D138 -> -21098568 | E142: =E134+E138 -> -5656561 | F142: =F134+F138 -> -15770451 | H142: =H134+H138 -> 167460 | I142: =I134+I138 -> 0
B143: TOTAL UNBILLED REVENUE ADJ | C143: =IF(ROUND(C136+C140,3)<>ROUND(SUM(D143:I143),3),#VALUE!,C136+C140) -> -3625042.08 | D143: =D136+D140 -> -1818087.89 | E143: =E136+E140 -> -624861.8 | F143: =F136+F140 -> -1196153.33 | H143: =H136+H140 -> 14060.94
B144: WEATHER NORMALIZATION ADJ
A145: PDE-E-17 | B145: WEATHER-SENSITIVE KWHS | C145: =SUM(D145:I145) -> 27259573 | D145: 36815064 | E145: 530033 | F145: -10085524
A146: PDE-E-5/6 | B146: WEATHER-SENSITIVE RATE | D146: =I226 -> 9.919345741 | E146: =I245 -> 8.835 | F146: =I278 -> 6.866
B147: WEATHER-SENSITIVE REVENUE | C147: =SUM(D147:I147) -> 3006169.82 | D147: =ROUND(D145*D146/100,2) -> 3651813.48 | E147: =ROUND(E145*E146/100,2) -> 46828.42 | F147: =ROUND(F145*F146/100,2) -> -692472.08
B149: TOTAL ADJUSTMENT REVENUE | C149: =IF(ROUND(C143+C147,3)<>ROUND(SUM(D149:I149),3),#VALUE!,C143+C147) -> -618872.26 | D149: =D147+D143 -> 1833725.59 | E149: =E147+E143 -> -578033.38 | F149: =F147+F143 -> -1888625.41 | H149: =H147+H143 -> 14060.94
B150: =B130 -> TOTAL BASE TARIFF REVENUE | C150: =C130 -> 534251107.1 | D150: 226966276.3 | E150: 76500592.52 | F150: 140701909.2 | G150: 68837357.29 | H150: 13579014.6 | I150: 7665957.12
B152: TOTAL PRESENT REVENUE | C152: =IF(ROUND(C149+C150,3)<>ROUND(SUM(D152:I152),3),#VALUE!,SUM(D152:I152)) -> 533632234.8 | D152: =D149+D150 -> 228800001.9 | E152: 75922559.14 | F152: 138813283.8 | G152: 68837357.29 | H152: 13593075.54 | I152: 7665957.12
A160: WORK PAPER | D160: RESIDENTIAL | E160: GENERAL SVC. | F160: LG. GEN. SVC. | G160: EX LG GEN SVC | H160: PUMPING | I160: ST & AREA LTG
A161: REFERENCE | C161: TOTAL | D161: SCHEDULE 1 | E161: SCH. 11,12 | F161: SCH. 21,22 | G161: SCHEDULE 25 | H161: SCH. 30, 31, 32 | I161: SCH. 41-48
B162: PROPOSED REVENUE
B163: =UPPER(CHOOSE(Base1_Billing2,$N$9,$N$10))&" REVENUE" -> BASE TARIFF REVENUE
B164: BASIC CHARGE | C164: =SUM(D164:I164) -> 31546495.5 | D164: =D48*D76 -> 23578135.5 | E164: =E48*E76 -> 7384960 | H164: =H48*H76 -> 583400
B165: MONTHLY MINIMUM | C165: 0 | D165: =D49*D77 -> 0
B166: BLOCK 1 | C166: 298559138.9 | D166: =ROUND(D31*D79/100,2) -> 130335835.3 | E166: 51945812.86 | F166: 102973950.1 | G166: 7702380 | H166: =ROUND(H31*H79/100,2) -> 5601160.55
B167: BLOCK 2 | C167: 116357844.2 | D167: 48529986.28 | E167: 16866549.84 | F167: 11812349.28 | G167: 31251644.33 | H167: 7897314.46
B168: BLOCK 3 | C168: 52308779.47 | D168: =ROUND(D33*D81/100,2) -> 32816733.85 | G168: 19492045.62
B169: BLOCK 4 | C169: 0 | D169: =ROUND(D34*D82/100,2) -> 0
B170: DEMAND BLOCK 1 | C170: 17374000 | F170: =ROUND(F48*F86,2) -> 12082000 | G170: =ROUND(G48*G86,2) -> 5292000
B171: DEMAND BLOCK 2 | C171: 29504257.47 | E171: =ROUND(E50*E87,2) -> 2650869 | F171: =ROUND(F50*F87,2) -> 18447191.97 | G171: =ROUND(G50*G87,2) -> 8406196.5
B172: POWER FACTOR ADJUSTMENT | C172: 140172.91 | E172: =E119 -> 6915 | F172: =F119 -> 128639.9 | H172: =H119 -> 4618.01
B173: PRIMARY VOLTAGE DISCOUNT | C173: -1303818.4 | F173: =F120 -> -70490 | G173: ='WA Sch 25'!P110 -> -1233328.4
B174: ANNUAL MINIMUM ADJUSTMENT | C174: 0
A175: PDE-E-11 | B175: STREET & AREA LIGHT REVENUE | C175: 8006559.241 | I175: ='Lighting summary'!G19 -> 8006559.241
B177: SUBTOTAL | C177: =IF(ROUND(SUM(C164:C175),3)<>ROUND(SUM(D177:I177),3),#VALUE!,SUM(D177:I177)) -> 552493429.2 | D177: =SUM(D164:D175) -> 235260691 | E177: 78855106.7 | F177: 145373641.3 | G177: 70910938.05 | H177: 14086493.02 | I177: 8006559.241
C178: =SUM(D178:I178) -> 0 | D178: =ROUND(D38*D84/100,2) -> 0 | E178: =ROUND(E38*E84/100,2) -> 0 | F178: 0 | G178: =ROUND(G38*G80/100,2) -> 0 | H178: 0 | I178: 0
B180: SUBTOTAL | C180: =SUM(D180:I180) -> 552493429.2 | D180: =D177+D178 -> 235260691 | E180: 78855106.7 | F180: 145373641.3 | G180: 70910938.05 | H180: 14086493.02 | I180: 8006559.241
B181: ADJUST TO ACTUAL | C181: =SUM(D181:I181) -> 0 | D181: =ROUND(D41*D84/100,2) -> 0 | E181: 0 | F181: 0 | G181: 0 | H181: 0 | I181: 0
B183: ="SUBTOTAL "&UPPER(CHOOSE(Base1_Billing2,$N$9,$N$10))&" REVENUE" -> SUBTOTAL BASE TARIFF REVENUE | C183: =IF(ROUND(SUM(D183:I183),3)<>ROUND(SUM(C180:C181),3),#VALUE!,SUM(D183:I183)) -> 552493429.2 | D183: =D180+D181 -> 235260691 | E183: 78855106.7 | F183: 145373641.3 | G183: 70910938.05 | H183: 14086493.02 | I183: 8006559.241
B185: ADJUSTMENT REVENUE
B186: UNBILLED REVENUE ADJUSTMENT
B187: UNBILLED LOAD KWHS | C187: =SUM(D187:I187) -> -42358120 | D187: =D134 -> -21098568 | E187: =E134 -> -5656561 | F187: =F134 -> -15770451 | H187: =H134 -> 167460
B188: UNBILLED LOAD RATE | D188: =D84 -> 8.968531496 | E188: 11.43804222 | F188: =F84 -> 7.906568159 | H188: =H84 -> 8.724597693
B189: UNBILLED LOAD REVENUE | C189: =SUM(D189:I189) -> -3771522.81 | D189: =ROUND(D187*D188/100,2) -> -1892231.72 | E189: =ROUND(E187*E188/100,2) -> -646999.84 | F189: =ROUND(F187*F188/100,2) -> -1246901.46 | H189: =ROUND(H187*H188/100,2) -> 14610.21
B191: WEATHER-SENSITIVE KWHS | C191: =SUM(D191:I191) -> 0 | D191: =D138 -> 0 | E191: =E138 -> 0 | F191: =F138 -> 0
B192: WEATHER-SENSITIVE RATE | D192: =I235 -> 10.32496214 | E192: =I253 -> 9.148 | F192: =I286 -> 7.155
B193: WEATHER-SENSITIVE REVENUE | C193: =SUM(D193:I193) -> 0 | D193: =ROUND(D191*D192/100,2) -> 0 | E193: =ROUND(E191*E192/100,2) -> 0 | F193: =ROUND(F191*F192/100,2) -> 0
B195: TOTAL UNBILLED KWH ADJUST | C195: =IF(ROUND(C187+C191,3)<>ROUND(SUM(D195:I195),3),#VALUE!,SUM(D195:I195)) -> -42358120 | D195: =D187+D191 -> -21098568 | E195: =E187+E191 -> -5656561 | F195: =F187+F191 -> -15770451 | H195: =H187+H191 -> 167460
B196: TOTAL UNBILLED REVENUE ADJ | C196: =IF(ROUND(C189+C193,3)<>ROUND(SUM(D196:I196),3),#VALUE!,SUM(D196:I196)) -> -3771522.81 | D196: =D189+D193 -> -1892231.72 | E196: =E189+E193 -> -646999.84 | F196: =F189+F193 -> -1246901.46 | H196: =H189+H193 -> 14610.21
B197: WEATHER NORMALIZATION ADJ
B198: WEATHER-SENSITIVE KWHS | C198: =SUM(D198:I198) -> 27259573 | D198: =D145 -> 36815064 | E198: =E145 -> 530033 | F198: =F145 -> -10085524
B199: WEATHER-SENSITIVE RATE | D199: =I235 -> 10.32496214 | E199: =I253 -> 9.148 | F199: =I286 -> 7.155
B200: WEATHER-SENSITIVE REVENUE | C200: =SUM(D200:I200) -> 3128009.6 | D200: =ROUND(D198*D199/100,2) -> 3801141.42 | E200: =ROUND(E198*E199/100,2) -> 48487.42 | F200: =ROUND(F198*F199/100,2) -> -721619.24
B202: TOTAL ADJUSTMENT REVENUE | C202: =IF(ROUND(SUM(D202:I202),3)<>ROUND(C196+C200,3),#VALUE!,SUM(D202:I202)) -> -643513.21 | D202: =D200+D196 -> 1908909.7 | E202: =E200+E196 -> -598512.42 | F202: =F200+F196 -> -1968520.7 | H202: =H200+H196 -> 14610.21
B203: ="TOTAL "&UPPER(CHOOSE(Base1_Billing2,$N$9,$N$10))&" REVENUE" -> TOTAL BASE TARIFF REVENUE | C203: =SUM(D203:I203) -> 552493429.2 | D203: =D183 -> 235260691 | E203: 78855106.7 | F203: 145373641.3 | G203: 70910938.05 | H203: 14086493.02 | I203: 8006559.241
B204: TOTAL PROPOSED REVENUE | C204: =IF(ROUND(SUM(D204:I204),3)<>ROUND(SUM(C202:C203),3),#VALUE!,SUM(D204:I204)) -> 551849916 | D204: =D202+D203 -> 237169600.7 | E204: 78256594.28 | F204: 143405120.6 | G204: 70910938.05 | H204: 14101103.23 | I204: 8006559.241
B205: TOTAL PRESENT REVENUE | C205: =SUM(D205:I205) -> 533632234.8 | D205: =D152 -> 228800001.9 | E205: 75922559.14 | F205: 138813283.8 | G205: 68837357.29 | H205: 13593075.54 | I205: =I152 -> 7665957.12
B207: TOTAL REVENUE INCREASE | C207: =SUM(D207:I207) -> 18217681.22 | D207: =D204-D205 -> 8369598.76 | E207: 2334035.14 | F207: 4591836.753 | G207: 2073580.76 | H207: 508027.69 | I207: 340602.1203
B208: PERCENT REVENUE INCREASE | C208: =C207/C205 -> 0.03413901941 | D208: =D207/D205 -> 0.03658041386 | E208: 0.03074231383 | F208: 0.03307923152 | G208: 0.03012289898 | H208: 0.03737400624 | I208: =I207/I205 -> 0.04443047554
B209: =IF(Base1_Billing2=2,"Pres and Prop Revenues may be incorrect due to Sch 59--for example all of Sch 11 gets benefit of Sch 59 but it s/only be Sch 12; see Billing Rev on Exhibit page for fix","") -> 
C210: =C4 -> 
A216: WORK PAPER | D216: TOTAL | E216: TOTAL | F216: BASELOAD | G216: BASELOAD | H216: WTHR-SENS. | I216: WTHR-SENS.
A217: REFERENCE | C217: RATES | D217: KWHS | E217: REVENUE | F217: KWHS | G217: REVENUE | H217: KWHS | I217: REVENUE
B219: PRESENT BASELOAD AND WEATHER-SENSITIVE RATES
B220: SCHEDULE 1
B221: 0-600 KWHS | C221: =D62 -> 7.983 | D221: =D8 -> 1568799173 | E221: =C221*D221/100 -> 125237238 | F221: =MIN(D221,F225) -> 1568799173 | G221: =F221*C221/100 -> 125237238 | H221: =D221-F221 -> 0 | I221: =H221*C221/100 -> 0
B222: 601-1300 KWHS | C222: =D63 -> 9.288 | D222: =D9 -> 501965104.3 | E222: =C222*D222/100 -> 46622518.89 | F222: =MIN(F225-F221,D222) -> 56851221.58 | G222: =F222*C222/100 -> 5280341.46 | H222: =D222-F222 -> 445113882.7 | I222: =H222*C222/100 -> 41342177.43 | L222: =H222/$H$225 -> 0.605901535 | N222: =L222*$D$145 -> 22306303.79 | O222: =N222*(D63/100) -> 2071809.496
B223: OVER 1300 KWHS | C223: =D64 -> 10.89 | D223: =D10 -> 289516840.3 | E223: =C223*D223/100 -> 31528383.91 | F223: =MIN(F225-F221-F222,D223) -> 0 | G223: =F223*C223/100 -> 0 | H223: =D223-F223 -> 289516840.3 | I223: =H223*C223/100 -> 31528383.91 | L223: =H223/$H$225 -> 0.394098465 | N223: =L223*$D$145 -> 14508760.21 | O223: =N223*(D64/100) -> 1580003.987
N224: =SUM(N222:N223) -> 36815064 | O224: =SUM(O222:O223) -> 3651813.483
B225: TOTAL | D225: =D221+D222+D223 -> 2360281118 | E225: 203388140.8 | F225: =655*D25 -> 1625650395 | G225: 130517579.5 | H225: 734630723 | I225: 72870561.33
B226: AVERAGE RATE | E226: =E225/D225*100 -> 8.617115108 | G226: =G225/F225*100 -> 8.028637638 | I226: =I225/H225*100 -> 9.919345741
B228: PROPOSED BASELOAD AND WEATHER-SENSITIVE RATES
B229: SCHEDULE 1
B230: 0-600 KWHS | C230: =D79 -> 8.308 | D230: =D221 -> 1568799173 | E230: =C230*D230/100 -> 130335835.3 | F230: =MIN(D230,F234) -> 1568799173 | G230: =F230*C230/100 -> 130335835.3 | H230: =H221 -> 0 | I230: =H230*C230/100 -> 0
B231: 601-1300 KWHS | C231: =D80 -> 9.668 | D231: =D222 -> 501965104.3 | E231: =C231*D231/100 -> 48529986.28 | F231: =MIN(F234-F230,D231) -> 56851221.58 | G231: =F231*C231/100 -> 5496376.102 | H231: =H222 -> 445113882.7 | I231: =H231*C231/100 -> 43033610.18
B232: OVER 1300 KWHS | C232: =D81 -> 11.335 | D232: =D223 -> 289516840.3 | E232: =C232*D232/100 -> 32816733.85 | F232: =MIN(F234-F230-F231,D232) -> 0 | G232: =F232*C232/100 -> 0 | H232: =H223 -> 289516840.3 | I232: =H232*C232/100 -> 32816733.85
B234: TOTAL | D234: =D230+D231+D232 -> 2360281118 | E234: 211682555.5 | F234: =F225 -> 1625650395 | G234: 135832211.4 | H234: 734630723 | I234: 75850344.03
B235: AVERAGE RATE | E235: =E234/D234*100 -> 8.968531496 | G235: =G234/F234*100 -> 8.355561063 | I235: =I234/H234*100 -> 10.32496214
B239: PRESENT BASELOAD AND WEATHER-SENSITIVE RATES
B240: SCHEDULE 11
B241: 0-3650 KWHS | C241: =E62 -> 12.024 | D241: =E8 -> 417235444.6 | E241: =C241*D241/100 -> 50168389.86 | F241: =MIN(D241,F244) -> 417235444.6 | G241: =F241*C241/100 -> 50168389.86 | H241: =D241-F241 -> 0 | I241: =H241*C241/100 -> 0
B242: over 3650 KWHS | C242: =E63 -> 8.835 | D242: =E9 -> 184374178.4 | E242: =C242*D242/100 -> 16289458.66 | F242: =MIN(F244-F241,D242) -> 76818379.36 | G242: =F242*C242/100 -> 6786903.817 | H242: =D242-F242 -> 107555799 | I242: =H242*C242/100 -> 9502554.842
B244: TOTAL | D244: =D241+D242 -> 601609623 | E244: 66457848.52 | F244: =1338*E25 -> 494053824 | G244: 56955293.68 | H244: 107555799 | I244: 9502554.842
B245: AVERAGE RATE | E245: =E244/D244*100 -> 11.04667312 | G245: =G244/F244*100 -> 11.52815562 | I245: =I244/H244*100 -> 8.835
B247: PROPOSED BASELOAD AND WEATHER-SENSITIVE RATES
B248: SCHEDULE 11
B249: 0-3650 KWHS | C249: =E79 -> 12.45 | D249: =E31 -> 417235444.6 | E249: =C249*D249/100 -> 51945812.86 | F249: =MIN(D249,F252) -> 417235444.6 | G249: =F249*C249/100 -> 51945812.86 | H249: =D249-F249 -> 0 | I249: =H249*C249/100 -> 0
B250: over 3650 KWHS | C250: =E80 -> 9.148 | D250: =E32 -> 184374178.4 | E250: =C250*D250/100 -> 16866549.84 | F250: =MIN(F252-F249,D250) -> 76818379.36 | G250: =F250*C250/100 -> 7027345.344 | H250: =D250-F250 -> 107555799 | I250: =H250*C250/100 -> 9839204.493
B252: TOTAL | D252: =D249+D250 -> 601609623 | E252: 68812362.69 | F252: =F244 -> 494053824 | G252: 58973158.2 | H252: 107555799 | I252: 9839204.493
B253: AVERAGE RATE | E253: =E252/D252*100 -> 11.43804222 | G253: =G252/F252*100 -> 11.93658572 | I253: =I252/H252*100 -> 9.148
B261: Note: Total Base Load for Sch. 1 = Base Load per bill times total billings (base load per bill on PDE-E-18) =
B262: ="663 X "&TEXT(D25,"#,##0")&" = "&TEXT(F225,"#,##0") -> 663 X 2,481,909 = 1,625,650,395
B263: ="Total Base Load for Sch. 11 = 1,338 X "&TEXT(E25,"#,##0")&" = "&TEXT(F244,"#,##0") -> Total Base Load for Sch. 11 = 1,338 X 369,248 = 494,053,824
B264: =IF(Base1_Billing2=2,"Pres and Prop Revenues may be incorrect due to Sch 59--for example all of Sch 11 gets benefit of Sch 59 but it s/only be Sch 12; see Billing Rev on Exhibit page for fix","") -> 
A269: WORK PAPER | D269: TOTAL | E269: TOTAL | F269: BASELOAD | G269: BASELOAD | H269: WTHR-SENS. | I269: WTHR-SENS.
A270: REFERENCE | C270: RATES | D270: KWHS | E270: REVENUE | F270: KWHS | G270: REVENUE | H270: KWHS | I270: REVENUE
B272: PRESENT BASELOAD AND WEATHER-SENSITIVE RATES
B273: SCHEDULE 21
B274: 0-250000 KWHS | C274: =F62 -> 7.677 | D274: =F8 -> 1286691867 | E274: =C274*D274/100 -> 98779334.63 | F274: =MIN(D274,F277) -> 1286691867 | G274: =F274*C274/100 -> 98779334.63 | H274: =D274-F274 -> 0 | I274: =H274*C274/100 -> 0
B275: OVER 250000 KWHS | C275: =F63 -> 6.866 | D275: =F9 -> 165092233.1 | E275: =C275*D275/100 -> 11335232.72 | F275: =MIN(F277-F274,D275) -> 57599781.05 | G275: =F275*C275/100 -> 3954800.967 | H275: =D275-F275 -> 107492452 | I275: =H275*C275/100 -> 7380431.754
B277: TOTAL | D277: =D274+D275 -> 1451784100 | E277: =E274+E275 -> 110114567.3 | F277: =55632*F25 -> 1344291648 | G277: =G274+G275 -> 102734135.6 | H277: =H274+H275 -> 107492452 | I277: =I274+I275 -> 7380431.754
B278: AVERAGE RATE | E278: =E277/D277*100 -> 7.58477568 | G278: =G277/F277*100 -> 7.64225053 | I278: =I277/H277*100 -> 6.866
B280: PROPOSED BASELOAD AND WEATHER-SENSITIVE RATES
B281: SCHEDULE 21
B282: 0-250000 KWHS | C282: =F79 -> 8.003 | D282: =D274 -> 1286691867 | E282: =C282*D282/100 -> 102973950.1 | F282: =MIN(D282,F285) -> 1286691867 | G282: =F282*C282/100 -> 102973950.1 | H282: =H274 -> 0 | I282: =H282*C282/100 -> 0
B283: OVER 250000 KWHS | C283: =F80 -> 7.155 | D283: =D275 -> 165092233.1 | E283: =C283*D283/100 -> 11812349.28 | F283: =MIN(F285-F282,D283) -> 57599781.05 | G283: =F283*C283/100 -> 4121264.334 | H283: =H275 -> 107492452 | I283: =H283*C283/100 -> 7691084.941
B285: TOTAL | D285: =D282+D283 -> 1451784100 | E285: =E282+E283 -> 114786299.4 | F285: =F277 -> 1344291648 | G285: =G282+G283 -> 107095214.4 | H285: =H282+H283 -> 107492452 | I285: =I282+I283 -> 7691084.941
B286: AVERAGE RATE | G286: =G285/F285*100 -> 7.966665166 | I286: =I285/H285*100 -> 7.155
B294: Note: Total Base Load for Sch. 21 = Base Load per bill times total billings (base load per bill on PDE-E-18) =
B295: ="53,800 X "&TEXT(F25,"#,##0")&" = "&TEXT(F277,"#,##0") -> 53,800 X 24,164 = 1,344,291,648
D299: =D207/D48 -> 3.372242399 | E299: =E207/E48 -> 6.321050188 | F299: =F207/F48 -> 190.0280067 | G299: =G207/G48 -> 8228.495079 | H299: =H207/H48 -> 17.41610182
D300: =D23/D25 -> 957.3266441
D302: =(800*((D79-D62)/100))+(165*((D80-D63)/100))+(D76-D59) -> 3.227

Sheet Rate Design
A1: PRESENT RATES | D1: 1 | E1: 2 | F1: 3 | G1: 4 | H1: 5 | I1: 6 | N1: Tiers - used for bill comparisons
C2: TOTAL | D2: SCH. 1 | E2: SCH. 11,12 | F2: SCH. 21,22 | G2: SCH. 25 | H2: SCH. 30, 31, 32 | L2: Range Name | N2: SCHEDULE 1 | O2: SCH. 11,12 | P2: SCH. 21,22 | Q2: SCHEDULE 25 | R2: SCH. 30, 31, 32
B3: Base Tariff Rates
A4: 1 | B4: BASIC CHARGE | D4: 9.5 | E4: 20 | F4: 0 | G4: 0 | H4: 20
A5: 2 | B5: BLOCK 1 PER KWH | D5: 7.983 | E5: 12.024 | F5: 7.677 | G5: 5.896 | H5: 10.362 | N5: 800 | O5: 3650 | P5: 250000 | Q5: 500000
A6: 3 | B6: BLOCK 2 PER KWH | D6: 9.288 | E6: 8.835 | F6: 6.866 | G6: 5.305 | H6: 7.401 | N6: 1500 | O6: 9999999 | P6: 9999999 | Q6: 9999999
A7: 4 | B7: BLOCK 3 PER KWH | D7: 10.89 | E7: 0 | F7: 0 | G7: 4.536 | H7: 0 | L7: Rates_Base_Present | N7: 9999999 | O7: 9999999 | P7: 9999999 | Q7: 9999999
A8: 5 | B8: BLOCK 4 PER KWH
A9: 6 | B9: DEMAND CHARGE | D9: 0 | E9: 0 | F9: 500 | G9: 21000 | H9: 0
A10: 7 | B10: DEMAND BLOCK 1 | D10: 0 | E10: 6.5 | F10: 6.5 | G10: 6.5 | H10: 0 | N10: 0 | O10: 20 | P10: 50 | Q10: 3000
B12: Billing Rates | D12: =IF(D13<>'Pres & Prop Rev'!D$5,#VALUE!,"") ->  | E12: =IF(E13<>'Pres & Prop Rev'!E$5,#VALUE!,"") ->  | F12: =IF(F13<>'Pres & Prop Rev'!F$5,#VALUE!,"") ->  | G12: =IF(G13<>'Pres & Prop Rev'!G$5,#VALUE!,"") ->  | H12: =IF(H13<>'Pres & Prop Rev'!H$5,#VALUE!,"") -> 
D13: SCHEDULE 1 | E13: SCH. 11,12 | F13: SCH. 21,22 | G13: SCHEDULE 25 | H13: SCH. 30, 31, 32
A14: 1 | B14: BASIC CHARGE | D14: =D4 -> 9.5 | E14: =E4 -> 20 | F14: =F4 -> 0 | G14: =G4 -> 0 | H14: =H4 -> 20
A15: 2 | B15: BLOCK 1 PER KWH | D15: =D5-0.051+0.263+0.262+0.097-0.035 -> 8.519 | E15: =E5-0.143+0.362+0.141-0.036 -> 12.348 | F15: =F5-0.143+0.273+0.102-0.036 -> 7.873 | G15: =G5+0.172+0.064-0.034 -> 6.098 | H15: =H5-0.143+0.261+0.089-0.042 -> 10.527 | N15: =N5 -> 800 | O15: =O5 -> 3650 | P15: =P5 -> 250000 | Q15: =Q5 -> 500000
A16: 3 | B16: BLOCK 2 PER KWH | D16: =D6-0.051+0.263+0.262+0.097-0.035 -> 9.824 | E16: =E6-0.143+0.362+0.141-0.036 -> 9.159 | F16: =F6-0.143+0.273+0.102-0.036 -> 7.062 | G16: =G6+0.172+0.064-0.034 -> 5.507 | H16: =H6-0.143+0.261+0.089-0.042 -> 7.566 | N16: =N6 -> 1500 | O16: 9999999 | P16: 9999999 | Q16: 9999999
A17: 4 | B17: BLOCK 3 PER KWH | D17: =D7-0.051+0.263+0.262+0.097-0.035 -> 11.426 | G17: =G7+0.172-0.034 -> 4.674 | L17: Rates_Billing_Present | N17: 9999999 | O17: 9999999 | P17: 9999999 | Q17: 9999999
A18: 5 | B18: BLOCK 4 PER KWH
A19: 6 | B19: DEMAND CHARGE | F19: =F9 -> 500 | G19: =G9 -> 21000
A20: 7 | B20: DEMAND BLOCK 1 | E20: =E10 -> 6.5 | F20: =F10 -> 6.5 | G20: =G10 -> 6.5 | N20: =N10 -> 0 | O20: =O10 -> 20 | P20: =P10 -> 50 | Q20: =Q10 -> 3000
A22: PROPOSED RATES
B24: Base Tariff Rates | D24: =IF(D25<>'Pres & Prop Rev'!D$5,#VALUE!,"") ->  | E24: =IF(E25<>'Pres & Prop Rev'!E$5,#VALUE!,"") ->  | F24: =IF(F25<>'Pres & Prop Rev'!F$5,#VALUE!,"") ->  | G24: =IF(G25<>'Pres & Prop Rev'!G$5,#VALUE!,"") ->  | H24: =IF(H25<>'Pres & Prop Rev'!H$5,#VALUE!,"") -> 
D25: SCHEDULE 1 | E25: SCH. 11,12 | F25: SCH. 21,22 | G25: SCHEDULE 25 | H25: SCH. 30, 31, 32 | T25: Rounding
A26: 1 | B26: BASIC CHARGE | D26: =ROUND(D62,$T26) -> 9.5 | E26: =ROUND(E62,$T26) -> 20 | F26: =ROUND(F62,$T26) -> 0 | G26: =ROUND(G62,$T26) -> 0 | H26: =ROUND(H62,$T26) -> 20 | T26: 2 | U26: 2
A27: 2 | B27: BLOCK 1 PER KWH | D27: =ROUND(D85,$T27) -> 8.308 | E27: =ROUND(E85,$T27) -> 12.45 | F27: 8.003 | G27: 6.113 | H27: 10.767 | N27: 800 | O27: 3650 | P27: 250000 | Q27: 500000 | T27: 3 | U27: 3
A28: 3 | B28: BLOCK 2 PER KWH | D28: 9.668 | E28: 9.148 | F28: 7.155 | G28: 5.5 | H28: 7.69 | N28: 1500 | O28: 9999999 | P28: 9999999 | Q28: 6000000 | T28: 3 | U28: 3
A29: 4 | B29: BLOCK 3 PER KWH | D29: 11.335 | E29: 0 | F29: 0 | G29: 4.703 | H29: 0 | L29: Rates_Base_Proposed | N29: 9999999 | O29: 9999999 | P29: 9999999 | Q29: 99999999 | T29: 3 | U29: 3
A30: 5 | B30: BLOCK 4 PER KWH | T30: 3 | U30: 3
A31: 6 | B31: DEMAND CHARGE | D31: =ROUND(D66,$T31) -> 0 | E31: =ROUND(E66,$T31) -> 0 | F31: =ROUND(F66,$T31) -> 500 | G31: =ROUND(G66,$T31) -> 21000 | H31: =ROUND(H66,$T31) -> 0 | T31: 2 | U31: 2
A32: 7 | B32: DEMAND BLOCK 1 | D32: =ROUND(D69,$T32) -> 0 | E32: =ROUND(E69,$T32) -> 6.5 | F32: =ROUND(F69,$T32) -> 6.5 | G32: =ROUND(G69,$T32) -> 6.5 | H32: =ROUND(H69,$T32) -> 0 | N32: 0 | O32: 20 | P32: 50 | Q32: 3000 | T32: 2 | U32: 2
B34: Billing Rates | D34: =IF(D35<>'Pres & Prop Rev'!D$5,#VALUE!,"") ->  | E34: =IF(E35<>'Pres & Prop Rev'!E$5,#VALUE!,"") ->  | F34: =IF(F35<>'Pres & Prop Rev'!F$5,#VALUE!,"") ->  | G34: =IF(G35<>'Pres & Prop Rev'!G$5,#VALUE!,"") ->  | H34: =IF(H35<>'Pres & Prop Rev'!H$5,#VALUE!,"") -> 
D35: SCHEDULE 1 | E35: SCH. 11,12 | F35: SCH. 21,22 | G35: SCHEDULE 25 | H35: SCH. 30, 31, 32 | S35: LIRAP/DSM increase
A36: 1 | B36: BASIC CHARGE | D36: =D26 -> 9.5 | E36: =E26 -> 20 | F36: =F26 -> 0 | G36: =G26 -> 0 | H36: =H26 -> 20 | S36: 1 | T36: 11 | U36: 21 | V36: 25 | W36: 31
A37: 2 | B37: BLOCK 1 PER KWH | D37: =D27-0.051+0.263+0.262+0.097-0.035-0.325 -> 8.519 | E37: =E27-0.143+0.362+0.141-0.036-0.426 -> 12.348 | F37: =F27-0.143+0.273+0.102-0.036-0.326 -> 7.873 | G37: =G27+0.172+0.064-0.034-0.217 -> 6.098 | H37: =H27-0.143+0.261+0.089-0.042-0.405 -> 10.527 | N37: =N27 -> 800 | O37: 3650 | P37: 250000 | Q37: 500000 | S37: 0 | T37: 0 | U37: 0 | V37: 0 | W37: 0
A38: 3 | B38: BLOCK 2 PER KWH | D38: =D28-0.051+0.263+0.262+0.097-0.035-0.38 -> 9.824 | E38: =E28-0.143+0.362+0.141-0.036-0.313 -> 9.159 | F38: =F28-0.143+0.273+0.102-0.036-0.289 -> 7.062 | G38: =G28+0.172+0.064-0.034-0.195 -> 5.507 | H38: =H28-0.143+0.261+0.089-0.042-0.289 -> 7.566 | N38: 1500 | O38: 9999999 | P38: 9999999 | Q38: 6000000 | S38: =S$37 -> 0 | T38: =T$37 -> 0 | U38: =U$37 -> 0 | V38: =V$37 -> 0 | W38: =W$37 -> 0
A39: 4 | B39: BLOCK 3 PER KWH | D39: =D29-0.051+0.263+0.262+0.097-0.035-0.445 -> 11.426 | G39: =G29+0.172-0.034-0.167 -> 4.674 | L39: Rates_Billing_Proposed | N39: 9999999 | O39: 9999999 | P39: 9999999 | Q39: 99999999 | S39: =S$37 -> 0 | T39: 0 | U39: 0 | V39: 0 | W39: 0
A40: 5 | B40: BLOCK 4 PER KWH | S40: 0 | T40: 0 | U40: 0 | V40: 0 | W40: 0
A41: 6 | B41: DEMAND CHARGE | F41: =F31 -> 500 | G41: =G31 -> 21000
A42: 7 | B42: DEMAND BLOCK 1 | E42: =E32 -> 6.5 | F42: =F32 -> 6.5 | G42: =G32 -> 6.5 | N42: =N32 -> 0 | O42: =O32 -> 20 | P42: =P32 -> 50 | Q42: =Q32 -> 3000
D45: 0 | E45: 0) ERM=0; 1) ERM as is
B47: Proposed Rate Workup - from Pres & Prop Rev tab
B49: KILOWATT HOURS (KWHS)
B50: BLOCK 1 | C50: =SUM(D50:H50) -> 3450748037 | D50: ='Pres & Prop Rev'!D31 -> 1568799173 | E50: ='Pres & Prop Rev'!E31 -> 417235444.6 | F50: ='Pres & Prop Rev'!F31 -> 1286691867 | G50: ='Pres & Prop Rev'!G31 -> 126000000 | H50: ='Pres & Prop Rev'!H31 -> 52021552.46
B51: BLOCK 2 | C51: =SUM(D51:H51) -> 1522339128 | D51: ='Pres & Prop Rev'!D32 -> 501965104.3 | E51: ='Pres & Prop Rev'!E32 -> 184374178.4 | F51: ='Pres & Prop Rev'!F32 -> 165092233.1 | G51: ='Pres & Prop Rev'!G32 -> 568211715 | H51: ='Pres & Prop Rev'!H32 -> 102695896.8
B52: BLOCK 3 | C52: =SUM(D52:H52) -> 703976666.3 | D52: ='Pres & Prop Rev'!D33 -> 289516840.3 | E52: ='Pres & Prop Rev'!E33 -> 0 | F52: ='Pres & Prop Rev'!F33 -> 0 | G52: ='Pres & Prop Rev'!G33 -> 414459826 | H52: ='Pres & Prop Rev'!H33 -> 0
B53: ADJ. TO ACTUAL/EE ADJ | C53: =SUM(D53:H53) -> 0 | D53: ='Pres & Prop Rev'!D41+'Pres & Prop Rev'!D38 -> 0 | E53: ='Pres & Prop Rev'!E41+'Pres & Prop Rev'!E38 -> 0 | F53: ='Pres & Prop Rev'!F41+'Pres & Prop Rev'!F38 -> 0 | G53: ='Pres & Prop Rev'!G41+'Pres & Prop Rev'!G38 -> 0 | H53: ='Pres & Prop Rev'!H41+'Pres & Prop Rev'!H38 -> 0
B54: WEATHER & U/B KWHS | C54: =SUM(D54:H54) -> -15098547 | D54: ='Pres & Prop Rev'!D44 -> 15716496 | E54: ='Pres & Prop Rev'!E44 -> -5126528 | F54: ='Pres & Prop Rev'!F44 -> -25855975 | G54: ='Pres & Prop Rev'!G44 -> 0 | H54: ='Pres & Prop Rev'!H44 -> 167460
B55: TOTAL PROFORMA KWHS | C55: =IF(ROUND(SUM(D55:I55),3)<>ROUND(SUM(C50:C54),3),#VALUE!,SUM(D55:I55)) -> 5661965284 | D55: =SUM(D50:D54) -> 2375997614 | E55: =SUM(E50:E54) -> 596483095 | F55: =SUM(F50:F54) -> 1425928125 | G55: =SUM(G50:G54) -> 1108671541 | H55: =SUM(H50:H54) -> 154884909.3
B56: TOTAL BILLS | D56: ='Pres & Prop Rev'!D48 -> 2481909 | E56: ='Pres & Prop Rev'!E48 -> 369248 | F56: ='Pres & Prop Rev'!F48 -> 24164 | G56: ='Pres & Prop Rev'!G48 -> 252 | H56: ='Pres & Prop Rev'!H48 -> 29170
B57: EXCESS DEMAND | D57: ='Pres & Prop Rev'!D50 -> 0 | E57: ='Pres & Prop Rev'!E50 -> 407826 | F57: ='Pres & Prop Rev'!F50 -> 2838029.533 | G57: ='Pres & Prop Rev'!G50 -> 1293261 | H57: ='Pres & Prop Rev'!H50 -> 0
J58: Proposed rates: | K58: Formulas to copy
B59: Proposed Revenue | C59: =SUM(D59:I59) -> 543849142 | D59: =ROR!D14 -> 237176575 | E59: =ROR!E14 -> 78257203.45 | F59: =ROR!F14 -> 143402356.2 | G59: =ROR!G14 -> 70909959.86 | H59: =ROR!H14 -> 14103047.49 | J59: same as current | K59: FLOOR | L59: CEILING | M59: OTHER
B60: Targeted Rate Increase | C60: =ROR!C15 -> 0.03414124536 | D60: =ROR!D15 -> 0.03660484273 | E60: =ROR!E15 -> 0.03078268878 | F60: =ROR!F15 -> 0.03303711008 | G60: =ROR!G15 -> 0.0301040361 | H60: =ROR!H15 -> 0.03762809233 | J60: diff than current
B61: Present Basic Charge | D61: =D4 -> 9.5 | E61: =E4 -> 20 | F61: =F4 -> 0 | G61: =G4 -> 0 | H61: =H4 -> 20
B62: BASIC CHARGE | D62: 9.5 | E62: 20 | F62: 0 | G62: 0 | H62: 20 | K62: =FLOOR(K61*(1+K$60),$K63) -> 0 | L62: =CEILING(L61*(1+L$60),$L63) -> 0 | M62: =M61*(1+M$60) -> 0
B63: % D in Basic Charge | D63: =IF(D61,D62/D61-1,0) -> 0 | E63: =IF(E61,E62/E61-1,0) -> 0 | F63: =IF(F61,F62/F61-1,0) -> 0 | G63: =IF(G61,G62/G61-1,0) -> 0 | H63: =IF(H61,H62/H61-1,0) -> 0 | K63: 0.05 | L63: 0.05
B64: Basic Charge Revenue | C64: =SUM(D64:I64) -> 31546495.5 | D64: =D56*D62 -> 23578135.5 | E64: =E56*E62 -> 7384960 | F64: =F56*F62 -> 0 | G64: =G56*G62 -> 0 | H64: =H56*H62 -> 583400
B65: Present Demand Block 1 | D65: =D9 -> 0 | E65: =E9 -> 0 | F65: =F9 -> 500 | G65: =G9 -> 21000 | H65: =H9 -> 0
B66: DEMAND BLOCK 1 | F66: 500 | G66: 21000 | K66: =FLOOR(K65*(1+K$60),$K67) -> 0 | L66: =CEILING(L65*(1+L$60),$L67) -> 0 | M66: =M65*(1+M$60) -> 0
B67: % D in Demand Block 1 | D67: =IF(D65,D66/D65-1,0) -> 0 | E67: =IF(E65,E66/E65-1,0) -> 0 | F67: =IF(F65,F66/F65-1,0) -> 0 | G67: =IF(G65,G66/G65-1,0) -> 0 | H67: =IF(H65,H66/H65-1,0) -> 0 | K67: 5 | L67: 10
B68: Present Demand Block 2 | D68: =D10 -> 0 | E68: =E10 -> 6.5 | F68: =F10 -> 6.5 | G68: =G10 -> 6.5 | H68: =H10 -> 0
B69: DEMAND BLOCK 2 | E69: 6.5 | F69: 6.5 | G69: 6.5 | H69: 0 | K69: =FLOOR(K68*(1+K$60),$K70) -> 0 | L69: =CEILING(L68*(1+L$60),$L70) -> 0 | M69: =M68*(1+M$60) -> 0
B70: % D in Demand Block 2 | D70: =IF(D68,D69/D68-1,0) -> 0 | E70: =IF(E68,E69/E68-1,0) -> 0 | F70: =IF(F68,F69/F68-1,0) -> 0 | G70: =IF(G68,G69/G68-1,0) -> 0 | H70: =IF(H68,H69/H68-1,0) -> 0 | K70: 0.05 | L70: 0.05
B71: Demand Revenue | C71: =SUM(D71:I71) -> 46878257.47 | D71: =D56*D66+D57*D69 -> 0 | E71: =E56*E66+E57*E69 -> 2650869 | F71: =F56*F66+F57*F69 -> 30529191.97 | G71: =G56*G66+G57*G69 -> 13698196.5 | H71: =H56*H66+H57*H69 -> 0
B72: Pwr Fctr/Prim Voltg Disc | C72: =SUM(D72:I72) -> -1163645.49 | D72: ='Pres & Prop Rev'!D172+'Pres & Prop Rev'!D173 -> 0 | E72: ='Pres & Prop Rev'!E172+'Pres & Prop Rev'!E173 -> 6915 | F72: ='Pres & Prop Rev'!F172+'Pres & Prop Rev'!F173 -> 58149.9 | G72: ='Pres & Prop Rev'!G172+'Pres & Prop Rev'!G173 -> -1233328.4 | H72: ='Pres & Prop Rev'!H172+'Pres & Prop Rev'!H173 -> 4618.01
B74: Present Block 1 Base Rate | D74: =D5 -> 7.983 | E74: =E5 -> 12.024 | F74: =F5 -> 7.677 | G74: =G5 -> 5.896 | H74: =H5 -> 10.362
B75: Present Block 2 Base Rate | D75: =D6 -> 9.288 | E75: 8.835 | F75: 6.866 | G75: 5.305 | H75: 7.401
B76: Present Block 3 Base Rate | D76: 10.89 | E76: 0 | F76: 0 | G76: 4.536 | H76: 0
B78: 1) Flat Rate Increase | D78: 0 | E78: 1 | F78: 1 | G78: 1 | H78: 1
B79: 2) % Rate Increase | D79: 0.04089263485 | E79: 0.03543785118 | F79: 0.04240315677 | G79: 0.03676620642 | H79: 0.03921338896 | M79: =M$60 -> 0
B80: Method ---> | D80: 2 | E80: 2 | F80: 2 | G80: 2 | H80: 2
A82: Calculated | B82: BLOCK 1 PER KWH | D82: =CHOOSE(D$80,D74+D$78,D74*(1+D$79)) -> 8.309445904 | E82: =CHOOSE(E$80,E74+E$78,E74*(1+E$79)) -> 12.45010472 | F82: =CHOOSE(F$80,F74+F$78,F74*(1+F$79)) -> 8.002529034 | G82: =CHOOSE(G$80,G74+G$78,G74*(1+G$79)) -> 6.112773553 | H82: =CHOOSE(H$80,H74+H$78,H74*(1+H$79)) -> 10.76832914
B83: BLOCK 2 PER KWH | D83: 9.667810792 | E83: 9.148093415 | F83: 7.157140074 | G83: =CHOOSE(G$80,G75+G$78,G75*(1+G$79)) -> 5.500044725 | H83: =CHOOSE(H$80,H75+H$78,H75*(1+H$79)) -> 7.691218292 | M83: =0.75*M82 -> 0
B84: BLOCK 3 PER KWH | D84: 11.33532079 | E84: 0 | F84: 0 | G84: =CHOOSE(G$80,G76+G$78,G76*(1+(G$79*1))) -> 4.702771512 | H84: 0
A85: Input | B85: BLOCK 1 PER KWH | D85: =D82-0.001 -> 8.308445904 | E85: =E82 -> 12.45010472 | F85: =F82 -> 8.002529034 | G85: =G82 -> 6.112773553 | H85: =H82-0.001 -> 10.76732914 | M85: =M82 -> 0
B86: BLOCK 2 PER KWH | D86: =D83 -> 9.667810792 | E86: =E83 -> 9.148093415 | F86: =F83-0.002 -> 7.155140074 | G86: 5.500044725 | H86: =H83-0.001 -> 7.690218292 | J86: =G86-G85 -> -0.612728828 | M86: =M83 -> 0 | N86: =0.75*(N85-N74)+N75 -> 0
B87: BLOCK 3 PER KWH | D87: =D84 -> 11.33532079 | E87: =E84 -> 0 | F87: 0 | G87: =G84 -> 4.702771512 | H87: 0 | J87: =G87-G86 -> -0.7972732127 | M87: =M84 -> 0
B88: Blocks 1-3 Revenue | C88: =SUM(D88:I88) -> 467226934.6 | D88: =SUMPRODUCT(D50:D52,D85:D87)/100 -> 211689529.8 | E88: =SUMPRODUCT(E50:E52,E85:E87)/100 -> 68812971.87 | F88: =SUMPRODUCT(F50:F52,F85:F87)/100 -> 114780470.8 | G88: =SUMPRODUCT(G50:G52,G85:G87)/100 -> 58445091.76 | H88: =SUMPRODUCT(H50:H52,H85:H87)/100 -> 13498870.42
B89: Adj. to Actual Revenue | C89: =SUM(D89:I89) -> 0 | D89: ='Pres & Prop Rev'!D181+'Pres & Prop Rev'!D178 -> 0 | E89: ='Pres & Prop Rev'!E181+'Pres & Prop Rev'!E178 -> 0 | F89: ='Pres & Prop Rev'!F181+'Pres & Prop Rev'!F178 -> 0 | G89: ='Pres & Prop Rev'!G181+'Pres & Prop Rev'!G178 -> 0 | H89: ='Pres & Prop Rev'!H181+'Pres & Prop Rev'!H178 -> 0
B90: Weather & U/B Revenue | C90: =SUM(D90:I90) -> -643513.21 | D90: ='Pres & Prop Rev'!D202 -> 1908909.7 | E90: ='Pres & Prop Rev'!E202 -> -598512.42 | F90: ='Pres & Prop Rev'!F202 -> -1968520.7 | G90: ='Pres & Prop Rev'!G202 -> 0 | H90: ='Pres & Prop Rev'!H202 -> 14610.21
B92: Revenue Remaining | C92: =IF(ROUND(C59-C64-C71-C72-SUM(C88:C90),3)<>ROUND(SUM(D92:I92),3),#VALUE!,SUM(D92:I92)) -> 4613.129179 | D92: =D59-D64-D71-D72-SUM(D88:D90) -> 0 | E92: =E59-E64-E71-E72-SUM(E88:E90) -> 0 | F92: =F59-F64-F71-F72-SUM(F88:F90) -> 3064.274661 | G92: =G59-G64-G71-G72-SUM(G88:G90) -> 0 | H92: =H59-H64-H71-H72-SUM(H88:H90) -> 1548.854518 | J92: there will be some remainder in Schs. 21 & 25 because some components of their revenue don't change w/a rate change.
B93: Revenue Remaining - ¢/kWh | C93: =C92/C55*100 -> 8.147575881e-05 | D93: =D92/D55*100 -> 0 | E93: 0 | F93: 0.0002148968526 | G93: 0 | H93: 0.001000003503
B94: check - < $6k is rounding | C94: =SUM(D94:I94) -> 1172.085958 | D94: =D59-'Pres & Prop Rev'!D204-D92 -> 6974.330469 | E94: =E59-'Pres & Prop Rev'!E204-E92 -> 609.1669126 | F94: =F59-'Pres & Prop Rev'!F204-F92 -> -5828.62961 | G94: =G59-'Pres & Prop Rev'!G204-G92 -> -978.188018 | H94: =H59-'Pres & Prop Rev'!H204-H92 -> 395.4062052
A95: =IF(Base1_Billing2=2,"MAKE SURE TO CHANGE Base1_Billing2 to '1' before designing Base Rates","") -> 
B96: Proposed Target | C96: =SUM(D96:I96) -> 543849142 | D96: =D59 -> 237176575 | E96: =E59 -> 78257203.45 | F96: =F59 -> 143402356.2 | G96: =G59 -> 70909959.86 | H96: =H59 -> 14103047.49
B97: Proposed Actual | C97: =SUM(D97:I97) -> 543843356.8 | D97: ='Pres & Prop Rev'!D204 -> 237169600.7 | E97: ='Pres & Prop Rev'!E204 -> 78256594.28 | F97: ='Pres & Prop Rev'!F204 -> 143405120.6 | G97: ='Pres & Prop Rev'!G204 -> 70910938.05 | H97: ='Pres & Prop Rev'!H204 -> 14101103.23
C98: =SUM(D98:H98) -> -5785.215137 | D98: =D97-D96 -> -6974.330469 | E98: =E97-E96 -> -609.1669126 | F98: =F97-F96 -> 2764.354949 | G98: =G97-G96 -> 978.188018 | H98: =H97-H96 -> -1944.260723
B99: Rate D Check
B100: Basic Charge | C100: ='Pres & Prop Rev'!C164/'Pres & Prop Rev'!C111-1 -> 0 | D100: ='Pres & Prop Rev'!D164/'Pres & Prop Rev'!D111-1 -> 0 | E100: ='Pres & Prop Rev'!E164/'Pres & Prop Rev'!E111-1 -> 0 | F100: ='Pres & Prop Rev'!F164/'Pres & Prop Rev'!F111-1 ->  | G100: ='Pres & Prop Rev'!G164/'Pres & Prop Rev'!G111-1 ->  | H100: ='Pres & Prop Rev'!H164/'Pres & Prop Rev'!H111-1 -> 0
B101: Demand Charge | C101: =SUM('Pres & Prop Rev'!C170:C171)/SUM('Pres & Prop Rev'!C117:C118)-1 -> 7.110600997e-11 | D101: =SUM('Pres & Prop Rev'!D170:D171)/SUM('Pres & Prop Rev'!D117:D118)-1 ->  | E101: =SUM('Pres & Prop Rev'!E170:E171)/SUM('Pres & Prop Rev'!E117:E118)-1 -> 0 | F101: =SUM('Pres & Prop Rev'!F170:F171)/SUM('Pres & Prop Rev'!F117:F118)-1 -> 1.091851054e-10 | G101: =SUM('Pres & Prop Rev'!G170:G171)/SUM('Pres & Prop Rev'!G117:G118)-1 -> 0 | H101: =SUM('Pres & Prop Rev'!H170:H171)/SUM('Pres & Prop Rev'!H117:H118)-1 -> 
B102: Adj. to Actual Revenue | C102: ='Pres & Prop Rev'!C181/'Pres & Prop Rev'!C128-1 ->  | D102: ='Pres & Prop Rev'!D181/'Pres & Prop Rev'!D128-1 ->  | E102: ='Pres & Prop Rev'!E181/'Pres & Prop Rev'!E128-1 ->  | F102: ='Pres & Prop Rev'!F181/'Pres & Prop Rev'!F128-1 ->  | G102: ='Pres & Prop Rev'!G181/'Pres & Prop Rev'!G128-1 ->  | H102: ='Pres & Prop Rev'!H181/'Pres & Prop Rev'!H128-1 -> 
B103: Weather & U/B Revenue | C103: ='Pres & Prop Rev'!C202/'Pres & Prop Rev'!C149-1 -> 0.03981589028 | D103: ='Pres & Prop Rev'!D202/'Pres & Prop Rev'!D149-1 -> 0.0410007421 | E103: ='Pres & Prop Rev'!E202/'Pres & Prop Rev'!E149-1 -> 0.03542881901 | F103: ='Pres & Prop Rev'!F202/'Pres & Prop Rev'!F149-1 -> 0.04230340732 | G103: ='Pres & Prop Rev'!G202/'Pres & Prop Rev'!G149-1 ->  | H103: ='Pres & Prop Rev'!H202/'Pres & Prop Rev'!H149-1 -> 0.03906353345
B104: Block Energy Charges | C104: =SUM('Pres & Prop Rev'!C166:C169)/SUM('Pres & Prop Rev'!C113:C116)-1 -> 0.03984144706 | D104: =SUM('Pres & Prop Rev'!D166:D169)/SUM('Pres & Prop Rev'!D113:D116)-1 -> 0.04078121083 | E104: =SUM('Pres & Prop Rev'!E166:E169)/SUM('Pres & Prop Rev'!E113:E116)-1 -> 0.03542868499 | F104: =SUM('Pres & Prop Rev'!F166:F169)/SUM('Pres & Prop Rev'!F113:F116)-1 -> 0.04242610358 | G104: =SUM('Pres & Prop Rev'!G166:G169)/SUM('Pres & Prop Rev'!G113:G116)-1 -> 0.03678355861 | H104: =SUM('Pres & Prop Rev'!H166:H169)/SUM('Pres & Prop Rev'!H113:H116)-1 -> 0.03906385599
B105: Overall Revenue | C105: ='Pres & Prop Rev'!C208 -> 0.03413901941 | D105: ='Pres & Prop Rev'!D208 -> 0.03658041386 | E105: ='Pres & Prop Rev'!E208 -> 0.03074231383 | F105: ='Pres & Prop Rev'!F208 -> 0.03307923152 | G105: ='Pres & Prop Rev'!G208 -> 0.03012289898 | H105: ='Pres & Prop Rev'!H208 -> 0.03737400624
B107: Avg. Usage | D107: =D55/D56 -> 957.3266441 | E107: =E55/E56 -> 1615.399664 | F107: =F55/F56 -> 59010.43391 | G107: =G55/G56 -> 4399490.242 | H107: =H55/H56 -> 5309.73292
B108: Bill Compare: | C108: =INDEX($D$2:$I$2,K108) -> SCH. 1 | F108: =INDEX($D$2:$I$2,L108) -> SCH. 11,12 | K108: 1 | L108: 2
B109: =IF(Base1_Billing2=2,"BILLING RATES","BASE RATES") -> BASE RATES | C109: Pres | D109: Prop | E109: % Incr | F109: Pres | G109: Prop | H109: % Incr
B110: 100
B111: 200
B112: 300
B113: 400
B114: 500
B115: 600
B116: 700
B117: 800
B118: 900
B119: 1000 | C119: =ROUND(D14+600*D15/100+400*D16/100,2) -> 99.91 | D119: =ROUND(D36+600*D37/100+400*D38/100,2) -> 99.91 | E119: =D119/C119-1 -> 0 | F119: =D119-C119 -> 0
B120: 1100
B121: 1200
B122: 1300
B123: 1400
B124: 1500
D125: 2425727000 | E125: =395341000+52692000 -> 448033000
D126: =205474*12 -> 2465688 | E126: =(19967+8691)*12 -> 343896
D127: =D125/D126 -> 983.7931644 | E127: =E125/E126 -> 1302.815386

Sheet Exh 1
A1: AVISTA UTILITIES | R1: This worksheet pulls data from 'Pres & Prop Rev' tab.
A2: WASHINGTON ELECTRIC
A3: PROPOSED INCREASE BY SERVICE SCHEDULE
A4: 12 MONTHS ENDED SEPTEMBER 30, 2015
A5: (000s of Dollars)
A8: 2017 Rate Change
D10: Base Tariff | F10: Base Tariff | G10: Base | H10: Total Billed | K10: Percent | O10: Percent | S10: Percent | T10: Total Billed
D11: Revenue | E11: Proposed | F11: Revenue | G11: Tariff | H11: Revenue | I11: Total | J11: Total | K11: Increase | L11: Sch. 98 | M11: Sch. 93 | N11: Proposed | O11: Increase | S11: Increase | T11: Revenue
B12: Type of | C12: Schedule | D12: Under Present | E12: General | F12: Under Proposed | G12: Percent | H12: at Present | I12: General | J12: ERM | K12: on Billed | L12: REC Revenue | M12: ERM | N12: General | O12: on Billed | S12: on Base | T12: at Proposed
A13: No. | B13: Service | C13: Number | D13: Rates(1) | E13: Increase | F13: Rates(1) | G13: Increase | H13: Rates (2) | I13: Increase | J13: Decrease | K13: Revenue | L13: Decrease | M13: Increase | N13: Increase | O13: Revenue | S13: Revenue | T13: Rates (2)
B14: (a) | C14: (b) | D14: (c) | E14: (d) | F14: (e) | G14: (f) | H14: (g) | I14: (h) | J14: (i) | K14: (j) | L14: (j) | M14: (k) | N14: (j) | O14: (k) | Q14: ="col (m) source" -> col (m) source
D15: =IF(Base1_Billing2<>1,"ERROR","") -> 
A16: 1 | B16: Residential | C16: 1 | D16: 211070.1166 | E16: 17729.88526 | F16: 228800.0019 | G16: =E16/D16 -> 0.0839999785 | H16: =223805.46384 -> 223805.4638 | I16: =E16 -> 17729.88526 | J16: 0 | K16: =(I16+J16)/H16 -> 0.07922007334 | L16: ='ERM Offset'!#REF!/1000 ->  | M16: =('Pres & Prop Rev'!#REF!*(0))/1000 ->  | N16: =E16+M16 ->  | O16: =(N16)/H16 ->  | Q16: from Pres & Prop Rev tab | S16: =(E16+J16)/D16 -> 0.0839999785 | T16: =E16+H16+J16 -> 241535.3491
A18: 2 | B18: General Service | C18: 11/12 | D18: 70975.50978 | E18: 4947.34936 | F18: 75922.85914 | G18: =E18/D18 -> 0.06970502044 | H18: =72908.11501-29 -> 72879.11501 | I18: =E18 -> 4947.34936 | J18: 0 | K18: =I18/H18 -> 0.06788432268 | L18: ='ERM Offset'!#REF!/1000 ->  | M18: =('Pres & Prop Rev'!#REF!*(0))/1000 ->  | N18: =E18+M18 ->  | O18: =(N18)/H18 ->  | Q18: from below | S18: =(E18+J18)/D18 -> 0.06970502044 | T18: =E18+H18+J18 -> 77826.46437
A20: 3 | B20: Large General Service | C20: 21/22 | D20: 129104.8039 | E20: 9708.47987 | F20: 138813.2838 | G20: =E20/D20 -> 0.07519844013 | H20: =131899.62306-19 -> 131880.6231 | I20: =E20 -> 9708.47987 | J20: 0 | K20: =I20/H20 -> 0.07361566578 | L20: ='ERM Offset'!#REF!/1000 ->  | M20: =('Pres & Prop Rev'!#REF!*(0))/1000 ->  | N20: =E20+M20 ->  | O20: =(N20)/H20 ->  | Q20: from below | S20: 0.07519844013 | T20: 141589.1029
A22: 4 | B22: Extra Large General Service | C22: 25 | D22: 64450.43747 | E22: 4386.91982 | F22: 68837.35729 | G22: =E22/D22 -> 0.06806656389 | H22: =66424.6997 -> 66424.6997 | I22: =E22 -> 4386.91982 | J22: 0 | K22: =I22/H22 -> 0.06604350249 | L22: ='ERM Offset'!#REF!/1000 ->  | M22: =('Pres & Prop Rev'!#REF!*(0))/1000 ->  | N22: =E22+M22 ->  | O22: =(N22)/H22 ->  | Q22: from Pres & Prop Rev tab | S22: 0.06806656389 | T22: 70811.61952
A24: 5 | B24: Pumping Service | C24: 30/31/32 | D24: 12510.4151 | E24: 1082.66044 | F24: 13593.07554 | G24: =E24/D24 -> 0.08654072877 | H24: =12765.9752-5 -> 12760.9752 | I24: =E24 -> 1082.66044 | J24: 0 | K24: =I24/H24 -> 0.08484151274 | L24: ='ERM Offset'!#REF!/1000 ->  | M24: =('Pres & Prop Rev'!#REF!*(0))/1000 ->  | N24: =E24+M24 ->  | O24: =(N24)/H24 ->  | Q24: from below | S24: 0.08654072877 | T24: 13843.63564
A26: 6 | B26: Street & Area Lights | C26: 41-48 | D26: 6952.99212 | E26: 712.9650003 | F26: 7665.957121 | G26: =E26/D26 -> 0.1025407462 | H26: =7037.12332493377-2-9+221 -> 7247.123325 | I26: =E26 -> 712.9650003 | J26: 0 | K26: =I26/H26 -> 0.09837903515 | L26: ='ERM Offset'!#REF!/1000 ->  | M26: =('Pres & Prop Rev'!#REF!*(0))/1000 ->  | N26: =E26+M26 ->  | O26: =(N26)/H26 ->  | Q26: from Pres & Prop Rev tab | S26: 0.1025407462 | T26: 7960.088325
A28: 7 | B28: Total | D28: =SUM(D16:D26) -> 495064.2751 | E28: =SUM(E16:E26) -> 38568.25975 | F28: =SUM(F16:F26)-0.1 -> 533632.4348 | G28: =E28/D28 -> 0.07790556034 | H28: =SUM(H16:H26) -> 514998.0001 | I28: =E28 -> 38568.25975 | J28: =SUM(J16:J26) -> 0 | K28: =I28/H28 -> 0.07489011557 | L28: =SUM(L16:L27) ->  | M28: =SUM(M16:M26) ->  | N28: =E28+M28 ->  | O28: =(N28)/H28 ->  | Q28: from below | S28: 0.07790556034 | T28: 553566.2599
A32: 2018 Rate Change
D34: Base Tariff | F34: Base Tariff | G34: Base | H34: Total Billed | K34: Percent | O34: Percent | S34: Percent | T34: Total Billed
D35: Revenue | E35: Proposed | F35: Revenue | G35: Tariff | H35: Revenue | I35: Total | J35: Total | K35: Increase | L35: Sch. 98 | M35: Sch. 93 | N35: Proposed | O35: Increase | S35: Increase | T35: Revenue
B36: Type of | C36: Schedule | D36: Under Present | E36: General | F36: Under Proposed | G36: Percent | H36: at Present | I36: General | J36: ERM | K36: on Billed | L36: REC Revenue | M36: ERM | N36: General | O36: on Billed | S36: on Base | T36: at Proposed
A37: No. | B37: Service | C37: Number | D37: Rates(1) | E37: Increase | F37: Rates(1) | G37: Increase | H37: Rates (2) | I37: Increase | J37: Decrease | K37: Revenue | L37: Decrease | M37: Increase | N37: Increase | O37: Revenue | S37: Revenue | T37: Rates (2)
B38: (a) | C38: (b) | D38: (c) | E38: (d) | F38: (e) | G38: (f) | H38: (g) | I38: (h) | J38: (i) | K38: (j) | L38: (j) | M38: (k) | N38: (j) | O38: (k) | Q38: ="col (m) source" -> col (m) source
D39: =IF(Base1_Billing2<>1,"ERROR","") -> 
A40: 1 | B40: Residential | C40: 1 | D40: ='Pres & Prop Rev'!$D$152/1000 -> 228800.0019 | E40: ='Pres & Prop Rev'!$D$207/1000 -> 8369.59876 | F40: =D40+E40 -> 237169.6007 | G40: =E40/D40 -> 0.03658041386 | H40: =H16+E16 -> 241535.3491 | I40: =E40 -> 8369.59876 | J40: =-I40 -> -8369.59876 | K40: =(I40+J40)/H40 -> 0 | L40: ='ERM Offset'!H11/1000 -> -8375.236994 | M40: =('Pres & Prop Rev'!D23*(0))/1000 -> 0 | N40: =E40+M40 -> 8369.59876 | O40: =(N40)/H40 -> 0.03465165157 | Q40: from Pres & Prop Rev tab | S40: =(E40+J40)/D40 -> 0 | T40: =E40+H40+J40 -> 241535.3491
A42: 2 | B42: General Service | C42: 11/12 | D42: ='Pres & Prop Rev'!$E$152/1000+0.3 -> 75922.85914 | E42: ='Pres & Prop Rev'!$E$207/1000 -> 2334.03514 | F42: =D42+E42+0.2 -> 78257.09428 | G42: =E42/D42 -> 0.03074219236 | H42: =H18+E18 -> 77826.46437 | I42: =E42 -> 2334.03514 | J42: =-I42 -> -2334.03514 | K42: =(I42+J42)/H42 -> 0 | L42: ='ERM Offset'!H13/1000 -> -2337.027159 | M42: =('Pres & Prop Rev'!E23*(0))/1000 -> 0 | N42: =E42+M42 -> 2334.03514 | O42: =(N42)/H42 -> 0.02999025022 | Q42: from below | S42: =(E42+J42)/D42 -> 0 | T42: =E42+H42+J42 -> 77826.46437
A44: 3 | B44: Large General Service | C44: 21/22 | D44: ='Pres & Prop Rev'!$F$152/1000 -> 138813.2838 | E44: ='Pres & Prop Rev'!$F$207/1000 -> 4591.836753 | F44: =D44+E44 -> 143405.1206 | G44: =E44/D44 -> 0.03307923152 | H44: 141589.1029 | I44: 4591.836753 | J44: -4591.836753 | K44: 0 | L44: ='ERM Offset'!H15/1000 -> -4586.088323 | M44: =('Pres & Prop Rev'!F23*(0))/1000 -> 0 | N44: 4591.836753 | O44: =(N44)/H44 -> 0.03243072142 | Q44: from below | S44: 0 | T44: 141589.1029
A46: 4 | B46: Extra Large General Service | C46: 25 | D46: ='Pres & Prop Rev'!$G$152/1000 -> 68837.35729 | E46: ='Pres & Prop Rev'!$G$207/1000 -> 2073.58076 | F46: =D46+E46 -> 70910.93805 | G46: =E46/D46 -> 0.03012289898 | H46: 70811.61952 | I46: 2073.58076 | J46: -2073.58076 | K46: 0 | L46: ='ERM Offset'!H17/1000 -> -2072.291649 | M46: =('Pres & Prop Rev'!G23*(0))/1000 -> 0 | N46: 2073.58076 | O46: =(N46)/H46 -> 0.02928305798 | Q46: from Pres & Prop Rev tab | S46: 0 | T46: 70811.61952
A48: 5 | B48: Pumping Service | C48: 30/31/32 | D48: ='Pres & Prop Rev'!$H$152/1000 -> 13593.07554 | E48: ='Pres & Prop Rev'!$H$207/1000 -> 508.02769 | F48: =D48+E48 -> 14101.10323 | G48: =E48/D48 -> 0.03737400624 | H48: 13843.63564 | I48: 508.02769 | J48: -508.02769 | K48: 0 | L48: ='ERM Offset'!H19/1000 -> -511.4267597 | M48: =('Pres & Prop Rev'!H23*(0))/1000 -> 0 | N48: 508.02769 | O48: =(N48)/H48 -> 0.03669756292 | Q48: from below | S48: 0 | T48: 13843.63564
A50: 6 | B50: Street & Area Lights | C50: 41-48 | D50: ='Pres & Prop Rev'!$I$152/1000 -> 7665.95712 | E50: ='Pres & Prop Rev'!$I$207/1000 -> 340.6021203 | F50: =D50+E50 -> 8006.559241 | G50: =E50/D50 -> 0.04443047554 | H50: 7960.088325 | I50: 340.6021203 | J50: -340.6021203 | K50: 0 | L50: ='ERM Offset'!H21/1000 -> -336.7901573 | M50: =('Pres & Prop Rev'!I23*(0))/1000 -> 0 | N50: 340.6021203 | O50: =(N50)/H50 -> 0.04278873631 | Q50: from Pres & Prop Rev tab | S50: 0 | T50: 7960.088325
A52: 7 | B52: Total | D52: =SUM(D40:D50)-0.1 -> 533632.4348 | E52: =SUM(E40:E50)+0.9 -> 18218.58122 | F52: =SUM(F40:F50)+0.2 -> 551850.616 | G52: =E52/D52 -> 0.03414069317 | H52: =SUM(H40:H50) -> 553566.2599 | I52: =E52 -> 18218.58122 | J52: =SUM(J40:J50) -> -18217.68122 | K52: 1.625821632e-06 | L52: =SUM(L40:L51) -> -18218.86104 | M52: =SUM(M40:M50) -> 0 | N52: 18218.58122 | O52: =(N52)/H52 -> 0.03291129273 | Q52: from below | S52: 1.686554155e-06 | T52: 553567.1599
D53: =ROUND(D52-'Pres & Prop Rev'!C205/1000,0) -> 0
D54: =IF(Base1_Billing2=2,"Exhibit won't work until Base1_Billing2 range set to '1'","") -> 
A57: (1) Excludes all present rate adjustments: Schedule 59 (BPA Residential Exchange), Schedule 75 (Decoupling), Schedule 91 (DSM),
A58: Schedule 92 (LIRAP), Schedule 93 (ERM), and Schedule 98 (REC Revenue).
A60: (2) Includes all present rate adjustments: Schedule 59 (BPA Residential Exchange), Schedule 75 (Decoupling), Schedule 91 (DSM),
A61: Schedule 92 (LIRAP), Schedule 93 (ERM), and Schedule 98 (REC Revenue).
B64: reduce billed revenue for BPA ResEx (already accounted for in Schs 1 & 48)
F65: Billing | I65: Billed Revenue
F66: Determinants | H66: Sch 59 Rate | I66: Impact
B67: Schedule 12 only | F67: ='Rev Runs 12MESEPT2015'!P49+'Rev Runs 12MESEPT2015'!P86+'Rev Runs 12MESEPT2015'!P95 -> 56539505 | H67: -0.00051 | I67: =F67*H67 -> -28835.14755
B68: Schedule 22 only | F68: ='Rev Runs 12MESEPT2015'!P51+'Rev Runs 12MESEPT2015'!P88+'Rev Runs 12MESEPT2015'!P97 -> 37456682 | H68: -0.00051 | I68: =F68*H68 -> -19102.90782
B69: Schedule 32 only | F69: ='Rev Runs 12MESEPT2015'!P55+'Rev Runs 12MESEPT2015'!P91+'Rev Runs 12MESEPT2015'!P100 -> 9838103.267 | H69: -0.00051 | I69: -5017.432666
B70: Schedule 48 only | F70: ='Rev Runs 12MESEPT2015'!P63 -> 3177505.53 | H70: -0.00051 | I70: =F70*H70 -> -1620.52782
B71: Total | F71: =SUM(F67:F70) -> 107011795.8 | I71: =SUM(I67:I70) -> -54576.01586 | K71: Manually deducted in Column H
B73: Schedule 98 (REC Revenue Rebate) | H73: Sch 98 Rate
B74: Schedule 41-48 only | F74: =SUM('Rev Runs 12MESEPT2015'!P56:P63) -> 25597340.29 | H74: -0.00037 | I74: =F74*H74 -> -9471.015909 | K74: Manually deducted in Column H (expires 6/30/16)
B76: Schedule 91 (DSM) | H76: Sch 91 Rate
B77: Schedule 41-48 only | F77: =SUM('Rev Runs 12MESEPT2015'!P56:P63) -> 25597340.29 | H77: 0.00862 | I77: =F77*H77 -> 220649.0733 | K77: ERM Reduction Calc | M77: 0 | N77: 1 | O77: =-D40*$M$78 -> 0 | Q77: =0/'Pres & Prop Rev'!D23 -> 0 | R77: =(D40/$D$52)*$O$83 -> 0
M78: =M77/D52 -> 0 | N78: 11 | O78: =-D42*M78 -> 0 | R78: =(D42/$D$52)*$O$83 -> 0
N79: 21 | O79: =-D44*M78 -> 0 | R79: =(D44/$D$52)*$O$83 -> 0
N80: 25 | O80: =-D46*M78 -> 0 | R80: =(D46/$D$52)*$O$83 -> 0
N81: 31 | O81: =-D48*M78 -> 0 | R81: =(D48/$D$52)*$O$83 -> 0
N82: 41-48 | O82: =-D50*M78 -> 0 | R82: =(D50/$D$52)*$O$83 -> 0
O83: =SUM(O77:O82) -> 0 | R83: =SUM(R77:R82) -> 0

Sheet Exh 5
A1: AVISTA UTILITIES | Q1: This worksheet uses Base & Billing rates from 'Rate Design' tab.
A2: WASHINGTON ELECTRIC
A3: PRESENT AND PROPOSED RATE COMPONENTS BY SCHEDULE
A7: 2018 Rate Change
H9: General | I9: Sch. 98 | J9: Sch. 93 | K9: Proposed | L9: Proposed | M9: Sch. 98 | N9: Sch. 93/94 | O9: Proposed Billing
D10: Base Tariff | E10: Present | F10: Present | H10: Rate | I10: REC Revenue | J10: ERM | K10: Billing | L10: Base Tariff | M10: REC Revenue | N10: ERM/BPA | O10: Rate With
A11: Type of Service | D11: Sch. Rate | E11: Other Adj.(1) | F11: Billing Rate | H11: Inc/Dec | I11: Decrease | J11: Decrease | K11: Rate | L11: Rate | M11: Decrease | N11: Increase | O11: ERM Decrease (2) | P11: non-printing | S11: Present | T11: Proposed | U11: Proposed
A12: Total Proforma kWh's | B12: (a) | D12: (b) | E12: (c) | F12: (d) | H12: (e) | I12: (f) | J12: (g) | K12: (f) | L12: (g) | M12: (h) | N12: (i) | O12: (j) | P12: Base | Q12: Billing | S12: Billing | T12: Base | U12: Billing
A13: Residential Service - Schedule 1
A14: Basic Charge | D14: ='Rate Design'!D4 -> 9.5 | E14: =F14-D14 -> 0 | F14: ='Rate Design'!D14 -> 9.5 | H14: =IF(ROUND(K14-F14,5)<>ROUND(L14-D14,5),#VALUE!,L14-D14) -> 0 | K14: ='Rate Design'!D36 -> 9.5 | L14: ='Rate Design'!D26 -> 9.5 | O14: =L14 -> 9.5 | P14: =H14/D14 -> 0 | Q14: =H14/F14 -> 0
A15: Energy Charge:
A16: ="First "&TEXT('Rate Design'!N5,"#,##0")&" kWhs" -> First 800 kWhs | D16: ='Rate Design'!D5/100 -> 0.07983 | E16: =F16-D16 -> 0.00536 | F16: ='Rate Design'!D15/100 -> 0.08519 | H16: =L16-D16 -> 0.00325 | I16: 0 | J16: =-H16 -> -0.00325 | K16: ='Rate Design'!D37/100 -> 0.08519 | L16: ='Rate Design'!D27/100 -> 0.08308 | M16: ='ERM Offset'!D35 ->  | N16: =0.00164+0.00083 -> 0.00247 | O16: =K16+M16+N16 ->  | P16: =H16/D16 -> 0.04071151196 | Q16: =H16/F16 -> 0.03815001761 | S16: =D16+E16-F16 -> 0 | T16: =D16+H16-L16 -> 0 | U16: =F16+H16+I16+J16-K16 -> 0
A17: =TEXT('Rate Design'!N5,"#,##0")&" - "&TEXT('Rate Design'!N6,"#,##0")&" kWhs" -> 800 - 1,500 kWhs | D17: ='Rate Design'!D6/100 -> 0.09288 | E17: =F17-D17 -> 0.00536 | F17: ='Rate Design'!D16/100 -> 0.09824 | H17: =L17-D17 -> 0.0038 | I17: =I16 -> 0 | J17: =-H17 -> -0.0038 | K17: ='Rate Design'!D38/100 -> 0.09824 | L17: ='Rate Design'!D28/100 -> 0.09668 | M17: =M16 ->  | N17: =N16 -> 0.00247 | O17: =K17+M17 ->  | P17: =H17/D17 -> 0.04091300603 | Q17: =H17/F17 -> 0.03868078176 | S17: =D17+E17-F17 -> 0 | T17: =D17+H17-L17 -> 0 | U17: =F17+H17+I17+J17-K17 -> 0
A18: ="All over "&TEXT('Rate Design'!N6,"#,##0")&" kWhs" -> All over 1,500 kWhs | D18: ='Rate Design'!D7/100 -> 0.1089 | E18: =F18-D18 -> 0.00536 | F18: ='Rate Design'!D17/100 -> 0.11426 | H18: 0.00445 | I18: =I16 -> 0 | J18: -0.00445 | K18: ='Rate Design'!D39/100 -> 0.11426 | L18: ='Rate Design'!D29/100 -> 0.11335 | M18: =M16 ->  | N18: =N16 -> 0.00247 | O18: =K18+M18 ->  | P18: =H18/D18 -> 0.04086317723 | Q18: =H18/F18 -> 0.03894626291 | S18: 0 | T18: 0 | U18: 0
A20: General Services - Schedule 11
A21: Basic Charge | D21: ='Rate Design'!E4 -> 20 | E21: =F21-D21 -> 0 | F21: ='Rate Design'!E14 -> 20 | H21: =IF(ROUND(K21-F21,5)<>ROUND(L21-D21,5),#VALUE!,L21-D21) -> 0 | K21: ='Rate Design'!E36 -> 20 | L21: ='Rate Design'!E26 -> 20 | O21: =L21 -> 20 | P21: =H21/D21 -> 0 | Q21: =H21/F21 -> 0
A22: Energy Charge:
A23: ="First "&TEXT('Rate Design'!O5,"#,##0")&" kWhs" -> First 3,650 kWhs | D23: ='Rate Design'!E5/100 -> 0.12024 | E23: =F23-D23 -> 0.00324 | F23: ='Rate Design'!E15/100 -> 0.12348 | H23: =L23-D23 -> 0.00426 | I23: =I16 -> 0 | J23: =-H23 -> -0.00426 | K23: ='Rate Design'!E37/100 -> 0.12348 | L23: ='Rate Design'!E27/100 -> 0.1245 | M23: =M16 ->  | N23: =N16 -> 0.00247 | O23: =K23+M23 ->  | P23: =H23/D23 -> 0.03542914172 | Q23: =H23/F23 -> 0.03449951409 | S23: 0 | T23: 0 | U23: 0
A24: ="All over "&TEXT('Rate Design'!O5,"#,##0")&" kWhs" -> All over 3,650 kWhs | D24: ='Rate Design'!E6/100 -> 0.08835 | E24: =F24-D24 -> 0.00324 | F24: ='Rate Design'!E16/100 -> 0.09159 | H24: =L24-D24 -> 0.00313 | I24: =I23 -> 0 | J24: =-H24 -> -0.00313 | K24: ='Rate Design'!E38/100 -> 0.09159 | L24: ='Rate Design'!E28/100 -> 0.09148 | M24: =M23 ->  | N24: =N23 -> 0.00247 | O24: =K24+M24 ->  | P24: =H24/D24 -> 0.03542727787 | Q24: =H24/F24 -> 0.03417403647 | S24: 0 | T24: 0 | U24: 0
A25: Demand Charge:
A26: =TEXT('Rate Design'!O10,"#,##0")&" kW or less" -> 20 kW or less | D26: no charge | F26: no charge | H26: no charge | L26: no charge | O26: no charge
A27: ="Over "&TEXT('Rate Design'!O10,"#,##0")&" kW" -> Over 20 kW | D27: ='Rate Design'!E10 -> 6.5 | E27: =F27-D27 -> 0 | F27: ='Rate Design'!E20 -> 6.5 | H27: =IF(ROUND(K27-F27,5)<>ROUND(L27-D27,5),#VALUE!,L27-D27) -> 0 | K27: ='Rate Design'!E42 -> 6.5 | L27: ='Rate Design'!E32 -> 6.5 | O27: ='Rate Design'!E32 -> 6.5 | P27: =H27/D27 -> 0 | Q27: =H27/F27 -> 0
A28: Minimums: | D28: $20.00 Single Phase Service | K28: $20.00 Single Phase Service
D29: $27.35 Three Phase Service | K29: $27.35 Three Phase Service
A31: Large General Service - Schedule 21
A32: Energy Charge:
A33: ="First "&TEXT('Rate Design'!P5,"#,##0")&" kWhs" -> First 250,000 kWhs | D33: ='Rate Design'!F5/100 -> 0.07677 | E33: =F33-D33 -> 0.00196 | F33: ='Rate Design'!F15/100 -> 0.07873 | H33: =L33-D33 -> 0.00326 | I33: =I16 -> 0 | J33: =-H33 -> -0.00326 | K33: ='Rate Design'!F37/100 -> 0.07873 | L33: ='Rate Design'!F27/100 -> 0.08003 | M33: =M16 ->  | N33: =N16 -> 0.00247 | O33: =K33+M33 ->  | P33: =H33/D33 -> 0.04246450436 | Q33: =H33/F33 -> 0.04140734155 | S33: 0 | T33: 0 | U33: 0
A34: ="All over "&TEXT('Rate Design'!P5,"#,##0")&" kWhs" -> All over 250,000 kWhs | D34: ='Rate Design'!F6/100 -> 0.06866 | E34: =F34-D34 -> 0.00196 | F34: ='Rate Design'!F16/100 -> 0.07062 | H34: =L34-D34 -> 0.00289 | I34: =I33 -> 0 | J34: =-H34 -> -0.00289 | K34: ='Rate Design'!F38/100 -> 0.07062 | L34: ='Rate Design'!F28/100 -> 0.07155 | M34: =M33 ->  | N34: =N33 -> 0.00247 | O34: =K34+M34 ->  | P34: =H34/D34 -> 0.04209146519 | Q34: =H34/F34 -> 0.0409232512 | S34: 0 | T34: 0 | U34: 0
A35: Demand Charge:
A36: =TEXT('Rate Design'!P10,"#,##0")&" kW or less" -> 50 kW or less | D36: ='Rate Design'!F9 -> 500 | E36: =F36-D36 -> 0 | F36: ='Rate Design'!F19 -> 500 | H36: =IF(ROUND(K36-F36,5)<>ROUND(L36-D36,5),#VALUE!,L36-D36) -> 0 | K36: ='Rate Design'!F41 -> 500 | L36: ='Rate Design'!F31 -> 500 | O36: =L36 -> 500 | P36: =H36/D36 -> 0 | Q36: =H36/F36 -> 0
A37: ="Over "&TEXT('Rate Design'!P10,"#,##0")&" kW" -> Over 50 kW | D37: ='Rate Design'!F10 -> 6.5 | E37: =F37-D37 -> 0 | F37: ='Rate Design'!F20 -> 6.5 | H37: =IF(ROUND(K37-F37,5)<>ROUND(L37-D37,5),#VALUE!,L37-D37) -> 0 | K37: ='Rate Design'!F42 -> 6.5 | L37: ='Rate Design'!F32 -> 6.5 | O37: ='Rate Design'!F32 -> 6.5 | P37: =H37/D37 -> 0 | Q37: =H37/F37 -> 0
A38: Primary Voltage Discount | D38: 0.2 | E38: =F38-D38 -> 0 | F38: 0.2 | H38: =IF(ROUND(K38-F38,5)<>ROUND(L38-D38,5),#VALUE!,L38-D38) -> 0 | K38: 0.2 | L38: 0.2 | O38: 0.2 | P38: =H38/D38 -> 0 | Q38: =H38/F38 -> 0
A40: Extra Large General Service - Schedule 25
A41: Energy Charge:
A42: ="First "&TEXT('Rate Design'!Q5,"#,##0")&" kWhs" -> First 500,000 kWhs | D42: ='Rate Design'!G5/100 -> 0.05896 | E42: =F42-D42 -> 0.00202 | F42: ='Rate Design'!G15/100 -> 0.06098 | H42: =L42-D42 -> 0.00217 | I42: =I16 -> 0 | J42: =-H42 -> -0.00217 | K42: ='Rate Design'!G37/100 -> 0.06098 | L42: ='Rate Design'!G27/100 -> 0.06113 | M42: =M16 ->  | N42: =N16 -> 0.00247 | O42: =K42+M42 ->  | P42: =H42/D42 -> 0.0368046133 | Q42: =H42/F42 -> 0.03558543785 | S42: 0 | T42: 0 | U42: 0
A43: =TEXT('Rate Design'!Q27,"#,##0")&" - "&TEXT('Rate Design'!Q28,"#,##0")&" kWhs" -> 500,000 - 6,000,000 kWhs | D43: ='Rate Design'!G6/100 -> 0.05305 | E43: =F43-D43 -> 0.00202 | F43: ='Rate Design'!G16/100 -> 0.05507 | H43: =L43-D43 -> 0.00195 | I43: =I42 -> 0 | J43: =-H43 -> -0.00195 | K43: ='Rate Design'!G38/100 -> 0.05507 | L43: ='Rate Design'!G28/100 -> 0.055 | M43: =M42 ->  | N43: =N42 -> 0.00247 | O43: =K43+M43 ->  | P43: =H43/D43 -> 0.03675777568 | Q43: =H43/F43 -> 0.03540947885 | S43: 0 | T43: 0 | U43: 0
A44: ="All over "&TEXT('Rate Design'!Q28,"#,##0")&" kWhs" -> All over 6,000,000 kWhs | D44: ='Rate Design'!G7/100 -> 0.04536 | E44: =F44-D44 -> 0.00138 | F44: ='Rate Design'!G17/100 -> 0.04674 | H44: 0.00167 | I44: =I42 -> 0 | J44: -0.00167 | K44: ='Rate Design'!G39/100 -> 0.04674 | L44: ='Rate Design'!G29/100 -> 0.04703 | M44: =M42 ->  | N44: =N42 -> 0.00247 | P44: =H44/D44 -> 0.03681657848 | Q44: =H44/F44 -> 0.03572956782 | S44: 0 | T44: 0 | U44: 0
A45: Demand Charge:
A46: =TEXT('Rate Design'!Q10,"#,##0")&" kva or less" -> 3,000 kva or less | D46: ='Rate Design'!G9 -> 21000 | E46: =F46-D46 -> 0 | F46: ='Rate Design'!G19 -> 21000 | H46: =IF(ROUND(K46-F46,5)<>ROUND(L46-D46,5),#VALUE!,L46-D46) -> 0 | K46: ='Rate Design'!G41 -> 21000 | L46: ='Rate Design'!G31 -> 21000 | O46: ='Rate Design'!G31 -> 21000 | P46: =H46/D46 -> 0 | Q46: =H46/F46 -> 0
A47: ="Over "&TEXT('Rate Design'!Q10,"#,##0")&" kva" -> Over 3,000 kva | D47: ='Rate Design'!G10 -> 6.5 | E47: =F47-D47 -> 0 | F47: ='Rate Design'!G20 -> 6.5 | H47: =IF(ROUND(K47-F47,5)<>ROUND(L47-D47,5),#VALUE!,L47-D47) -> 0 | K47: ='Rate Design'!G42 -> 6.5 | L47: ='Rate Design'!G32 -> 6.5 | O47: ='Rate Design'!G32 -> 6.5 | P47: =H47/D47 -> 0 | Q47: =H47/F47 -> 0
A48: Primary Volt. Discount
A49: 11 - 60 kv | D49: 0.2 | E49: =F49-D49 -> 0 | F49: 0.2 | H49: =IF(ROUND(K49-F49,5)<>ROUND(L49-D49,5),#VALUE!,L49-D49) -> 0 | K49: 0.2 | L49: 0.2 | O49: =L49 -> 0.2 | P49: =H49/D49 -> 0 | Q49: =H49/F49 -> 0
A50: 60 - 115 kv | D50: 1.1 | E50: =F50-D50 -> 0 | F50: 1.1 | H50: =IF(ROUND(K50-F50,5)<>ROUND(L50-D50,5),#VALUE!,L50-D50) -> 0 | K50: 1.1 | L50: 1.1 | O50: =L50 -> 1.1 | P50: =H50/D50 -> 0 | Q50: =H50/F50 -> 0
A51: 115 or higher kv | D51: 1.4 | E51: =F51-D51 -> 0 | F51: 1.4 | H51: =IF(ROUND(K51-F51,5)<>ROUND(L51-D51,5),#VALUE!,L51-D51) -> 0 | K51: 1.4 | L51: 1.4 | O51: 1.4 | P51: =H51/D51 -> 0 | Q51: =H51/F51 -> 0
A52: Annual Minimum | D52: Present: | E52: =6000000*D42+5000000*D43+12*F46 -> 871010 | H52: Proposed: | J52: Proposed: | K52: =6000000*L42+5000000*L43+12*L46 -> 893780 | O52: =K52 -> 893780 | P52: =K52/E52-1 -> 0.02614206496
A54: Pumping Service - Schedule 31
A55: Basic Charge | D55: ='Rate Design'!H4 -> 20 | E55: =F55-D55 -> 0 | F55: ='Rate Design'!H14 -> 20 | H55: =IF(ROUND(K55-F55,5)<>ROUND(L55-D55,5),#VALUE!,L55-D55) -> 0 | K55: ='Rate Design'!H36 -> 20 | L55: ='Rate Design'!H26 -> 20 | O55: =L55 -> 20 | P55: =H55/D55 -> 0 | Q55: =H55/F55 -> 0
A56: Energy Charge:
A57: First 165 kW/kWh | D57: ='Rate Design'!H5/100 -> 0.10362 | E57: =F57-D57 -> 0.00165 | F57: ='Rate Design'!H15/100 -> 0.10527 | H57: =L57-D57 -> 0.00405 | I57: =I16 -> 0 | J57: =-H57 -> -0.00405 | K57: ='Rate Design'!H37/100 -> 0.10527 | L57: ='Rate Design'!H27/100 -> 0.10767 | M57: =M16 ->  | N57: =N16 -> 0.00247 | O57: =K57+M57 ->  | P57: =H57/D57 -> 0.0390851187 | Q57: =H57/F57 -> 0.03847249929 | S57: 0 | T57: 0 | U57: 0
A58: All additional kWhs | D58: ='Rate Design'!H6/100 -> 0.07401 | E58: =F58-D58 -> 0.00165 | F58: ='Rate Design'!H16/100 -> 0.07566 | H58: =L58-D58 -> 0.00289 | I58: =I57 -> 0 | J58: =-H58 -> -0.00289 | K58: ='Rate Design'!H38/100 -> 0.07566 | L58: ='Rate Design'!H28/100 -> 0.0769 | M58: =M57 ->  | N58: =N57 -> 0.00247 | O58: =K58+M58 ->  | P58: =H58/D58 -> 0.03904877719 | Q58: =H58/F58 -> 0.03819719799 | S58: 0 | T58: 0 | U58: 0
A62: (1) Includes all present rate adjustments: Schedule 59 (BPA Residential Exchange), Schedule 75 (Decoupling),
A63: Schedule 91 (DSM), Schedule 92 (LIRAP), Schedule 93 (ERM), and Schedule 98 (REC Revenue).

Sheet ERM Offset
A1: AVISTA UTILITIES
A2: WASHINGTON ELECTRIC
A3: PROPOSED ERM DECREASE BY SERVICE SCHEDULE
A4: 12 MONTHS ENDED SEPTEMBER 30, 2015
A5: (000s of Dollars)
F9: Billing | H9: ERM
D10: kWh Rate | F10: Determinants | H10: Decrease
A11: 1 | B11: Residential | C11: 1 | D11: =H11/F11 -> -0.003524934934 | F11: ='Pres & Prop Rev'!D46 -> 2375997614 | H11: =-'Exh 2'!D16 -> -8375236.994
A13: 2 | B13: General Service | C13: 11/12 | D13: =H13/F13 -> -0.003918010718 | F13: ='Pres & Prop Rev'!E46 -> 596483095 | H13: =-'Exh 2'!D17 -> -2337027.159
A15: 3 | B15: Large General Service | C15: 21/22 | D15: -0.003216212825 | F15: ='Pres & Prop Rev'!F46 -> 1425928125 | H15: =-'Exh 2'!D18 -> -4586088.323
J16: Uniform Cent | K16: GRC Offset | L16: Difference
A17: 4 | B17: Extra Large General Service | C17: 25 | D17: -0.001869166451 | F17: ='Pres & Prop Rev'!G46 -> 1108671541 | H17: =-'Exh 2'!D19 -> -2072291.649 | J17: ='WA Sch 25'!P12*'ERM Offset'!D17 -> -908532.26 | K17: =('WA Sch 25'!Q12*'Exh 5'!J42)+('WA Sch 25'!R12*'Exh 5'!J43)+('WA Sch 25'!S12*'Exh 5'!J44) -> -833204.8593 | L17: =J17-K17 -> -75327.40066
A19: 5 | B19: Pumping Service | C19: 30/31/32 | D19: -0.003301979271 | F19: ='Pres & Prop Rev'!H46 -> 154884909.3 | H19: =-'Exh 2'!D20 -> -511426.7597
A21: 6 | B21: Street & Area Lights | C21: 41-48 | D21: -0.01315723249 | F21: ='Pres & Prop Rev'!I46 -> 25597340.29 | H21: =-'Exh 2'!D21 -> -336790.1573
A23: 7 | B23: Total | F23: =SUM(F11:F22) -> 5687562625 | H23: =SUM(H11:H22) -> -18218861.04
F28: Present
B29: Rate Calculation
B31: REC Revenue Available for Refund | D31: 0
B33: Total kWh's | D33: 0
B35: Sch 98 Per kWh Rate | D35: =ROUND(D31/D33,5) -> 
B37: * From Johnson Exhibit
D38: Percentage | F38: Base | H38: ERM
D39: of Revenue | F39: Revenue | H39: Decrease
A40: 6 | B40: Street & Area Lights | C40: 41-48 | D40: =H40/F40 -> -0.04393321695 | F40: ='Pres & Prop Rev'!I205 -> 7665957.12 | H40: =-'Exh 2'!D21 -> -336790.1573
B43: *** Schedule 93 (ERM) Decrease will be in effect from January 1, 2018 through June 30, 2018

Sheet Exh 2
A1: 2018 Rate Change
A3: 6 Month 2018 Revenue Requirement Annualized
A7: 6 Month Revenue Requirement | C7: 8986000
A9: January - June Load Percentage | C9: =SUM(E30:G35,B41:D46)/SUM(H41:H46) -> 0.4932251242
A11: Annualized Revenue Requirement | C11: =C7/C9 -> 18218861.04
D13: Pro-rata | E13: Pro-rata
D14: Annualized | E14: 6-Month
C15: 2017 Increase | D15: 2018 Increase | E15: 2018 Increase
A16: Residential | B16: 1 | C16: ='Exh 1'!E16*1000 -> 17729885.26 | D16: =(C16/$C$22)*$C$11 -> 8375236.994 | E16: =D16*$C$9 -> 4130877.306
A17: General Service | B17: 11/12 | C17: ='Exh 1'!E18*1000 -> 4947349.36 | D17: =(C17/$C$22)*$C$11 -> 2337027.159 | E17: =D17*$C$9 -> 1152680.511
A18: Large General Service | B18: 21/22 | C18: ='Exh 1'!E20*1000 -> 9708479.87 | D18: 4586088.323 | E18: 2261973.983
A19: Extra Large General Service | B19: 25 | C19: ='Exh 1'!E22*1000 -> 4386919.82 | D19: 2072291.649 | E19: 1022106.306
A20: Pumping Service | B20: 30/31/32 | C20: ='Exh 1'!E24*1000 -> 1082660.44 | D20: 511426.7597 | E20: 252248.5271
A21: Street & Area Lights | B21: 41-48 | C21: ='Exh 1'!E26*1000 -> 712965.0003 | D21: 336790.1573 | E21: 166113.3672
A22: Total | C22: =SUM(C16:C21) -> 38568259.75 | D22: =ROUND((C22/$C$22)*$C$11,0) -> 18218861 | E22: =SUM(E16:E21) -> 8986000 | G22: =(D22/1000)/'Exh 1'!D52 -> 0.03414121746
B28: 2014-10-01 | C28: 2014-11-01 | D28: 2014-12-01 | E28: 2015-01-01 | F28: 2015-02-01 | G28: 2015-03-01
A29: Normalized Test Year Usage
A30: Residential Schedule 001 | B30: 166065571 | C30: 210421503 | D30: 291508624 | E30: 281168159 | F30: 221788435 | G30: 217667192
A31: General Svc Schedule 011/012 | B31: 47405298 | C31: 52292858 | D31: 55735032 | E31: 52574482 | F31: 52616425 | G31: 51474601
A32: Large Gen Svc Schedule 021/022 | B32: 128792110 | C32: 130011685 | D32: 108655359 | E32: 108738484 | F32: 113561686 | G32: 119917987
A33: Extra Large Gen Schedule 25 | B33: 95705491 | C33: 91551612 | D33: 92033172 | E33: 92986001 | F33: 83914023 | G33: 94012005
A34: Pumping Schedule 31/32 | B34: 12761861 | C34: 3215505 | D34: 296807 | E34: 2342762 | F34: 5704923 | G34: 3399596.267
A35: Street and Area Lights | B35: 2089721 | C35: 2007023 | D35: 2077238 | E35: 1971881 | F35: 2774739.135 | G35: 2069471.555
A36: Total Normalized Test Year Usage | B36: =SUM(B30:B35) -> 452820052 | C36: =SUM(C30:C35) -> 489500186 | D36: 550306232 | E36: 539781769 | F36: 480360231.1 | G36: 488540852.8
B39: 2015-04-01 | C39: 2015-05-01 | D39: 2015-06-01 | E39: 2015-07-01 | F39: 2015-08-01 | G39: 2015-09-01 | H39: Annual Total
A40: Normalized Test Year Usage
A41: Residential Schedule 001 | B41: 176228277 | C41: 158139621 | D41: 138314771 | E41: 192073938 | F41: 169300815.5 | G41: 153320707.5 | H41: =SUM(B30:G30,B41:G41) -> 2375997614 | I41: =H41-'Pres & Prop Rev'!D46 -> 0
A42: General Svc Schedule 011/012 | B42: 47250373 | C42: 44267951 | D42: 46553146 | E42: 49753780 | F42: 51713714 | G42: 44845435 | H42: =SUM(B31:G31,B42:G42) -> 596483095 | I42: =H42-'Pres & Prop Rev'!E46 -> 0
A43: Large Gen Svc Schedule 021/022 | B43: 116840876 | C43: 113569108 | D43: 126598232 | E43: 119290811 | F43: 129850834 | G43: 110100953 | H43: 1425928125 | I43: =H43-'Pres & Prop Rev'!F46 -> 0
A44: Extra Large Gen Schedule 25 | B44: 90139952 | C44: 91265878 | D44: 93935483 | E44: 96887899 | F44: 97679740 | G44: 88560285 | H44: 1108671541 | I44: =H44-'Pres & Prop Rev'!G46 -> 0
A45: Pumping Schedule 31/32 | B45: 6285958 | C45: 16633931.7 | D45: 24256325.3 | E45: 29604246 | F45: 27154063 | G45: 23228931 | H45: 154884909.3 | I45: =H45-'Pres & Prop Rev'!H46 -> 0
A46: Street and Area Lights | B46: 2040295.523 | C46: 2138120.027 | D46: 2107630.276 | E46: 2051102.924 | F46: 2152610.584 | G46: 2117507.269 | H46: 25597340.29 | I46: =H46-'Pres & Prop Rev'!I46 -> 0
A47: Total Normalized Test Year Usage | B47: =SUM(B41:B46) -> 438785731.5 | C47: 426014609.7 | D47: 431765587.6 | E47: 489661776.9 | F47: 477851777.1 | G47: 422173818.8 | H47: 5687562625

Sheet ROR
B1: AVISTA UTILITIES
B2: WASHINGTON ELECTRIC
B3: PRESENT & PROPOSED RATE OF RETURN BY RATE SCHEDULE
B4: 12 MONTHS ENDED SEPTEMBER 30, 2015
C7: Total | D7: Sch 1 | E7: Sch 11 | F7: Sch 21 | G7: Sch 25 | H7: Sch 31 | I7: Schs 41-48
B10: Revenue From Retail Rates | C10: =SUM(D10:I10) -> 533632000 | D10: 228801338 | E10: 75920176.29 | F10: 138816267.9 | G10: 68837668.21 | H10: 13591620.73 | I10: 7664928.89 | J10: from COS
B13: Incremental Rate Revenue | C13: =SUM(D13:I13) -> 18218861.04 | D13: ='Exh 2'!D16 -> 8375236.994 | E13: ='Exh 2'!D17 -> 2337027.159 | F13: ='Exh 2'!D18 -> 4586088.323 | G13: ='Exh 2'!D19 -> 2072291.649 | H13: ='Exh 2'!D20 -> 511426.7597 | I13: ='Exh 2'!D21 -> 336790.1573 | J13: =ROUND(C13-SUM(D13:I13),0) -> 0 | K13: =I13/I10 -> 0.04393911048
B14: Target Rate Revenue | C14: =SUM(D14:I14) -> 551850861 | D14: =D10+D13 -> 237176575 | E14: 78257203.45 | F14: 143402356.2 | G14: 70909959.86 | H14: 14103047.49 | I14: 8001719.047 | J14: =ROUND(C14-SUM(D14:I14),0) -> 0
B15: Change in Rate Revenue | C15: =C14/C10-1 -> 0.03414124536 | D15: 0.03660484273 | E15: 0.03078268878 | F15: 0.03303711008 | G15: 0.0301040361 | H15: 0.03762809233 | I15: 0.04393911048
B17: Incremental Rate Revenue - rounded | C17: =SUM(D17:I17) -> 18218000 | D17: =ROUND(D13,-3) -> 8375000 | E17: =ROUND(E13,-3) -> 2337000 | F17: 4586000 | G17: 2072000 | H17: 511000 | I17: 337000
B18: Target Rate Revenue - rounded | C18: =SUM(D18:I18) -> 551851000 | D18: =ROUND(D14,-3) -> 237177000 | E18: =ROUND(E14,-3) -> 78257000 | F18: 143402000 | G18: 70910000 | H18: 14103000 | I18: =ROUND(I14,-3) -> 8002000
B20: ERM Revenue decrease | C20: =SUM(D20:I20) -> 0 | D20: 0 | E20: 0 | F20: 0 | G20: 0 | H20: 0 | I20: 0
B21: Net Increase | C21: =SUM(D21:I21) -> 18218861.04 | D21: =D13+D20 -> 8375236.994 | E21: =E13+E20 -> 2337027.159 | F21: 4586088.323 | G21: 2072291.649 | H21: 511426.7597 | I21: 336790.1573
B22: Present Billed | C22: =SUM(D22:I22) -> 481541000 | D22: 204738000 | E22: 66923000 | F22: 129127000 | G22: 62716000 | H22: 10909000 | I22: 7128000
B23: Net Increase as % of billed | C23: =C21/C22 -> 0.03783449601 | D23: =D21/D22 -> 0.04090709587 | E23: =E21/E22 -> 0.03492113562 | F23: 0.0355161068 | G23: 0.03304247161 | H23: 0.04688117698 | I23: 0.04724889974
B24: Total Present Billed Revenue | C24: =SUM(D24:I24) -> 553566259.9 | D24: ='Exh 1'!H40*1000 -> 241535349.1 | E24: ='Exh 1'!H42*1000 -> 77826464.37 | F24: ='Exh 1'!H44*1000 -> 141589102.9 | G24: ='Exh 1'!H46*1000 -> 70811619.52 | H24: ='Exh 1'!H48*1000 -> 13843635.64 | I24: ='Exh 1'!H50*1000 -> 7960088.325
B25: % of Present Billed Revenue | C25: =C13/C24 -> 0.03291179821 | D25: =D13/D24 -> 0.03467499488 | E25: 0.03002869497 | F25: 0.03239012204 | G25: 0.02926485319 | H25: 0.03694309595 | I25: 0.0423098518

Sheet Bill Determ
A1: AVISTA UTILITIES
A2: WASHINGTON ELECTRIC
A3: ACTUAL / PRO FORMA BILLING DETERMINANTS BY RATE SCHEDULE
A4: 12 MONTHS ENDED SEPTEMBER 30, 2015
A8: Schedule 1 | B8: 0-800 kwhs | C8: 801-1500 kwhs | D8: over 1500 kwhs | E8: Total kwhs | F8: Total Billings(2)
A9: kwhs per billing run(1) | B9: ='Block Data'!O21 -> 1568799173 | C9: ='Block Data'!O22 -> 501965104.3 | D9: ='Block Data'!O23 -> 289516840.3 | E9: =B9+C9+D9 -> 2360281118 | F9: ='Rev Runs 12MESEPT2015'!P11*12 -> 2481909
A10: Total kwhs per Rev. Run(2) | E10: ='Rev Runs 12MESEPT2015'!P47 -> 2360281118
A11: Adjust. kwhs to Actual | E11: =E10-E9 -> 0
A14: Schedule 11,12 | B14: 0-3,650 kwhs | C14: over 3,650 kwhs | D14: Total kwhs | E14: kw over 20(1) | F14: Total Billings(2) | G14: kvar billed(1)
A15: kwhs per Revenue Run(1) | B15: ='Block Data'!O38 -> 417235444.6 | C15: ='Block Data'!O39 -> 184374178.4 | D15: =B15+C15 -> 601609623 | E15: ='Block Data'!O45 -> 407826 | F15: =SUM('Rev Runs 12MESEPT2015'!P12:P13)*12 -> 369248 | G15: ='Block Data'!O49 -> 13830
A16: Shifted from Sch 21 | B16: 0 | C16: 0 | D16: =SUM(B16:C16) -> 0 | E16: 0 | F16: 0 | G16: 0
A17: Total by Block | B17: =SUM(B15:B16) -> 417235444.6 | C17: =SUM(C15:C16) -> 184374178.4 | D17: 601609623 | E17: 407826 | F17: 369248 | G17: 13830
A18: Total kwhs per Rev. Run(2) | D18: ='Rev Runs 12MESEPT2015'!P48+'Rev Runs 12MESEPT2015'!P49 -> 601609623
A19: Schedule Shifting from 21 | D19: =D16 -> 0
A20: Total Adjusted kwhs | D20: =D18+D19 -> 601609623
A21: Adjust. kwhs to Actual | D21: =D20-D17 -> 0
A24: Schedule 21,22 | B24: 0-250,000 kwhs | C24: over 250,000 kwhs | D24: Total kwhs | E24: kw over 50(1) | F24: Total Billings(2) | G24: kvar billed(1)
A25: kwhs per Revenue Run(1) | B25: ='Block Data'!O64 -> 1286691867 | C25: ='Block Data'!O65 -> 165092233.1 | D25: =B25+C25 -> 1451784100 | E25: ='Block Data'!O71 -> 2838029.533 | F25: =SUM('Rev Runs 12MESEPT2015'!P14:P15)*12 -> 24164 | G25: ='Block Data'!O75 -> 257279.8
A26: Special Contract Shifted to Sched 21 | B26: 0 | C26: 0 | D26: =SUM(B26:C26) -> 0 | E26: 0 | F26: 0 | G26: 0
A27: Shifted to Sch 011(4) | B27: =-D16 -> 0 | C27: 0 | D27: =SUM(B27:C27) -> 0 | E27: 0 | F27: =-F16 -> 0 | G27: 0
A28: Total | B28: =SUM(B25:B27) -> 1286691867 | C28: =SUM(C25:C27) -> 165092233.1 | D28: =SUM(B28:C28) -> 1451784100 | E28: =SUM(E25:E27) -> 2838029.533 | F28: =SUM(F25:F27) -> 24164 | G28: =SUM(G25:G27) -> 257279.8
A29: Total kwhs per Rev. Run(2) | D29: ='Rev Runs 12MESEPT2015'!P50+'Rev Runs 12MESEPT2015'!P51 -> 1451784100
A30: Schedule Shifting to Sch. 21 | D30: =D26 -> 0
A31: Schedule Shifting to Sch. 11 | D31: =D27 -> 0
A32: Total adjusted kwhs | D32: =D29+D30+D31 -> 1451784100
A33: Adjust. kwhs to Actual | D33: =D32-D28 -> 0
A36: Schedule 25(3) | B36: 0-500,000 kwhs | C36: 500,001-6M kwhs | D36: > 6M kwhs | E36: Total kwhs | F36: kva over 3,000 | G36: Total Billings(2)
A37: Total | B37: ='WA Sch 25'!Q25 -> 126000000 | C37: ='WA Sch 25'!R25 -> 568211715 | D37: ='WA Sch 25'!S25 -> 414459826 | E37: =SUM(B37:D37) -> 1108671541 | F37: ='WA Sch 25'!P85 -> 1293261 | G37: =21*12 -> 252
A40: Schedule 30, 31, & 32 | B40: Block 1 kwhs | C40: Block 2 kwhs | D40: Block 3 kwhs | E40: Total kwhs | F40: Total Billings(2) | G40: kvar billed(1)
A41: kwhs per billing run (30,31& 32)(1) | B41: ='Block Data'!O92 -> 40145225.45 | C41: ='Block Data'!O93 -> 11876327 | D41: ='Block Data'!O94 -> 102695896.8 | E41: =B41+C41+D41 -> 154717449.3 | F41: =SUM('Rev Runs 12MESEPT2015'!P17:P19)*12 -> 29170 | G41: ='Block Data'!O99 -> 9236.02
A42: Total Schs. 30,31&32 | D42: =D41 -> 102695896.8 | E42: =E41 -> 154717449.3
A43: Total kwhs per Rev. Run(2) | E43: ='Rev Runs 12MESEPT2015'!P53+'Rev Runs 12MESEPT2015'!P54+'Rev Runs 12MESEPT2015'!P55 -> 154717449.3
A44: Adjust kwhs to Actual | E44: =E43-E42 -> 0
A48: (1) From workpaper PDE-E-22/23
A49: (2) From workpaper PDE-E-19
A50: (3) From workpaper PDE-E-7/8
A61: Revenue Runs from this sheet | B61: =E10+D18+D29+E43+E37 -> 5677063831
A63: actual Revenue Runs | B63: ='Rev Runs 12MESEPT2015'!P70 -> 5796539611
A64: less:
A65: Sch 25 Adj | B65: ='Rev Runs 12MESEPT2015'!P52-'Bill Determ'!E37 -> 93878439 | C65: rev. runs too high
A67: Sch shifting | B67: =D26 -> 0 | C67: not shown on this sheet
A68: Schs 41-48 St & Area Lt | B68: =SUM('Rev Runs 12MESEPT2015'!P56:P63) -> 25597340.29 | C68: not shown on this sheet
B69: =B63-SUM(B65:B68) -> 5677063831
A70: Diff | B70: =B61-B69 -> 0
A72: from Present Rev tab | B72: ='Pres & Prop Rev'!C20-'Pres & Prop Rev'!C15 -> 5702661172
A73: this sheet + SAL | B73: =B61+B68+B67 -> 5702661172
A74: Diff | B74: =B72-B73 -> 0
A77: Rev. Run customers | B77: ='Rev Runs 12MESEPT2015'!P34*12 -> 2909340
A78: less:
A79: normalize Sch 25 | B79: =('Rev Runs 12MESEPT2015'!P16*12)-G37 -> 21 | C79: rev. runs too high
A80: Sch Shifting | B80: =-F26 -> 0 | C80: not shown on this sheet
A81: Schs 41-48 St & Area Lt | B81: =SUM('Rev Runs 12MESEPT2015'!P20:P27)*12 -> 4576 | C81: not shown on this sheet
B82: =B77-SUM(B78:B81) -> 2904743
A84: from Present Rev tab | B84: =SUM('Pres & Prop Rev'!D25:I25) -> 2904743
A85: Diff | B85: =B82-B84 -> 0

Sheet Bill Impact
A3: Schedule 001 Bill Impact
A7: Schedule 001 Present | G7: Schedule 001 Proposed
B8: Basic Charge | C8: Block 1 | D8: Block 2 | E8: Total Bill | G8: Basic Charge | H8: Block 1 | I8: Block 2 | J8: Total Bill | L8: Bill Impact | M8: % Change
B9: ='Exh 5'!D14 -> 9.5 | C9: ='Exh 5'!F16 -> 0.08519 | D9: ='Exh 5'!F17 -> 0.09824 | G9: ='Exh 5'!O14 -> 9.5 | H9: ='Exh 5'!K16 -> 0.08519 | I9: ='Exh 5'!K17 -> 0.09824
A10: 100 | B10: =$B$9 -> 9.5 | C10: =A10*$C$9 -> 8.519 | E10: =SUM(B10:D10) -> 18.019 | G10: =$G$9 -> 9.5 | H10: =A10*$H$9 -> 8.519 | J10: =SUM(G10:I10) -> 18.019 | L10: =J10-E10 -> 0 | M10: =L10/E10 -> 0
A11: 200 | B11: =$B$9 -> 9.5 | C11: =A11*$C$9 -> 17.038 | E11: =SUM(B11:D11) -> 26.538 | G11: =$G$9 -> 9.5 | H11: =A11*$H$9 -> 17.038 | J11: =SUM(G11:I11) -> 26.538 | L11: =J11-E11 -> 0 | M11: =L11/E11 -> 0
A12: 300 | B12: 9.5 | C12: 25.557 | E12: 35.057 | G12: 9.5 | H12: 25.557 | J12: 35.057 | L12: 0 | M12: 0
A13: 400 | B13: 9.5 | C13: 34.076 | E13: 43.576 | G13: 9.5 | H13: 34.076 | J13: 43.576 | L13: 0 | M13: 0
A14: 500 | B14: 9.5 | C14: 42.595 | E14: 52.095 | G14: 9.5 | H14: 42.595 | J14: 52.095 | L14: 0 | M14: 0
A15: 600 | B15: =$B$9 -> 9.5 | C15: =A15*$C$9 -> 51.114 | E15: =SUM(B15:D15) -> 60.614 | G15: =$G$9 -> 9.5 | H15: =A15*$H$9 -> 51.114 | J15: =SUM(G15:I15) -> 60.614 | L15: 0 | M15: =L15/E15 -> 0
A16: 700 | B16: 9.5 | C16: =A16*$C$9 -> 59.633 | E16: =SUM(B16:D16) -> 69.133 | G16: 9.5 | H16: =A16*$H$9 -> 59.633 | J16: =SUM(G16:I16) -> 69.133 | L16: 0 | M16: =L16/E16 -> 0
A17: 800 | B17: 9.5 | C17: =A17*$C$9 -> 68.152 | E17: 77.652 | G17: 9.5 | H17: =A17*$H$9 -> 68.152 | J17: 77.652 | L17: 0 | M17: 0
A18: =ROUND('Pres & Prop Rev'!D46/'Pres & Prop Rev'!D48,0) -> 957 | B18: 9.5 | C18: =ROUND($C$17,2) -> 68.15 | D18: =ROUND((A18-$A$17)*$D$9,2) -> 15.42 | E18: 93.07 | G18: 9.5 | H18: =ROUND($H$17,2) -> 68.15 | I18: =ROUND((A18-$A$17)*$I$9,2) -> 15.42 | J18: =SUM(G18:I18) -> 93.07 | L18: 0 | M18: 0
A19: 1000 | B19: 9.5 | C19: =ROUND($C$17,2) -> 68.15 | D19: =ROUND((A19-$A$17)*$D$9,2) -> 19.65 | E19: 97.3 | G19: 9.5 | H19: =ROUND($H$17,2) -> 68.15 | I19: =ROUND((A19-$A$17)*$I$9,2) -> 19.65 | J19: 97.3 | L19: 0 | M19: 0
A20: 1100 | B20: 9.5 | C20: =$C$17 -> 68.152 | D20: =(A20-$A$17)*$D$9 -> 29.472 | E20: =SUM(B20:D20) -> 107.124 | G20: 9.5 | H20: =$H$17 -> 68.152 | I20: =(A20-$A$17)*$I$9 -> 29.472 | J20: =SUM(G20:I20) -> 107.124 | L20: 0 | M20: =L20/E20 -> 0
A21: 1200 | B21: 9.5 | C21: 68.152 | D21: =(A21-$A$17)*$D$9 -> 39.296 | E21: 116.948 | G21: 9.5 | H21: 68.152 | I21: =(A21-$A$17)*$I$9 -> 39.296 | J21: 116.948 | L21: 0 | M21: 0
A22: 1300 | B22: 9.5 | C22: 68.152 | D22: =(A22-$A$17)*$D$9 -> 49.12 | E22: =SUM(B22:D22) -> 126.772 | G22: 9.5 | H22: 68.152 | I22: =(A22-$A$17)*$I$9 -> 49.12 | J22: =SUM(G22:I22) -> 126.772 | L22: 0 | M22: =L22/E22 -> 0
A23: 1400 | B23: 9.5 | C23: 68.152 | D23: =(A23-$A$17)*$D$9 -> 58.944 | E23: 136.596 | G23: 9.5 | H23: 68.152 | I23: 58.944 | J23: 136.596 | L23: 0 | M23: 0
A24: 1500 | B24: 9.5 | C24: 68.152 | D24: 68.768 | E24: 146.42 | G24: 9.5 | H24: 68.152 | I24: 68.768 | J24: 146.42 | L24: 0 | M24: 0

Sheet WA Sch 25
A1: Washington Schedule 25 Billing Determinants | Q1: 1st | R1: =Q2 -> 500000 | S1: =R2 -> 6000000
P2: 12-mo Ended | Q2: 500000 | R2: 6000000 | S2: 99999999
A3: KWHs | C3: Acct No. | D3: 2014-10-01 | E3: 2014-11-01 | F3: 2014-12-01 | G3: 2015-01-01 | H3: 2015-02-01 | I3: 2015-03-01 | J3: 2015-04-01 | K3: 2015-05-01 | L3: 2015-06-01 | M3: 2015-07-01 | N3: 2015-08-01 | O3: 2015-09-01 | P3: Total | Q3: kwhs/mo | R3: kwhs/mo | S3: kwhs/mo
A4: 1 | B4: BF Goodrich | C4: 770037736 | D4: 5882734 | E4: 5774042 | F4: 5504894 | G4: 5140514 | H4: 4919821 | I4: 5227316 | J4: 4857548 | K4: 5729161 | L4: 5940988 | M4: 5908791 | N4: 6245412 | O4: 4770637 | P4: =SUM(D4:O4) -> 65901858 | Q4: =Q$2*12-SUMPRODUCT(--($D4:$O4<=Q$2),Q$2-$D4:$O4) -> 6000000 | R4: =R$2*12-SUM($Q4:Q4)-SUMPRODUCT(--($D4:$O4<=R$2),R$2-$D4:$O4) -> 59656446 | S4: =S$2*12-SUM($Q4:R4)-SUMPRODUCT(--($D4:$O4<=S$2),S$2-$D4:$O4) -> 245412
A5: 2 | B5: Boise Cascade Plywood | C5: 500017 | D5: 3407368 | E5: 3115073 | F5: 3053501 | G5: 3163179 | H5: 3086672 | I5: 3402088 | J5: 3123964 | K5: 3247263 | L5: 3197489 | M5: 3125946 | N5: 3207040 | O5: 3026142 | P5: 38155725 | Q5: =Q$2*12-SUMPRODUCT(--($D5:$O5<=Q$2),Q$2-$D5:$O5) -> 6000000 | R5: =R$2*12-SUM($Q5:Q5)-SUMPRODUCT(--($D5:$O5<=R$2),R$2-$D5:$O5) -> 32155725 | S5: =S$2*12-SUM($Q5:R5)-SUMPRODUCT(--($D5:$O5<=S$2),S$2-$D5:$O5) -> 0
A6: 3 | B6: Boise Cascade Sawmill | C6: 500018 | D6: 1382489 | E6: 1391916 | F6: 1484435 | G6: 1514640 | H6: 1278729 | I6: 1393465 | J6: 1380956 | K6: 1271434 | L6: 1318835 | M6: 1328454 | N6: 1242214 | O6: 1141153 | P6: 16128720 | Q6: 6000000 | R6: =R$2*12-SUM($Q6:Q6)-SUMPRODUCT(--($D6:$O6<=R$2),R$2-$D6:$O6) -> 10128720 | S6: =S$2*12-SUM($Q6:R6)-SUMPRODUCT(--($D6:$O6<=S$2),S$2-$D6:$O6) -> 0
A7: 4 | B7: City of Spokane Sewage Treatment Plt | C7: 1900002 | D7: 1389727 | E7: 1327000 | F7: 1368297 | G7: 1440358 | H7: 1325354 | I7: 1432204 | J7: 1291823 | K7: 1371648 | L7: 1316968 | M7: 1364038 | N7: 1374131 | O7: 1273241 | P7: 16274789 | Q7: 6000000 | R7: =R$2*12-SUM($Q7:Q7)-SUMPRODUCT(--($D7:$O7<=R$2),R$2-$D7:$O7) -> 10274789 | S7: =S$2*12-SUM($Q7:R7)-SUMPRODUCT(--($D7:$O7<=S$2),S$2-$D7:$O7) -> 0
A8: 5 | B8: Deaconess Medical Center | C8: 1900011 | D8: 1794555 | E8: 1650277 | F8: 1737708 | G8: 1760692 | H8: 1568950 | I8: 1751795 | J8: 1746374 | K8: 1984374 | L8: 2164086 | M8: 2253430 | N8: 2141574 | O8: 1713296 | P8: 22267111 | Q8: 6000000 | R8: =R$2*12-SUM($Q8:Q8)-SUMPRODUCT(--($D8:$O8<=R$2),R$2-$D8:$O8) -> 16267111 | S8: =S$2*12-SUM($Q8:R8)-SUMPRODUCT(--($D8:$O8<=S$2),S$2-$D8:$O8) -> 0
A9: 6 | B9: Gonzaga University | C9: 622922 | D9: 2120975 | E9: 2302513 | F9: 2304943 | G9: 2378942 | H9: 2098163 | I9: 2089158 | J9: 2042141 | K9: 1841574 | L9: 2107330 | M9: 2231200 | N9: 2117256 | O9: 2229760 | P9: 25863955 | Q9: 6000000 | R9: =R$2*12-SUM($Q9:Q9)-SUMPRODUCT(--($D9:$O9<=R$2),R$2-$D9:$O9) -> 19863955 | S9: =S$2*12-SUM($Q9:R9)-SUMPRODUCT(--($D9:$O9<=S$2),S$2-$D9:$O9) -> 0
A10: 7 | B10: Honeywell Electronics | C10: 2304636 | D10: 1389185 | E10: 1292010 | F10: 1343111 | G10: 1423139 | H10: 1254221 | I10: 1413952 | J10: 1354753 | K10: 1454839 | L10: 1537808 | M10: 1538368 | N10: 1434469 | O10: 1255558 | P10: 16691413 | Q10: 6000000 | R10: =R$2*12-SUM($Q10:Q10)-SUMPRODUCT(--($D10:$O10<=R$2),R$2-$D10:$O10) -> 10691413 | S10: =S$2*12-SUM($Q10:R10)-SUMPRODUCT(--($D10:$O10<=S$2),S$2-$D10:$O10) -> 0
A11: 8 | B11: Huntwood Industries | C11: 610074869 | D11: 1147943 | E11: 1005447 | F11: 1154313 | G11: 1059391 | H11: 944652 | I11: 1068575 | J11: 1081923 | K11: 1028597 | L11: 1088335 | M11: 1148753 | N11: 1089333 | O11: 988035 | P11: 12805297 | Q11: 6000000 | R11: =R$2*12-SUM($Q11:Q11)-SUMPRODUCT(--($D11:$O11<=R$2),R$2-$D11:$O11) -> 6805297 | S11: =S$2*12-SUM($Q11:R11)-SUMPRODUCT(--($D11:$O11<=S$2),S$2-$D11:$O11) -> 0
A12: 9 | B12: Inland Empire Paper | C12: 2500004 | D12: 42714686 | E12: 41882290 | F12: 40289584 | G12: 40452324 | H12: 38217986 | I12: 42211014 | J12: 40879914 | K12: 39942332 | L12: 39322022 | M12: 40690342 | N12: 40986702 | O12: 38473594 | P12: 486062790 | Q12: 6000000 | R12: =R$2*12-SUM($Q12:Q12)-SUMPRODUCT(--($D12:$O12<=R$2),R$2-$D12:$O12) -> 66000000 | S12: =S$2*12-SUM($Q12:R12)-SUMPRODUCT(--($D12:$O12<=S$2),S$2-$D12:$O12) -> 414062790
A13: 10 | B13: JR Simplot | C13: 290048778 | D13: 5263671 | E13: 4570978 | F13: 4978894 | G13: 5350985 | H13: 3049872 | I13: 5396265 | J13: 4772607 | K13: 4430613 | L13: 5061033 | M13: 4871987 | N13: 5630843 | O13: 5083163 | P13: 58460911 | Q13: 6000000 | R13: =R$2*12-SUM($Q13:Q13)-SUMPRODUCT(--($D13:$O13<=R$2),R$2-$D13:$O13) -> 52460911 | S13: =S$2*12-SUM($Q13:R13)-SUMPRODUCT(--($D13:$O13<=S$2),S$2-$D13:$O13) -> 0
A14: 11 | B14: McCaine Foods Inc | C14: 2500003 | D14: 5793262 | E14: 4851431 | F14: 5269219 | G14: 5913701 | H14: 4957697 | I14: 5862461 | J14: 5231811 | K14: 5911987 | L14: 5752757 | M14: 6089076 | N14: 6062548 | O14: 5625026 | P14: 67320976 | Q14: 6000000 | R14: =R$2*12-SUM($Q14:Q14)-SUMPRODUCT(--($D14:$O14<=R$2),R$2-$D14:$O14) -> 61169352 | S14: =S$2*12-SUM($Q14:R14)-SUMPRODUCT(--($D14:$O14<=S$2),S$2-$D14:$O14) -> 151624
A15: 12 | B15: Sacred Heart Medical Center | C15: 500020 | D15: 3574227 | E15: 3284908 | F15: 3370067 | G15: 3379173 | H15: 3027364 | I15: 3363035 | J15: 3355441 | K15: 3937668 | L15: 4480447 | M15: 4795546 | N15: 4649916 | O15: 3718894 | P15: 44936686 | Q15: 6000000 | R15: =R$2*12-SUM($Q15:Q15)-SUMPRODUCT(--($D15:$O15<=R$2),R$2-$D15:$O15) -> 38936686 | S15: =S$2*12-SUM($Q15:R15)-SUMPRODUCT(--($D15:$O15<=S$2),S$2-$D15:$O15) -> 0
A16: 13 | B16: Spokane County Courthouse | C16: 1900012 | D16: 1034468 | E16: 903447 | F16: 938545 | G16: 949567 | H16: 827959 | I16: 945420 | J16: 952096 | K16: 1094984 | L16: 1249563 | M16: 1348208 | N16: 1265903 | O16: 1065427 | P16: 12575587 | Q16: 6000000 | R16: =R$2*12-SUM($Q16:Q16)-SUMPRODUCT(--($D16:$O16<=R$2),R$2-$D16:$O16) -> 6575587 | S16: =S$2*12-SUM($Q16:R16)-SUMPRODUCT(--($D16:$O16<=S$2),S$2-$D16:$O16) -> 0
A17: 14 | B17: Spokane Steel Foundry | C17: 2400169 | D17: 1200662 | E17: 1068125 | F17: 1194090 | G17: 1146353 | H17: 1240303 | I17: 1248116 | J17: 1214450 | K17: 1090984 | L17: 1137815 | M17: 873571 | N17: 857146 | O17: 710577 | P17: 12982192 | Q17: 6000000 | R17: =R$2*12-SUM($Q17:Q17)-SUMPRODUCT(--($D17:$O17<=R$2),R$2-$D17:$O17) -> 6982192 | S17: =S$2*12-SUM($Q17:R17)-SUMPRODUCT(--($D17:$O17<=S$2),S$2-$D17:$O17) -> 0
A18: 15 | B18: Triumph Composite / Boeing | C18: 690067830 | D18: 1480290 | E18: 1246888 | F18: 1142912 | G18: 1288556 | H18: 1192460 | I18: 1340892 | J18: 1352148 | K18: 1476980 | L18: 1691760 | M18: 1713663 | N18: 1695624 | O18: 1478077 | P18: 17100250 | Q18: 6000000 | R18: =R$2*12-SUM($Q18:Q18)-SUMPRODUCT(--($D18:$O18<=R$2),R$2-$D18:$O18) -> 11100250 | S18: =S$2*12-SUM($Q18:R18)-SUMPRODUCT(--($D18:$O18<=S$2),S$2-$D18:$O18) -> 0
A19: 16 | B19: Vaagen Brothers Lumber | C19: 1300001 | D19: 1876190 | E19: 2032190 | F19: 2260978 | G19: 2190205 | H19: 1996366 | I19: 2148025 | J19: 1850526 | K19: 1924664 | L19: 1919551 | M19: 1920100 | N19: 1874914 | O19: 1565418 | P19: 23559127 | Q19: 6000000 | R19: =R$2*12-SUM($Q19:Q19)-SUMPRODUCT(--($D19:$O19<=R$2),R$2-$D19:$O19) -> 17559127 | S19: =S$2*12-SUM($Q19:R19)-SUMPRODUCT(--($D19:$O19<=S$2),S$2-$D19:$O19) -> 0
A20: 17 | B20: WSU - MP-A South Campus Feeder | C20: 290081951 | D20: 2307351 | E20: 2276736 | F20: 2459934 | G20: 2473022 | H20: 2251536 | I20: 2331358 | J20: 2258598 | K20: 2150014 | L20: 2079056 | M20: 2120759 | N20: 2158940 | O20: 2130817 | P20: 26998121 | Q20: 6000000 | R20: =R$2*12-SUM($Q20:Q20)-SUMPRODUCT(--($D20:$O20<=R$2),R$2-$D20:$O20) -> 20998121 | S20: =S$2*12-SUM($Q20:R20)-SUMPRODUCT(--($D20:$O20<=S$2),S$2-$D20:$O20) -> 0
A21: 18 | B21: WSU - MP-B East Campus EA | C21: 500033 | D21: 3827007 | E21: 3623488 | F21: 3856498 | G21: 3694621 | H21: 3241250 | I21: 3707145 | J21: 3844714 | K21: 4043390 | L21: 4719603 | M21: 5258995 | N21: 5069416 | O21: 4310885 | P21: 49197012 | Q21: 6000000 | R21: =R$2*12-SUM($Q21:Q21)-SUMPRODUCT(--($D21:$O21<=R$2),R$2-$D21:$O21) -> 43197012 | S21: =S$2*12-SUM($Q21:R21)-SUMPRODUCT(--($D21:$O21<=S$2),S$2-$D21:$O21) -> 0
A22: 19 | B22: WSU - MP-C East Campus EB | C22: 410031282 | D22: 2915237 | E22: 3010405 | F22: 3197657 | G22: 3200975 | H22: 2780236 | I22: 2945401 | J22: 2917173 | K22: 2818788 | L22: 2695749 | M22: 2774192 | N22: 2839271 | O22: 2867529 | P22: 34962613 | Q22: 6000000 | R22: =R$2*12-SUM($Q22:Q22)-SUMPRODUCT(--($D22:$O22<=R$2),R$2-$D22:$O22) -> 28962613 | S22: =S$2*12-SUM($Q22:R22)-SUMPRODUCT(--($D22:$O22<=S$2),S$2-$D22:$O22) -> 0
A23: 20 | B23: WSU - MP -D Casp East (no PVD) | C23: 500032 | D23: 2511768 | E23: 2794816 | F23: 2947952 | G23: 2937600 | H23: 2610208 | I23: 2598696 | J23: 2336208 | K23: 2234528 | L23: 2197464 | M23: 2300768 | N23: 2351304 | O23: 2376768 | P23: 30198080 | Q23: 6000000 | R23: =R$2*12-SUM($Q23:Q23)-SUMPRODUCT(--($D23:$O23<=R$2),R$2-$D23:$O23) -> 24198080 | S23: =S$2*12-SUM($Q23:R23)-SUMPRODUCT(--($D23:$O23<=S$2),S$2-$D23:$O23) -> 0
A24: 21 | B24: WSU - MP-E Casp West (no PVD) | C24: 500034 | D24: 2691696 | E24: 2147632 | F24: 2175640 | G24: 2128064 | H24: 2012880 | I24: 2135624 | J24: 2294784 | K24: 2311400 | L24: 2956824 | M24: 3231712 | N24: 3385784 | O24: 2756288 | P24: 30228328 | Q24: 6000000 | R24: =R$2*12-SUM($Q24:Q24)-SUMPRODUCT(--($D24:$O24<=R$2),R$2-$D24:$O24) -> 24228328 | S24: =S$2*12-SUM($Q24:R24)-SUMPRODUCT(--($D24:$O24<=S$2),S$2-$D24:$O24) -> 0
B25: Schedule 25 Total | D25: =SUM(D4:D24) -> 95705491 | E25: 91551612 | F25: 92033172 | G25: 92986001 | H25: 83882679 | I25: 94012005 | J25: 90139952 | K25: 91297222 | L25: 93935483 | M25: 96887899 | N25: 97679740 | O25: 88560285 | P25: =IF(ROUND(SUM(P4:P24),0)<>ROUND(SUM(D25:O25),0),#VALUE!,SUM(P4:P24)) -> 1108671541 | Q25: =SUM(Q4:Q24) -> 126000000 | R25: =SUM(R4:R24) -> 568211715 | S25: =SUM(S4:S24) -> 414459826
S26: =SUM(Q25:S25) -> 1108671541
B27: Revenue Run Total | D27: 93878439 | E27: 95705491 | F27: 91551612 | G27: 92033172 | H27: 138682038 | I27: 132229991 | J27: 88925502 | K27: 92480328 | L27: 89455036 | M27: 60678004 | N27: 138370082 | O27: 88560285 | P27: =SUM(D27:O27) -> 1202549980
B28: Booked Unbilled Reversal | D28: -93914752 | E28: -95705491 | F28: -91590393 | G28: -91403949 | H28: -92986001 | I28: -38217986 | J28: 0 | K28: -1214450 | L28: 0 | M28: -4480447 | N28: -40690342 | O28: 0 | P28: =SUM(D28:O28) -> -550203811
B29: Gross Booked Unbilled | D29: 95705491 | E29: 91590393 | F29: 91403949 | G29: 92986001 | H29: 38217986 | I29: 0 | J29: 1214450 | K29: 0 | L29: 4480447 | M29: 40690342 | N29: 0 | O29: 0 | P29: =SUM(D29:O29) -> 456289059
B30: Gross Unbilled True-up | D30: 0 | E30: -38781 | F30: 629223 | G30: 0 | H30: 0 | I30: 0 | J30: 0 | K30: 0 | L30: 0 | M30: 0 | N30: 0 | O30: 0 | P30: 590442
B31: Unbilled Reversal True-up | D31: 36313 | E31: 0 | F31: 38781 | G31: -629223 | H31: 0 | I31: 0 | J31: 0 | K31: 0 | L31: 0 | M31: 0 | N31: 0 | O31: 0 | P31: -554129
P32: 0
P33: 0
B34: Adj Revenue Runs, Sch 25 | D34: =SUM(D27:D33) -> 95705491 | E34: 91551612 | F34: 92033172 | G34: 92986001 | H34: 83914023 | I34: 94012005 | J34: 90139952 | K34: =SUM(K27:K33) -> 91265878 | L34: =SUM(L27:L33) -> 93935483 | M34: =SUM(M27:M33) -> 96887899 | N34: 97679740 | O34: 88560285 | P34: =IF(ROUND(SUM(P27:P33),0)<>ROUND(SUM(D34:O34),0),#VALUE!,SUM(P27:P33)) -> 1108671541
D35: =D34-D25 -> 0 | E35: 0 | F35: 0 | G35: 0 | H35: 31344 | I35: 0 | J35: 0 | K35: -31344 | L35: 0 | M35: 0 | N35: 0 | O35: 0 | P35: 0
B38: KVA | D38: =D$3 -> 2014-10-01 | E38: =E$3 -> 2014-11-01 | F38: 2014-12-01 | G38: 2015-01-01 | H38: 2015-02-01 | I38: 2015-03-01 | J38: 2015-04-01 | K38: 2015-05-01 | L38: 2015-06-01 | M38: 2015-07-01 | N38: 2015-08-01 | O38: 2015-09-01 | P38: Total | Q38: Peak | R38: Month
A39: 1 | B39: BF Goodrich | C39: 770037736 | D39: 10382 | E39: 10656 | F39: 9794 | G39: 9508 | H39: 10786 | I39: 10233 | J39: 9899 | K39: 10559 | L39: 11039 | M39: 10949 | N39: 10653 | O39: 11913 | P39: =SUM(D39:O39) -> 126371 | Q39: =MAX(D39:O39) -> 11913 | R39: =INDEX($D$38:$O$38,MATCH(Q39,$D39:$O39,0)) -> 2015-09-01
A40: 2 | B40: Boise Cascade Plywood | C40: 500017 | D40: 5513 | E40: 5331 | F40: 5412 | G40: 5227 | H40: 5264 | I40: 5275 | J40: 5131 | K40: 5278 | L40: 5213 | M40: 5062 | N40: 5191 | O40: 5024 | P40: 62921 | Q40: =MAX(D40:O40) -> 5513 | R40: =INDEX($D$38:$O$38,MATCH(Q40,$D40:$O40,0)) -> 2014-10-01
A41: 3 | B41: Boise Cascade Sawmill | C41: 500018 | D41: 3140 | E41: 3385 | F41: 3395 | G41: 3318 | H41: 3205 | I41: 3248 | J41: 3169 | K41: 3043 | L41: 2958 | M41: 2916 | N41: 2931 | O41: 2899 | P41: 37607 | Q41: 3395 | R41: 2014-12-01
A42: 4 | B42: City of Spokane Sewage Treatment Plt | C42: 1900002 | D42: 2864 | E42: 2896 | F42: 2796 | G42: 2762 | H42: 2762 | I42: 2889 | J42: 2721 | K42: 2997 | L42: 2850 | M42: 2481 | N42: 2715 | O42: 2826 | P42: 33559 | Q42: 2997 | R42: 2015-05-01
A43: 5 | B43: Deaconess Medical Center | C43: 1900011 | D43: 3585 | E43: 3178 | F43: 2882 | G43: 2873 | H43: 2858 | I43: 3281 | J43: 3530 | K43: 3675 | L43: 4097 | M43: 4048 | N43: 3934 | O43: 3488 | P43: 41429 | Q43: 4097 | R43: 2015-06-01
A44: 6 | B44: Gonzaga University | C44: 622922 | D44: 4847 | E44: 4769 | F44: 4726 | G44: 4553 | H44: 4375 | I44: 4167 | J44: 4645 | K44: 4759 | L44: 5719 | M44: 5383 | N44: 5403 | O44: 5588 | P44: 58934 | Q44: 5719 | R44: 2015-06-01
A45: 7 | B45: Honeywell Electronics | C45: 2304636 | D45: 3657 | E45: 3071 | F45: 3102 | G45: 3274 | H45: 3204 | I45: 3237 | J45: 3579 | K45: 3460 | L45: 3750 | M45: 3567 | N45: 3672 | O45: 3289 | P45: 40862 | Q45: 3750 | R45: 2015-06-01
A46: 8 | B46: Huntwood Industries | C46: 610074869 | D46: 4222 | E46: 4290 | F46: 4285 | G46: 4229 | H46: 4163 | I46: 4222 | J46: 4189 | K46: 4263 | L46: 4245 | M46: 4234 | N46: 4215 | O46: 4224 | P46: 50781 | Q46: 4290 | R46: 2014-11-01
A47: 9 | B47: Inland Empire Paper | C47: 2500004 | D47: 61994 | E47: 64071 | F47: 62328 | G47: 64874 | H47: 61990 | I47: 62535 | J47: 62946 | K47: 64103 | L47: 62872 | M47: 60608 | N47: 59855 | O47: 59693 | P47: 747869 | Q47: 64874 | R47: 2015-01-01
A48: 10 | B48: JR Simplot | C48: 290048778 | D48: 8319 | E48: 8233 | F48: 8034 | G48: 8143 | H48: 8157 | I48: 8325 | J48: 8382 | K48: 8189 | L48: 8640 | M48: 8757 | N48: 8759 | O48: 8731 | P48: 100669 | Q48: 8759 | R48: 2015-08-01
A49: 11 | B49: McCaine Foods Inc | C49: 2500003 | D49: 9584 | E49: 9225 | F49: 9281 | G49: 9215 | H49: 8929 | I49: 9273 | J49: 9190 | K49: 9777 | L49: 9744 | M49: 10177 | N49: 9935 | O49: 9525 | P49: 113855 | Q49: 10177 | R49: 2015-07-01
A50: 12 | B50: Sacred Heart Medical Center | C50: 500020 | D50: 7562 | E50: 5658 | F50: 5470 | G50: 5380 | H50: 5437 | I50: 6550 | J50: 7536 | K50: 7628 | L50: 8734 | M50: 8492 | N50: 8638 | O50: 7507 | P50: 84592 | Q50: 8734 | R50: 2015-06-01
A51: 13 | B51: Spokane County Courthouse | C51: 1900012 | D51: 2762 | E51: 2202 | F51: 1920 | G51: 1955 | H51: 1926 | I51: 2314 | J51: 2538 | K51: 2741 | L51: 2964 | M51: 2867 | N51: 2992 | O51: 2821 | P51: 30002 | Q51: 2992 | R51: 2015-08-01
A52: 14 | B52: Spokane Steel Foundry | C52: 2400169 | D52: 5012 | E52: 5029 | F52: 5292 | G52: 6019 | H52: 6059 | I52: 6268 | J52: 5785 | K52: 6068 | L52: 6093 | M52: 5774 | N52: 5747 | O52: 5520 | P52: 68666 | Q52: 6268 | R52: 2015-03-01
A53: 15 | B53: Triumph Composite / Boeing | C53: 690067830 | D53: 3321 | E53: 2887 | F53: 2916 | G53: 2852 | H53: 2871 | I53: 2861 | J53: 3212 | K53: 3639 | L53: 3977 | M53: 3903 | N53: 3827 | O53: 3640 | P53: 39906 | Q53: 3977 | R53: 2015-06-01
A54: 16 | B54: Vaagen Brothers Lumber | C54: 1300001 | D54: 4283 | E54: 4868 | F54: 4872 | G54: 4783 | H54: 4675 | I54: 4686 | J54: 4444 | K54: 4469 | L54: 4340 | M54: 4177 | N54: 4333 | O54: 4148 | P54: 54078 | Q54: 4872 | R54: 2014-12-01
A55: 17 | B55: WSU - MP-A South Campus Feeder | C55: 290081951 | D55: 4309 | E55: 4135 | F55: 4097 | G55: 4190 | H55: 4299 | I55: 4085 | J55: 4421 | K55: 3869 | L55: 3699 | M55: 3641 | N55: 3875 | O55: 4026 | P55: 48646 | Q55: 4421 | R55: 2015-04-01
A56: 18 | B56: WSU - MP-B East Campus EA | C56: 500033 | D56: 9546 | E56: 7909 | F56: 7800 | G56: 7686 | H56: 7560 | I56: 7475 | J56: 9158 | K56: 8268 | L56: 11798 | M56: 11268 | N56: 11680 | O56: 10743 | P56: 110891 | Q56: 11798 | R56: 2015-06-01
A57: 19 | B57: WSU - MP-C East Campus EB | C57: 410031282 | D57: 5226 | E57: 5869 | F57: 5506 | G57: 5549 | H57: 5138 | I57: 5089 | J57: 5256 | K57: 4944 | L57: 5100 | M57: 4626 | N57: 4936 | O57: 5393 | P57: 62632 | Q57: 5869 | R57: 2014-11-01
A58: 20 | B58: WSU - MP -D Casp East (no PVD) | C58: 500032 | D58: 5769 | E58: 5527 | F58: 5733 | G58: 5525 | H58: 5546 | I58: 5333 | J58: 4576 | K58: 4496 | L58: 4360 | M58: 4590 | N58: 4538 | O58: 4635 | P58: 60628 | Q58: 5769 | R58: 2014-10-01
A59: 21 | B59: WSU - MP-E Casp West (no PVD) | C59: 500034 | D59: 5253 | E59: 4706 | F59: 4786 | G59: 4034 | H59: 4154 | I59: 4267 | J59: 5471 | K59: 5480 | L59: 6594 | M59: 6559 | N59: 7019 | O59: 6305 | P59: 64628 | Q59: 7019 | R59: 2015-08-01
B60: Schedule 25 Total | D60: =SUM(D39:D59) -> 171150 | E60: 167895 | F60: 164427 | G60: 165949 | H60: 163358 | I60: 165613 | J60: 169778 | K60: 171705 | L60: 178786 | M60: 174079 | N60: 174848 | O60: 171938 | P60: =IF(ROUND(SUM(P39:P59),0)<>ROUND(SUM(D60:O60),0),#VALUE!,SUM(P39:P59)) -> 2039526
P62: =P$2 -> 12-mo Ended
B63: KVA in excess of 3,000 | D63: =D$3 -> 2014-10-01 | E63: =E$3 -> 2014-11-01 | F63: 2014-12-01 | G63: 2015-01-01 | H63: 2015-02-01 | I63: 2015-03-01 | J63: 2015-04-01 | K63: 2015-05-01 | L63: 2015-06-01 | M63: 2015-07-01 | N63: 2015-08-01 | O63: 2015-09-01 | P63: Total
A64: 1 | B64: =B4 -> BF Goodrich | C64: 770037736 | D64: =IF(D39>3000,D39-3000,0) -> 7382 | E64: 7656 | F64: 6794 | G64: =MAX(0,G39-3000) -> 6508 | H64: =MAX(0,H39-3000) -> 7786 | I64: 7233 | J64: 6899 | K64: 7559 | L64: 8039 | M64: 7949 | N64: 7653 | O64: 8913 | P64: =SUM(D64:O64) -> 90371
A65: 2 | B65: Boise Cascade Plywood | C65: 500017 | D65: 2513 | E65: 2331 | F65: 2412 | G65: 2227 | H65: =MAX(0,H40-3000) -> 2264 | I65: 2275 | J65: 2131 | K65: 2278 | L65: 2213 | M65: 2062 | N65: 2191 | O65: 2024 | P65: 26921
A66: 3 | B66: Boise Cascade Sawmill | C66: 500018 | D66: 140 | E66: 385 | F66: 395 | G66: 318 | H66: 205 | I66: 248 | J66: 169 | K66: 43 | L66: 0 | M66: 0 | N66: 0 | O66: 0 | P66: 1903
A67: 4 | B67: City of Spokane Sewage Treatment Plt | C67: 1900002 | D67: 0 | E67: 0 | F67: 0 | G67: 0 | H67: 0 | I67: 0 | J67: 0 | K67: 0 | L67: 0 | M67: 0 | N67: 0 | O67: 0 | P67: 0
A68: 5 | B68: Deaconess Medical Center | C68: 1900011 | D68: 585 | E68: 178 | F68: 0 | G68: 0 | H68: 0 | I68: 281 | J68: 530 | K68: 675 | L68: 1097 | M68: 1048 | N68: 934 | O68: 488 | P68: 5816
A69: 6 | B69: Gonzaga University | C69: 622922 | D69: 1847 | E69: 1769 | F69: 1726 | G69: 1553 | H69: 1375 | I69: 1167 | J69: 1645 | K69: 1759 | L69: 2719 | M69: 2383 | N69: 2403 | O69: 2588 | P69: 22934
A70: 7 | B70: Honeywell Electronics | C70: 2304636 | D70: 657 | E70: 71 | F70: 102 | G70: 274 | H70: 204 | I70: 237 | J70: 579 | K70: 460 | L70: 750 | M70: 567 | N70: 672 | O70: 289 | P70: 4862
A71: 8 | B71: Huntwood Industries | C71: 610074869 | D71: 1222 | E71: 1290 | F71: 1285 | G71: 1229 | H71: 1163 | I71: 1222 | J71: 1189 | K71: 1263 | L71: 1245 | M71: 1234 | N71: 1215 | O71: 1224 | P71: 14781
A72: 9 | B72: =B12 -> Inland Empire Paper | C72: 2500004 | D72: =MAX(0,D47-3000) -> 58994 | E72: 61071 | F72: 59328 | G72: 61874 | H72: 58990 | I72: 59535 | J72: 59946 | K72: 61103 | L72: 59872 | M72: 57608 | N72: 56855 | O72: 56693 | P72: 711869
A73: 10 | B73: JR Simplot | C73: 290048778 | D73: 5319 | E73: 5233 | F73: 5034 | G73: 5143 | H73: 5157 | I73: 5325 | J73: 5382 | K73: 5189 | L73: 5640 | M73: 5757 | N73: 5759 | O73: 5731 | P73: 64669
A74: 11 | B74: McCaine Foods Inc | C74: 2500003 | D74: 6584 | E74: 6225 | F74: 6281 | G74: 6215 | H74: 5929 | I74: 6273 | J74: 6190 | K74: 6777 | L74: 6744 | M74: 7177 | N74: 6935 | O74: 6525 | P74: 77855
A75: 12 | B75: Sacred Heart Medical Center | C75: 500020 | D75: 4562 | E75: 2658 | F75: 2470 | G75: 2380 | H75: =MAX(0,H50-3000) -> 2437 | I75: 3550 | J75: 4536 | K75: 4628 | L75: 5734 | M75: 5492 | N75: 5638 | O75: 4507 | P75: 48592
A76: 13 | B76: Spokane County Courthouse | C76: 1900012 | D76: 0 | E76: 0 | F76: 0 | G76: 0 | H76: 0 | I76: 0 | J76: 0 | K76: 0 | L76: 0 | M76: 0 | N76: 0 | O76: 0 | P76: 0
A77: 14 | B77: Spokane Steel Foundry | C77: 2400169 | D77: 2012 | E77: 2029 | F77: 2292 | G77: 3019 | H77: 3059 | I77: 3268 | J77: 2785 | K77: 3068 | L77: 3093 | M77: 2774 | N77: 2747 | O77: 2520 | P77: 32666
A78: 15 | B78: Triumph Composite / Boeing | C78: 690067830 | D78: 321 | E78: 0 | F78: 0 | G78: 0 | H78: 0 | I78: 0 | J78: 212 | K78: 639 | L78: 977 | M78: 903 | N78: 827 | O78: 640 | P78: 4519
A79: 16 | B79: Vaagen Brothers Lumber | C79: 1300001 | D79: 1283 | E79: 1868 | F79: 1872 | G79: 1783 | H79: 1675 | I79: 1686 | J79: 1444 | K79: 1469 | L79: 1340 | M79: 1177 | N79: 1333 | O79: 1148 | P79: 18078
A80: 17 | B80: WSU - MP-A South Campus Feeder | C80: 290081951 | D80: 1309 | E80: 1135 | F80: 1097 | G80: 1190 | H80: 1299 | I80: 1085 | J80: 1421 | K80: 869 | L80: 699 | M80: 641 | N80: 875 | O80: 1026 | P80: 12646
A81: 18 | B81: WSU - MP-B East Campus EA | C81: 500033 | D81: 6546 | E81: 4909 | F81: 4800 | G81: 4686 | H81: 4560 | I81: 4475 | J81: 6158 | K81: 5268 | L81: 8798 | M81: 8268 | N81: 8680 | O81: 7743 | P81: 74891
A82: 19 | B82: WSU - MP-C East Campus EB | C82: 410031282 | D82: 2226 | E82: 2869 | F82: 2506 | G82: 2549 | H82: 2138 | I82: 2089 | J82: 2256 | K82: 1944 | L82: 2100 | M82: 1626 | N82: 1936 | O82: 2393 | P82: 26632
A83: 20 | B83: WSU - MP -D Casp East (no PVD) | C83: 500032 | D83: 2769 | E83: 2527 | F83: 2733 | G83: 2525 | H83: 2546 | I83: 2333 | J83: 1576 | K83: 1496 | L83: 1360 | M83: 1590 | N83: 1538 | O83: 1635 | P83: 24628
A84: 21 | B84: WSU - MP-E Casp West (no PVD) | C84: 500034 | D84: 2253 | E84: 1706 | F84: 1786 | G84: 1034 | H84: 1154 | I84: 1267 | J84: 2471 | K84: 2480 | L84: 3594 | M84: 3559 | N84: 4019 | O84: 3305 | P84: 28628
B85: Schedule 25 Total | D85: =SUM(D64:D84) -> 108524 | E85: 105910 | F85: 102913 | G85: 104507 | H85: 101941 | I85: 103549 | J85: 107519 | K85: 108967 | L85: 116014 | M85: 111815 | N85: 112210 | O85: 109392 | P85: =IF(ROUND(SUM(P64:P84),0)<>ROUND(SUM(D85:O85),0),#VALUE!,SUM(P64:P84)) -> 1293261
B90: 9 KWHs | D90: =D$3 -> 2014-10-01 | E90: =E$3 -> 2014-11-01 | F90: 2014-12-01 | G90: 2015-01-01 | H90: 2015-02-01 | I90: 2015-03-01 | J90: 2015-04-01 | K90: 2015-05-01 | L90: 2015-06-01 | M90: 2015-07-01 | N90: 2015-08-01 | O90: 2015-09-01 | P90: Total
B91: 60 KV | D91: 5036616 | E91: 4802400 | F91: 4701312 | P91: =SUM(D91:O91) -> 14540328
B92: 4.16 KV | D92: 1736750 | E92: 1741930 | F92: 1733800 | P92: =SUM(D92:O92) -> 5212480
B93: 115 KV | D93: 35940320 | E93: 35337960 | F93: 33854472 | P93: =SUM(D93:O93) -> 105132752
A94: * | B94: Total | D94: =SUM(D91:D93) -> 42713686 | E94: 41882290 | F94: 40289584 | G94: 0 | H94: 0 | I94: 0 | J94: 0 | K94: 0 | L94: 0 | M94: 0 | N94: 0 | O94: 0 | P94: 124885560
D95: =D12 -> 42714686 | E95: 41882290 | F95: 40289584 | G95: 40452324 | H95: 38217986 | I95: 42211014 | J95: 40879914 | K95: 39942332 | L95: 39322022 | M95: 40690342 | N95: 40986702 | O95: 38473594 | P95: =SUM(D95:O95) -> 486062790
B96: 9 KVA
B97: 60 KV | D97: 8534 | E97: 8501 | F97: 8760 | G97: 8405 | H97: 8634 | I97: 8566 | J97: 8599 | K97: 8566 | L97: 7986 | M97: 8018 | N97: 8179 | O97: 8518 | P97: =SUM(D97:O97) -> 101266
B98: 4.16 KV | D98: 3200 | E98: 3241 | F98: 3281 | P98: =SUM(D98:O98) -> 9722
B99: 115 KV | D99: 52272 | E99: 54144 | F99: 52704 | G99: 55441 | H99: 52272 | I99: 52992 | J99: 53280 | K99: 54576 | L99: 54289 | M99: 51984 | N99: 50544 | O99: 50256 | P99: =SUM(D99:O99) -> 634754
A100: * | B100: Total | D100: =SUM(D97:D99) -> 64006 | E100: 65886 | F100: 64745 | G100: 63846 | H100: 60906 | I100: 61558 | J100: 61879 | K100: 63142 | L100: 62275 | M100: 60002 | N100: 58723 | O100: 58774 | P100: 745742
D101: =D47 -> 61994 | E101: 64071 | F101: 62328 | G101: 64874 | H101: 61990 | I101: 62535 | J101: 62946 | K101: 64103 | L101: 62872 | M101: 60608 | N101: 59855 | O101: 59693 | P101: =SUM(D101:O101) -> 747869
B103: Calc Revenue for 9 | D103: =500000*0.0575+MIN(5500000,D12-500000)*0.05177+MAX(0,D12-6000000)*0.04433+15000+D72*5.25-D97*1.1-D99*1.4 -> 2183197.33 | E103: =500000*0.0575+MIN(5500000,E12-500000)*0.05177+MAX(0,E12-6000000)*0.04433+15000+E72*5.25-E97*1.1-E99*1.4 -> 2154616.966 | F103: =500000*0.0575+MIN(5500000,F12-500000)*0.05177+MAX(0,F12-6000000)*0.04433+15000+F72*5.25-F97*1.1-F99*1.4 -> 2076592.659 | G103: =500000*0.05616+MIN(5500000,G12-500000)*0.05053+MAX(0,G12-6000000)*0.0432+21000+G72*6-G97*1.1-G99*1.4 -> 2099716.497 | H103: 1990073.795 | I103: 2164909.405 | J103: 2109432.385 | K103: 2074092.742 | L103: 2040949.15 | M103: 2089668.374 | N103: 2099792.026 | O103: 1990284.061 | P103: =SUM(D103:O103) -> 25073325.39
B104: Revenue for 9 per Handbill Report | D104: 2183197 | E104: 2154617 | F104: 2076593 | G104: 2099716.1 | H104: 1990073.8 | I104: 2164909.4 | J104: 2109432.38 | K104: 2074092.74 | L104: 2040949.15 | M104: 2089668.37 | N104: 2099792.03 | O104: 1990284.06 | P104: =SUM(D104:O104) -> 25073325.03
D105: =D103-D104 -> 0.3303800006 | E105: =E103-E104 -> -0.03430000041 | F105: -0.3412799998 | G105: 0.3968000002 | H105: -0.004799999995 | I105: 0.004800000228 | J105: 0.004800000228 | K105: 0.002399999648 | L105: 0.0003999997862 | M105: 0.004400000209 | N105: -0.003599999938 | O105: 0.000800000038
B106: Primary Voltage Discount
B107: >11 and <60 | C107: -0.2 | D107: =(D60-D58-D59-D47)*$C107 -> -19626.8 | E107: -18718.2 | F107: -18316 | G107: -18303.2 | H107: -18333.6 | I107: -18695.6 | J107: -19357 | K107: -19525.2 | L107: -20992 | M107: -20464.4 | N107: -20687.2 | O107: -20261 | P107: =SUM(D107:O107) -> -233280.2
B108: >60 and <115 | C108: =-1.1 -> -1.1 | D108: =D97*$C108 -> -9387.4 | E108: -9351.1 | F108: -9636 | G108: -9245.5 | H108: -9497.4 | I108: -9422.6 | J108: -9458.9 | K108: -9422.6 | L108: -8784.6 | M108: -8819.8 | N108: -8996.9 | O108: -9369.8 | P108: =SUM(D108:O108) -> -111392.6
B109: >115 | C109: -1.4 | D109: =D99*$C109 -> -73180.8 | E109: -75801.6 | F109: -73785.6 | G109: -77617.4 | H109: -73180.8 | I109: -74188.8 | J109: -74592 | K109: -76406.4 | L109: -76004.6 | M109: -72777.6 | N109: -70761.6 | O109: -70358.4 | P109: =SUM(D109:O109) -> -888655.6
D110: =SUM(D107:D109) -> -102195 | E110: -103870.9 | F110: -101737.6 | G110: -105166.1 | H110: -101011.8 | I110: -102307 | J110: -103407.9 | K110: -105354.2 | L110: -105781.2 | M110: -102061.8 | N110: -100445.7 | O110: -99989.2 | P110: -1233328.4
B112: Base Revenues
B113: BF Goodrich | C113: 770037736 | D113: =500000*0.05616+MIN(5500000,D4-500000)*0.05053+MAX(0,D4-6000000)*0.0432+21000+D64*6-0.2*D39 -> 363285.149 | E113: =500000*0.05616+MIN(5500000,E4-500000)*0.05053+MAX(0,E4-6000000)*0.0432+21000+E64*6-0.2*E39 -> 359382.1423 | F113: 340782.4938 | G113: 320711.5724 | H113: 316972.3551 | I113: 329302.6775 | J113: 308681.1004 | K113: 356551.7053 | L113: 370039.3236 | M113: 367890.4092 | N113: 381384.1984 | O113: 315970.6876 | P113: =SUM(D113:O113) -> 4130953.815
B114: Boise Cascade Plywood | C114: 500017 | D114: =500000*0.05616+MIN(5500000,D5-500000)*0.05053+MAX(0,D5-6000000)*0.0432+21000+D65*6-0.2*D40 -> 209964.705 | E114: 194139.4387 | F114: 191498.0055 | G114: 195967.0349 | H114: 192315.7362 | I114: 208317.5066 | J114: 193428.7009 | K114: 200511.5994 | L114: 197619.5192 | M114: 193128.6514 | N114: 197974.5312 | O114: 187865.1553 | P114: =SUM(D114:O114) -> 2362730.584
B115: Boise Cascade Sawmill | C115: 500018 | D115: 93884.16917 | E115: 95781.51548 | F115: 100514.5005 | G115: 101594.1592 | H115: 89018.17637 | I115: 95065.18645 | J115: 93974.90668 | K115: 87709.96002 | L115: 89864.13255 | M115: 90358.58062 | N115: 85997.87342 | O115: 80897.66109 | P115: 1104660.822
B116: City of Spokane Sewage Treatment Plt | C116: 1900002 | D116: 93465.10531 | E116: 90289.11 | F116: 92395.84741 | G116: 96043.88974 | H116: 90232.73762 | I116: 95606.46812 | J116: 88546.61619 | K116: 92524.97344 | L116: 89791.39304 | M116: 92243.64014 | N116: 92706.83943 | O116: 87586.66773 | P116: 1101433.288
B117: Deaconess Medical Center | C117: 1900011 | D117: 117286.8642 | E117: 107635.8968 | F117: 111044.9852 | G117: 112208.1668 | H117: 102522.4435 | I117: 113363.0013 | J117: 114533.2782 | K117: 127400.4182 | L117: 138928.8656 | M117: 143159.2179 | N117: 136845.9342 | O117: 112618.2469 | P117: 1437547.319
B118: Gonzaga University | C118: 622922 | D118: 141100.4667 | E118: 149821.1819 | F118: 149694.5698 | G118: 152430.3393 | H118: 137210.1764 | I118: 135548.7537 | J118: 135945.3847 | K118: 126471.9342 | L118: 145468.5849 | M118: 149778.936 | N118: 144137.3457 | O118: 150895.1728 | P118: 1718502.846
B119: Honeywell Electronics | C119: 2304636 | D119: 97221.11805 | E119: 88912.0653 | F119: 91673.99883 | G119: 96715.41367 | H119: 87773.98713 | I119: 96036.59456 | J119: 95028.86909 | K119: 99396.01467 | L119: 105270.4382 | M119: 104237.335 | N119: 99596.31857 | O119: 88334.54574 | P119: 1150196.699
B120: Huntwood Industries | C120: 610074869 | D120: 88308.15979 | E120: 81502.23691 | F120: 88995.43589 | G120: 83874.22723 | H120: 77693.66556 | I120: 84297.69475 | J120: 84780.76919 | K120: 82515.40641 | L120: 85429.56755 | M120: 88418.68909 | N120: 85305.99649 | O120: 80239.60855 | P120: 1011361.457
B121: Inland Empire Paper | C121: 2500004 | D121: =500000*0.05616+MIN(5500000,D12-500000)*0.05053+MAX(0,D12-6000000)*0.0432+21000+D72*6-1.1*D97-1.4*D99 -> 2184465.235 | E121: =500000*0.05616+MIN(5500000,E12-500000)*0.05053+MAX(0,E12-6000000)*0.0432+21000+E72*6-1.1*E97-1.4*E99 -> 2158383.228 | F121: 2080851.429 | G121: 2099716.497 | H121: 1990073.795 | I121: 2164909.405 | J121: 2109432.385 | K121: 2074092.742 | L121: 2040949.15 | M121: 2089668.374 | N121: 2099792.026 | O121: 1990284.061 | P121: 25082618.33
B122: JR Simplot | C122: 290048778 | D122: =500000*0.05616+MIN(5500000,D13-500000)*0.05053+MAX(0,D13-6000000)*0.0432+21000+D73*6-0.2*D48 -> 320038.4956 | E122: =500000*0.05616+MIN(5500000,E13-500000)*0.05053+MAX(0,E13-6000000)*0.0432+21000+E73*6-0.2*E48 -> 284537.9183 | F122: 303995.7138 | G122: 323429.6721 | H122: 207235.6322 | I122: 326773.2704 | J122: 295590.4317 | K122: 277190.0749 | L122: 311660.9975 | M122: 302787.1031 | N122: 341143.6968 | O122: 313307.0264 | P122: 3607690.033
B123: McCaine Foods Inc | C123: 2500003 | D123: =500000*0.05616+MIN(5500000,D14-500000)*0.05053+MAX(0,D14-6000000)*0.0432+21000+D74*6-0.2*D49 -> 354135.7289 | E123: 304462.8084 | F123: 325898.4361 | G123: 358081.3115 | H123: 308115.6294 | I123: 355828.5543 | J123: 323480.4098 | K123: 361254.3031 | L123: 353017.0112 | M123: 371869.6832 | N123: 369320.0736 | O123: 345292.5638 | P123: 4130756.513
B124: Sacred Heart Medical Center | C124: 500020 | D124: 230280.2903 | E124: 204617.8012 | F124: 207830.4855 | G124: 207768.6117 | H124: 190322.3029 | I124: 213739.1585 | J124: 219074.2337 | K124: 249027.764 | L124: 282869.1869 | M124: 297387.5394 | N124: 290875.6555 | O124: 237271.3138 | P124: 2831064.344
B125: Spokane County Courthouse | C125: 1900012 | D125: 75534.26804 | E125: 69025.77691 | F125: 70855.67885 | G125: 71405.62051 | H125: 65266.56827 | I125: 71124.2726 | J125: 71416.81088 | K125: 78596.34152 | L125: 86362.61839 | M125: 91366.55024 | N125: 87182.67859 | O125: 77086.82631 | P125: 915224.0111
B126: Spokane Steel Foundry | C126: 2400169 | D126: 95554.05086 | E126: 88955.55625 | F126: 96845.9677 | G126: 98650.41709 | H126: 103629.7106 | I126: 105236.7015 | J126: 100734.1585 | K126: 96136.82152 | L126: 98648.19195 | M126: 83445.74263 | N126: 82459.18738 | O126: 73736.45581 | P126: 1124032.962
B127: Stimson Lumber - Colville | C127: 610018682 | D127: 99875.8537 | E127: 86242.85064 | F127: 80983.14336 | G127: 88355.33468 | H127: 83495.8038 | I127: 90998.07276 | J127: 92768.63844 | K127: 101552.9994 | L127: 114366.2328 | M127: 115043.7914 | N127: 113691.4807 | O127: 101614.2308 | P127: 1168988.433
B128: Triumph Composite / Boeing | C128: 690067830 | D128: 125460.2807 | E128: 136735.9607 | F128: 148319.8183 | G128: 144227.4586 | H128: 133806.374 | I128: 141533.5032 | J128: 125097.2788 | K128: 128988.4719 | L128: 127981.912 | M128: 127064.253 | N128: 125685.8044 | O128: 108973.9715 | P128: 1573875.087
B129: Vaagen Brothers Lumber | C129: 1300001 | D129: 147397.646 | E129: 144841.4701 | F129: 153878.065 | G129: 155078.8017 | H129: 144519.3141 | I129: 147311.5197 | J129: 145583.7569 | K129: 136895.4074 | L129: 132323.8997 | M129: 134094.7523 | N129: 137381.2382 | O129: 136835.983 | P129: 1716141.854
B130: WSU - MP-A South Campus Feeder | C130: 290081951 | D130: 254560.4637 | E130: 234782.0486 | F130: 245923.8439 | G130: 237082.9991 | H130: 213443.3625 | I130: 236492.0369 | J130: 253204.7984 | K130: 258081.8967 | L130: 312724.9396 | M130: 336906.4174 | N130: 329716.5905 | O130: 285953.4191 | P130: 3198872.816
B131: WSU - MP-B East Campus EA | C131: 500033 | D131: 183432.7256 | E131: 191970.9647 | F131: 199327.4082 | G131: 199744.4668 | H131: 176100.7251 | I131: 184162.3125 | J131: 183704.5517 | K131: 176923.5576 | L131: 171611.197 | M131: 172825.7218 | N131: 177912.1636 | O131: 181990.6404 | P131: 2199706.435
B132: WSU - MP-C East Campus EB | C132: 410031282 | D132: =500000*0.05616+MIN(5500000,D23-500000)*0.05053+MAX(0,D23-6000000)*0.0432+21000+D83*6 -> 167348.637 | E132: =500000*0.05616+MIN(5500000,E23-500000)*0.05053+MAX(0,E23-6000000)*0.0432+21000+E83*6 -> 180199.0525 | F132: 189173.0146 | G132: 187401.928 | H132: 170984.8102 | I132: 169125.1089 | J132: 151319.5902 | K132: 145701.6998 | L132: 143012.8559 | M132: 149612.807 | N132: 151854.3911 | O132: 153723.087 | P132: 1959456.982
B133: WSU - MP -D Casp East (no PVD) | C133: 500032 | D133: =500000*0.05616+MIN(5500000,D24-500000)*0.05053+MAX(0,D24-6000000)*0.0432+21000+D84*6 -> 173344.3989 | E133: =500000*0.05616+MIN(5500000,E24-500000)*0.05053+MAX(0,E24-6000000)*0.0432+21000+E84*6 -> 142570.845 | F133: 144466.0892 | G133: 137550.0739 | H133: 132449.8264 | I133: 139330.0807 | J133: 154596.4355 | K133: 155490.042 | L133: 194787.3167 | M133: 208467.4074 | N133: 219012.6655 | O133: 182920.2326 | P133: 1984985.414
B134: Schedule 25 Total | P134: =SUM(P113:P133) -> 65510800.04 | Q134: =P134-'Pres & Prop Rev'!G152 -> -3326557.248
D138: 24 | E138: 24 | F138: 24 | G138: 24 | H138: 24 | I138: 24 | J138: 24 | K138: 24 | L138: 24 | M138: 24 | N138: 24 | O138: 24
D139: 31 | E139: 30 | F139: 31 | G139: 31 | H139: 28 | I139: 31 | J139: 30 | K139: 31 | L139: 30 | M139: 31 | N139: 31 | O139: 30 | P139: =SUM(D139:O139) -> 365
D140: =D138*D139 -> 744 | E140: =E138*E139 -> 720 | F140: =F138*F139 -> 744 | G140: 744 | H140: 672 | I140: 744 | J140: 720 | K140: 744 | L140: 720 | M140: 744 | N140: 744 | O140: 720 | P140: =SUM(D140:O140) -> 8760
B141: Load Factor | D141: =D3 -> 2014-10-01 | E141: =E3 -> 2014-11-01 | F141: 2014-12-01 | G141: 2015-01-01 | H141: 2015-02-01 | I141: 2015-03-01 | J141: 2015-04-01 | K141: 2015-05-01 | L141: 2015-06-01 | M141: 2015-07-01 | N141: 2015-08-01 | O141: 2015-09-01 | P141: Monthly Average | Q141: Annual Peak
A142: 1 | B142: BF Goodrich | D142: =(D4/D$140)/D39 -> 0.7615970466 | E142: 0.7525809664 | F142: 0.755467743 | G142: 0.7266820583 | H142: 0.67876527 | I142: 0.6865984917 | J142: 0.681543029 | K142: 0.7292816758 | L142: 0.7474746102 | M142: 0.7253560496 | N142: 0.78798188 | O142: 0.5561894336 | P142: =AVERAGE(D142:O142) -> 0.7157931879 | Q142: =(P4/8760)/Q39 -> 0.6314986276
A143: 2 | B143: Boise Cascade Plywood | D143: =(D5/D$140)/D40 -> 0.8307265915 | E143: 0.8115719898 | F143: 0.7583459 | G143: 0.8133890716 | H143: 0.8725801491 | I143: 0.8668623554 | J143: 0.8456127244 | K143: 0.8269421763 | L143: 0.8519004305 | M143: 0.8300158678 | N143: 0.8303867529 | O143: 0.8365794188 | P143: =AVERAGE(D143:O143) -> 0.8312427857 | Q143: =(P5/8760)/Q40 -> 0.7900737112
A144: 3 | B144: Boise Cascade Sawmill | D144: =(D6/D$140)/D41 -> 0.5917783885 | E144: 0.5711127523 | F144: 0.5876902307 | G144: 0.6135643314 | H144: 0.5937193559 | I144: 0.5766431121 | J144: 0.6052364924 | K144: 0.5615894402 | L144: 0.6192411352 | M144: 0.6123307447 | N144: 0.5696494279 | O144: 0.5467177379 | P144: 0.5874394291 | Q144: 0.5423204955
A145: 4 | B145: City of Spokane Sewage Treatment Plt | D145: =(D7/D$140)/D42 -> 0.6522041321 | E145: 0.6364142112 | F145: 0.65776426 | G145: 0.7009286943 | H145: 0.7140669718 | I145: 0.6663223871 | J145: 0.6593894197 | K145: 0.6151527872 | L145: 0.641797271 | M145: 0.7389699349 | N145: 0.6802763421 | O145: 0.6257573524 | P145: 0.665753647 | Q145: 0.6199041126
A146: 5 | B146: Deaconess Medical Center | D146: =(D8/D$140)/D43 -> 0.6728134701 | E146: 0.7212244773 | F146: 0.8104195115 | G146: 0.8237109312 | H146: 0.8169163834 | I146: 0.7176358342 | J146: 0.6871159899 | K146: 0.7257603687 | L146: 0.7336282646 | M146: 0.7482222736 | N146: 0.7316877675 | O146: 0.6822183996 | P146: 0.7392794726 | Q146: 0.6204314495
A147: 6 | B147: Gonzaga University | D147: =(D9/D$140)/D44 -> 0.5881520218 | E147: 0.6705671466 | F147: 0.6555314572 | G147: 0.7022847986 | H147: 0.7136608844 | I147: 0.673868026 | J147: 0.610615058 | K147: 0.5201163839 | L147: 0.5117760486 | M147: 0.5571102975 | N147: 0.5267026085 | O147: 0.5542034518 | P147: 0.6070490152 | Q147: 0.516262682
A148: 7 | B148: Honeywell Electronics | D148: =(D10/D$140)/D45 -> 0.5105781077 | E148: 0.5843237816 | F148: 0.581965416 | G148: 0.5842459489 | H148: 0.5825219406 | I148: 0.5871093971 | J148: 0.5257338332 | K148: 0.5651528218 | L148: 0.5695585185 | M148: 0.5796744953 | N148: 0.5250680096 | O148: 0.5302008378 | P148: 0.5605110923 | Q148: 0.5081099848
A149: 8 | B149: Huntwood Industries | D149: =(D11/D$140)/D46 -> 0.3654510042 | E149: 0.3255137918 | F149: 0.3620760718 | G149: 0.3367019708 | H149: 0.3376728664 | I149: 0.3401839698 | J149: 0.3587182701 | K149: 0.3243074946 | L149: 0.356083955 | M149: 0.3646723782 | N149: 0.34736827 | O149: 0.3248747238 | P149: 0.3453020639 | Q149: 0.3407440315
A150: 9 | B150: Inland Empire Paper | D150: =(D12/D$140)/D47 -> 0.9260930472 | E150: 0.907896665 | F150: 0.868833697 | G150: 0.8381077662 | H150: 0.9174383445 | I150: 0.9072556788 | J150: 0.9020058198 | K150: 0.8374948147 | L150: 0.8686524915 | M150: 0.9023779021 | N150: 0.9203851512 | O150: 0.8951727543 | P150: 0.8909761777 | Q150: 0.8552982684
A151: 10 | B151: JR Simplot | D151: =(D13/D$140)/D48 -> 0.8504419537 | E151: 0.7711138778 | F151: 0.8329676161 | G151: 0.8832351885 | H151: 0.5563932818 | I151: 0.8712365591 | J151: 0.7908161338 | K151: 0.7272102821 | L151: 0.8135662616 | M151: 0.7477868704 | N151: 0.8640640901 | O151: 0.8086071024 | P151: 0.7931199348 | Q151: 0.7619157412
A152: 11 | B152: McCaine Foods Inc | D152: =(D14/D$140)/D49 -> 0.8124626954 | E152: 0.7304171936 | F152: 0.7630948822 | G152: 0.8625635214 | H152: 0.8262431737 | I152: 0.849741387 | J152: 0.7906859811 | K152: 0.8127461477 | L152: 0.8199856607 | M152: 0.80419003 | N152: 0.8201898361 | O152: 0.8202137649 | P152: 0.8093778562 | Q152: 0.7551383436
A153: 12 | B153: Sacred Heart Medical Center | D153: =(D15/D$140)/D50 -> 0.6352907364 | E153: 0.8063577629 | F153: 0.8280913978 | G153: 0.844219181 | H153: 0.8285830334 | I153: 0.6901081425 | J153: 0.6184095969 | K153: 0.693833838 | L153: 0.712484893 | M153: 0.7590233566 | N153: 0.7235340469 | O153: 0.6880419016 | P153: 0.7356648239 | Q153: 0.5873321131
A154: 13 | B154: Spokane County Courthouse | D154: =(D16/D$140)/D51 -> 0.5034083919 | E154: 0.5698399183 | F154: 0.6570235495 | G154: 0.6528387372 | H154: 0.6397102 | I154: 0.5491468481 | J154: 0.5210226775 | K154: 0.5369400541 | L154: 0.5855277215 | M154: 0.6320570376 | N154: 0.5686773151 | O154: 0.524551479 | P154: 0.5783953275 | Q154: 0.4798025709
A155: 14 | B155: Spokane Steel Foundry | D155: =(D17/D$140)/D52 -> 0.3219858361 | E155: 0.2949904443 | F155: 0.3032803623 | G155: 0.2559888757 | H155: 0.3046194072 | I155: 0.2676412363 | J155: 0.2915706329 | K155: 0.2416572749 | L155: 0.2593629757 | M155: 0.2033520211 | N155: 0.2004659748 | O155: 0.1787884964 | P155: 0.2603086281 | Q155: 0.2364367243
A156: 15 | B156: Triumph Composite / Boeing | D156: =(D18/D$140)/D53 -> 0.599107828 | E156: 0.5998575992 | F156: 0.5268079709 | G156: 0.6072686212 | H156: 0.6180752517 | I156: 0.6299455413 | J156: 0.584677252 | K156: 0.5455312372 | L156: 0.5908138463 | M156: 0.5901384791 | N156: 0.5955224761 | O156: 0.5639793193 | P156: 0.5876437852 | Q156: 0.4908431816
A157: 16 | B157: Vaagen Brothers Lumber | D157: =(D19/D$140)/D54 -> 0.5887837387 | E157: 0.5798040491 | F157: 0.6237579895 | G157: 0.6154764635 | H157: 0.6354615483 | I157: 0.6161183048 | J157: 0.5783472097 | K157: 0.5788574577 | L157: 0.6142956349 | M157: 0.6178548168 | N157: 0.5815937454 | O157: 0.5241542109 | P157: 0.5962087641 | Q157: 0.5520110959
A158: 17 | B158: WSU - MP-A South Campus Feeder | D158: =(D20/D$140)/D55 -> 0.7197211014 | E158: 0.7647239017 | F158: 0.8070204792 | G158: 0.7933065158 | H158: 0.7793672947 | I158: 0.7670858504 | J158: 0.7095547764 | K158: 0.7469123193 | L158: 0.7806374095 | M158: 0.7828845171 | N158: 0.7488518904 | O158: 0.7350889358 | P158: 0.761262916 | Q158: 0.6971222083
A159: 18 | B159: WSU - MP-B East Campus EA | D159: =(D21/D$140)/D56 -> 0.5388462825 | E159: 0.6363158708 | F159: 0.6645468018 | G159: 0.6460952955 | H159: 0.6380011495 | I159: 0.6665848527 | J159: 0.5830837034 | K159: 0.6573130114 | L159: 0.5556029977 | M159: 0.627311117 | N159: 0.5833673958 | O159: 0.5573247955 | P159: 0.6128661061 | Q159: 0.4760211273
A160: 19 | B160: WSU - MP-C East Campus EB | D160: =(D22/D$140)/D57 -> 0.7497759857 | E160: 0.7124072339 | F160: 0.7805895524 | G160: 0.7753443418 | H160: 0.8052269273 | I160: 0.7779273554 | J160: 0.7708579084 | K160: 0.7663215106 | L160: 0.7341364379 | M160: 0.806042518 | N160: 0.7731410985 | O160: 0.7384904815 | P160: 0.7658551126 | Q160: 0.6800418926
A161: 20 | B161: WSU - MP -D Casp East (no PVD) | D161: =(D23/D$140)/D58 -> 0.5852023328 | E161: 0.7023138934 | F161: 0.6911392073 | G161: 0.7146401985 | H161: 0.7003674892 | I161: 0.6549542411 | J161: 0.7090763403 | K161: 0.6680155359 | L161: 0.7000076453 | M161: 0.6737320496 | N161: 0.6964201936 | O161: 0.7122042431 | P161: 0.6840061142 | Q161: 0.5975505991
A162: 21 | B162: WSU - MP-E Casp West (no PVD) | D162: =(D24/D$140)/D59 -> 0.6887247226 | E162: 0.6338338764 | F162: 0.6110002741 | G162: 0.7090483578 | H162: 0.7210777908 | I162: 0.6727120613 | J162: 0.5825626028 | K162: 0.5669197865 | L162: 0.6227934486 | M162: 0.6622501791 | N162: 0.6483523217 | O162: 0.607165389 | P162: 0.6438700676 | Q162: 0.491625926

Sheet Lighting summary
B1: AVISTA UTILITIES
B2: WASHINGTON ELECTRIC
B3: STREET & AREA LIGHT REVENUE UNDER PRESENT & PROPOSED RATES
B4: 12 MONTHS ENDED SEPTEMBER 30, 2015
C7: ="Present "&IF(Base1_Billing2=2,"Billing ","")&"Rates(1)" -> Present Rates(1) | D7: ="Present "&IF(Base1_Billing2=2,"Billing","")&" Rates" -> Present Rates | F7: ="Proposed "&IF(Base1_Billing2=2,"Billing ","")&"Rates(2)" -> Proposed Rates(2) | G7: ="Proposed "&IF(Base1_Billing2=2,"Billing ","")&"Rates" -> Proposed Rates | I7: % Revenue Change
C8: Monthly | D8: Annual | F8: Monthly | G8: Annual | L8: Target Base | N8: Annual | O8: Present | P8: Proposed
C9: Revenue | D9: Revenue | F9: Revenue | G9: Revenue | I9: Base Rates | J9: Billing Rates | L9: % Change | N9: kWh's | O9: kWh Rate | P9: kWh Rate
B11: Schedule 41 | C11: ='St Lts'!Y$56*IF(Base1_Billing2=2,1+$I$39,1) -> 2163.07 | D11: =C11*12 -> 25956.84 | F11: ='St Lts'!AQ$56*IF(Base1_Billing2=2,1+$D$39,1) -> 2259.44 | G11: =F11*12 -> 27113.28 | I11: =G11/D11-1 -> 0.04455241855 | J11: 0 | L11: 0.0445 | N11: ='Rev Runs 12MESEPT2015'!P56 -> 111196.9705
B12: Schedule 42 | C12: ='St Lts'!Z$56*IF(Base1_Billing2=2,1+$I$39,1) -> 417128.06 | D12: =C12*12 -> 5005536.72 | F12: ='St Lts'!AR$56*IF(Base1_Billing2=2,1+$D$39,1) -> 435642.11 | G12: =F12*12 -> 5227705.32 | I12: =G12/D12-1 -> 0.04438457101 | J12: 0 | L12: =L11 -> 0.0445 | N12: ='Rev Runs 12MESEPT2015'!P57 -> 13935732.98
B13: Schedule 44 | C13: ='St Lts'!AA$56*IF(Base1_Billing2=2,1+$I$39,1) -> 3707.8 | D13: 44493.6 | F13: ='St Lts'!AS$56*IF(Base1_Billing2=2,1+$D$39,1) -> 3873.47 | G13: 46481.64 | I13: 0.04468148228 | J13: 0 | L13: =L11 -> 0.0445 | N13: ='Rev Runs 12MESEPT2015'!P58 -> 325391.9094
B14: Schedule 45 | C14: ='St Lts'!AB$56*IF(Base1_Billing2=2,1+$I$39,1) -> 7148.64 | D14: 85783.68 | F14: ='St Lts'!AT$56*IF(Base1_Billing2=2,1+$D$39,1) -> 7467.66 | G14: 89611.92 | I14: =G14/D14-1 -> 0.04462667025 | J14: 0 | L14: =L11 -> 0.0445 | N14: ='Rev Runs 12MESEPT2015'!P60 -> 993683.8358
B15: Schedule 46 | C15: ='St Lts'!AC$56*IF(Base1_Billing2=2,1+$I$39,1) -> 11803.67 | D15: 141644.04 | F15: ='St Lts'!AU$56*IF(Base1_Billing2=2,1+$D$39,1) -> 12329.14 | G15: 147949.68 | I15: 0.04451751023 | J15: 0 | L15: =L11 -> 0.0445 | N15: ='Rev Runs 12MESEPT2015'!P61 -> 1339526.258 | O15: =D15/N15 -> 0.1057418913 | P15: =G15/N15 -> 0.110449257
B16: Schedule 47 | C16: =IF(Base1_Billing2=1,'Area Lts'!S53,'Area Lts'!S62) -> 122792.94 | D16: 1473515.28 | F16: =IF(Base1_Billing2=1,'Area Lts'!AG53,'Area Lts'!AG62) -> 128257.64 | G16: 1539091.68 | I16: =G16/D16-1 -> 0.04450337291 | J16: 0 | L16: =L11 -> 0.0445 | N16: ='Rev Runs 12MESEPT2015'!P62 -> 5714302.814
B17: Schedule 48 | C17: =IF(Base1_Billing2=1,'Area Lts'!T53,'Area Lts'!T62) -> 74085.58002 | D17: 889026.9603 | F17: =IF(Base1_Billing2=1,'Area Lts'!AH53,'Area Lts'!AH62) -> 77383.81005 | G17: 928605.7206 | I17: 0.04451919021 | J17: 0 | L17: =L11 -> 0.0445 | N17: ='Rev Runs 12MESEPT2015'!P63 -> 3177505.53
B19: Total | C19: =SUM(C11:C17) -> 638829.76 | D19: =SUM(D11:D17) -> 7665957.12 | F19: =SUM(F11:F17) -> 667213.2701 | G19: =SUM(G11:G17) -> 8006559.241 | I19: =G19/D19-1 -> 0.04443047554 | J19: 0 | L19: =L11 -> 0.0445 | N19: =SUM(N11:N18) -> 25597340.29
C20: =ROUND(C19-CHOOSE(Base1_Billing2,'St Lts'!AC58+'Area Lts'!T54,'St Lts'!AC64+'Area Lts'!T63),0) -> 0 | F20: =ROUND(F19-CHOOSE(Base1_Billing2,'St Lts'!AU57+'Area Lts'!AH54,'St Lts'!AU63+'Area Lts'!AH63),0) -> 0 | L20: =I19-L19 -> -6.952445708e-05
B21: Sch 46 Per kWh Rate | D21: =D15/N15 -> 0.1057418913 | G21: =G15/N15 -> 0.110449257
B23: (1) from PDE-E-12/14
B24: (2) from PDE-E-13/14
C26: Billed | D26: =D19*(1+I39)+'Area Lts'!T61*12 -> 7757114.761 | F26: b4 Sch 91/92 | G26: =G19*(1+J39)+'Area Lts'!AH61*12 -> 8097710.708 | I26: =G26/D26-1 -> 0.0439075554 | K26: =G26-D26 -> 340595.9461
C27: Diff | D27: =D26-D19 -> 91157.64116 | F27: b4 Sch 91/92 | G27: =G26-G19 -> 91151.46695
C28: Pres 91/92 | D28: =D$19*(I36+I37) -> 92758.08116 | F28: 91/92 b4 Sch 91/92 | G28: =G$19*(J36+J37) -> 92751.90695
C29: Pres 93 | D29: =D$19*I38 -> 0 | F29: 93 b4 Sch 93 | G29: =G$19*J38 -> 0
C30: add'l 91/92 | D30: =D28*($L$36+L37) -> 0
C31: Billed | D31: =D26 -> 7757114.761 | F31: w/Sch 91/92/93/98 | G31: =G19*(1+D39)+'Area Lts'!AH61*12 -> 8097710.708 | I31: =G31/D31-1 -> 0.0439075554 | K31: =G31-D26 -> 340595.9461 | L31: =K31-J$19 -> 340595.9461
J34: Revised
D35: Proposed | I35: Present | J35: Present | K35: Proposed
D36: =K36 -> 0 | G36: Sch 91-DSM | I36: 0 | J36: =(L19+(1+I36))/(1+L19)-1 -> 0 | K36: =J36*(1+L36) -> 0 | L36: 0
D37: =K37 -> 0.01158449019 | G37: Sch 92-LIRAP | I37: 0.0121 | J37: =(L19+(1+I37))/(1+L19)-1 -> 0.01158449019 | K37: =J37*(1+L37) -> 0.01158449019 | L37: 0 | M37: Reflects additional LIRAP funding
D38: =K38 -> 0 | I38: 0 | J38: =(L19+(1+I38))/(1+L19)-1 -> 0 | K38: =J38*(1+$L$38) -> 0 | L38: 0
D39: =D36+D37+D38 -> 0.01158449019 | G39: Total adder | I39: =I36+I37+I38 -> 0.0121 | J39: =J36+J37+J38 -> 0.01158449019 | K39: =K36+K37+K38 -> 0.01158449019
C41: Schedule 98 | D41: Schedule 91 | E41: Schedule 59 | G41: Revenue
B42: copy of Total above | C42: 488916.6501 | D42: 488917.65 | E42: 5866999.801 | G42: 556466.5401 | H42: 6677598.481
B43: diff from curr Total above | C43: =C19-C42 -> 149913.11 | D43: =D19-D42 -> 7177039.47 | E43: =D19-E42 -> 1798957.32 | G43: =F19-G42 -> 110746.73 | H43: =G19-H42 -> 1328960.76
B44: % diff | C44: =C43/C42 -> 0.3066230409 | D44: =D43/D42 -> 14.67944442 | E44: =E43/E42 -> 0.3066230409 | G44: =G43/G42 -> 0.1990177702 | H44: =H43/H42 -> 0.1990177702
B45: Schedule 41 | C45: ='Rev Runs 12MESEPT2015'!P56*'Lighting summary'!$C$53 -> -41.14287908 | D45: ='Rev Runs 12MESEPT2015'!P56*'Lighting summary'!$D$53 -> 958.5178855 | F45: ='Rev Runs 12MESEPT2015'!R56*'Lighting summary'!$C$53 -> 0 | G45: =C45+D45+F45 -> 917.3750065
B46: Schedule 42 | C46: ='Rev Runs 12MESEPT2015'!P57*'Lighting summary'!$C$53 -> -5156.221201 | D46: ='Rev Runs 12MESEPT2015'!P57*'Lighting summary'!$D$53 -> 120126.0183 | F46: ='Rev Runs 12MESEPT2015'!R57*'Lighting summary'!$C$53 -> 0 | G46: =C46+D46+F46 -> 114969.7971
B47: Schedule 44 | C47: ='Rev Runs 12MESEPT2015'!P58*'Lighting summary'!$C$53 -> -120.3950065 | D47: ='Rev Runs 12MESEPT2015'!P58*'Lighting summary'!$D$53 -> 2804.878259 | F47: ='Rev Runs 12MESEPT2015'!R58*'Lighting summary'!$C$53 -> 0 | G47: 2684.483252
B48: Schedule 45 | C48: ='Rev Runs 12MESEPT2015'!P60*'Lighting summary'!$C$53 -> -367.6630193 | D48: ='Rev Runs 12MESEPT2015'!P60*'Lighting summary'!$D$53 -> 8565.554665 | F48: ='Rev Runs 12MESEPT2015'!R60*'Lighting summary'!$C$53 -> 0 | G48: 8197.891646
B49: Schedule 46 | C49: ='Rev Runs 12MESEPT2015'!P61*'Lighting summary'!$C$53 -> -495.6247155 | D49: ='Rev Runs 12MESEPT2015'!P61*'Lighting summary'!$D$53 -> 11546.71635 | F49: ='Rev Runs 12MESEPT2015'!R61*'Lighting summary'!$C$53 -> 0 | G49: 11051.09163
B50: Schedule 47 | C50: ='Rev Runs 12MESEPT2015'!P62*'Lighting summary'!$C$53 -> -2114.292041 | D50: ='Rev Runs 12MESEPT2015'!P62*'Lighting summary'!$D$53 -> 49257.29025 | F50: ='Rev Runs 12MESEPT2015'!R62*'Lighting summary'!$C$53 -> 0 | G50: 47142.99821
B51: Schedule 48 | C51: ='Rev Runs 12MESEPT2015'!P63*'Lighting summary'!$C$53 -> -1175.677046 | D51: ='Rev Runs 12MESEPT2015'!P63*'Lighting summary'!$D$53 -> 27390.09767 | F51: ='Rev Runs 12MESEPT2015'!P63*'Lighting summary'!$F$53 -> -857.926493 | G51: 25356.49413
B52: Total | C52: =C45+C46+C47+C48+C49+C50+C51 -> -9471.015909 | D52: =D45+D46+D47+D48+D49+D50+D51 -> 220649.0733 | F52: =F45+F46+F47+F48+F49+F50+F51 -> -857.926493 | G52: =C52+D52+F52 -> 210320.1309
C53: -0.00037 | D53: 0.00862 | F53: -0.00027

Sheet St Lts
A1: Street Light Summary | I1: WASHINGTON Street Lights | AJ1: % rate increase --> | AK1: ='Lighting summary'!L11 -> 0.0445 | AL1: ='Lighting summary'!L12 -> 0.0445 | AM1: ='Lighting summary'!L13 -> 0.0445 | AN1: ='Lighting summary'!L14 -> 0.0445 | AO1: ='Lighting summary'!L15 -> 0.0445 | BD1: -0.00037 | BE1: compare input Present Billing Rates to calculated Present Billing Rates | BL1: =BE2 -> 1.0121
A2: DWWPAOAE Report, as of 1/8/15 | M2: Number of Lights(1) | S2: Present Rates | Y2: Monthly Revenue at Present Rates | AE2: Number of Lights | AK2: Proposed Rates | AQ2: Monthly Revenue at Proposed Rates | AX2: Present Billing Rates | BD2: 0.00862 | BE2: =1+'Lighting summary'!I39 -> 1.0121 | BF2: Sch 91 & 93 | BL2: New Billing Rates | BR2: Increase
I3: Fixture Type | J3: Pole Facility | K3: Size | L3: Sched | M3: 041 | N3: 042 | O3: 044 | P3: 045 | Q3: 046 | S3: 041 | T3: 042 | U3: 044 | V3: 045 | W3: 046 | Y3: 041 | Z3: 042 | AA3: 044 | AB3: 045 | AC3: 046 | AE3: 041 | AF3: 042 | AG3: 044 | AH3: 045 | AI3: 046 | AK3: 041 | AL3: 042 | AM3: 044 | AN3: 045 | AO3: 046 | AQ3: 041 | AR3: 042 | AS3: 044 | AT3: 045 | AU3: 046 | AW3: kwh | AX3: 041 | AY3: 042 | AZ3: 044 | BA3: 045 | BB3: 046 | BD3: Sch 93/94 | BE3: 041 | BF3: 042 | BG3: 044 | BH3: 045 | BI3: 046 | BL3: 041 | BM3: 042 | BN3: 044 | BO3: 045 | BP3: 046 | BR3: 041 | BS3: 042 | BT3: 044 | BU3: 045 | BV3: 046
I4: Single Mercury Vapor | J4: Direct Burial | K4: 4000 | L4: 214 | M4: =SUMIF($G:$G,TEXT(M$3,"000")&TEXT($L4,"000"),$E:$E) -> 75 | N4: 0 | O4: 0 | P4: 0 | Q4: 0 | S4: 15.43 | T4: 0 | U4: 0 | V4: 0 | W4: 0 | Y4: =IF(AND(M4<>0,S4=0),#VALUE!,M4*S4) -> 1157.25 | Z4: =IF(AND(N4<>0,T4=0),#VALUE!,N4*T4) -> 0 | AA4: =IF(AND(O4<>0,U4=0),#VALUE!,O4*U4) -> 0 | AB4: =IF(AND(P4<>0,V4=0),#VALUE!,P4*V4) -> 0 | AC4: =IF(AND(Q4<>0,W4=0),#VALUE!,Q4*W4) -> 0 | AE4: =M4 -> 75 | AF4: =N4 -> 0 | AG4: 0 | AH4: 0 | AI4: 0 | AK4: =ROUND(S4*(1+AK$1),2) -> 16.12 | AL4: 0 | AM4: 0 | AN4: 0 | AO4: 0 | AQ4: =IF(AND(AE4<>0,AK4=0),#VALUE!,AE4*AK4) -> 1209 | AR4: =IF(AND(AF4<>0,AL4=0),#VALUE!,AF4*AL4) -> 0 | AS4: =IF(AND(AG4<>0,AM4=0),#VALUE!,AG4*AM4) -> 0 | AT4: =IF(AND(AH4<>0,AN4=0),#VALUE!,AH4*AN4) -> 0 | AU4: =IF(AND(AI4<>0,AO4=0),#VALUE!,AI4*AO4) -> 0 | AV4: =SUM(AQ4:AU4)-SUM(Y4:AC4) -> 51.75 | AW4: 42 | AX4: 14.45 | BD4: =ROUND(AW4*$BD$2,2)+ROUND(AW4*$BD$1,2) -> 0.34 | BE4: =ROUND((S4*$BE$2),2)+ROUND($BD4-AX4,2) -> 1.51 | BL4: =AK4*$BL$1 -> 16.315052 | BM4: =AL4*$BL$1 -> 0 | BN4: 0 | BO4: 0 | BP4: 0 | BR4: =BL4-AX4 -> 1.865052 | BS4: =BM4-AY4 -> 0 | BT4: =BN4-AZ4 -> 0 | BU4: =BO4-BA4 -> 0 | BV4: =BP4-BB4 -> 0
B5: State | C5: Sched | D5: Rate Sub | E5: # of Lights | I5: Single High-Pressure Sodium Vapor | J5: Direct Burial | K5: 50W | L5: 234 | M5: 0 | N5: 129 | O5: 0 | P5: 0 | Q5: 0 | S5: 0 | T5: 14.49 | U5: 0 | V5: 0 | W5: 0 | Y5: =IF(AND(M5<>0,S5=0),#VALUE!,M5*S5) -> 0 | Z5: =IF(AND(N5<>0,T5=0),#VALUE!,N5*T5) -> 1869.21 | AA5: =IF(AND(O5<>0,U5=0),#VALUE!,O5*U5) -> 0 | AB5: =IF(AND(P5<>0,V5=0),#VALUE!,P5*V5) -> 0 | AC5: =IF(AND(Q5<>0,W5=0),#VALUE!,Q5*W5) -> 0 | AE5: =M5 -> 0 | AF5: 129 | AG5: 0 | AH5: 0 | AI5: 0 | AK5: 0 | AL5: 15.13 | AM5: 0 | AN5: 0 | AO5: 0 | AQ5: =IF(AND(AE5<>0,AK5=0),#VALUE!,AE5*AK5) -> 0 | AR5: =IF(AND(AF5<>0,AL5=0),#VALUE!,AF5*AL5) -> 1951.77 | AS5: 0 | AT5: 0 | AU5: 0 | AV5: 82.56 | AW5: 20 | AY5: 13.59 | BD5: =ROUND(AW5*$BD$2,2)+ROUND(AW5*$BD$1,2) -> 0.16 | BF5: =ROUND((T5*$BE$2)+$BD5-AY5,2) -> 1.24 | BL5: =AK5*$BL$1 -> 0 | BM5: =AL5*$BL$1 -> 15.313073 | BN5: =AM5*$BL$1 -> 0 | BO5: =AN5*$BL$1 -> 0 | BP5: =AO5*$BL$1 -> 0 | BR5: =BL5-AX5 -> 0 | BS5: =BM5-AY5 -> 1.723073 | BT5: =BN5-AZ5 -> 0 | BU5: =BO5-BA5 -> 0 | BV5: =BP5-BB5 -> 0
I6: High-Pressure Sodium Vapor | J6: Dusk to Dawn | K6: 70W | L6: 335 | M6: 0 | N6: 0 | O6: 0 | P6: 0 | Q6: 41 | S6: 0 | T6: 0 | U6: 0 | V6: 0 | W6: 3.73 | Y6: 0 | Z6: 0 | AA6: 0 | AB6: 0 | AC6: 152.93 | AE6: 0 | AF6: 0 | AG6: 0 | AH6: 0 | AI6: 41 | AK6: 0 | AL6: 0 | AM6: 0 | AN6: 0 | AO6: 3.9 | AQ6: 0 | AR6: 0 | AS6: 0 | AT6: 0 | AU6: 159.9 | AV6: 6.97 | AW6: 25 | BB6: 3.47 | BD6: 0.21 | BI6: 0.52 | BL6: 0 | BM6: 0 | BN6: 0 | BO6: 0 | BP6: 3.94719 | BR6: 0 | BS6: 0 | BT6: 0 | BU6: 0 | BV6: 0.47719
B7: 2 | C7: 041 | D7: 214 | E7: =75 -> 75 | G7: =IF(OR(ISBLANK(C7),ISBLANK(D7)),"",TEXT(C7,"000")&TEXT(D7,"000")) -> 041214 | I7: Single Mercury Vapor | J7: Wood Pole | K7: 7000 | L7: 411 | M7: 32 | N7: 0 | O7: 0 | P7: 0 | Q7: 0 | S7: 16.73 | T7: 0 | U7: 0 | V7: 0 | W7: 0 | Y7: 535.36 | Z7: 0 | AA7: 0 | AB7: 0 | AC7: 0 | AE7: 32 | AF7: 0 | AG7: 0 | AH7: 0 | AI7: 0 | AK7: 17.47 | AL7: 0 | AM7: 0 | AN7: 0 | AO7: 0 | AQ7: 559.04 | AR7: 0 | AS7: 0 | AT7: 0 | AU7: 0 | AV7: 23.68 | AW7: 80 | AX7: 15.62 | BD7: 0.66 | BE7: =ROUND((S7*$BE$2)+$BD7-AX7,2) -> 1.97 | BL7: 17.681387 | BM7: 0 | BN7: 0 | BO7: 0 | BP7: 0 | BR7: 2.061387 | BS7: 0 | BT7: 0 | BU7: 0 | BV7: 0
B8: 2 | C8: 041 | D8: 411 | E8: 32 | G8: 041411 | I8: Mercury Vapor | J8: Dusk to Dawn | K8: 7000 | L8: 415 | M8: 0 | N8: 0 | O8: 0 | P8: 73 | Q8: 0 | S8: 0 | T8: 0 | U8: 0 | V8: 7.34 | W8: 0 | Y8: 0 | Z8: 0 | AA8: 0 | AB8: 535.82 | AC8: 0 | AE8: 0 | AF8: 0 | AG8: 0 | AH8: 73 | AI8: 0 | AK8: 0 | AL8: 0 | AM8: 0 | AN8: 7.67 | AO8: 0 | AQ8: 0 | AR8: 0 | AS8: 0 | AT8: 559.91 | AU8: 0 | AV8: 24.09 | AW8: 80 | BA8: 6.82 | BD8: 0.66 | BH8: 1.27 | BL8: 0 | BM8: 0 | BN8: 0 | BO8: 7.762807 | BP8: 0 | BR8: 0 | BS8: 0 | BT8: 0 | BU8: 0.942807 | BV8: 0
B9: 2 | C9: 041 | D9: 511 | E9: 6 | G9: 041511 | I9: Mercury Vapor | J9: Dusk to 1 AM | K9: 7000 | L9: 419 | M9: 0 | N9: 0 | O9: 0 | P9: 16 | Q9: 0 | S9: 0 | T9: 0 | U9: 0 | V9: 4.97 | W9: 0 | Y9: 0 | Z9: 0 | AA9: 0 | AB9: 79.52 | AC9: 0 | AE9: =M9 -> 0 | AF9: =N9 -> 0 | AG9: =O9 -> 0 | AH9: =P9 -> 16 | AI9: =Q9 -> 0 | AK9: 0 | AL9: 0 | AM9: 0 | AN9: 5.19 | AO9: 0 | AQ9: 0 | AR9: 0 | AS9: 0 | AT9: 83.04 | AU9: 0 | AV9: 3.52 | AW9: 80 | BA9: 4.59 | BD9: 0.66 | BH9: 1.1 | BL9: =AK9*$BL$1 -> 0 | BM9: =AL9*$BL$1 -> 0 | BN9: =AM9*$BL$1 -> 0 | BO9: =AN9*$BL$1 -> 5.252799 | BP9: =AO9*$BL$1 -> 0 | BR9: 0 | BS9: 0 | BT9: 0 | BU9: 0.662799 | BV9: 0
B10: 2 | C10: 041 | D10: 611 | E10: 12 | G10: 041611 | I10: Single High-Pressure Sodium Vapor | J10: Wood Pole | K10: 100W | L10: 421 | M10: 0 | N10: 9 | O10: 0 | P10: 0 | Q10: 0 | S10: 0 | T10: 27.49 | U10: 0 | V10: 0 | W10: 0 | Y10: 0 | Z10: 247.41 | AA10: 0 | AB10: 0 | AC10: 0 | AE10: 0 | AF10: 9 | AG10: 0 | AH10: 0 | AI10: 0 | AK10: 0 | AL10: 28.71 | AM10: 0 | AN10: 0 | AO10: 0 | AQ10: 0 | AR10: 258.39 | AS10: 0 | AT10: 0 | AU10: 0 | AV10: 10.98 | AW10: 40 | AY10: 25.77 | BD10: 0.33 | BF10: 2.38 | BL10: 0 | BM10: 29.057391 | BN10: 0 | BO10: 0 | BP10: 0 | BR10: 0 | BS10: 3.287391 | BT10: 0 | BU10: 0 | BV10: 0
B11: 2 | C11: 041 | E11: =SUM(E7:E10) -> 125 | I11: Single High-Pressure Sodium Vapor | J11: Wood Pole | K11: 100W | L11: 431 | M11: 0 | N11: 9669 | O11: 3 | P11: 0 | Q11: 0 | S11: 0 | T11: 16.68 | U11: 7.88 | V11: 0 | W11: 0 | Y11: 0 | Z11: 161278.92 | AA11: 23.64 | AB11: 0 | AC11: 0 | AE11: 0 | AF11: 9669 | AG11: 3 | AH11: 0 | AI11: 0 | AK11: 0 | AL11: =ROUND(T11*(1+AL$1),2) -> 17.42 | AM11: 8.23 | AN11: 0 | AO11: 0 | AQ11: 0 | AR11: 168433.98 | AS11: 24.69 | AT11: 0 | AU11: 0 | AV11: =SUM(AQ11:AU11)-SUM(Y11:AC11) -> 7156.11 | AW11: 40 | AY11: 15.62 | AZ11: 7.36 | BD11: 0.33 | BF11: 1.59 | BG11: 0.95 | BL11: 0 | BM11: 17.630782 | BN11: 8.329583 | BO11: 0 | BP11: 0 | BR11: 0 | BS11: 2.010782 | BT11: 0.969583 | BU11: 0 | BV11: 0
I12: Single High-Pressure Sodium Vapor | J12: Pedestal Base | K12: 100W | L12: 432 | M12: 0 | N12: 144 | O12: 20 | P12: 0 | Q12: 0 | S12: 0 | T12: 27.49 | U12: 7.88 | V12: 0 | W12: 0 | Y12: 0 | Z12: 3958.56 | AA12: 157.6 | AB12: 0 | AC12: 0 | AE12: 0 | AF12: 144 | AG12: 20 | AH12: 0 | AI12: 0 | AK12: 0 | AL12: =ROUND(T12*(1+AL$1),2) -> 28.71 | AM12: 8.23 | AN12: 0 | AO12: 0 | AQ12: 0 | AR12: 4134.24 | AS12: 164.6 | AT12: 0 | AU12: 0 | AV12: 182.68 | AW12: 40 | AY12: 25.77 | AZ12: 7.36 | BD12: 0.33 | BF12: 2.38 | BG12: 0.95 | BL12: 0 | BM12: 29.057391 | BN12: 8.329583 | BO12: 0 | BP12: 0 | BR12: 0 | BS12: 3.287391 | BT12: 0.969583 | BU12: 0 | BV12: 0
B13: 2 | C13: 042 | D13: 234 | E13: 129 | G13: 042234 | I13: Single High-Pressure Sodium Vapor | J13: Direct Burial | K13: 100W | L13: 433 | M13: 0 | N13: 87 | O13: 10 | P13: 0 | Q13: 0 | S13: 0 | T13: 27.49 | U13: 7.88 | V13: 0 | W13: 0 | Y13: 0 | Z13: 2391.63 | AA13: 78.8 | AB13: 0 | AC13: 0 | AE13: 0 | AF13: 87 | AG13: 10 | AH13: 0 | AI13: 0 | AK13: 0 | AL13: 28.71 | AM13: 8.23 | AN13: 0 | AO13: 0 | AQ13: 0 | AR13: 2497.77 | AS13: 82.3 | AT13: 0 | AU13: 0 | AV13: 109.64 | AW13: 40 | AY13: 25.77 | AZ13: 7.36 | BD13: 0.33 | BF13: 2.38 | BG13: 0.95 | BL13: 0 | BM13: 29.057391 | BN13: 8.329583 | BO13: 0 | BP13: 0 | BR13: 0 | BS13: 3.287391 | BT13: 0.969583 | BU13: 0 | BV13: 0
B14: 2 | C14: 042 | D14: 421 | E14: 9 | G14: 042421 | I14: Single High-Pressure Sodium Vapor | J14: Direct Burial | K14: 100W | L14: 434 | M14: =SUMIF($G:$G,TEXT(M$3,"000")&TEXT($L14,"000"),$E:$E) -> 0 | N14: 2629 | O14: 0 | P14: 0 | Q14: 0 | S14: 0 | T14: 15.5 | U14: 0 | V14: 0 | W14: 0 | Y14: 0 | Z14: 40749.5 | AA14: 0 | AB14: 0 | AC14: 0 | AE14: 0 | AF14: 2629 | AG14: 0 | AH14: 0 | AI14: 0 | AK14: 0 | AL14: 16.19 | AM14: 0 | AN14: 0 | AO14: 0 | AQ14: 0 | AR14: 42563.51 | AS14: 0 | AT14: 0 | AU14: 0 | AV14: 1814.01 | AW14: 40 | AY14: 14.52 | BD14: 0.33 | BF14: 1.5 | BL14: 0 | BM14: 16.385899 | BN14: 0 | BO14: 0 | BP14: 0 | BR14: 0 | BS14: 1.865899 | BT14: 0 | BU14: 0 | BV14: 0
B15: 2 | C15: 042 | D15: 431 | E15: 9669 | G15: 042431 | I15: Single High-Pressure Sodium Vapor | J15: No Pole / Dusk to Dawn (046) | K15: 100W | L15: 435 | M15: 0 | N15: 2580 | O15: 44 | P15: 0 | Q15: 75 | S15: 0 | T15: 14.7 | U15: 7.88 | V15: 0 | W15: 5.27 | Y15: 0 | Z15: 37926 | AA15: 346.72 | AB15: 0 | AC15: 395.25 | AE15: 0 | AF15: 2580 | AG15: 44 | AH15: 0 | AI15: 75 | AK15: 0 | AL15: 15.35 | AM15: 8.23 | AN15: 0 | AO15: 5.5 | AQ15: 0 | AR15: 39603 | AS15: 362.12 | AT15: 0 | AU15: 412.5 | AV15: 1709.65 | AW15: 40 | AY15: 13.76 | AZ15: 7.36 | BB15: 4.9 | BD15: 0.33 | BF15: 1.45 | BG15: 0.95 | BI15: 0.76 | BL15: 0 | BM15: 15.535735 | BN15: 8.329583 | BO15: 0 | BP15: 5.56655 | BR15: 0 | BS15: 1.775735 | BT15: 0.969583 | BU15: 0 | BV15: 0.66655
B16: 2 | C16: 042 | D16: 431L | E16: 0 | G16: =IF(OR(ISBLANK(C16),ISBLANK(D16)),"",TEXT(C16,"000")&TEXT(D16,"000")) -> 042431L | I16: Single High-Pressure Sodium Vapor | J16: Developer Contributed | K16: 100W | L16: 436 | M16: 0 | N16: 603 | O16: 0 | P16: 0 | Q16: 0 | S16: 0 | T16: 16.68 | U16: 0 | V16: 0 | W16: 0 | Y16: 0 | Z16: 10058.04 | AA16: 0 | AB16: 0 | AC16: 0 | AE16: 0 | AF16: 603 | AG16: 0 | AH16: 0 | AI16: 0 | AK16: 0 | AL16: =AL11 -> 17.42 | AM16: 0 | AN16: 0 | AO16: 0 | AQ16: 0 | AR16: 10504.26 | AS16: 0 | AT16: 0 | AU16: 0 | AV16: 446.22 | AW16: 40 | AY16: 15.62 | BD16: 0.33 | BF16: 1.59 | BL16: 0 | BM16: 17.630782 | BN16: 0 | BO16: 0 | BP16: 0 | BR16: 0 | BS16: 2.010782 | BT16: 0 | BU16: 0 | BV16: 0
B17: 2 | C17: 042 | D17: 432 | E17: 144 | G17: 042432 | I17: Decorative Sodium Vapor | J17: No Pole | K17: Kim Light 100W | L17: 438 | M17: 0 | N17: 14 | O17: 0 | P17: 0 | Q17: 0 | S17: 0 | T17: 15.5 | U17: 0 | V17: 0 | W17: 0 | Y17: 0 | Z17: 217 | AA17: 0 | AB17: 0 | AC17: 0 | AE17: 0 | AF17: 14 | AG17: 0 | AH17: 0 | AI17: 0 | AK17: 0 | AL17: =ROUND(T17*(1+AL$1),2) -> 16.19 | AM17: 0 | AN17: 0 | AO17: 0 | AQ17: 0 | AR17: 226.66 | AS17: 0 | AT17: 0 | AU17: 0 | AV17: 9.66 | AW17: 40 | AY17: 14.52 | BD17: 0.33 | BF17: 1.5 | BL17: 0 | BM17: 16.385899 | BN17: 0 | BO17: 0 | BP17: 0 | BR17: 0 | BS17: 1.865899 | BT17: 0 | BU17: 0 | BV17: 0
B18: 2 | C18: 042 | D18: 433 | E18: 87 | G18: 042433 | I18: Double High-Pressure Sodium Vapor | J18: Wood Pole | K18: 100W | L18: 441 | M18: 0 | N18: 25 | O18: 0 | P18: 0 | Q18: 0 | S18: 0 | T18: 30.2 | U18: 13.84 | V18: 0 | W18: 0 | Y18: 0 | Z18: 755 | AA18: 0 | AB18: 0 | AC18: 0 | AE18: 0 | AF18: 25 | AG18: 0 | AH18: 0 | AI18: 0 | AK18: 0 | AL18: 31.54 | AM18: 14.46 | AN18: 0 | AO18: 0 | AQ18: 0 | AR18: 788.5 | AS18: 0 | AT18: 0 | AU18: 0 | AV18: 33.5 | AW18: 80 | AY18: 28.28 | AZ18: 12.91 | BD18: 0.66 | BF18: 2.95 | BG18: =ROUND((U18*$BE$2)+$BD18-AZ18,2) -> 1.76 | BL18: 0 | BM18: 31.921634 | BN18: 14.634966 | BO18: 0 | BP18: 0 | BR18: 0 | BS18: 3.641634 | BT18: 1.724966 | BU18: 0 | BV18: 0
B19: 2 | C19: 042 | D19: 434 | E19: 2629 | G19: 042434 | I19: Double High-Pressure Sodium Vapor | J19: Pedestal Base | K19: 100W | L19: 442 | M19: 0 | N19: 1 | O19: 0 | P19: 0 | Q19: 0 | R19: =IF(SUM(M19:Q19)>0,0,1) -> 0 | S19: 0 | T19: 42.79 | U19: 0 | V19: 0 | W19: 0 | Z19: 42.79 | AC19: 0 | AE19: =SUMIF($G:$G,TEXT(AE$3,"000")&TEXT($L19,"000"),$E:$E) -> 0 | AF19: =SUMIF($G:$G,TEXT(AF$3,"000")&TEXT($L19,"000"),$E:$E) -> 1 | AG19: =SUMIF($G:$G,TEXT(AG$3,"000")&TEXT($L19,"000"),$E:$E) -> 0 | AH19: =SUMIF($G:$G,TEXT(AH$3,"000")&TEXT($L19,"000"),$E:$E) -> 0 | AI19: =SUMIF($G:$G,TEXT(AI$3,"000")&TEXT($L19,"000"),$E:$E) -> 0 | AK19: =ROUND(S19*(1+AK$1),2) -> 0 | AL19: =ROUND(T19*(1+AL$1),2) -> 44.69 | AM19: =ROUND(U19*(1+AM$1),2) -> 0 | AN19: =ROUND(V19*(1+AN$1),2) -> 0 | AO19: =ROUND(W19*(1+AO$1),2) -> 0 | AR19: 44.69 | AW19: 80 | AY19: 40.1 | BD19: =ROUND(AW19*$BD$2,2)+ROUND(AW19*$BD$1,2) -> 0.66 | BF19: =ROUND((T19*$BE$2)+$BD19-AY19,2) -> 3.87 | BL19: =AK19*$BL$1 -> 0 | BM19: =AL19*$BL$1 -> 45.230749 | BN19: =AM19*$BL$1 -> 0 | BO19: =AN19*$BL$1 -> 0 | BP19: =AO19*$BL$1 -> 0 | BR19: =BL19-AX19 -> 0 | BS19: =BM19-AY19 -> 5.130749 | BT19: =BN19-AZ19 -> 0 | BU19: =BO19-BA19 -> 0 | BV19: =BP19-BB19 -> 0
B20: 2 | C20: 042 | D20: 435 | E20: 2580 | G20: 042435 | I20: Decorative Sodium Vapor | J20: Direct Burial | K20: Granville 100W | L20: 474 | M20: 0 | N20: 216 | O20: 0 | P20: 0 | Q20: 0 | S20: 0 | T20: 27 | U20: 0 | V20: 0 | W20: 0 | Y20: 0 | Z20: 5832 | AA20: 0 | AB20: 0 | AC20: 0 | AE20: 0 | AF20: 216 | AG20: 0 | AH20: 0 | AI20: 0 | AK20: 0 | AL20: 28.2 | AM20: 0 | AN20: 0 | AO20: 0 | AQ20: 0 | AR20: 6091.2 | AS20: 0 | AT20: 0 | AU20: 0 | AV20: 259.2 | AW20: 40 | AY20: 25.32 | BD20: 0.33 | BF20: 2.34 | BL20: 0 | BM20: 28.54122 | BN20: 0 | BO20: 0 | BP20: 0 | BR20: 0 | BS20: 3.22122 | BT20: 0 | BU20: 0 | BV20: 0
B21: 2 | C21: 042 | D21: 435L | E21: 0 | G21: =IF(OR(ISBLANK(C21),ISBLANK(D21)),"",TEXT(C21,"000")&TEXT(D21,"000")) -> 042435L | I21: Decorative Sodium Vapor | J21: No Pole | K21: Granville 100W | L21: 475 | M21: 0 | N21: 1 | O21: 0 | P21: 0 | Q21: 0 | R21: =IF(SUM(M21:Q21)>0,0,1) -> 0 | S21: 0 | T21: 20.73 | U21: 0 | V21: 0 | W21: 0 | Z21: 20.73 | AE21: =SUMIF($G:$G,TEXT(AE$3,"000")&TEXT($L21,"000"),$E:$E) -> 0 | AF21: =SUMIF($G:$G,TEXT(AF$3,"000")&TEXT($L21,"000"),$E:$E) -> 1 | AG21: =SUMIF($G:$G,TEXT(AG$3,"000")&TEXT($L21,"000"),$E:$E) -> 0 | AH21: =SUMIF($G:$G,TEXT(AH$3,"000")&TEXT($L21,"000"),$E:$E) -> 0 | AI21: =SUMIF($G:$G,TEXT(AI$3,"000")&TEXT($L21,"000"),$E:$E) -> 0 | AK21: =ROUND(S21*(1+AK$1),2) -> 0 | AL21: =ROUND(T21*(1+AL$1),2) -> 21.65 | AM21: =ROUND(U21*(1+AM$1),2) -> 0 | AN21: =ROUND(V21*(1+AN$1),2) -> 0 | AO21: =ROUND(W21*(1+AO$1),2) -> 0 | AR21: 21.65 | AW21: 40 | AY21: 19.42 | BD21: =ROUND(AW21*$BD$2,2)+ROUND(AW21*$BD$1,2) -> 0.33 | BF21: =ROUND((T21*$BE$2)+$BD21-AY21,2) -> 1.89 | BL21: =AK21*$BL$1 -> 0 | BM21: =AL21*$BL$1 -> 21.911965 | BN21: =AM21*$BL$1 -> 0 | BO21: =AN21*$BL$1 -> 0 | BP21: =AO21*$BL$1 -> 0 | BR21: =BL21-AX21 -> 0 | BS21: =BM21-AY21 -> 2.491965 | BT21: =BN21-AZ21 -> 0 | BU21: =BO21-BA21 -> 0 | BV21: =BP21-BB21 -> 0
B22: 2 | C22: 042 | D22: 436 | E22: 603 | G22: 042436 | I22: Decorative Sodium Vapor (Capital Only) | J22: Direct Burial | K22: Granville 100W | L22: 478 | M22: 0 | N22: 30 | O22: 0 | P22: 0 | Q22: 0 | S22: 0 | T22: 19.11 | U22: 0 | V22: 0 | W22: 0 | Y22: 0 | Z22: 573.3 | AA22: 0 | AB22: 0 | AC22: 0 | AE22: 0 | AF22: 30 | AG22: 0 | AH22: 0 | AI22: 0 | AK22: =ROUND(S22*(1+AK$1),2) -> 0 | AL22: 19.96 | AM22: 0 | AN22: 0 | AO22: 0 | AQ22: 0 | AR22: 598.8 | AS22: 0 | AT22: 0 | AU22: 0 | AV22: 25.5 | AY22: 17.95 | BD22: 0 | BF22: =ROUND((T22*$BE$2)+$BD22-AY22,2) -> 1.39 | BL22: 0 | BM22: 20.201516 | BN22: 0 | BO22: 0 | BP22: 0 | BR22: 0 | BS22: 2.251516 | BT22: 0 | BU22: 0 | BV22: 0
B23: 2 | C23: 042 | D23: 438 | E23: 14 | G23: 042438 | I23: Decorative Sodium Vapor | J23: Direct Burial | K23: Post Top 100W | L23: 484 | M23: 0 | N23: 161 | O23: 0 | P23: 0 | Q23: 0 | S23: 0 | T23: 25.7 | U23: 0 | V23: 0 | W23: 0 | Y23: 0 | Z23: 4137.7 | AA23: 0 | AB23: 0 | AC23: 0 | AE23: 0 | AF23: 161 | AG23: 0 | AH23: 0 | AI23: 0 | AK23: 0 | AL23: 26.84 | AM23: 0 | AN23: 0 | AO23: 0 | AQ23: 0 | AR23: 4321.24 | AS23: 0 | AT23: 0 | AU23: 0 | AV23: 183.54 | AW23: 40 | AY23: 24.09 | BD23: 0.33 | BF23: 2.25 | BL23: 0 | BM23: 27.164764 | BN23: 0 | BO23: 0 | BP23: 0 | BR23: 0 | BS23: 3.074764 | BT23: 0 | BU23: 0 | BV23: 0
B24: 2 | C24: 042 | D24: 441 | E24: 25 | G24: 042441 | I24: LED (Dusk to Dawn) | J24: Dusk to Dawn | K24: 100W | L24: 495 | M24: =SUMIF($G:$G,TEXT(M$3,"000")&TEXT($L24,"000"),$E:$E) -> 0 | N24: 0 | O24: 0 | P24: 0 | Q24: 44 | S24: 0 | T24: 0 | U24: 0 | V24: 0 | W24: 5.27 | Y24: 0 | Z24: 0 | AA24: 0 | AB24: 0 | AC24: 231.88 | AE24: =SUMIF($G:$G,TEXT(AE$3,"000")&TEXT($L24,"000"),$E:$E) -> 0 | AF24: 0 | AG24: 0 | AH24: 0 | AI24: 44 | AK24: 0 | AL24: 0 | AM24: 0 | AN24: 0 | AO24: 5.5 | AQ24: 0 | AR24: 0 | AS24: 0 | AT24: 0 | AU24: 242 | AW24: 49 | BB24: 4.89 | BD24: 0.4 | BI24: =ROUND((W24*$BE$2)+$BD24-BB24,2) -> 0.84 | BL24: =AK24*$BL$1 -> 0 | BM24: 0 | BN24: 0 | BO24: 0 | BP24: 5.56655 | BR24: =BL24-AX24 -> 0 | BS24: 0 | BT24: 0 | BU24: 0 | BV24: 0.67655
B25: 2 | C25: 042 | D25: 441L | E25: 0 | G25: =IF(OR(ISBLANK(C25),ISBLANK(D25)),"",TEXT(C25,"000")&TEXT(D25,"000")) -> 042441L | I25: LED (Dusk to 11:00) | J25: Dusk to 11 PM | K25: 100W | L25: 499 | M25: 0 | N25: 0 | O25: 0 | P25: 0 | Q25: 45 | S25: 0 | T25: 0 | U25: 0 | V25: 0 | W25: 2.92 | Y25: 0 | Z25: 0 | AA25: 0 | AB25: 0 | AC25: 131.4 | AE25: 0 | AF25: 0 | AG25: 0 | AH25: 0 | AI25: 45 | AK25: 0 | AL25: 0 | AM25: 0 | AN25: 0 | AO25: 3.05 | AQ25: 0 | AR25: 0 | AS25: 0 | AT25: 0 | AU25: 137.25 | AW25: 21 | BB25: 2.72 | BD25: 0.17 | BI25: 0.41 | BL25: 0 | BM25: 0 | BN25: 0 | BO25: 0 | BP25: 3.086905 | BR25: 0 | BS25: 0 | BT25: 0 | BU25: 0 | BV25: 0.366905
B26: 2 | C26: 042 | D26: 442 | E26: 1 | G26: 042442 | I26: Single Mercury Vapor | J26: Wood Pole | K26: 10000 | L26: 511 | M26: 6 | N26: 0 | O26: 0 | P26: 0 | Q26: 0 | S26: 20.45 | T26: 0 | U26: 0 | V26: 0 | W26: 0 | Y26: 122.7 | Z26: 0 | AA26: 0 | AB26: 0 | AC26: 0 | AE26: 6 | AF26: =N26 -> 0 | AG26: =O26 -> 0 | AH26: =P26 -> 0 | AI26: =Q26 -> 0 | AK26: 21.36 | AL26: 0 | AM26: 0 | AN26: 0 | AO26: 0 | AQ26: 128.16 | AR26: 0 | AS26: 0 | AT26: 0 | AU26: 0 | AV26: 5.46 | AW26: 111 | AX26: 19.09 | BD26: 0.92 | BE26: 2.53 | BL26: 21.618456 | BM26: 0 | BN26: 0 | BO26: 0 | BP26: 0 | BR26: 2.528456 | BS26: 0 | BT26: 0 | BU26: 0 | BV26: 0
B27: 2 | C27: 042 | D27: 474 | E27: 216 | G27: 042474 | I27: Mercury Vapor | J27: Dusk to Dawn | K27: 10000 | L27: 515 | M27: 0 | N27: 0 | O27: 0 | P27: 1 | Q27: 0 | S27: 0 | T27: 0 | U27: 0 | V27: 10.14 | W27: 0 | Y27: 0 | Z27: 0 | AA27: 0 | AB27: 10.14 | AC27: 0 | AE27: =SUMIF($G:$G,TEXT(AE$3,"000")&TEXT($L27,"000"),$E:$E) -> 0 | AF27: =SUMIF($G:$G,TEXT(AF$3,"000")&TEXT($L27,"000"),$E:$E) -> 0 | AG27: =SUMIF($G:$G,TEXT(AG$3,"000")&TEXT($L27,"000"),$E:$E) -> 0 | AH27: =SUMIF($G:$G,TEXT(AH$3,"000")&TEXT($L27,"000"),$E:$E) -> 1 | AI27: =SUMIF($G:$G,TEXT(AI$3,"000")&TEXT($L27,"000"),$E:$E) -> 0 | AK27: 0 | AL27: 0 | AM27: 0 | AN27: 10.59 | AO27: 0 | AQ27: 0 | AR27: 0 | AS27: 0 | AT27: 10.59 | AU27: 0 | AV27: 0.45 | AW27: 111 | BA27: 9.4 | BD27: 0.92 | BH27: =ROUND((V27*$BE$2)+$BD27-BA27,2) -> 1.78 | BL27: 0 | BM27: 0 | BN27: 0 | BO27: 10.718139 | BP27: 0 | BR27: 0 | BS27: 0 | BT27: 0 | BU27: 1.318139 | BV27: 0
B28: 2 | C28: 042 | D28: 475 | E28: 1 | G28: 042475 | I28: Single High-Pressure Sodium Vapor | J28: Pedestal Base | K28: 200W | L28: 522 | M28: 0 | N28: 0 | O28: 0 | P28: 0 | Q28: 0 | S28: 0 | T28: 62.32 | U28: 0 | V28: 0 | W28: 0 | Y28: 0 | Z28: 0 | AA28: 0 | AB28: 0 | AC28: 0 | AE28: 0 | AF28: 0 | AG28: 0 | AH28: 0 | AI28: 0 | AK28: 0 | AL28: 65.09 | AM28: 0 | AN28: 0 | AO28: 0 | AQ28: 0 | AR28: 0 | AS28: 0 | AT28: 0 | AU28: 0 | AV28: 0 | AW28: 85 | AY28: 58.43 | BD28: 0.7 | BF28: 5.34 | BL28: 0 | BM28: 65.877589 | BN28: 0 | BO28: 0 | BP28: 0 | BR28: 0 | BS28: 7.447589 | BT28: 0 | BU28: 0 | BV28: 0
B29: 3 | C29: 042 | D29: 478 | E29: 30 | G29: =IF(OR(ISBLANK(C29),ISBLANK(D29)),"",TEXT(C29,"000")&TEXT(D29,"000")) -> 042478 | I29: Single High-Pressure Sodium Vapor | J29: Wood Pole | K29: 200W | L29: 531 | M29: 0 | N29: 2615 | O29: 2 | P29: 0 | Q29: 0 | S29: 0 | T29: 24.83 | U29: 12.28 | V29: 0 | W29: 0 | Y29: 0 | Z29: 64930.45 | AA29: 24.56 | AB29: 0 | AC29: 0 | AE29: 0 | AF29: 2615 | AG29: 2 | AH29: 0 | AI29: 0 | AK29: 0 | AL29: 25.93 | AM29: 12.83 | AN29: 0 | AO29: 0 | AQ29: 0 | AR29: 67806.95 | AS29: 25.66 | AT29: 0 | AU29: 0 | AV29: 2877.6 | AW29: 85 | AY29: 23.22 | AZ29: 11.45 | BD29: 0.7 | BF29: 2.61 | BG29: =ROUND((U29*$BE$2)+$BD29-AZ29,2) -> 1.68 | BL29: 0 | BM29: 26.243753 | BN29: 12.985243 | BO29: 0 | BP29: 0 | BR29: 0 | BS29: 3.023753 | BT29: 1.535243 | BU29: 0 | BV29: 0
B30: 2 | C30: 042 | D30: 484 | E30: 161 | G30: 042484 | I30: Single High-Pressure Sodium Vapor | J30: Pedestal Base | K30: 200W | L30: 532 | M30: 0 | N30: 881 | O30: 107 | P30: 0 | Q30: 0 | S30: 0 | T30: 36.78 | U30: 12.28 | V30: 0 | W30: 0 | Y30: 0 | Z30: 32403.18 | AA30: 1313.96 | AB30: 0 | AC30: 0 | AE30: 0 | AF30: 881 | AG30: 107 | AH30: 0 | AI30: 0 | AK30: 0 | AL30: 38.42 | AM30: 12.83 | AN30: 0 | AO30: 0 | AQ30: 0 | AR30: 33848.02 | AS30: 1372.81 | AT30: 0 | AU30: 0 | AV30: 1503.69 | AW30: 85 | AY30: 34.45 | AZ30: 11.45 | BD30: 0.7 | BF30: 3.48 | BG30: 1.68 | BL30: 0 | BM30: 38.884882 | BN30: 12.985243 | BO30: 0 | BP30: 0 | BR30: 0 | BS30: 4.434882 | BT30: 1.535243 | BU30: 0 | BV30: 0
B31: 2 | C31: 042 | D31: 522 | E31: 0 | G31: 042522 | I31: Single High-Pressure Sodium Vapor | J31: Direct Burial | K31: 200W | L31: 533 | M31: 0 | N31: 61 | O31: 2 | P31: 0 | Q31: 0 | S31: 0 | T31: 36.78 | U31: 12.28 | V31: 0 | W31: 0 | Y31: 0 | Z31: 2243.58 | AA31: 24.56 | AB31: 0 | AC31: 0 | AE31: 0 | AF31: 61 | AG31: 2 | AH31: 0 | AI31: 0 | AK31: 0 | AL31: 38.42 | AM31: 12.83 | AN31: 0 | AO31: 0 | AQ31: 0 | AR31: 2343.62 | AS31: 25.66 | AT31: 0 | AU31: 0 | AV31: 101.14 | AW31: 85 | AY31: 34.45 | AZ31: 11.45 | BD31: 0.7 | BF31: 3.48 | BG31: 1.68 | BL31: 0 | BM31: 38.884882 | BN31: 12.985243 | BO31: 0 | BP31: 0 | BR31: 0 | BS31: 4.434882 | BT31: 1.535243 | BU31: 0 | BV31: 0
B32: 2 | C32: 042 | D32: 531 | E32: 2615 | G32: 042531 | I32: Single High-Pressure Sodium Vapor | J32: No Pole / Dusk to Dawn (046) | K32: 200W | L32: 535 | M32: 0 | N32: 745 | O32: 16 | P32: 0 | Q32: 128 | S32: 0 | T32: 20.44 | U32: 12.28 | V32: 0 | W32: 9.7 | Y32: 0 | Z32: 15227.8 | AA32: 196.48 | AB32: 0 | AC32: 1241.6 | AE32: 0 | AF32: 745 | AG32: 16 | AH32: 0 | AI32: 128 | AK32: 0 | AL32: 21.35 | AM32: 12.83 | AN32: 0 | AO32: 10.13 | AQ32: 0 | AR32: 15905.75 | AS32: 205.28 | AT32: 0 | AU32: 1296.64 | AV32: 741.79 | AW32: 85 | AY32: 19.1 | AZ32: 11.45 | BB32: 9.02 | BD32: 0.7 | BF32: 2.29 | BG32: 1.68 | BI32: 1.5 | BL32: 0 | BM32: 21.608335 | BN32: 12.985243 | BO32: 0 | BP32: 10.252573 | BR32: 0 | BS32: 2.508335 | BT32: 1.535243 | BU32: 0 | BV32: 1.232573
B33: 2 | C33: 042 | D33: 531L | E33: 0 | G33: =IF(OR(ISBLANK(C33),ISBLANK(D33)),"",TEXT(C33,"000")&TEXT(D33,"000")) -> 042531L | I33: Single High-Pressure Sodium Vapor | J33: Developer Contributed | K33: 200W | L33: 536 | M33: 0 | N33: 621 | O33: 0 | P33: 0 | Q33: 0 | S33: 0 | T33: 24.83 | U33: 0 | V33: 0 | W33: 0 | Y33: 0 | Z33: 15419.43 | AA33: 0 | AB33: 0 | AC33: 0 | AE33: 0 | AF33: 621 | AG33: 0 | AH33: 0 | AI33: 0 | AK33: 0 | AL33: =AL29 -> 25.93 | AM33: 0 | AN33: 0 | AO33: 0 | AQ33: 0 | AR33: 16102.53 | AS33: 0 | AT33: 0 | AU33: 0 | AV33: 683.1 | AW33: 85 | AY33: 23.22 | BD33: 0.7 | BF33: 2.61 | BL33: 0 | BM33: 26.243753 | BN33: 0 | BO33: 0 | BP33: 0 | BR33: 0 | BS33: 3.023753 | BT33: 0 | BU33: 0 | BV33: 0
B34: 2 | C34: 042 | D34: 532 | E34: 881 | G34: 042532 | I34: Single High-Pressure Sodium Vapor (Capital Only) | J34: Direct Burial | K34: 200W | L34: 538 | M34: =SUMIF($G:$G,TEXT(M$3,"000")&TEXT($L34,"000"),$E:$E) -> 0 | N34: 20 | O34: 0 | P34: 0 | Q34: 0 | S34: 0 | T34: 24.51 | U34: 0 | V34: 0 | W34: 0 | Y34: 0 | Z34: 490.2 | AA34: 0 | AB34: 0 | AC34: 0 | AE34: 0 | AF34: 20 | AG34: 0 | AH34: 0 | AI34: 0 | AK34: 0 | AL34: =ROUND(T34*(1+AL$1),2) -> 25.6 | AM34: 0 | AN34: 0 | AO34: 0 | AQ34: 0 | AR34: 512 | AS34: 0 | AT34: 0 | AU34: 0 | AW34: 85 | AY34: 22.92 | BD34: 0.7 | BF34: 2.59 | BL34: 0 | BM34: 25.90976 | BN34: 0 | BO34: 0 | BP34: 0 | BR34: 0 | BS34: 2.98976 | BT34: 0 | BU34: 0 | BV34: 0
B35: 2 | C35: 042 | D35: 532L | E35: 0 | G35: =IF(OR(ISBLANK(C35),ISBLANK(D35)),"",TEXT(C35,"000")&TEXT(D35,"000")) -> 042532L | I35: Double High-Pressure Sodium Vapor | J35: Wood Pole | K35: 200W | L35: 541 | M35: 0 | N35: 7 | O35: 0 | P35: 0 | Q35: 0 | S35: 0 | T35: 49.7 | U35: 0 | V35: 0 | W35: 0 | Y35: 0 | Z35: 347.9 | AA35: 0 | AB35: 0 | AC35: 0 | AE35: 0 | AF35: 7 | AG35: 0 | AH35: 0 | AI35: 0 | AK35: 0 | AL35: 51.91 | AM35: 0 | AN35: 0 | AO35: 0 | AQ35: 0 | AR35: 363.37 | AS35: 0 | AT35: 0 | AU35: 0 | AV35: =SUM(AQ35:AU35)-SUM(Y35:AC35) -> 15.47 | AW35: 170 | AY35: 46.48 | BD35: 1.41 | BF35: 5.23 | BL35: 0 | BM35: 52.538111 | BN35: 0 | BO35: 0 | BP35: 0 | BR35: 0 | BS35: 6.058111 | BT35: 0 | BU35: 0 | BV35: 0
B36: 2 | C36: 042 | D36: 533 | E36: 61 | G36: 042533 | I36: Double High-Pressure Sodium Vapor | J36: Pedestal Base | K36: 200W | L36: 542 | M36: 0 | N36: 24 | O36: 0 | P36: 0 | Q36: 0 | S36: 0 | T36: 62.32 | U36: 22.58 | V36: 0 | W36: 0 | Y36: 0 | Z36: 1495.68 | AA36: 0 | AB36: 0 | AC36: 0 | AE36: 0 | AF36: 24 | AG36: 0 | AH36: 0 | AI36: 0 | AK36: 0 | AL36: 65.09 | AM36: 23.58 | AN36: 0 | AO36: 0 | AQ36: 0 | AR36: 1562.16 | AS36: 0 | AT36: 0 | AU36: 0 | AV36: 66.48 | AW36: 170 | AY36: 58.34 | AZ36: 21.02 | BD36: 1.41 | BF36: 6.14 | BG36: 3.24 | BL36: 0 | BM36: 65.877589 | BN36: 23.865318 | BO36: 0 | BP36: 0 | BR36: 0 | BS36: 7.537589 | BT36: 2.845318 | BU36: 0 | BV36: 0
B37: 2 | C37: 042 | D37: 533L | E37: 0 | G37: =IF(OR(ISBLANK(C37),ISBLANK(D37)),"",TEXT(C37,"000")&TEXT(D37,"000")) -> 042533L | I37: Single Mercury Vapor | J37: Wood Pole | K37: 20000 | L37: 611 | M37: 12 | N37: 0 | O37: 0 | P37: 0 | Q37: 0 | S37: 28.98 | T37: 0 | U37: 0 | V37: 0 | W37: 0 | Y37: =IF(AND(M37<>0,S37=0),#VALUE!,M37*S37) -> 347.76 | Z37: 0 | AA37: 0 | AB37: 0 | AC37: 0 | AE37: 12 | AF37: 0 | AG37: 0 | AH37: 0 | AI37: 0 | AK37: 30.27 | AL37: 0 | AM37: 0 | AN37: 0 | AO37: 0 | AQ37: 363.24 | AR37: 0 | AS37: 0 | AT37: 0 | AU37: 0 | AV37: 15.48 | AW37: 182 | AX37: 27.02 | BD37: 1.5 | BE37: 3.81 | BL37: 30.636267 | BM37: 0 | BN37: 0 | BO37: 0 | BP37: 0 | BR37: 3.616267 | BS37: 0 | BT37: 0 | BU37: 0 | BV37: 0
B38: 2 | C38: 042 | D38: 535 | E38: 745 | G38: 042535 | I38: Mercury Vapor | J38: Dusk to Dawn | K38: 20000 | L38: 615 | M38: 0 | N38: 0 | O38: 0 | P38: 354 | Q38: 0 | S38: 0 | T38: 0 | U38: 0 | V38: 15.68 | W38: 0 | Y38: 0 | Z38: 0 | AA38: 0 | AB38: 5550.72 | AC38: 0 | AE38: 0 | AF38: 0 | AG38: 0 | AH38: 354 | AI38: 0 | AK38: 0 | AL38: 0 | AM38: 0 | AN38: 16.38 | AO38: 0 | AQ38: 0 | AR38: 0 | AS38: 0 | AT38: 5798.52 | AU38: 0 | AV38: 247.8 | AW38: 182 | BA38: 14.53 | BD38: =ROUND(AW38*$BD$2,2)+ROUND(AW38*$BD$1,2) -> 1.5 | BH38: 2.84 | BL38: 0 | BM38: 0 | BN38: 0 | BO38: 16.578198 | BP38: 0 | BR38: 0 | BS38: 0 | BT38: 0 | BU38: 2.048198 | BV38: 0
B39: 2 | C39: 043 | D39: 535L | E39: 0 | G39: =IF(OR(ISBLANK(C39),ISBLANK(D39)),"",TEXT(C39,"000")&TEXT(D39,"000")) -> 043535L | I39: Single High-Pressure Sodium Vapor | J39: Wood Pole | K39: 250W | L39: 631 | M39: 0 | N39: 103 | O39: 0 | P39: 0 | Q39: 0 | S39: 0 | T39: 29.29 | U39: 14.29 | V39: 0 | W39: 0 | Y39: 0 | Z39: 3016.87 | AA39: 0 | AB39: 0 | AC39: 0 | AE39: 0 | AF39: 103 | AG39: 0 | AH39: 0 | AI39: 0 | AK39: 0 | AL39: 30.59 | AM39: 14.93 | AN39: 0 | AO39: 0 | AQ39: 0 | AR39: 3150.77 | AS39: 0 | AT39: 0 | AU39: 0 | AV39: 133.9 | AW39: 107 | AY39: 27.39 | AZ39: 13.31 | BD39: 0.88 | BF39: 3.13 | BG39: 2.03 | BL39: 0 | BM39: 30.960139 | BN39: 15.110653 | BO39: 0 | BP39: 0 | BR39: 0 | BS39: 3.570139 | BT39: 1.800653 | BU39: 0 | BV39: 0
B40: 2 | C40: 042 | D40: 536 | E40: 621 | G40: 042536 | I40: Single High-Pressure Sodium Vapor | J40: Pedestal Base | K40: 250W | L40: 632 | M40: 0 | N40: 101 | O40: 5 | P40: 0 | Q40: 0 | S40: 0 | T40: 41.24 | U40: 14.29 | V40: 0 | W40: 0 | Y40: 0 | Z40: 4165.24 | AA40: 71.45 | AB40: 0 | AC40: 0 | AE40: 0 | AF40: 101 | AG40: 5 | AH40: 0 | AI40: 0 | AK40: 0 | AL40: 43.08 | AM40: 14.93 | AN40: 0 | AO40: 0 | AQ40: 0 | AR40: 4351.08 | AS40: 74.65 | AT40: 0 | AU40: 0 | AV40: 189.04 | AW40: 107 | AY40: 38.61 | AZ40: 13.31 | BD40: 0.88 | BF40: 4.01 | BG40: 2.03 | BL40: 0 | BM40: 43.601268 | BN40: 15.110653 | BO40: 0 | BP40: 0 | BR40: 0 | BS40: 4.991268 | BT40: 1.800653 | BU40: 0 | BV40: 0
B41: 2 | C41: 042 | D41: 536L | E41: 0 | G41: =IF(OR(ISBLANK(C41),ISBLANK(D41)),"",TEXT(C41,"000")&TEXT(D41,"000")) -> 042536L | I41: Single High-Pressure Sodium Vapor | J41: Direct Burial | K41: 250W | L41: 633 | M41: 0 | N41: 52 | O41: 0 | P41: 0 | Q41: 0 | S41: 0 | T41: 41.24 | U41: 14.29 | V41: 0 | W41: 0 | Y41: 0 | Z41: 2144.48 | AA41: 0 | AB41: 0 | AC41: 0 | AE41: 0 | AF41: 52 | AG41: 0 | AH41: 0 | AI41: 0 | AK41: 0 | AL41: 43.08 | AM41: 14.93 | AN41: 0 | AO41: 0 | AQ41: 0 | AR41: 2240.16 | AS41: 0 | AT41: 0 | AU41: 0 | AV41: 95.68 | AW41: 107 | AY41: 38.61 | AZ41: 13.31 | BD41: 0.88 | BF41: 4.01 | BG41: 2.03 | BL41: 0 | BM41: 43.601268 | BN41: 15.110653 | BO41: 0 | BP41: 0 | BR41: 0 | BS41: 4.991268 | BT41: 1.800653 | BU41: 0 | BV41: 0
B42: 2 | C42: 042 | D42: 538 | E42: 20 | G42: =IF(OR(ISBLANK(C42),ISBLANK(D42)),"",TEXT(C42,"000")&TEXT(D42,"000")) -> 042538 | I42: Single High-Pressure Sodium Vapor | J42: Dusk to Dawn (046) | K42: 250W | L42: 635 | M42: 0 | N42: 0 | O42: 1 | P42: 0 | Q42: 281 | S42: 0 | T42: 0 | U42: 14.29 | V42: 0 | W42: 11.69 | Y42: 0 | Z42: 0 | AA42: 14.29 | AB42: 0 | AC42: 3284.89 | AE42: 0 | AF42: 0 | AG42: 1 | AH42: 0 | AI42: 281 | AK42: 0 | AL42: 0 | AM42: 14.93 | AN42: 0 | AO42: 12.21 | AQ42: 0 | AR42: 0 | AS42: 14.93 | AT42: 0 | AU42: 3431.01 | AV42: 146.76 | AW42: 107 | AZ42: 13.31 | BB42: 10.86 | BD42: 0.88 | BG42: 2.03 | BI42: 1.85 | BL42: 0 | BM42: 0 | BN42: 15.110653 | BO42: 0 | BP42: 12.357741 | BR42: 0 | BS42: 0 | BT42: 1.800653 | BU42: 0 | BV42: 1.497741
B43: 2 | C43: 042 | D43: 541 | E43: 7 | G43: 042541 | I43: Single High-Pressure Sodium Vapor | J43: Developer Contributed | K43: 250W | L43: 636 | M43: 0 | N43: 22 | O43: 0 | P43: 0 | Q43: 0 | S43: 0 | T43: 29.29 | U43: 0 | V43: 0 | W43: 0 | Y43: 0 | Z43: 644.38 | AA43: 0 | AB43: 0 | AC43: 0 | AE43: 0 | AF43: 22 | AG43: 0 | AH43: 0 | AI43: 0 | AK43: 0 | AL43: =AL39 -> 30.59 | AM43: 0 | AN43: 0 | AO43: 0 | AQ43: 0 | AR43: 672.98 | AS43: 0 | AT43: 0 | AU43: 0 | AV43: 28.6 | AW43: 107 | AY43: 27.39 | BD43: 0.88 | BF43: 3.13 | BL43: 0 | BM43: 30.960139 | BN43: 0 | BO43: 0 | BP43: 0 | BR43: 0 | BS43: 3.570139 | BT43: 0 | BU43: 0 | BV43: 0
B44: 2 | C44: 042 | D44: 542 | E44: 24 | G44: 042542 | I44: Mercury Vapor | J44: Dusk to Dawn | K44: 35000 | L44: 715 | M44: =SUMIF($G:$G,TEXT(M$3,"000")&TEXT($L44,"000"),$E:$E) -> 0 | N44: 0 | O44: 0 | P44: 6 | Q44: 0 | S44: 0 | T44: 0 | U44: 0 | V44: 25.45 | W44: 0 | Y44: 0 | Z44: 0 | AA44: 0 | AB44: 152.7 | AC44: 0 | AE44: 0 | AF44: 0 | AG44: 0 | AH44: 6 | AI44: 0 | AK44: 0 | AL44: =ROUND(T44*(1+AL$1),2) -> 0 | AM44: 0 | AN44: 26.58 | AO44: 0 | AQ44: 0 | AR44: 0 | AS44: 0 | AT44: 159.48 | AU44: 0 | AV44: 6.78 | AW44: 285 | BA44: 23.59 | BD44: 2.35 | BH44: 4.52 | BL44: 0 | BM44: 0 | BN44: 0 | BO44: 26.901618 | BP44: 0 | BR44: 0 | BS44: 0 | BT44: 0 | BU44: 3.311618 | BV44: 0
B45: 2 | C45: 042 | D45: 542L | E45: 0 | G45: =IF(OR(ISBLANK(C45),ISBLANK(D45)),"",TEXT(C45,"000")&TEXT(D45,"000")) -> 042542L | I45: Single High-Pressure Sodium Vapor | J45: Pedestal Base | K45: 310W | L45: 732 | M45: 0 | N45: 0 | O45: 25 | P45: 0 | Q45: 0 | S45: 0 | T45: 0 | U45: 16.75 | V45: 0 | W45: 0 | Y45: 0 | Z45: 0 | AA45: 418.75 | AB45: 0 | AC45: 0 | AE45: 0 | AF45: 0 | AG45: 25 | AH45: 0 | AI45: 0 | AK45: 0 | AL45: 0 | AM45: 17.5 | AN45: 0 | AO45: 0 | AQ45: 0 | AR45: 0 | AS45: 437.5 | AT45: 0 | AU45: 0 | AV45: 18.75 | AW45: 133 | AZ45: 15.58 | BD45: 1.1 | BG45: 2.47 | BL45: 0 | BM45: 0 | BN45: 17.71175 | BO45: 0 | BP45: 0 | BR45: 0 | BS45: 0 | BT45: 2.13175 | BU45: 0 | BV45: 0
B46: 2 | C46: 042 | D46: 631 | E46: 103 | G46: 042631 | I46: Single High-Pressure Sodium Vapor | J46: No Pole / Dusk to Dawn (046) | K46: 310W | L46: 735 | M46: 0 | N46: 0 | O46: 3 | P46: 0 | Q46: 292 | S46: 0 | T46: 0 | U46: 16.75 | V46: 0 | W46: 14.1 | Y46: 0 | Z46: 0 | AA46: 50.25 | AB46: 0 | AC46: 4117.2 | AE46: 0 | AF46: 0 | AG46: 3 | AH46: 0 | AI46: 292 | AK46: 0 | AL46: 0 | AM46: 17.5 | AN46: 0 | AO46: 14.73 | AQ46: 0 | AR46: 0 | AS46: 52.5 | AT46: 0 | AU46: 4301.16 | AV46: 186.21 | AW46: 133 | AZ46: 15.58 | BB46: 13.1 | BD46: 1.1 | BG46: 2.47 | BI46: 2.27 | BL46: 0 | BM46: 0 | BN46: 17.71175 | BO46: 0 | BP46: 14.908233 | BR46: 0 | BS46: 0 | BT46: 2.13175 | BU46: 0 | BV46: 1.808233
B47: 2 | C47: 042 | D47: 632 | E47: 101 | G47: 042632 | I47: Mercury Vapor | J47: Dusk to 1 AM | K47: 55000 | L47: 819 | M47: 0 | N47: 0 | O47: 0 | P47: 34 | Q47: 0 | S47: 0 | T47: 0 | U47: 0 | V47: 24.11 | W47: 0 | Y47: 0 | Z47: 0 | AA47: 0 | AB47: 819.74 | AC47: 0 | AE47: 0 | AF47: 0 | AG47: 0 | AH47: 34 | AI47: 0 | AK47: 0 | AL47: 0 | AM47: 0 | AN47: 25.18 | AO47: 0 | AQ47: 0 | AR47: 0 | AS47: 0 | AT47: 856.12 | AU47: 0 | AV47: 36.38 | AW47: 417 | BA47: 22.2 | BD47: 3.44 | BH47: 5.64 | BL47: 0 | BM47: 0 | BN47: 0 | BO47: 25.484678 | BP47: 0 | BR47: 0 | BS47: 0 | BT47: 0 | BU47: 3.284678 | BV47: 0
B48: 2 | C48: 042 | D48: 633 | E48: 52 | G48: 042633 | I48: Single High-Pressure Sodium Vapor | J48: Wood Pole | K48: 400W | L48: 831 | M48: 0 | N48: 97 | O48: 0 | P48: 0 | Q48: 0 | S48: 0 | T48: 37.1 | U48: 21.51 | V48: 0 | W48: 0 | Y48: 0 | Z48: =IF(AND(N48<>0,T48=0),#VALUE!,N48*T48) -> 3598.7 | AA48: 0 | AB48: 0 | AC48: 0 | AE48: 0 | AF48: 97 | AG48: 0 | AH48: 0 | AI48: 0 | AK48: 0 | AL48: 38.75 | AM48: 22.47 | AN48: 0 | AO48: 0 | AQ48: 0 | AR48: 3758.75 | AS48: 0 | AT48: 0 | AU48: 0 | AV48: 160.05 | AW48: 169 | AY48: 34.66 | AZ48: 20.02 | BD48: 1.4 | BF48: 4.29 | BG48: 3.15 | BL48: 0 | BM48: 39.218875 | BN48: 22.741887 | BO48: 0 | BP48: 0 | BR48: 0 | BS48: 4.558875 | BT48: 2.721887 | BU48: 0 | BV48: 0
B49: 2 | C49: 042 | D49: 636 | E49: 22 | G49: 042636 | I49: Single High-Pressure Sodium Vapor | J49: Pedestal Base | K49: 400W | L49: 832 | M49: 0 | N49: 4 | O49: 31 | P49: 0 | Q49: 0 | S49: 0 | T49: 55 | U49: 21.51 | V49: 0 | W49: 0 | Y49: 0 | Z49: =IF(AND(N49<>0,T49=0),#VALUE!,N49*T49) -> 220 | AA49: 666.81 | AB49: 0 | AC49: 0 | AE49: 0 | AF49: 4 | AG49: 31 | AH49: 0 | AI49: 0 | AK49: 0 | AL49: 57.45 | AM49: 22.47 | AN49: 0 | AO49: 0 | AQ49: 0 | AR49: 229.8 | AS49: 696.57 | AT49: 0 | AU49: 0 | AV49: 39.56 | AW49: 169 | AY49: 51.46 | AZ49: 20.02 | BD49: 1.4 | BF49: 5.61 | BG49: 3.15 | BL49: 0 | BM49: 58.145145 | BN49: 22.741887 | BO49: 0 | BP49: 0 | BR49: 0 | BS49: 6.685145 | BT49: 2.721887 | BU49: 0 | BV49: 0
B50: 2 | C50: 042 | D50: 831 | E50: 97 | G50: 042831 | I50: Single High-Pressure Sodium Vapor | J50: No Pole / Dusk to Dawn (046) | K50: 400W | L50: 835 | M50: 0 | N50: 11 | O50: 13 | P50: 0 | Q50: 80 | S50: 0 | T50: 29.03 | U50: 21.51 | V50: 0 | W50: 17.88 | Y50: 0 | Z50: 319.33 | AA50: 279.63 | AB50: 0 | AC50: 1430.4 | AE50: 0 | AF50: 11 | AG50: 13 | AH50: 0 | AI50: 80 | AK50: 0 | AL50: 30.32 | AM50: 22.47 | AN50: 0 | AO50: 18.68 | AQ50: 0 | AR50: 333.52 | AS50: 292.11 | AT50: 0 | AU50: 1494.4 | AV50: 90.67 | AW50: 169 | AY50: 27.08 | AZ50: 20.02 | BB50: 16.61 | BD50: 1.4 | BF50: 3.7 | BG50: 3.15 | BI50: 2.89 | BL50: 0 | BM50: 30.686872 | BN50: 22.741887 | BO50: 0 | BP50: 18.906028 | BR50: 0 | BS50: 3.606872 | BT50: 2.721887 | BU50: 0 | BV50: 2.296028
B51: 2 | C51: 042 | D51: 832 | E51: 4 | G51: 042832 | I51: Single High-Pressure Sodium Vapor | J51: Developer Contributed | K51: 400W | L51: 836 | M51: 0 | N51: 3 | O51: 0 | P51: 0 | Q51: 0 | S51: 0 | T51: 37.1 | U51: 0 | V51: 0 | W51: 0 | Y51: 0 | Z51: 111.3 | AA51: 0 | AB51: 0 | AC51: 0 | AE51: 0 | AF51: 3 | AG51: 0 | AH51: 0 | AI51: 0 | AK51: 0 | AL51: =AL48 -> 38.75 | AM51: 0 | AN51: 0 | AO51: 0 | AQ51: 0 | AR51: 116.25 | AS51: 0 | AT51: 0 | AU51: 0 | AV51: 4.95 | AW51: 169 | AY51: 34.66 | BD51: 1.4 | BF51: 4.29 | BL51: 0 | BM51: 39.218875 | BN51: 0 | BO51: 0 | BP51: 0 | BR51: 0 | BS51: 4.558875 | BT51: 0 | BU51: 0 | BV51: 0
B52: 2 | C52: 042 | D52: 835 | E52: 11 | G52: =IF(OR(ISBLANK(C52),ISBLANK(D52)),"",TEXT(C52,"000")&TEXT(D52,"000")) -> 042835 | I52: Double High-Pressure Sodium Vapor | J52: Pedestal Base | K52: 400W | L52: 842 | M52: 0 | N52: 3 | O52: 0 | P52: 0 | Q52: 0 | S52: 0 | T52: 97.25 | U52: 0 | V52: 0 | W52: 0 | Y52: 0 | Z52: 291.75 | AA52: 0 | AB52: 0 | AC52: 0 | AE52: 0 | AF52: 3 | AG52: 0 | AH52: 0 | AI52: 0 | AK52: 0 | AL52: =ROUND(T52*(1+AL$1),2) -> 101.58 | AM52: 0 | AN52: 0 | AO52: 0 | AQ52: 0 | AR52: 304.74 | AS52: 0 | AT52: 0 | AU52: 0 | AV52: 12.99 | AW52: 338 | AY52: 90.97 | BD52: 2.78 | BF52: 10.24 | BL52: 0 | BM52: 102.809118 | BN52: 0 | BO52: 0 | BP52: 0 | BR52: 0 | BS52: 11.839118 | BT52: 0 | BU52: 0 | BV52: 0
B53: 2 | C53: 042 | D53: 836 | E53: 3 | G53: 042836 | I53: Double High-Pressure Sodium Vapor | J53: No Pole | K53: 400W | L53: 845 | M53: 0 | N53: 0 | O53: 1 | P53: 0 | Q53: 0 | S53: 0 | T53: 0 | U53: 40.3 | V53: 0 | W53: 0 | Y53: =IF(AND(M53<>0,S53=0),#VALUE!,M53*S53) -> 0 | Z53: 0 | AA53: 40.3 | AB53: 0 | AC53: 0 | AE53: 0 | AF53: 0 | AG53: 1 | AH53: 0 | AI53: 0 | AK53: 0 | AL53: 0 | AM53: 42.09 | AN53: 0 | AO53: 0 | AQ53: 0 | AR53: 0 | AS53: 42.09 | AT53: 0 | AU53: 0 | AV53: 1.79 | AW53: 338 | AZ53: 37.49 | BD53: 2.78 | BG53: 6.08 | BL53: 0 | BM53: 0 | BN53: 42.599289 | BO53: 0 | BP53: 0 | BR53: 0 | BS53: 0 | BT53: 5.109289 | BU53: 0 | BV53: 0
B54: 2 | C54: 042 | D54: 842 | E54: 3 | G54: 042842 | I54: Single High-Pressure Sodium Vapor | J54: Dust to Dawn (046) | K54: 150W | L54: 935 | M54: 0 | N54: 0 | O54: 0 | P54: 0 | Q54: 113 | S54: 0 | T54: 0 | U54: 0 | V54: 0 | W54: 7.24 | Y54: =IF(AND(M54<>0,S54=0),#VALUE!,M54*S54) -> 0 | Z54: 0 | AA54: 0 | AB54: 0 | AC54: 818.12 | AE54: 0 | AF54: 0 | AG54: 0 | AH54: 0 | AI54: 113 | AK54: =ROUND(S54*(1+AK$1),2) -> 0 | AL54: 0 | AM54: =ROUND(U54*(1+AM$1),2) -> 0 | AN54: =ROUND(V54*(1+AN$1),2) -> 0 | AO54: 7.56 | AQ54: =IF(AND(AE54<>0,AK54=0),#VALUE!,AE54*AK54) -> 0 | AR54: 0 | AS54: 0 | AT54: 0 | AU54: 854.28 | AV54: 36.16 | AW54: 62 | BB54: 6.73 | BD54: 0.51 | BI54: 1.11 | BL54: 0 | BM54: 0 | BN54: 0 | BO54: 0 | BP54: 7.651476 | BR54: 0 | BS54: 0 | BT54: 0 | BU54: 0 | BV54: 0.921476
E55: =SUM(E13:E54) -> 21668 | S55: 0 | T55: 0 | U55: 0 | V55: 0 | W55: 0 | AK55: 0 | AL55: 0 | AM55: 0 | AN55: 0 | AO55: =ROUND(W55*(1+AO$1),2) -> 0 | AV55: 0 | BL55: 0 | BM55: 0 | BN55: 0 | BO55: 0 | BP55: 0
M56: =SUM(M4:M55) -> 125 | N56: =SUM(N4:N55) -> 21668 | O56: =SUM(O4:O55) -> 283 | P56: =SUM(P4:P55) -> 484 | Q56: =SUM(Q4:Q55) -> 1099 | S56: 0 | T56: 0 | U56: 0 | V56: 0 | W56: 0 | Y56: =ROUND(SUM(Y4:Y55),2) -> 2163.07 | Z56: =ROUND(SUM(Z4:Z55),2) -> 417128.06 | AA56: =ROUND(SUM(AA4:AA55),2) -> 3707.8 | AB56: =ROUND(SUM(AB4:AB55),2) -> 7148.64 | AC56: =ROUND(SUM(AC4:AC55),2) -> 11803.67 | AE56: =SUM(AE4:AE55) -> 125 | AF56: =SUM(AF4:AF55) -> 21668 | AG56: =SUM(AG4:AG55) -> 283 | AH56: =SUM(AH4:AH55) -> 484 | AI56: =SUM(AI4:AI55) -> 1099 | AK56: 0 | AL56: 0 | AM56: 0 | AN56: 0 | AO56: 0 | AQ56: =ROUND(SUM(AQ4:AQ55),2) -> 2259.44 | AR56: =ROUND(SUM(AR4:AR55),2) -> 435642.11 | AS56: =ROUND(SUM(AS4:AS55),2) -> 3873.47 | AT56: =ROUND(SUM(AT4:AT55),2) -> 7467.66 | AU56: =ROUND(SUM(AU4:AU55),2) -> 12329.14 | BL56: 0 | BM56: 0 | BN56: 0 | BO56: 0 | BP56: 0
B57: 2 | C57: 044 | D57: 431 | E57: 3 | G57: =IF(OR(ISBLANK(C57),ISBLANK(D57)),"",TEXT(C57,"000")&TEXT(D57,"000")) -> 044431 | K57: Total | Q57: =SUM(M56:Q56) -> 23659 | S57: 0 | T57: 0 | U57: 0 | V57: 0 | W57: 0 | AI57: =SUM(AE56:AI56) -> 23659 | AK57: 0 | AL57: 0 | AM57: 0 | AN57: 0 | AO57: 0 | AU57: =SUM(AQ56:AU56) -> 461571.82 | BL57: 0 | BM57: 0 | BN57: 0 | BO57: 0 | BP57: 0
B58: 2 | C58: 044 | D58: 432 | E58: 20 | G58: 044432 | I58: (1) from Street Light Report and Area Light Report, 1/8/15, PDE-E-24-27 | Q58: =ROUND(Q57-E93,0) -> 0 | S58: 0 | T58: 0 | U58: 0 | V58: 0 | W58: 0 | AC58: =SUM(Y56:AC56) -> 441951.24 | AI58: =AI57-Q57 -> 0 | AK58: 0 | AL58: 0 | AM58: 0 | AN58: 0 | AO58: 0 | AU58: =AU57/AC58-1 -> 0.04439535004 | BL58: 0 | BM58: 0 | BN58: 0 | BO58: 0 | BP58: 0
B59: 2 | C59: 044 | D59: 433 | E59: 10 | G59: 044433 | S59: 0 | T59: 0 | U59: 0 | V59: 0 | W59: 0 | Y59: 1997 | Z59: 374802 | AA59: 3723 | AB59: 6114 | AC59: 10594 | AD59: Sept '15 base revenue | AK59: 0 | AL59: 0 | AM59: 0 | AN59: 0 | AO59: 0 | BL59: 0 | BM59: 0 | BN59: 0 | BO59: 0 | BP59: 0
B60: 2 | C60: 044 | D60: 435 | E60: 44 | G60: 044435 | I60: no customer count - taken out of exhibit to limit print range | S60: 0 | T60: 0 | U60: 0 | V60: 0 | W60: 0 | Y60: =Y56-Y59 -> 166.07 | Z60: =Z56-Z59 -> 42326.06 | AA60: =AA56-AA59 -> -15.2 | AB60: =AB56-AB59 -> 1034.64 | AC60: =AC56-AC59 -> 1209.67 | AK60: 0 | AL60: 0 | AM60: 0 | AN60: 0 | AO60: 0 | BL60: 0 | BM60: 0 | BN60: 0 | BO60: 0 | BP60: 0
B61: 2 | C61: 044 | D61: 531 | E61: 2 | G61: 044531 | I61: Single High-Pressure Sodium Vapor | J61: Dusk to 1 AM (046) | K61: 100W | L61: 439 | M61: =SUMIF($G:$G,TEXT(M$3,"000")&TEXT($L61,"000"),$E:$E) -> 0 | N61: =SUMIF($G:$G,TEXT(N$3,"000")&TEXT($L61,"000"),$E:$E) -> 0 | O61: =SUMIF($G:$G,TEXT(O$3,"000")&TEXT($L61,"000"),$E:$E) -> 0 | P61: =SUMIF($G:$G,TEXT(P$3,"000")&TEXT($L61,"000"),$E:$E) -> 0 | Q61: =SUMIF($G:$G,TEXT(Q$3,"000")&TEXT($L61,"000"),$E:$E) -> 0 | R61: =IF(SUM(M61:Q61)>0,0,1) -> 1 | S61: 0 | T61: 0 | U61: 0 | V61: 0 | W61: 0 | AC61: =SUM(Y60:AC60) -> 44721.24 | AE61: =SUMIF($G:$G,TEXT(AE$3,"000")&TEXT($L61,"000"),$E:$E) -> 0 | AF61: =SUMIF($G:$G,TEXT(AF$3,"000")&TEXT($L61,"000"),$E:$E) -> 0 | AG61: =SUMIF($G:$G,TEXT(AG$3,"000")&TEXT($L61,"000"),$E:$E) -> 0 | AH61: =SUMIF($G:$G,TEXT(AH$3,"000")&TEXT($L61,"000"),$E:$E) -> 0 | AI61: =SUMIF($G:$G,TEXT(AI$3,"000")&TEXT($L61,"000"),$E:$E) -> 0 | AK61: 0 | AL61: 0 | AM61: 0 | AN61: 0 | AO61: 0 | BL61: 0 | BM61: 0 | BN61: 0 | BO61: 0 | BP61: 0 | BR61: 0 | BS61: 0 | BT61: 0 | BU61: 0 | BV61: 0
B62: 2 | C62: 044 | D62: 532 | E62: 107 | G62: 044532
B63: 2 | C63: 044 | D63: 533 | E63: 2 | G63: 044533 | I63: Double High-Pressure Sodium Vapor | J63: Direct Burial | K63: 100W | L63: 443 | M63: =SUMIF($G:$G,TEXT(M$3,"000")&TEXT($L63,"000"),$E:$E) -> 0 | N63: 0 | O63: 0 | P63: 0 | Q63: 0 | R63: =IF(SUM(M63:Q63)>0,0,1) -> 1 | S63: 0 | T63: 0 | U63: 0 | V63: 0 | W63: 0 | Y63: Surch Rate | AF63: =SUMIF($G:$G,TEXT(AF$3,"000")&TEXT($L63,"000"),$E:$E) -> 0 | AG63: 0 | AH63: 0 | AI63: 0 | AK63: 0 | AL63: 0 | AM63: 0 | AN63: 0 | AO63: 0 | AQ63: =1+'Lighting summary'!D39 -> 1.01158449 | AT63: Billed | AU63: =AU57*AQ63 -> 466918.8942 | BL63: 0 | BM63: 0 | BN63: 0 | BO63: 0 | BP63: 0 | BR63: 0 | BS63: 0 | BT63: 0 | BU63: 0 | BV63: 0
B64: 2 | C64: 044 | D64: 535 | E64: 16 | G64: 044535 | I64: Double High-Pressure Sodium Vapor | J64: Developer Contributed | K64: 100W | L64: 446 | M64: 0 | N64: 0 | O64: 0 | P64: 0 | Q64: 0 | R64: =IF(SUM(M64:Q64)>0,0,1) -> 1 | S64: 0 | T64: 0 | U64: 0 | V64: 0 | W64: 0 | Y64: =1+'Lighting summary'!I39 -> 1.0121 | AB64: Billed | AC64: =AC58*$Y$64 -> 447298.85 | AF64: 0 | AG64: 0 | AH64: 0 | AI64: 0 | AK64: 0 | AL64: 0 | AM64: 0 | AN64: 0 | AO64: 0 | BL64: 0 | BM64: 0 | BN64: 0 | BO64: 0 | BP64: 0 | BR64: 0 | BS64: 0 | BT64: 0 | BU64: 0 | BV64: 0
B65: 2 | C65: 044 | D65: 632 | E65: 5 | G65: 044632 | AB65: Actual | AC65: =SUM(Y59:AC59) -> 397230 | AD65: Diff is Sch 93
B66: 2 | C66: 044 | D66: 635 | E66: 1 | G66: =IF(OR(ISBLANK(C66),ISBLANK(D66)),"",TEXT(C66,"000")&TEXT(D66,"000")) -> 044635 | AB66: Diff | AC66: =AC65-AC64 -> -50068.85
B67: 2 | C67: 044 | D67: 732 | E67: 25 | G67: =IF(OR(ISBLANK(C67),ISBLANK(D67)),"",TEXT(C67,"000")&TEXT(D67,"000")) -> 044732
B68: 2 | C68: 044 | D68: 735 | E68: 3 | G68: 044735 | I68: Single High-Pressure Sodium Vapor | J68: Dusk to 1 AM (046) | K68: 200W | L68: 539 | M68: =SUMIF($G:$G,TEXT(M$3,"000")&TEXT($L68,"000"),$E:$E) -> 0 | N68: 0 | O68: 0 | P68: 0 | Q68: 0 | R68: =IF(SUM(M68:Q68)>0,0,1) -> 1 | S68: 0 | T68: 0 | U68: 0 | V68: 0 | W68: 0 | AE68: =SUMIF($G:$G,TEXT(AE$3,"000")&TEXT($L68,"000"),$E:$E) -> 0 | AF68: 0 | AG68: 0 | AH68: 0 | AI68: 0 | AK68: 0 | AL68: 0 | AM68: 0 | AN68: 0 | AO68: 0 | BL68: 0 | BM68: 0 | BN68: 0 | BO68: 0 | BP68: 0 | BR68: 0 | BS68: 0 | BT68: 0 | BU68: 0 | BV68: 0
B69: 2 | C69: 044 | D69: 832 | E69: 31 | G69: 044832 | I69: Double High-Pressure Sodium Vapor | J69: Direct Burial | K69: 200W | L69: 543 | M69: 0 | N69: 0 | O69: 0 | P69: 0 | Q69: 0 | R69: 1 | S69: 0 | T69: 0 | U69: 0 | V69: 0 | W69: 0 | AE69: 0 | AF69: 0 | AG69: 0 | AH69: 0 | AI69: 0 | AK69: 0 | AL69: 0 | AM69: 0 | AN69: 0 | AO69: 0 | BL69: 0 | BM69: 0 | BN69: 0 | BO69: 0 | BP69: 0 | BR69: 0 | BS69: 0 | BT69: 0 | BU69: 0 | BV69: 0
B70: 2 | C70: 044 | D70: 835 | E70: 13 | G70: 044835 | I70: Mercury Vapor | J70: Dusk to 1 AM | K70: 20000 | L70: 619 | M70: 0 | N70: 0 | O70: 0 | P70: 0 | Q70: 0 | R70: 1 | S70: 0 | T70: 0 | U70: 0 | V70: 0 | W70: 0 | AE70: 0 | AF70: 0 | AG70: 0 | AH70: 0 | AI70: 0 | AK70: 0 | AL70: 0 | AM70: 0 | AN70: 0 | AO70: 0 | BL70: 0 | BM70: 0 | BN70: 0 | BO70: 0 | BP70: 0 | BR70: 0 | BS70: 0 | BT70: 0 | BU70: =BO70-BA70 -> 0 | BV70: 0
B71: 2 | C71: 044 | D71: 845 | E71: 1 | G71: 044845 | I71: Single High-Pressure Sodium Vapor | J71: Dusk to 1 AM (046) | K71: 250W | L71: 639 | M71: 0 | N71: 0 | O71: 0 | P71: 0 | Q71: 0 | R71: 1 | S71: 0 | T71: 0 | U71: 0 | V71: 0 | W71: 0 | AE71: 0 | AF71: 0 | AG71: 0 | AH71: 0 | AI71: 0 | AK71: 0 | AL71: 0 | AM71: 0 | AN71: 0 | AO71: 0 | BL71: 0 | BM71: 0 | BN71: 0 | BO71: 0 | BP71: 0 | BR71: =BL71-AX71 -> 0 | BS71: 0 | BT71: 0 | BU71: 0 | BV71: 0
E72: =SUM(E57:E71) -> 283 | I72: Double High-Pressure Sodium Vapor | J72: Pedestal Base | K72: 250W | L72: 642 | M72: 0 | N72: 0 | O72: 0 | P72: 0 | Q72: 0 | R72: 1 | S72: 0 | T72: 0 | U72: 0 | V72: 0 | W72: 0 | AE72: 0 | AF72: 0 | AG72: 0 | AH72: 0 | AI72: 0 | AK72: 0 | AL72: 0 | AM72: 0 | AN72: 0 | AO72: 0 | BL72: 0 | BM72: 0 | BN72: 0 | BO72: 0 | BP72: 0 | BR72: 0 | BS72: 0 | BT72: 0 | BU72: 0 | BV72: 0
I73: Single High-Pressure Sodium Vapor | J73: Wood Pole | K73: 310W | L73: 731 | M73: 0 | N73: 0 | O73: 0 | P73: 0 | Q73: 0 | R73: 1 | S73: 0 | T73: 0 | U73: 0 | V73: 0 | W73: 0 | AE73: 0 | AF73: 0 | AG73: 0 | AH73: 0 | AI73: 0 | AK73: 0 | AL73: 0 | AM73: 0 | AN73: 0 | AO73: 0 | BL73: 0 | BM73: 0 | BN73: 0 | BO73: 0 | BP73: 0 | BR73: 0 | BS73: 0 | BT73: 0 | BU73: 0 | BV73: 0
B74: 2 | C74: 045 | D74: 415 | E74: 73 | G74: 045415 | I74: Single High-Pressure Sodium Vapor | J74: Direct Burial | K74: 310W | L74: 733 | M74: 0 | N74: 0 | O74: 0 | P74: 0 | Q74: 0 | R74: =IF(SUM(M74:Q74)>0,0,1) -> 1 | S74: 0 | T74: 0 | U74: 0 | V74: 0 | W74: 0 | AE74: 0 | AF74: 0 | AG74: 0 | AH74: 0 | AI74: 0 | AK74: 0 | AL74: 0 | AM74: 0 | AN74: 0 | AO74: 0 | BL74: 0 | BM74: 0 | BN74: 0 | BO74: 0 | BP74: 0 | BR74: 0 | BS74: 0 | BT74: 0 | BU74: 0 | BV74: 0
B75: 2 | C75: 045 | D75: 419 | E75: 16 | G75: =IF(OR(ISBLANK(C75),ISBLANK(D75)),"",TEXT(C75,"000")&TEXT(D75,"000")) -> 045419 | I75: Single High-Pressure Sodium Vapor | J75: Dusk to 1 AM (046) | K75: 310W | L75: 739 | M75: 0 | N75: 0 | O75: 0 | P75: 0 | Q75: 0 | R75: 1 | S75: 0 | T75: 0 | U75: 0 | V75: 0 | W75: 0 | AE75: 0 | AF75: 0 | AG75: 0 | AH75: 0 | AI75: 0 | AK75: 0 | AL75: 0 | AM75: 0 | AN75: 0 | AO75: 0 | BL75: 0 | BM75: 0 | BN75: 0 | BO75: 0 | BP75: 0 | BR75: =BL75-AX75 -> 0 | BS75: =BM75-AY75 -> 0 | BT75: =BN75-AZ75 -> 0 | BU75: =BO75-BA75 -> 0 | BV75: =BP75-BB75 -> 0
B76: 2 | C76: 045 | D76: 515 | E76: 1 | G76: =IF(OR(ISBLANK(C76),ISBLANK(D76)),"",TEXT(C76,"000")&TEXT(D76,"000")) -> 045515 | I76: Double High-Pressure Sodium Vapor | J76: Pedestal Base | K76: 310W | L76: 742 | M76: 0 | N76: 0 | O76: 0 | P76: 0 | Q76: 0 | R76: 1 | S76: 0 | T76: 0 | U76: 0 | V76: 0 | W76: 0 | AE76: 0 | AF76: 0 | AG76: 0 | AH76: 0 | AI76: 0 | AK76: 0 | AL76: 0 | AM76: 0 | AN76: 0 | AO76: 0 | BL76: 0 | BM76: 0 | BN76: 0 | BO76: 0 | BP76: 0 | BR76: 0 | BS76: 0 | BT76: 0 | BU76: 0 | BV76: 0
B77: 2 | C77: 045 | D77: 615 | E77: 354 | G77: 045615 | I77: Mercury Vapor | J77: Dusk to Dawn | K77: 55000 | L77: 815 | M77: 0 | N77: 0 | O77: 0 | P77: 0 | Q77: 0 | R77: 1 | S77: 0 | T77: 0 | U77: 0 | V77: 0 | W77: 0 | AE77: 0 | AF77: 0 | AG77: 0 | AH77: 0 | AI77: 0 | AK77: 0 | AL77: 0 | AM77: 0 | AN77: 0 | AO77: 0 | BL77: 0 | BM77: 0 | BN77: 0 | BO77: 0 | BP77: 0 | BR77: 0 | BS77: 0 | BT77: 0 | BU77: 0 | BV77: 0
B78: 2 | C78: 045 | D78: 715 | E78: 6 | G78: 045715 | I78: Single High-Pressure Sodium Vapor | J78: Direct Burial | K78: 400W | L78: 833 | M78: =SUMIF($G:$G,TEXT(M$3,"000")&TEXT($L78,"000"),$E:$E) -> 0 | N78: 0 | O78: 0 | P78: 0 | Q78: 0 | R78: 1 | S78: 0 | T78: 0 | U78: 0 | V78: 0 | W78: 0 | AE78: =SUMIF($G:$G,TEXT(AE$3,"000")&TEXT($L78,"000"),$E:$E) -> 0 | AF78: 0 | AG78: 0 | AH78: 0 | AI78: 0 | AK78: 0 | AL78: 0 | AM78: 0 | AN78: 0 | AO78: 0 | BL78: 0 | BM78: 0 | BN78: 0 | BO78: 0 | BP78: 0 | BR78: 0 | BS78: 0 | BT78: 0 | BU78: 0 | BV78: 0
B79: 2 | C79: 045 | D79: 819 | E79: 34 | G79: 045819 | I79: Single Light Emmitting Diode (LED) | J79: Wood Pole | K79: 70W | L79: 421L | M79: 0 | N79: 0 | O79: 0 | P79: 0 | Q79: 0 | R79: 1 | S79: 0 | T79: 27.49 | U79: 0 | V79: 0 | W79: 0 | AE79: 0 | AF79: 0 | AG79: 0 | AH79: 0 | AI79: 0 | AK79: 0 | AL79: =AL10 -> 28.71 | AM79: 0 | AN79: 0 | AO79: 0 | AW79: 26 | AY79: 25.78 | BD79: =ROUND(AW79*$BD$2,2)+ROUND(AW79*$BD$1,2) -> 0.21 | BF79: =ROUND((T79*$BE$2)+$BD79-AY79,2) -> 2.25 | BL79: =AK79*$BL$1 -> 0 | BM79: =AL79*$BL$1 -> 29.057391 | BN79: =AM79*$BL$1 -> 0 | BO79: =AN79*$BL$1 -> 0 | BP79: =AO79*$BL$1 -> 0 | BR79: 0 | BS79: 3.277391 | BT79: 0 | BU79: 0 | BV79: 0
E80: =SUM(E74:E79) -> 484 | I80: Single Light Emmitting Diode (LED) | J80: Wood Pole | K80: 70W | L80: 431L | M80: 0 | N80: 0 | O80: 0 | P80: 0 | Q80: 0 | R80: =IF(SUM(M80:Q80)>0,0,1) -> 1 | S80: 0 | T80: 16.68 | U80: 0 | V80: 0 | W80: 0 | AE80: 0 | AF80: 0 | AG80: 0 | AH80: 0 | AI80: 0 | AK80: =ROUND(S80*(1+AK$1),2) -> 0 | AL80: 17.42 | AM80: =ROUND(U80*(1+AM$1),2) -> 0 | AN80: =ROUND(V80*(1+AN$1),2) -> 0 | AO80: =ROUND(W80*(1+AO$1),2) -> 0 | AW80: 26 | AY80: 15.63 | BD80: =ROUND(AW80*$BD$2,2)+ROUND(AW80*$BD$1,2) -> 0.21 | BF80: =ROUND((T80*$BE$2)+$BD80-AY80,2) -> 1.46 | BL80: =AK80*$BL$1 -> 0 | BM80: =AL80*$BL$1 -> 17.630782 | BN80: =AM80*$BL$1 -> 0 | BO80: =AN80*$BL$1 -> 0 | BP80: =AO80*$BL$1 -> 0 | BR80: =BL80-AX80 -> 0 | BS80: =BM80-AY80 -> 2.000782 | BT80: =BN80-AZ80 -> 0 | BU80: =BO80-BA80 -> 0 | BV80: =BP80-BB80 -> 0
I81: Single Light Emmitting Diode (LED) | J81: Pedestal Base | K81: 70W | L81: 432L | M81: 0 | N81: 0 | O81: 0 | P81: 0 | Q81: 0 | R81: 1 | S81: 0 | T81: 27.49 | U81: 0 | V81: 0 | W81: 0 | AE81: 0 | AF81: 0 | AG81: 0 | AH81: 0 | AI81: 0 | AK81: 0 | AL81: 28.71 | AM81: 0 | AN81: 0 | AO81: 0 | AW81: 26 | AY81: 25.78 | BD81: 0.21 | BF81: 2.25 | BL81: 0 | BM81: 29.057391 | BN81: 0 | BO81: 0 | BP81: 0 | BR81: 0 | BS81: 3.277391 | BT81: 0 | BU81: 0 | BV81: 0
B82: 2 | C82: 046 | D82: 335 | E82: 41 | G82: 046335 | I82: Single Light Emmitting Diode (LED) | J82: Direct Burial | K82: 70W | L82: 433L | M82: 0 | N82: 0 | O82: 0 | P82: 0 | Q82: 0 | R82: 1 | S82: 0 | T82: 27.49 | U82: 0 | V82: 0 | W82: 0 | AE82: 0 | AF82: 0 | AG82: 0 | AH82: 0 | AI82: 0 | AK82: 0 | AL82: 28.71 | AM82: 0 | AN82: 0 | AO82: 0 | AW82: 26 | AY82: 25.78 | BD82: 0.21 | BF82: 2.25 | BL82: 0 | BM82: 29.057391 | BN82: 0 | BO82: 0 | BP82: 0 | BR82: 0 | BS82: 3.277391 | BT82: 0 | BU82: 0 | BV82: 0
B83: 2 | C83: 046 | D83: 435 | E83: 75 | G83: 046435 | I83: Single Light Emmitting Diode (LED) | J83: Direct Burial | K83: 70W | L83: 434L | M83: 0 | N83: 0 | O83: 0 | P83: 0 | Q83: 0 | R83: 1 | S83: 0 | T83: 15.5 | U83: 0 | V83: 0 | W83: 0 | AE83: 0 | AF83: 0 | AG83: 0 | AH83: 0 | AI83: 0 | AK83: 0 | AL83: 16.19 | AM83: 0 | AN83: 0 | AO83: 0 | AW83: 26 | AY83: 14.53 | BD83: 0.21 | BF83: 1.37 | BL83: 0 | BM83: 16.385899 | BN83: 0 | BO83: 0 | BP83: 0 | BR83: 0 | BS83: 1.855899 | BT83: 0 | BU83: 0 | BV83: 0
B84: 2 | C84: 046 | D84: 495 | E84: 44 | G84: =IF(OR(ISBLANK(C84),ISBLANK(D84)),"",TEXT(C84,"000")&TEXT(D84,"000")) -> 046495 | I84: Single Light Emmitting Diode (LED) | J84: No Pole / Dusk to Dawn (046) | K84: 70W | L84: 435L | M84: 0 | N84: 0 | O84: 0 | P84: 0 | Q84: 0 | R84: 1 | S84: 0 | T84: 14.7 | U84: 0 | V84: 0 | W84: 0 | AE84: 0 | AF84: 0 | AG84: 0 | AH84: 0 | AI84: 0 | AK84: 0 | AL84: 15.35 | AM84: 0 | AN84: 0 | AO84: 0 | AW84: 26 | AY84: 13.77 | BD84: 0.21 | BF84: 1.32 | BL84: 0 | BM84: 15.535735 | BN84: 0 | BO84: 0 | BP84: 0 | BR84: 0 | BS84: 1.765735 | BT84: 0 | BU84: 0 | BV84: 0
B85: 2 | C85: 046 | D85: 499 | E85: 45 | G85: 046499 | I85: Single Light Emmitting Diode (LED) | J85: Developer Contributed | K85: 70W | L85: 436L | M85: 0 | N85: 0 | O85: 0 | P85: 0 | Q85: 0 | R85: 1 | S85: 0 | T85: 16.68 | U85: 0 | V85: 0 | W85: 0 | AE85: 0 | AF85: 0 | AG85: 0 | AH85: 0 | AI85: 0 | AK85: 0 | AL85: 17.42 | AM85: 0 | AN85: 0 | AO85: 0 | AW85: 26 | AY85: 15.63 | BD85: 0.21 | BF85: 1.46 | BL85: 0 | BM85: 17.630782 | BN85: 0 | BO85: 0 | BP85: 0 | BR85: 0 | BS85: 2.000782 | BT85: 0 | BU85: 0 | BV85: 0
B86: 2 | C86: 046 | D86: 535 | E86: 128 | G86: 046535 | I86: Decorative Light Emmitting Diode (LED) | J86: No Pole | K86: Kim Light 70W | L86: 438L | M86: 0 | N86: 0 | O86: 0 | P86: 0 | Q86: 0 | R86: 1 | S86: 0 | T86: 15.5 | U86: 0 | V86: 0 | W86: 0 | AE86: 0 | AF86: 0 | AG86: 0 | AH86: 0 | AI86: 0 | AK86: 0 | AL86: 16.19 | AM86: 0 | AN86: 0 | AO86: 0 | AW86: 26 | AY86: 14.53 | BD86: 0.21 | BF86: 1.37 | BL86: 0 | BM86: 16.385899 | BN86: 0 | BO86: 0 | BP86: 0 | BR86: 0 | BS86: 1.855899 | BT86: 0 | BU86: 0 | BV86: 0
B87: 2 | C87: 046 | D87: 635 | E87: 281 | G87: 046635 | I87: Double Light Emmitting Diode (LED) | J87: Wood Pole | K87: 70W | L87: 441L | M87: 0 | N87: 0 | O87: 0 | P87: 0 | Q87: 0 | R87: 1 | S87: 0 | T87: 30.2 | U87: 0 | V87: 0 | W87: 0 | AE87: 0 | AF87: 0 | AG87: 0 | AH87: 0 | AI87: 0 | AK87: 0 | AL87: 31.54 | AM87: 0 | AN87: 0 | AO87: 0 | AW87: 52 | AY87: 28.31 | BD87: 0.43 | BF87: 2.69 | BL87: 0 | BM87: 31.921634 | BN87: 0 | BO87: 0 | BP87: 0 | BR87: 0 | BS87: 3.611634 | BT87: 0 | BU87: 0 | BV87: 0
B88: 2 | C88: 046 | D88: 735 | E88: 292 | G88: 046735 | I88: Decorative Light Emmitting Diode (LED) | J88: Direct Burial | K88: Granville 70W | L88: 474L | M88: =SUMIF($G:$G,TEXT(M$3,"000")&TEXT($L88,"000"),$E:$E) -> 0 | N88: 0 | O88: 0 | P88: 0 | Q88: 0 | R88: 1 | S88: 0 | T88: 27 | U88: 0 | V88: 0 | W88: 0 | AE88: =SUMIF($G:$G,TEXT(AE$3,"000")&TEXT($L88,"000"),$E:$E) -> 0 | AF88: 0 | AG88: 0 | AH88: 0 | AI88: 0 | AK88: 0 | AL88: =AL20 -> 28.2 | AM88: 0 | AN88: 0 | AO88: 0 | AW88: 26 | AY88: 25.33 | BD88: 0.21 | BF88: 2.21 | BL88: 0 | BM88: 28.54122 | BN88: 0 | BO88: 0 | BP88: 0 | BR88: 0 | BS88: 3.21122 | BT88: 0 | BU88: 0 | BV88: 0
B89: 2 | C89: 046 | D89: 835 | E89: 80 | G89: 046835 | I89: Decorative Light Emmitting Diode (LED) | J89: Direct Burial | K89: Post Top 70W | L89: 484L | M89: 0 | N89: 0 | O89: 0 | P89: 0 | Q89: 0 | R89: 1 | S89: 0 | T89: 25.7 | U89: 0 | V89: 0 | W89: 0 | AE89: 0 | AF89: 0 | AG89: 0 | AH89: 0 | AI89: 0 | AK89: 0 | AL89: =AL23 -> 26.84 | AM89: 0 | AN89: 0 | AO89: 0 | AW89: 26 | AY89: 24.1 | BD89: 0.21 | BF89: 2.12 | BL89: 0 | BM89: 27.164764 | BN89: 0 | BO89: 0 | BP89: 0 | BR89: 0 | BS89: 3.064764 | BT89: 0 | BU89: 0 | BV89: 0
B90: 2 | C90: 046 | D90: 935 | E90: 113 | G90: 046935 | I90: Single Light Emmitting Diode (LED) | J90: Pedestal Base | K90: 107W | L90: 522L | M90: 0 | N90: 0 | O90: 0 | P90: 0 | Q90: 0 | R90: 1 | S90: 0 | T90: 62.32 | U90: 0 | V90: 0 | W90: 0 | AE90: 0 | AF90: 0 | AG90: 0 | AH90: 0 | AI90: 0 | AK90: 0 | AL90: =AL28 -> 65.09 | AM90: 0 | AN90: 0 | AO90: 0 | AW90: 39 | AY90: 58.48 | BD90: 0.33 | BF90: 4.92 | BL90: 0 | BM90: 65.877589 | BN90: 0 | BO90: 0 | BP90: 0 | BR90: 0 | BS90: 7.397589 | BT90: 0 | BU90: 0 | BV90: 0
E91: =SUM(E82:E90) -> 1099 | I91: Single Light Emmitting Diode (LED) | J91: Wood Pole | K91: 107W | L91: 531L | M91: 0 | N91: 0 | O91: 0 | P91: 0 | Q91: 0 | R91: 1 | S91: 0 | T91: 24.83 | U91: 0 | V91: 0 | W91: 0 | AE91: 0 | AF91: 0 | AG91: 0 | AH91: 0 | AI91: 0 | AK91: 0 | AL91: =AL29 -> 25.93 | AM91: 0 | AN91: 0 | AO91: 0 | AW91: 39 | AY91: 23.27 | BD91: 0.33 | BF91: 2.19 | BL91: 0 | BM91: 26.243753 | BN91: 0 | BO91: 0 | BP91: 0 | BR91: 0 | BS91: 2.973753 | BT91: 0 | BU91: 0 | BV91: 0
I92: Single Light Emmitting Diode (LED) | J92: Pedestal Base | K92: 107W | L92: 532L | M92: 0 | N92: 0 | O92: 0 | P92: 0 | Q92: 0 | R92: 1 | S92: 0 | T92: 36.78 | U92: 0 | V92: 0 | W92: 0 | AE92: 0 | AF92: 0 | AG92: 0 | AH92: 0 | AI92: 0 | AK92: 0 | AL92: 38.42 | AM92: 0 | AN92: 0 | AO92: 0 | AW92: 39 | AY92: 34.5 | BD92: 0.33 | BF92: 3.06 | BL92: 0 | BM92: 38.884882 | BN92: 0 | BO92: 0 | BP92: 0 | BR92: 0 | BS92: 4.384882 | BT92: 0 | BU92: 0 | BV92: 0
B93: 2 | E93: =E11+E55+E72+E80+E91 -> 23659 | I93: Single Light Emmitting Diode (LED) | J93: Direct Burial | K93: 107W | L93: 533L | M93: 0 | N93: 0 | O93: 0 | P93: 0 | Q93: 0 | R93: 1 | S93: 0 | T93: 36.78 | U93: 0 | V93: 0 | W93: 0 | AE93: 0 | AF93: 0 | AG93: 0 | AH93: 0 | AI93: 0 | AK93: 0 | AL93: 38.42 | AM93: 0 | AN93: 0 | AO93: 0 | AW93: 39 | AY93: 34.5 | BD93: 0.33 | BF93: 3.06 | BL93: 0 | BM93: 38.884882 | BN93: 0 | BO93: 0 | BP93: 0 | BR93: 0 | BS93: 4.384882 | BT93: 0 | BU93: 0 | BV93: 0
I94: Single Light Emmitting Diode (LED) | J94: No Pole / Dusk to Dawn (046) | K94: 107W | L94: 535L | M94: 0 | N94: 0 | O94: 0 | P94: 0 | Q94: 0 | R94: 1 | S94: 0 | T94: 20.44 | U94: 0 | V94: 0 | W94: 0 | AE94: 0 | AF94: 0 | AG94: 0 | AH94: 0 | AI94: 0 | AK94: 0 | AL94: 21.35 | AM94: 0 | AN94: 0 | AO94: 0 | AW94: 39 | AY94: 19.15 | BD94: 0.33 | BF94: 1.87 | BL94: 0 | BM94: 21.608335 | BN94: 0 | BO94: 0 | BP94: 0 | BR94: 0 | BS94: 2.458335 | BT94: 0 | BU94: 0 | BV94: 0
D95: Street Light Summary total, WA | E95: =125+21668+283+484+1099 -> 23659 | I95: Single Light Emmitting Diode (LED) | J95: Developer Contributed | K95: 107W | L95: 536L | M95: 0 | N95: 0 | O95: 0 | P95: 0 | Q95: 0 | R95: 1 | S95: 0 | T95: 24.83 | U95: 0 | V95: 0 | W95: 0 | AE95: 0 | AF95: 0 | AG95: 0 | AH95: 0 | AI95: 0 | AK95: 0 | AL95: 25.93 | AM95: 0 | AN95: 0 | AO95: 0 | AW95: 39 | AY95: 23.27 | BD95: 0.33 | BF95: 2.19 | BL95: 0 | BM95: 26.243753 | BN95: 0 | BO95: 0 | BP95: 0 | BR95: 0 | BS95: 2.973753 | BT95: 0 | BU95: 0 | BV95: 0
D96: Area Light Count, WA | E96: =5122+3712 -> 8834 | I96: Double Light Emmitting Diode (LED) | J96: Wood Pole | K96: 107W | L96: 541L | M96: 0 | N96: 0 | O96: 0 | P96: 0 | Q96: 0 | R96: 1 | S96: 0 | T96: 49.7 | U96: 0 | V96: 0 | W96: 0 | AE96: 0 | AF96: 0 | AG96: 0 | AH96: 0 | AI96: 0 | AK96: 0 | AL96: =AL35 -> 51.91 | AM96: 0 | AN96: 0 | AO96: 0 | AW96: 78 | AY96: 46.58 | BD96: 0.64 | BF96: 4.36 | BL96: 0 | BM96: 52.538111 | BN96: 0 | BO96: 0 | BP96: 0 | BR96: 0 | BS96: 5.958111 | BT96: 0 | BU96: 0 | BV96: 0
E97: =E95+E96 -> 32493 | I97: Double Light Emmitting Diode (LED) | J97: Pedestal Base | K97: 107W | L97: 542L | M97: 0 | N97: 0 | O97: 0 | P97: 0 | Q97: 0 | R97: 1 | S97: 0 | T97: 62.32 | U97: 0 | V97: 0 | W97: 0 | AE97: 0 | AF97: 0 | AG97: 0 | AH97: 0 | AI97: 0 | AK97: 0 | AL97: =AL36 -> 65.09 | AM97: 0 | AN97: 0 | AO97: 0 | AW97: 78 | AY97: 58.44 | BD97: 0.64 | BF97: 5.27 | BL97: 0 | BM97: 65.877589 | BN97: 0 | BO97: 0 | BP97: 0 | BR97: 0 | BS97: 7.437589 | BT97: 0 | BU97: 0 | BV97: 0
E98: =E93+'Area Lts'!E63-E97 -> 0 | I98: Double Light Emmitting Diode (LED) | J98: Pedestal Base | K98: 70W | L98: 442L | M98: 0 | N98: 0 | O98: 0 | P98: 0 | Q98: 0 | R98: =IF(SUM(M98:Q98)>0,0,1) -> 1 | S98: 0 | T98: 42.79 | U98: 0 | V98: 0 | W98: 0 | AE98: 0 | AF98: 0 | AG98: 0 | AH98: 0 | AI98: 0 | AK98: =ROUND(S98*(1+AK$1),2) -> 0 | AL98: =AL19 -> 44.69 | AM98: =ROUND(U98*(1+AM$1),2) -> 0 | AN98: =ROUND(V98*(1+AN$1),2) -> 0 | AO98: =ROUND(W98*(1+AO$1),2) -> 0 | AW98: 39 | AY98: 40.13 | BD98: =ROUND(AW98*$BD$2,2)+ROUND(AW98*$BD$1,2) -> 0.33 | BF98: =ROUND((T98*$BE$2)+$BD98-AY98,2) -> 3.51 | BL98: =AK98*$BL$1 -> 0 | BM98: =AL98*$BL$1 -> 45.230749 | BN98: =AM98*$BL$1 -> 0 | BO98: =AN98*$BL$1 -> 0 | BP98: =AO98*$BL$1 -> 0 | BR98: =BL98-AX98 -> 0 | BS98: =BM98-AY98 -> 5.100749 | BT98: =BN98-AZ98 -> 0 | BU98: =BO98-BA98 -> 0 | BV98: =BP98-BB98 -> 0
I99: Double Light Emmitting Diode (LED) | J99: No Pole | K99: 70W | L99: 475L | M99: 0 | N99: 0 | O99: 0 | P99: 0 | Q99: 0 | R99: 1 | S99: 0 | T99: 20.73 | U99: 0 | V99: 0 | W99: 0 | AE99: 0 | AF99: 0 | AG99: 0 | AH99: 0 | AI99: 0 | AK99: 0 | AL99: =AL21 -> 21.65 | AM99: 0 | AN99: 0 | AO99: 0 | AW99: 39 | AY99: 19.43 | BD99: 0.33 | BF99: 1.88 | BL99: 0 | BM99: 21.911965 | BN99: 0 | BO99: 0 | BP99: 0 | BR99: 0 | BS99: 2.481965 | BT99: 0 | BU99: 0 | BV99: 0
I100: Single Light Emmitting Diode (LED) | J100: Wood Pole | K100: 248W | L100: 831L | R100: 1 | T100: 37.1 | AL100: =AL48 -> 38.75
I101: Single Light Emmitting Diode (LED) | J101: Pedestal Base | K101: 248W | L101: 832L | R101: 1 | T101: 55 | AL101: =AL49 -> 57.45
I102: Single Light Emmitting Diode (LED) | J102: No Pole / Dusk to Dawn (046) | K102: 248W | L102: 835L | R102: 1 | T102: 29.03 | AL102: 30.32
I103: Single Light Emmitting Diode (LED) | J103: Developer Contributed | K103: 248W | L103: 836L | R103: 1 | T103: 37.1 | AL103: 38.75
I104: Double Light Emmitting Diode (LED) | J104: Pedestal Base | K104: 248W | L104: 842L | R104: 1 | T104: 97.25 | AL104: 101.58

Sheet Area Lts
A1: Area Light Summary | I1: WASHINGTON Area Lights | S1: Monthly Rev. | Z1: =SL_RateIncr -> 0 | AC1: % rate increase --> | AD1: ='Lighting summary'!L16 -> 0.0445 | AG1: Monthly Rev. | AJ1: -0.00051 | AK1: 0.00862 | AL1: =-0.00037 -> -0.00037 | AP1: compare input Present Billing Rates to calculated Present Billing Rates
A2: DWWPWMS.AREA_LIGHT_ASMBLY1, as of 1/8/15 | M2: # of Lights(1) | P2: Pres. Rates | S2: at Pres. Rates | V2: # of Lights(1) | AA2: # of Lights | AD2: Prop. Rates | AG2: at Prop. Rates | AK2: Pres. Billing Rates | AP2: ='St Lts'!BE2 -> 1.0121 | AQ2: ='St Lts'!BF2 -> Sch 91 & 93 | AS2: New Billing Rates | AU2: ='Lighting summary'!I39 -> 0.0121 | AV2: Increase
I3: Fixture Type | J3: Pole Facility | K3: Size | L3: Sched | M3: 047 | N3: 048 | P3: 047 | Q3: 048 | S3: 047 | T3: 048 | V3: 047 | W3: 048 | AA3: 047 | AB3: 048 | AD3: 047 | AE3: 048 | AG3: 047 | AH3: 048 | AJ3: kwh | AK3: 047 | AL3: 048 | AM3: Sch 59 | AN3: Sch 93 | AO3: Sch 94 | AP3: 047 | AQ3: 048 | AS3: 047 | AT3: 048 | AV3: 047 | AW3: 048
H4: Monthly | I4: Sodium Vapor | J4: Granville w/16' decorative pole | K4: 100W | L4: HAG | M4: =SUMIF($G:$G,TEXT(M$3,"000")&TEXT($L4,"000"),$E:$E) -> 0 | N4: 0 | P4: 32.36 | Q4: =P4 -> 32.36 | S4: =IF(AND(M4<>0,P4=0),#VALUE!,M4*P4) -> 0 | T4: =IF(AND(N4<>0,Q4=0),#VALUE!,N4*Q4) -> 0 | V4: =SUMIF($G:$G,TEXT(V$3,"000")&TEXT($L4,"000"),$E:$E) -> 0 | W4: 0 | AA4: =M4 -> 0 | AB4: =N4 -> 0 | AD4: =ROUND(P4*(1+AD$1),2) -> 33.8 | AE4: =AD4 -> 33.8 | AG4: =IF(AND(AA4<>0,AD4=0),#VALUE!,AA4*AD4) -> 0 | AH4: =IF(AND(AB4<>0,AE4=0),#VALUE!,AB4*AE4) -> 0 | AJ4: 40 | AK4: 30.34 | AL4: 30.33 | AM4: =ROUND($AJ$1*$AJ4,2) -> -0.02 | AN4: =ROUND($AK$1*$AJ4,2) -> 0.34 | AO4: =ROUND($AL$1*$AJ4,2) -> -0.01 | AP4: =ROUND(P4*$AP$2-AK4+AN4+AO4,2) -> 2.74 | AQ4: =ROUND(Q4*$AP$2-AL4+AM4+AN4+AO4,2) -> 2.73 | AS4: =AD4*$AU$2 -> 0.40898 | AT4: =AE4*$AU$2+AM4 -> 0.38898 | AV4: =AS4-AK4 -> -29.93102 | AW4: =AT4-AL4 -> -29.94102
B5: State | C5: Sched | D5: Rate Sub | E5: # of Lights | H5: kWh's | I5: Sodium Vapor | J5: Floodlight on existing standard | K5: 250W | L5: HAH | M5: 107 | N5: 10 | P5: 23.95 | Q5: =P5 -> 23.95 | S5: 2562.65 | T5: 239.5 | V5: 107 | W5: 10 | AA5: =M5 -> 107 | AB5: 10 | AD5: 25.02 | AE5: =AD5 -> 25.02 | AG5: 2677.14 | AH5: 250.2 | AJ5: 107 | AK5: 22.38 | AL5: 22.35 | AM5: =ROUND($AJ$1*$AJ5,2) -> -0.05 | AN5: =ROUND($AK$1*$AJ5,2) -> 0.92 | AO5: =ROUND($AL$1*$AJ5,2) -> -0.04 | AP5: =ROUND(P5*$AP$2-AK5+AN5+AO5,2) -> 2.74 | AQ5: =ROUND(Q5*$AP$2-AL5+AM5+AN5+AO5,2) -> 2.72 | AS5: =AD5*$AU$2 -> 0.302742 | AT5: =AE5*$AU$2+AM5 -> 0.252742 | AV5: =AS5-AK5 -> -22.077258 | AW5: =AT5-AL5 -> -22.097258
I6: Sodium Vapor | J6: Kim light w/25' fiberglass pole | K6: 100W | L6: HAI | M6: 18 | N6: 3 | P6: 31.26 | Q6: 31.26 | S6: 562.68 | T6: 93.78 | V6: 18 | W6: 3 | AA6: 18 | AB6: 3 | AD6: 32.65 | AE6: =AD6 -> 32.65 | AG6: 587.7 | AH6: 97.95 | AJ6: 40 | AK6: 29.31 | AL6: 29.3 | AM6: -0.02 | AN6: 0.34 | AO6: -0.01 | AP6: 2.66 | AQ6: 2.65 | AS6: =AD6*$AU$2 -> 0.395065 | AT6: 0.375065 | AV6: -28.914935 | AW6: -28.924935
B7: WA | C7: 047 | D7: HAH | E7: 107 | G7: =IF(OR(ISBLANK(C7),ISBLANK(D7)),"",TEXT(C7,"000")&TEXT(D7,"000")) -> 047HAH | H7: =E7*AJ5 -> 11449 | I7: Sodium Vapor | J7: Post Top w/16' decorative pole | K7: 100W | L7: HAP | M7: 0 | N7: 0 | P7: 30.86 | Q7: 30.86 | S7: 0 | T7: 0 | V7: 0 | W7: 0 | AA7: 0 | AB7: 0 | AD7: 32.23 | AE7: 32.23 | AG7: 0 | AH7: 0 | AJ7: 40 | AK7: 28.94 | AL7: 28.93 | AM7: -0.02 | AN7: 0.34 | AO7: -0.01 | AP7: 2.62 | AQ7: 2.61 | AS7: 0.389983 | AT7: 0.369983 | AV7: -28.550017 | AW7: -28.560017
B8: WA | C8: 047 | D8: HAI | E8: 18 | G8: =IF(OR(ISBLANK(C8),ISBLANK(D8)),"",TEXT(C8,"000")&TEXT(D8,"000")) -> 047HAI | H8: =E8*AJ6 -> 720 | I8: Sodium Vapor | J8: on existing standard | K8: 100W | L8: HPA | M8: 641 | N8: 986 | P8: 14.84 | Q8: 14.84 | S8: 9512.44 | T8: 14632.24 | V8: 641 | W8: 986 | AA8: 641 | AB8: 986 | AD8: 15.5 | AE8: 15.5 | AG8: 9935.5 | AH8: 15283 | AJ8: 40 | AK8: 13.89 | AL8: 13.88 | AM8: -0.02 | AN8: 0.34 | AO8: -0.01 | AP8: =ROUND(P8*$AP$2,2)-AK8+AN8+AO8 -> 1.46 | AQ8: 1.45 | AS8: 0.18755 | AT8: 0.16755 | AV8: -13.70245 | AW8: -13.71245
B9: WA | C9: 047 | D9: HPA | E9: 641 | G9: 047HPA | H9: =E9*AJ8 -> 25640 | I9: Sodium Vapor | J9: on existing standard | K9: 200W | L9: HPB | M9: 1258 | N9: 586 | P9: 21.08 | Q9: 21.08 | S9: 26518.64 | T9: 12352.88 | V9: 1258 | W9: 586 | AA9: 1258 | AB9: 586 | AD9: 22.02 | AE9: 22.02 | AG9: 27701.16 | AH9: 12903.72 | AJ9: 85 | AK9: 19.71 | AL9: 19.69 | AM9: -0.04 | AN9: 0.73 | AO9: -0.03 | AP9: 2.33 | AQ9: 2.31 | AS9: 0.266442 | AT9: 0.226442 | AV9: -19.443558 | AW9: -19.463558
B10: WA | C10: 047 | D10: HPB | E10: 1258 | G10: 047HPB | H10: 106930 | I10: Sodium Vapor | J10: on existing standard | K10: 400W | L10: HPC | M10: 152 | N10: 11 | P10: 29.12 | Q10: 29.12 | S10: 4426.24 | T10: 320.32 | V10: 152 | W10: 11 | AA10: 152 | AB10: 11 | AD10: 30.42 | AE10: 30.42 | AG10: 4623.84 | AH10: 334.62 | AJ10: 169 | AK10: 27.16 | AL10: 27.11 | AM10: -0.09 | AN10: =ROUND($AK$1*$AJ10,2) -> 1.46 | AO10: -0.06 | AP10: 3.71 | AQ10: 3.67 | AS10: 0.368082 | AT10: 0.278082 | AV10: -26.791918 | AW10: -26.831918
B11: WA | C11: 047 | D11: HPC | E11: 152 | G11: 047HPC | H11: 25688 | I11: Sodium Vapor | J11: 35' wood pole | K11: 200W | L11: HPD | M11: 1003 | N11: 265 | P11: 29.29 | Q11: 29.29 | S11: 29377.87 | T11: 7761.85 | V11: 1003 | W11: 265 | AA11: 1003 | AB11: 265 | AD11: 30.59 | AE11: 30.59 | AG11: 30681.77 | AH11: 8106.35 | AJ11: 85 | AK11: 27.41 | AL11: 27.39 | AM11: -0.04 | AN11: 0.73 | AO11: -0.03 | AP11: 2.93 | AQ11: 2.91 | AS11: 0.370139 | AT11: 0.330139 | AV11: -27.039861 | AW11: -27.059861
B12: WA | C12: 047 | D12: HPD | E12: 1003 | G12: 047HPD | H12: 85255 | I12: Sodium Vapor | J12: 35' wood pole | K12: 100W | L12: HPE | M12: 423 | N12: 351 | P12: 21.74 | Q12: 21.74 | S12: 9196.02 | T12: 7630.74 | V12: 423 | W12: 351 | AA12: 423 | AB12: 351 | AD12: 22.71 | AE12: 22.71 | AG12: 9606.33 | AH12: 7971.21 | AJ12: 40 | AK12: 20.37 | AL12: 20.36 | AM12: -0.02 | AN12: 0.34 | AO12: -0.01 | AP12: 1.96 | AQ12: 1.95 | AS12: 0.274791 | AT12: 0.254791 | AV12: -20.095209 | AW12: -20.105209
B13: WA | C13: 047 | D13: HPE | E13: 423 | G13: 047HPE | H13: 16920 | I13: Sodium Vapor | J13: 35' wood pole | K13: 400W | L13: HPG | M13: 64 | N13: 7 | P13: 37.42 | Q13: 37.42 | S13: 2394.88 | T13: 261.94 | V13: 64 | W13: 7 | AA13: 64 | AB13: 7 | AD13: 39.09 | AE13: 39.09 | AG13: 2501.76 | AH13: 273.63 | AJ13: 169 | AK13: 34.95 | AL13: 34.9 | AM13: -0.09 | AN13: 1.46 | AO13: -0.06 | AP13: 4.32 | AQ13: 4.28 | AS13: 0.472989 | AT13: 0.382989 | AV13: -34.477011 | AW13: -34.517011
B14: WA | C14: 047 | D14: HPG | E14: 64 | G14: 047HPG | H14: 10816 | I14: Sodium Vapor | J14: 30' steel pole | K14: 200W | L14: HPL | M14: 57 | N14: 12 | P14: 36.78 | Q14: 36.78 | S14: 2096.46 | T14: 441.36 | V14: 57 | W14: 12 | AA14: 57 | AB14: 12 | AD14: 38.42 | AE14: 38.42 | AG14: 2189.94 | AH14: 461.04 | AJ14: 85 | AK14: 34.45 | AL14: 34.43 | AM14: -0.04 | AN14: 0.73 | AO14: -0.03 | AP14: 3.48 | AQ14: 3.46 | AS14: 0.464882 | AT14: 0.424882 | AV14: -33.985118 | AW14: -34.005118
B15: WA | C15: 047 | D15: HPL | E15: 57 | G15: 047HPL | H15: 4845 | I15: Sodium Vapor | J15: 25' steel pole | K15: 200W | L15: HPO | M15: 8 | N15: 13 | P15: 31.85 | Q15: 31.85 | S15: 254.8 | T15: 414.05 | V15: 8 | W15: 13 | AA15: 8 | AB15: 13 | AD15: 33.27 | AE15: 33.27 | AG15: 266.16 | AH15: 432.51 | AJ15: 85 | AK15: 29.82 | AL15: 29.8 | AM15: =ROUND($AJ$1*$AJ15,2) -> -0.04 | AN15: 0.73 | AO15: -0.03 | AP15: 3.12 | AQ15: 3.1 | AS15: 0.402567 | AT15: 0.362567 | AV15: -29.417433 | AW15: -29.437433
B16: WA | C16: 047 | D16: HPO | E16: 8 | G16: =IF(OR(ISBLANK(C16),ISBLANK(D16)),"",TEXT(C16,"000")&TEXT(D16,"000")) -> 047HPO | H16: 680 | I16: Sodium Vapor | J16: 20' fiberglass pole | K16: 100W | L16: HPS | M16: 68 | N16: 160 | P16: 21.74 | Q16: 21.74 | S16: 1478.32 | T16: 3478.4 | V16: 68 | W16: 160 | AA16: 68 | AB16: 160 | AD16: 22.71 | AE16: 22.71 | AG16: 1544.28 | AH16: 3633.6 | AJ16: 40 | AK16: 20.37 | AL16: 20.36 | AM16: -0.02 | AN16: 0.34 | AO16: -0.01 | AP16: 1.96 | AQ16: 1.95 | AS16: 0.274791 | AT16: 0.254791 | AV16: -20.095209 | AW16: -20.105209
B17: WA | C17: 047 | D17: HPS | E17: 68 | G17: 047HPS | H17: 2720 | I17: Sodium Vapor | J17: 30' steel pole w/2 arms | K17: 200W | L17: HPY | M17: 16 | N17: 0 | P17: 62.32 | Q17: 62.32 | S17: 997.12 | T17: 0 | V17: 16 | W17: 0 | AA17: 16 | AB17: 0 | AD17: 65.09 | AE17: 65.09 | AG17: 1041.44 | AH17: 0 | AJ17: 85 | AK17: 58.43 | AL17: 58.41 | AM17: -0.04 | AN17: 0.73 | AO17: -0.03 | AP17: 5.34 | AQ17: 5.32 | AS17: 0.787589 | AT17: 0.747589 | AV17: -57.642411 | AW17: -57.662411
B18: WA | C18: 047 | D18: HPY | E18: 16 | G18: 047HPY | H18: 1360 | I18: Mercury Vapor | J18: on existing standard | K18: 7000 | L18: MVA | M18: 138 | N18: 394 | P18: 17.08 | Q18: 17.08 | S18: 2357.04 | T18: 6729.52 | V18: 138 | W18: 394 | AA18: 138 | AB18: 394 | AD18: 17.84 | AE18: 17.84 | AG18: 2461.92 | AH18: 7028.96 | AJ18: 80 | AK18: 15.96 | AL18: 15.94 | AM18: -0.04 | AN18: 0.69 | AO18: -0.03 | AP18: 1.99 | AQ18: 1.97 | AS18: 0.215864 | AT18: 0.175864 | AV18: -15.744136 | AW18: -15.764136
B19: WA | C19: 047 | D19: MVA | E19: 138 | G19: 047MVA | H19: 11040 | I19: Mercury Vapor | J19: on existing standard | K19: 10000 | L19: MVB | M19: 251 | N19: 426 | P19: 20.45 | Q19: 20.45 | S19: 5132.95 | T19: 8711.7 | V19: 251 | W19: 426 | AA19: 251 | AB19: 426 | AD19: 21.36 | AE19: 21.36 | AG19: 5361.36 | AH19: 9099.36 | AJ19: 111 | AK19: 19.09 | AL19: 19.06 | AM19: =ROUND($AJ$1*$AJ19,2) -> -0.06 | AN19: 0.96 | AO19: -0.04 | AP19: 2.53 | AQ19: 2.5 | AS19: 0.258456 | AT19: 0.198456 | AV19: -18.831544 | AW19: -18.861544
B20: WA | C20: 047 | D20: MVB | E20: 251 | G20: 047MVB | H20: 27861 | I20: Mercury Vapor | J20: on existing standard | K20: 20000 | L20: MVC | M20: 460 | N20: 46 | P20: 29.1 | Q20: 29.1 | S20: 13386 | T20: 1338.6 | V20: 460 | W20: 46 | AA20: 460 | AB20: 46 | AD20: 30.39 | AE20: 30.39 | AG20: 13979.4 | AH20: 1397.94 | AJ20: 182 | AK20: 27.13 | AL20: 27.08 | AM20: -0.09 | AN20: 1.57 | AO20: -0.07 | AP20: 3.82 | AQ20: 3.78 | AS20: 0.367719 | AT20: 0.277719 | AV20: -26.762281 | AW20: -26.802281
B21: WA | C21: 047 | D21: MVC | E21: 460 | G21: 047MVC | H21: 83720 | I21: Mercury Vapor | J21: 30' wood pole | K21: 7000 | L21: MVD | M21: 52 | N21: 165 | P21: 21.31 | Q21: 21.31 | S21: 1108.12 | T21: 3516.15 | V21: 52 | W21: 165 | AA21: 52 | AB21: 165 | AD21: 22.26 | AE21: 22.26 | AG21: 1157.52 | AH21: 3672.9 | AJ21: 80 | AK21: 19.93 | AL21: 19.91 | AM21: -0.04 | AN21: 0.69 | AO21: -0.03 | AP21: 2.3 | AQ21: 2.28 | AS21: 0.269346 | AT21: 0.229346 | AV21: -19.660654 | AW21: -19.680654
B22: WA | C22: 047 | D22: MVD | E22: 52 | G22: 047MVD | H22: 4160 | I22: Mercury Vapor | J22: 30' wood pole | K22: 10000 | L22: MVE | M22: 85 | N22: 135 | P22: 24.74 | Q22: 24.74 | S22: 2102.9 | T22: 3339.9 | V22: 85 | W22: 135 | AA22: 85 | AB22: 135 | AD22: 25.84 | AE22: 25.84 | AG22: 2196.4 | AH22: 3488.4 | AJ22: 111 | AK22: 23.11 | AL22: 23.08 | AM22: -0.06 | AN22: 0.96 | AO22: -0.04 | AP22: 2.85 | AQ22: 2.82 | AS22: 0.312664 | AT22: 0.252664 | AV22: -22.797336 | AW22: -22.827336
B23: WA | C23: 047 | D23: MVE | E23: 85 | G23: 047MVE | H23: 9435 | I23: Mercury Vapor | J23: 30' wood pole | K23: 20000 | L23: MVF | M23: 250 | N23: 29 | P23: 33.4 | Q23: 33.4 | S23: 8350 | T23: 968.6 | V23: 250 | W23: 29 | AA23: 250 | AB23: 29 | AD23: 34.89 | AE23: 34.89 | AG23: 8722.5 | AH23: 1011.81 | AJ23: 182 | AK23: 31.17 | AL23: 31.12 | AM23: -0.09 | AN23: 1.57 | AO23: -0.07 | AP23: 4.13 | AQ23: 4.09 | AS23: 0.422169 | AT23: 0.332169 | AV23: -30.747831 | AW23: -30.787831
B24: WA | C24: 047 | D24: MVF | E24: 250 | G24: 047MVF | H24: 45500 | I24: Mercury Vapor | J24: 25' steel | K24: 7000 | L24: MVG | M24: =SUMIF($G:$G,TEXT(M$3,"000")&TEXT($L24,"000"),$E:$E) -> 0 | N24: 1 | P24: 27.78 | Q24: 27.78 | S24: 0 | T24: 27.78 | V24: =SUMIF($G:$G,TEXT(V$3,"000")&TEXT($L24,"000"),$E:$E) -> 0 | W24: 1 | AA24: 0 | AB24: 1 | AD24: 29.02 | AE24: 29.02 | AG24: 0 | AH24: 29.02 | AJ24: 80 | AK24: 25.99 | AL24: 25.97 | AM24: -0.04 | AN24: 0.69 | AO24: -0.03 | AP24: 2.79 | AQ24: 2.77 | AS24: 0.351142 | AT24: 0.311142 | AV24: -25.638858 | AW24: -25.658858
B25: WA | C25: 047 | D25: MVH | E25: 5 | G25: 047MVH | H25: =E25*AJ25 -> 555 | I25: Mercury Vapor | J25: 25' steel | K25: 10000 | L25: MVH | M25: 5 | N25: 21 | P25: 31.23 | Q25: 31.23 | S25: 156.15 | T25: 655.83 | V25: 5 | W25: 21 | AA25: 5 | AB25: 21 | AD25: 32.62 | AE25: 32.62 | AG25: 163.1 | AH25: 685.02 | AJ25: 111 | AK25: 29.2 | AL25: 29.17 | AM25: -0.06 | AN25: 0.96 | AO25: -0.04 | AP25: 3.33 | AQ25: 3.3 | AS25: 0.394702 | AT25: 0.334702 | AV25: -28.805298 | AW25: -28.835298
B26: WA | C26: 047 | D26: MVI | E26: 2 | G26: 047MVI | H26: =E26*AJ26 -> 364 | I26: Mercury Vapor | J26: 25' steel | K26: 20000 | L26: MVI | M26: 2 | N26: 0 | P26: 39.84 | Q26: 39.84 | S26: 79.68 | T26: 0 | V26: 2 | W26: 0 | AA26: 2 | AB26: 0 | AD26: 41.61 | AE26: 41.61 | AG26: 83.22 | AH26: 0 | AJ26: 182 | AK26: 37.22 | AL26: 37.17 | AM26: -0.09 | AN26: 1.57 | AO26: -0.07 | AP26: 4.6 | AQ26: 4.56 | AS26: 0.503481 | AT26: 0.413481 | AV26: -36.716519 | AW26: -36.756519
B27: WA | C27: 047 | D27: MVJ | E27: 2 | G27: 047MVJ | H27: =E27*AJ27 -> 160 | I27: Mercury Vapor | J27: 30' steel | K27: 7000 | L27: MVJ | M27: 2 | N27: 0 | P27: 29.13 | Q27: 29.13 | S27: 58.26 | T27: 0 | V27: 2 | W27: 0 | AA27: 2 | AB27: 0 | AD27: 30.43 | AE27: 30.43 | AG27: 60.86 | AH27: 0 | AJ27: 80 | AK27: 27.27 | AL27: 27.25 | AM27: -0.04 | AN27: 0.69 | AO27: -0.03 | AP27: 2.87 | AQ27: 2.85 | AS27: 0.368203 | AT27: 0.328203 | AV27: -26.901797 | AW27: -26.921797
B28: WA | C28: 047 | D28: MVK | E28: 2 | G28: 047MVK | H28: =E28*AJ28 -> 222 | I28: Mercury Vapor | J28: 30' steel | K28: 10000 | L28: MVK | M28: 2 | N28: 35 | P28: 32.56 | Q28: 32.56 | S28: 65.12 | T28: 1139.6 | V28: 2 | W28: 35 | AA28: 2 | AB28: 35 | AD28: 34.01 | AE28: 34.01 | AG28: 68.02 | AH28: 1190.35 | AJ28: 111 | AK28: 30.45 | AL28: 30.42 | AM28: -0.06 | AN28: 0.96 | AO28: -0.04 | AP28: 3.42 | AQ28: 3.39 | AS28: 0.411521 | AT28: 0.351521 | AV28: -30.038479 | AW28: -30.068479
B29: WA | C29: 047 | D29: MVL | E29: 6 | G29: 047MVL | H29: =E29*AJ29 -> 1092 | I29: Mercury Vapor | J29: 30' steel | K29: 20000 | L29: MVL | M29: 6 | N29: 0 | P29: 41.18 | Q29: 41.18 | S29: 247.08 | T29: 0 | V29: 6 | W29: 0 | AA29: 6 | AB29: 0 | AD29: 43.01 | AE29: 43.01 | AG29: 258.06 | AH29: 0 | AJ29: 182 | AK29: 38.48 | AL29: 38.43 | AM29: -0.09 | AN29: 1.57 | AO29: -0.07 | AP29: 4.7 | AQ29: 4.66 | AS29: 0.520421 | AT29: 0.430421 | AV29: -37.959579 | AW29: -37.999579
B30: WA | C30: 047 | D30: MVO | E30: 0 | G30: 047MVO | H30: =E30*AJ32 -> 0 | I30: Mercury Vapor | J30: 25' aluminum | K30: 7000 | L30: MVM | M30: 0 | N30: 0 | P30: 30.07 | Q30: 30.07 | S30: 0 | T30: 0 | V30: 0 | W30: 0 | AA30: 0 | AB30: 0 | AD30: 31.41 | AE30: 31.41 | AG30: 0 | AH30: 0 | AJ30: 80 | AK30: 28.15 | AL30: 28.13 | AM30: -0.04 | AN30: 0.69 | AO30: -0.03 | AP30: 2.94 | AQ30: 2.92 | AS30: 0.380061 | AT30: 0.340061 | AV30: -27.769939 | AW30: -27.789939
B31: WA | C31: 047 | D31: PA | E31: 54 | G31: 047PA | H31: =E31*AJ34 -> 0 | I31: Mercury Vapor | J31: 25' aluminum | K31: 10000 | L31: MVN | M31: 0 | N31: 0 | P31: 33.5 | Q31: 33.5 | S31: 0 | T31: 0 | V31: 0 | W31: 0 | AA31: 0 | AB31: 0 | AD31: 34.99 | AE31: 34.99 | AG31: 0 | AH31: 0 | AJ31: 111 | AK31: 31.33 | AL31: 31.3 | AM31: -0.06 | AN31: 0.96 | AO31: -0.04 | AP31: 3.5 | AQ31: 3.47 | AS31: 0.423379 | AT31: 0.363379 | AV31: -30.906621 | AW31: -30.936621
E32: =SUM(E7:E31) -> 5122 | H32: =SUM(H7:H31) -> 477132 | I32: Mercury Vapor | J32: 25' aluminum | K32: 20000 | L32: MVO | M32: 0 | N32: 0 | P32: 42.1 | Q32: 42.1 | S32: 0 | T32: 0 | V32: 0 | W32: 0 | AA32: 0 | AB32: 0 | AD32: 43.97 | AE32: 43.97 | AG32: 0 | AH32: 0 | AJ32: 182 | AK32: 39.34 | AL32: 39.29 | AM32: -0.09 | AN32: 1.57 | AO32: -0.07 | AP32: 4.77 | AQ32: 4.73 | AS32: 0.532037 | AT32: 0.442037 | AV32: -38.807963 | AW32: -38.847963
I33: Mercury Vapor | J33: Special | K33: 7000 | L33: MVV | M33: 0 | N33: 2 | P33: 8.54 | Q33: 8.54 | S33: 0 | T33: 17.08 | V33: 0 | W33: 2 | AA33: 0 | AB33: 2 | AD33: =AD18/2 -> 8.92 | AE33: 8.92 | AG33: 0 | AH33: 17.84 | AJ33: 40 | AK33: =AK18/2 -> 7.98 | AL33: =AL18/2 -> 7.97 | AM33: =ROUND($AJ$1*$AJ33,2) -> -0.02 | AN33: 0.34 | AO33: -0.01 | AP33: 0.99 | AQ33: 0.98 | AS33: 0.107932 | AT33: 0.087932 | AV33: -7.872068 | AW33: -7.882068
B34: WA | C34: 048 | D34: HAH | E34: 10 | G34: 048HAH | H34: =E34*AJ5 -> 1070 | I34: none | J34: 35' wood pole | K34: n/a | L34: PA | M34: 54 | N34: 2 | P34: 6.88 | Q34: 6.88 | S34: 371.52 | T34: 13.76 | V34: 54 | W34: 2 | AA34: 54 | AB34: 2 | AD34: 7.19 | AE34: 7.19 | AG34: 388.26 | AH34: 14.38 | AK34: 6.46 | AL34: 6.46 | AM34: 0 | AN34: 0 | AO34: 0 | AP34: 0.5 | AQ34: 0.5 | AS34: 0.086999 | AT34: 0.086999 | AV34: -6.373001 | AW34: -6.373001
B35: WA | C35: 048 | D35: HAI | E35: 3 | G35: =IF(OR(ISBLANK(C35),ISBLANK(D35)),"",TEXT(C35,"000")&TEXT(D35,"000")) -> 048HAI | H35: =E35*AJ6 -> 120 | I35: none | J35: 55' wood pole | K35: n/a | L35: PB | M35: 0 | N35: 0 | P35: 13.13 | Q35: 13.13 | S35: 0 | T35: 0 | V35: 0 | W35: 0 | AA35: 0 | AB35: 0 | AD35: 13.71 | AE35: 13.71 | AG35: 0 | AH35: 0 | AK35: 12.33 | AL35: 12.33 | AM35: 0 | AN35: 0 | AO35: 0 | AP35: 0.96 | AQ35: 0.96 | AS35: 0.165891 | AT35: 0.165891 | AV35: -12.164109 | AW35: -12.164109
B36: WA | C36: 048 | D36: HPA | E36: 986 | G36: 048HPA | H36: =E36*AJ8 -> 39440 | I36: LED | J36: =J8 -> on existing standard | K36: 70W | L36: HPAL | M36: 0 | N36: 0 | P36: =P8 -> 14.84 | Q36: 14.84 | V36: 0 | W36: 0 | AD36: =AD8 -> 15.5 | AE36: 15.5 | AJ36: 26 | AK36: 13.9 | AL36: 13.89 | AM36: -0.01 | AN36: 0.22 | AO36: -0.01 | AP36: =ROUND(P36*$AP$2-AK36+AN36+AO36,2) -> 1.33 | AQ36: =ROUND(Q36*$AP$2-AL36+AM36+AN36+AO36,2) -> 1.33
B37: WA | C37: 048 | D37: HPB | E37: 586 | G37: 048HPB | H37: 49810 | I37: LED | J37: =J9 -> on existing standard | K37: 107W | L37: HPBL | M37: 0 | N37: 0 | P37: =P9 -> 21.08 | Q37: 21.08 | V37: 0 | W37: 0 | AD37: =AD9 -> 22.02 | AE37: =AE9 -> 22.02 | AJ37: 39 | AK37: 19.76 | AL37: 19.75 | AM37: -0.02 | AN37: 0.34 | AO37: -0.01 | AP37: =ROUND(P37*$AP$2-AK37+AN37+AO37,2) -> 1.91 | AQ37: =ROUND(Q37*$AP$2-AL37+AM37+AN37+AO37,2) -> 1.9
B38: WA | C38: 048 | D38: HPC | E38: 11 | G38: 048HPC | H38: 1859 | I38: LED | J38: =J16 -> 20' fiberglass pole | K38: 70W | L38: HPSL | M38: 0 | N38: 0 | P38: =P16 -> 21.74 | Q38: 21.74 | V38: 0 | W38: 0 | AD38: =AD16 -> 22.71 | AE38: =AE16 -> 22.71 | AJ38: 26 | AK38: 20.38 | AL38: 20.37 | AM38: -0.01 | AN38: 0.22 | AO38: -0.01 | AP38: 1.83 | AQ38: 1.83
B39: WA | C39: 048 | D39: HPD | E39: 265 | G39: 048HPD | H39: 22525 | I39: LED | J39: =J12 -> 35' wood pole | K39: 70W | L39: HPEL | M39: 0 | N39: 0 | P39: =P12 -> 21.74 | Q39: 21.74 | V39: 0 | W39: 0 | AD39: =AD12 -> 22.71 | AE39: =AE12 -> 22.71 | AJ39: 26 | AK39: 20.38 | AL39: 20.37 | AM39: -0.01 | AN39: 0.22 | AO39: -0.01 | AP39: 1.83 | AQ39: 1.83
B40: WA | C40: 048 | D40: HPE | E40: 351 | G40: 048HPE | H40: 14040 | I40: LED | J40: =J11 -> 35' wood pole | K40: 107W | L40: HPDL | M40: 0 | N40: 0 | P40: =P11 -> 29.29 | Q40: 29.29 | V40: 0 | W40: 0 | AD40: =AD11 -> 30.59 | AE40: =AE11 -> 30.59 | AJ40: 39 | AK40: 27.46 | AL40: 27.45 | AM40: -0.02 | AN40: 0.34 | AO40: -0.01 | AP40: 2.51 | AQ40: 2.5
B41: WA | C41: 048 | D41: HPG | E41: 7 | G41: 048HPG | H41: 1183 | I41: LED | J41: =J15 -> 25' steel pole | K41: 107W | L41: HPOL | M41: 0 | N41: 0 | P41: =P15 -> 31.85 | Q41: 31.85 | V41: 0 | W41: 0 | AD41: =AD15 -> 33.27 | AE41: =AE15 -> 33.27 | AJ41: 39 | AK41: 29.87 | AL41: 29.86 | AM41: -0.02 | AN41: 0.34 | AO41: -0.01 | AP41: 2.7 | AQ41: 2.69
B42: WA | C42: 048 | D42: HPL | E42: 12 | G42: =IF(OR(ISBLANK(C42),ISBLANK(D42)),"",TEXT(C42,"000")&TEXT(D42,"000")) -> 048HPL | H42: 1020 | I42: LED | J42: =J14 -> 30' steel pole | K42: 107W | L42: HPLL | M42: 0 | N42: 0 | P42: =P14 -> 36.78 | Q42: 36.78 | V42: 0 | W42: 0 | AD42: =AD14 -> 38.42 | AE42: =AE14 -> 38.42 | AJ42: 39 | AK42: 34.5 | AL42: 34.49 | AM42: -0.02 | AN42: 0.34 | AO42: -0.01 | AP42: 3.06 | AQ42: 3.05
B43: WA | C43: 048 | D43: HPO | E43: 13 | G43: 048HPO | H43: 1105 | I43: LED | J43: =J17 -> 30' steel pole w/2 arms | K43: 107W | L43: HPYL | M43: 0 | N43: 0 | P43: =P17 -> 62.32 | Q43: 62.32 | V43: 0 | W43: 0 | AD43: =AD17 -> 65.09 | AE43: =AE17 -> 65.09 | AJ43: 39 | AK43: 58.48 | AL43: 58.47 | AM43: -0.02 | AN43: 0.34 | AO43: -0.01 | AP43: 4.92 | AQ43: 4.91
B44: WA | C44: 048 | D44: HPS | E44: 160 | G44: 048HPS | H44: 6400 | I44: LED | J44: =J4 -> Granville w/16' decorative pole | K44: 70W | L44: HAGL | M44: 0 | N44: 0 | P44: =P4 -> 32.36 | Q44: 32.36 | V44: 0 | W44: 0 | AD44: =AD4 -> 33.8 | AE44: =AE4 -> 33.8 | AJ44: 26 | AK44: 30.35 | AL44: 30.34 | AM44: -0.01 | AN44: 0.22 | AO44: -0.01 | AP44: 2.61 | AQ44: 2.61
B45: WA | C45: 048 | D45: MVA | E45: 394 | G45: 048MVA | H45: =E45*AJ18 -> 31520 | I45: LED | J45: =J7 -> Post Top w/16' decorative pole | K45: 70W | L45: HAPL | M45: 0 | N45: 0 | P45: =P7 -> 30.86 | Q45: 30.86 | V45: 0 | W45: 0 | AD45: =AD7 -> 32.23 | AE45: =AE7 -> 32.23 | AJ45: 26 | AK45: 28.95 | AL45: 28.94 | AM45: -0.01 | AN45: 0.22 | AO45: -0.01 | AP45: 2.49 | AQ45: 2.49
B46: WA | C46: 048 | D46: MVB | E46: 426 | G46: 048MVB | H46: 47286 | I46: LED | J46: =J6 -> Kim light w/25' fiberglass pole | K46: 70W | L46: HAIL | M46: 0 | N46: 0 | P46: =P6 -> 31.26 | Q46: 31.26 | V46: 0 | W46: 0 | AD46: =AD6 -> 32.65 | AE46: =AE6 -> 32.65 | AJ46: 26 | AK46: 29.32 | AL46: 29.31 | AM46: -0.01 | AN46: 0.22 | AO46: -0.01 | AP46: 2.53 | AQ46: 2.53
B47: WA | C47: 048 | D47: MVC | E47: 46 | G47: 048MVC | H47: 8372 | I47: LED | J47: =J10 -> on existing standard | K47: 248W | L47: HPCL | P47: =P10 -> 29.12 | Q47: 29.12 | AD47: =AD10 -> 30.42 | AE47: =AE10 -> 30.42
B48: WA | C48: 048 | D48: MVD | E48: 165 | G48: 048MVD | H48: 13200 | I48: LED | J48: =J13 -> 35' wood pole | K48: 248W | L48: HPGL | P48: =P13 -> 37.42 | Q48: 37.42 | AD48: =AD13 -> 39.09 | AE48: =AE13 -> 39.09
B49: WA | C49: 048 | D49: MVE | E49: 135 | G49: 048MVE | H49: 14985 | L49: SLB | M49: 0 | N49: 32 | Q49: 1e-07 | S49: 0 | T49: 3.2e-06 | V49: 0 | W49: 32 | AA49: 0 | AB49: 32 | AD49: =ROUND(P49*(1+$Z$1),2) -> 0 | AE49: 1e-06 | AG49: 0 | AH49: 3.2e-05 | AJ49: 39.36 | AP49: 0 | AQ49: 0 | AS49: 0 | AT49: 1.21e-08 | AV49: 0 | AW49: 1.21e-08
B50: WA | C50: 048 | D50: MVF | E50: 29 | G50: 048MVF | H50: 5278 | L50: SLC | M50: 0 | N50: 19 | Q50: 1e-06 | S50: 0 | T50: 1.9e-05 | V50: 0 | W50: 19 | AA50: 0 | AB50: 19 | AD50: =ROUND(P50*(1+$Z$1),2) -> 0 | AE50: 1e-06 | AG50: 0 | AH50: 1.9e-05 | AJ50: 39.36 | AP50: 0 | AQ50: 0 | AS50: 0 | AT50: 1.21e-08 | AV50: 0 | AW50: 1.21e-08
B51: WA | C51: 048 | D51: MVG | E51: 1 | G51: 048MVG | H51: 80 | L51: SLD | M51: 0 | N51: 1 | Q51: 1e-06 | S51: 0 | T51: 1e-06 | V51: 0 | W51: 1 | AA51: 0 | AB51: 1 | AD51: =ROUND(P51*(1+$Z$1),2) -> 0 | AE51: 1e-06 | AG51: 0 | AH51: 1e-06 | AJ51: 39.36 | AP51: =ROUND(P51*$AP$2-AK51+AN51+AO51,2) -> 0 | AQ51: =ROUND(Q51*$AP$2-AL51+AM51+AN51,2) -> 0 | AS51: 0 | AT51: 1.21e-08 | AV51: 0 | AW51: 1.21e-08
B52: WA | C52: 048 | D52: MVH | E52: 21 | G52: 048MVH | H52: 2331
B53: WA | C53: 048 | D53: MVK | E53: 35 | G53: 048MVK | H53: =E53*AJ28 -> 3885 | M53: =SUM(M5:M52) -> 5122 | N53: =SUM(N5:N52) -> 3712 | S53: =SUM(S5:S52) -> 122792.94 | T53: =SUM(T5:T52) -> 74085.58002 | V53: =SUM(V5:V52) -> 5122 | W53: =SUM(W5:W52) -> 3712 | AA53: =SUM(AA5:AA52) -> 5122 | AB53: =SUM(AB5:AB52) -> 3712 | AG53: =SUM(AG5:AG52) -> 128257.64 | AH53: =SUM(AH5:AH52) -> 77383.81005
B54: WA | C54: 048 | D54: MVN | E54: 0 | G54: 048MVN | H54: =E54*AJ31 -> 0 | K54: Total | N54: =SUM(M53:N53) -> 8834 | T54: =ROUND(SUM(S53:T53),2) -> 196878.52 | W54: =SUM(V53:W53) -> 8834 | AB54: =SUM(AA53:AB53) -> 8834 | AH54: =ROUND(SUM(AG53:AH53),2) -> 205641.45
B55: WA | C55: 048 | D55: MVV | E55: 2 | G55: 048MVV | H55: =E55*AJ33 -> 80 | I55: ='St Lts'!I58 -> (1) from Street Light Report and Area Light Report, 1/8/15, PDE-E-24-27 | N55: =ROUND(N54-E63,0) -> 0 | S55: 111054 | T55: 66161 | Z55: Dec '10 revenue | AB55: =AB54-N54 -> 0 | AH55: =AH54/T54-1 -> 0.04450932484
B56: WA | C56: 048 | D56: PA | E56: 2 | G56: 048PA | S56: =S53-S55 -> 11738.94 | T56: =T53-T55 -> 7924.580023
B57: WA | C57: 048 | D57: PB | E57: 0 | G57: 048PB | T57: =SUM(S56:T56) -> 19663.52002
B58: WA | C58: 048 | D58: SLB | E58: 32 | G58: 048SLB | H58: =E58*AJ49 -> 1259.52 | S58: Surch Rate | T58: =T57/SUM(P55:T55) -> 0.1109585533 | AG58: Surch Rate
B59: WA | C59: 048 | D59: SLC | E59: 19 | G59: 048SLC | H59: =E59*AJ50 -> 747.84 | S59: =+'St Lts'!Y64 -> 1.0121 | AG59: ='St Lts'!AQ63 -> 1.01158449
B60: WA | C60: 048 | D60: SLD | E60: 1 | G60: 048SLD | H60: =E60*AJ51 -> 39.36 | R60: Billed | S60: =S53*$S59 -> 124278.7346 | T60: =T53*$S59 -> 74982.01554 | AF60: Billed | AG60: =AG53*$AG59 -> 129743.4394 | AH60: =AH53*$AG59 -> 78280.26204
E61: =SUM(E34:E60) -> 3712 | H61: =SUM(H34:H60) -> 267635.72 | R61: less Sch 59 | T61: =SUMPRODUCT($N$4:$N$51,$AM$4:$AM$51) -> -133.37 | AF61: less Sch 59/93 | AG61: =SUMPRODUCT($N$4:$N$51,$AN$4:$AN$51) -> 2282.11 | AH61: =SUMPRODUCT($N$4:$N$51,$AM$4:$AM$51) -> -133.37
S62: =S60+S61 -> 124278.7346 | T62: =T60+T61 -> 74848.64554 | AG62: =AG60+AG61 -> 132025.5494 | AH62: =AH60+AH61 -> 78146.89204
B63: WA | E63: =E32+E61 -> 8834 | H63: =H32+H61 -> 744767.72 | T63: =S62+T62 -> 199127.3801 | AH63: =AG62+AH62 -> 210172.4414
X66: Monthly Increase (Decrease)
X67: Annual Increase (Decrease)

Sheet Capital Recovery Factor Calc (hidden)
A5: Avista | F5: Avista | L5: Avista
A6: Capital Recovery Factor Calculation | F6: Capital Recovery Factor Calculation | L6: Capital Recovery Factor Calculation
A7: Present - UE-120436 | F7: Present - UE-150204 | L7: Proposed - UE- 16____
A10: Cost of Capital | F10: Cost of Capital | J10: Source | L10: Cost of Capital | P10: Source
A11: Capital | B11: Capital | C11: Component | D11: Weighted | F11: Capital | G11: Capital | H11: Component | I11: Weighted | L11: Capital | M11: Capital | N11: Component | O11: Weighted
A12: Component | B12: Structure | C12: Cost | D12: Cost | F12: Component | G12: Structure | H12: Cost | I12: Cost | L12: Component | M12: Structure | N12: Cost | O12: Cost
A13: Long Term Debt | B13: 0.53 | C13: 0.0572 | D13: =B13*C13 -> 0.030316 | F13: Long Term Debt | G13: 0.515 | H13: 0.052 | I13: =G13*H13 -> 0.02678 | J13: Settlement Stipulation | L13: Long Term Debt | M13: 0.515 | N13: 0.0551 | O13: =M13*N13 -> 0.0283765 | P13: Smith
A14: Preferred Equity | B14: 0 | C14: 0 | D14: =B14*C14 -> 0 | F14: Preferred Equity | G14: 0 | H14: 0 | I14: =G14*H14 -> 0 | J14: Settlement Stipulation | L14: Preferred Equity | M14: 0 | N14: 0 | O14: =M14*N14 -> 0
A15: Common Equity | B15: 0.47 | C15: 0.098 | D15: 0.04606 | F15: Common Equity | G15: 0.485 | H15: 0.095 | I15: 0.046075 | J15: Settlement Stipulation | L15: Common Equity | M15: 0.485 | N15: 0.099 | O15: 0.048015
A16: Total | B16: =SUM(B13:B15) -> 1 | D16: =SUM(D13:D15) -> 0.076376 | F16: Total | G16: =SUM(G13:G15) -> 1 | I16: =SUM(I13:I15) -> 0.072855 | L16: Total | M16: =SUM(M13:M15) -> 1 | O16: =SUM(O13:O15) -> 0.0763915
A19: Grossed-up Rate of Return | F19: Grossed-up Rate of Return | L19: Grossed-up Rate of Return
A21: Tax Gross-up Factor | D21: =1/0.62082 -> 1.610772849 | F21: Tax Gross-up Factor | I21: =1/0.62 -> 1.612903226 | L21: Tax Gross-up Factor | O21: =1/0.619864 -> 1.613257102
A24: Weighted ROE * Tax Gross-up | C24: 1.611 * 4.606% | D24: =D15*D21 -> 0.07419219742 | F24: Weighted ROE * Tax Gross-up | H24: 1.613 * 4.608% | I24: =I15*I21 -> 0.07431451613 | L24: Weighted ROE * Tax Gross-up | N24: 1.613 * 4.802% | O24: =O15*O21 -> 0.07746053973
A25: Long Term Debt | D25: =D13 -> 0.030316 | F25: Long Term Debt | I25: =I13 -> 0.02678 | L25: Long Term Debt | O25: =O13 -> 0.0283765 | P25: Smith Conversion Factor
A26: Preferred Equity * Tax Gross-up | C26: 1.611 * 0.000% | D26: =D14*D21 -> 0 | F26: Preferred Equity * Tax Gross-up | H26: 1.613 * 0.000% | I26: =I14*I21 -> 0 | L26: Preferred Equity * Tax Gross-up | N26: 1.613 * 0.000% | O26: =O14*O21 -> 0
A27: Grossed-up Rate of Return | D27: =SUM(D24:D26) -> 0.1045081974 | F27: Grossed-up Rate of Return | I27: =SUM(I24:I26) -> 0.1010945161 | L27: Grossed-up Rate of Return | O27: =SUM(O24:O26) -> 0.1058370397
C31: Test Year | D31: Effective | H31: Test Year | I31: Effective | N31: Test Year | O31: Effective
A32: Account | B32: Plant in | C32: Depreciation | D32: Depreciation | F32: Account | G32: Plant in | H32: Depreciation | I32: Depreciation | L32: Account | M32: Plant in | N32: Depreciation | O32: Depreciation
A33: Number | B33: Service | C33: Expense | D33: Rate | F33: Number | G33: Service | H33: Expense | I33: Rate | L33: Number | M33: Service | N33: Expense | O33: Rate
A34: 373 - Street Lighting | B34: 20810000 | C34: 593000 | D34: =C34/B34 -> 0.02849591543 | F34: 373 - Street Lighting | G34: 28183000 | H34: 819000 | I34: =H34/G34 -> 0.02906007167 | J34: Knox | L34: 373 - Street Lighting | M34: 28515000 | N34: 824000 | O34: =N34/M34 -> 0.02889707172 | P34: From Cost of Service (Knox)
A35: Revenue Conversion Factor (Before FIT) | D35: 0.954989 | F35: Revenue Conversion Factor (Before FIT) | I35: 0.953853 | J35: Smith | K35: PDE-31 | L35: Revenue Conversion Factor (Before FIT) | O35: 0.953637 | P35: Smith Conversion Factor
A36: Grossed-Up Depreciation Rate | D36: =D34/D35 -> 0.02983899859 | F36: Grossed-Up Depreciation Rate | I36: =I34/I35 -> 0.03046598551 | L36: Grossed-Up Depreciation Rate | O36: =O34/O35 -> 0.03030196156
A38: *From Cost of Service (Knox) | F38: *From Cost of Service (Knox) | L38: *From Cost of Service (Knox)
A40: Capital Recovery Factor | B40: =D27+D36 -> 0.134347196 | F40: Capital Recovery Factor | G40: =I27+I36 -> 0.1315605016 | L40: Capital Recovery Factor | M40: =O27+O36 -> 0.1361390013

Sheet Block Data
A3: WASHINGTON ELECTRIC SYSTEM
C4: October | D4: November | E4: December | F4: January | G4: February | H4: March | I4: April | J4: May | K4: June | L4: July | M4: August | N4: September | O4: Annual Total
A5: Rate Design Program Monthly Results
A6: Block ID 900 | B6: Schedule 001
B7: Block 1 | C7: 116537374 | D7: 124201630 | E7: 141834640 | F7: 144260498 | G7: 155834065 | H7: 133095100 | I7: 128411581.7 | J7: 120978517 | K7: 119648469.7 | L7: 132526057 | M7: 128642573 | N7: 126693574 | O7: =SUM(C7:N7) -> 1572664079 | R7: 0 | S7: =R7/$R$10 -> 
B8: Block 2 | C8: 23119328 | D8: 30802898 | E8: 60796897 | F8: 72113480 | G8: 60708554 | H8: 43645719 | I8: 34857662.33 | J8: 25892541 | K8: 27049346.33 | L8: 49582054 | M8: 41345375 | N8: 34401422 | O8: =SUM(C8:N8) -> 504315276.7 | R8: 0 | S8: =R8/$R$10 -> 
B9: Block 3 | C9: 7978745 | D9: 12167124 | E9: 48921182 | F9: 71166181 | G9: 41323108 | H9: 23591879 | I9: 14056813 | J9: 9017042 | K9: 9515114 | L9: 23644036 | M9: 17246272 | N9: 13445187 | O9: =SUM(C9:N9) -> 292072683 | R9: 0 | S9: =R9/$R$10 -> 
A10: kWhs | B10: Total | C10: =SUM(C7:C9) -> 147635447 | D10: =SUM(D7:D9) -> 167171652 | E10: 251552719 | F10: 287540159 | G10: 257865727 | H10: 200332698 | I10: 177326057 | J10: 155888100 | K10: 156212930 | L10: 205752147 | M10: 187234220 | N10: 174540183 | O10: 2369052039 | R10: =SUM(R7:R9) -> 0 | S10: =SUM(S7:S9) -> 
B11: Billed Customers | C11: ='Rev Runs 12MESEPT2015'!D11 -> 206253 | D11: ='Rev Runs 12MESEPT2015'!E11 -> 206879 | E11: ='Rev Runs 12MESEPT2015'!F11 -> 207339 | F11: ='Rev Runs 12MESEPT2015'!G11 -> 207224 | G11: ='Rev Runs 12MESEPT2015'!H11 -> 207250 | H11: ='Rev Runs 12MESEPT2015'!I11 -> 206422 | I11: ='Rev Runs 12MESEPT2015'!J11 -> 206679 | J11: ='Rev Runs 12MESEPT2015'!K11 -> 206185 | K11: ='Rev Runs 12MESEPT2015'!L11 -> 206224 | L11: ='Rev Runs 12MESEPT2015'!M11 -> 207030 | M11: ='Rev Runs 12MESEPT2015'!N11 -> 206682 | N11: ='Rev Runs 12MESEPT2015'!O11 -> 207742 | O11: =SUM(C11:N11) -> 2481909
B12: Block 1 Limit | C12: =C11*800 -> 165002400 | D12: =D11*800 -> 165503200 | E12: 165871200 | F12: 165779200 | G12: 165800000 | H12: 165137600 | I12: 165343200 | J12: 164948000 | K12: 164979200 | L12: 165624000 | M12: 165345600 | N12: 166193600 | O12: =SUM(C12:N12) -> 1985527200
B13: Revenue Run Total | C13: ='Rev Runs 12MESEPT2015'!D47 -> 148283896 | D13: ='Rev Runs 12MESEPT2015'!E47 -> 168472643 | E13: ='Rev Runs 12MESEPT2015'!F47 -> 252801353 | F13: ='Rev Runs 12MESEPT2015'!G47 -> 275871134 | G13: ='Rev Runs 12MESEPT2015'!H47 -> 257673771 | H13: ='Rev Runs 12MESEPT2015'!I47 -> 200295859 | I13: ='Rev Runs 12MESEPT2015'!J47 -> 177289514 | J13: ='Rev Runs 12MESEPT2015'!K47 -> 155882778 | K13: ='Rev Runs 12MESEPT2015'!L47 -> 156193402 | L13: ='Rev Runs 12MESEPT2015'!M47 -> 205750487 | M13: ='Rev Runs 12MESEPT2015'!N47 -> 187233329.5 | N13: ='Rev Runs 12MESEPT2015'!O47 -> 174532951.5 | O13: =SUM(C13:N13) -> 2360281118
B14: Difference | C14: =C13-C10 -> 648449 | D14: 1300991 | E14: 1248634 | F14: -11669025 | G14: -191956 | H14: -36839 | I14: -36543 | J14: -5322 | K14: -19528 | L14: -1660 | M14: -890.5 | N14: -7231.5 | O14: =SUM(C14:N14) -> -8770921 | P14: =O14/O13 -> -0.003716049302
B16: Block 1 | C16: =(C7/C$10)*C$14 -> 511859.077 | D16: =(D7/D$10)*D$14 -> 966582.5568 | E16: 704025.5998 | F16: -5854414.783 | G16: -116003.3329 | H16: =(H7/H$10)*H$14 -> -24474.73846 | I16: -26462.80252 | J16: -4130.191256 | K16: -14957.11857 | L16: -1069.214868 | M16: =(M7/M$10)*M$14 -> -611.8337303 | N16: -5249.13269 | O16: =SUM(C16:N16) -> -3864905.915
B17: Block 2 | C17: =(C8/C$10)*C$14 -> 101545.4312 | D17: 239719.4297 | E17: 301777.9851 | F17: -2926526.868 | G17: =(G8/G$10)*G$14 -> -45191.62483 | H17: -8025.972087 | I17: -7183.397501 | J17: -883.968072 | K17: -3381.407897 | L17: -400.0260062 | M17: -196.641706 | N17: -1425.310086 | O17: =SUM(C17:N17) -> -2350172.37
B18: Block 3 | C18: 35044.49183 | D18: 94689.01354 | E18: 242830.4151 | F18: -2888083.349 | G18: =(G9/G$10)*G$14 -> -30761.04224 | H18: -4338.289451 | I18: -2896.799975 | J18: -307.8406724 | K18: -1189.473536 | L18: -190.7591261 | M18: -82.02456376 | N18: -557.0572238 | O18: -2555842.715
C19: =SUM(C16:C18) -> 648449 | D19: =SUM(D16:D18) -> 1300991 | E19: 1248634 | F19: -11669025 | G19: -191956 | H19: =SUM(H16:H18) -> -36839 | I19: =SUM(I16:I18) -> -36543 | J19: =SUM(J16:J18) -> -5322 | K19: -19528 | L19: =SUM(L16:L18) -> -1660 | M19: =SUM(M16:M18) -> -890.5 | N19: =SUM(N16:N18) -> -7231.5 | O19: -8770921
B21: Block 1 | C21: =C7+C16 -> 117049233.1 | D21: =D7+D16 -> 125168212.6 | E21: 142538665.6 | F21: 138406083.2 | G21: 155718061.7 | H21: =H7+H16 -> 133070625.3 | I21: 128385118.9 | J21: 120974386.8 | K21: 119633512.5 | L21: 132524987.8 | M21: 128641961.2 | N21: 126688324.9 | O21: =SUM(C21:N21) -> 1568799173
B22: Block 2 | C22: =C8+C17 -> 23220873.43 | D22: 31042617.43 | E22: 61098674.99 | F22: 69186953.13 | G22: =G8+G17 -> 60663362.37 | H22: 43637693.03 | I22: 34850478.94 | J22: 25891657.03 | K22: 27045964.93 | L22: 49581653.97 | M22: 41345178.36 | N22: 34399996.69 | O22: =SUM(C22:N22) -> 501965104.3
B23: Block 3 | C23: 8013789.492 | D23: 12261813.01 | E23: 49164012.42 | F23: 68278097.65 | G23: =G9+G18 -> 41292346.96 | H23: 23587540.71 | I23: 14053916.2 | J23: 9016734.159 | K23: 9513924.526 | L23: 23643845.24 | M23: 17246189.98 | N23: 13444629.94 | O23: 289516840.3
C24: =SUM(C21:C23) -> 148283896 | D24: =SUM(D21:D23) -> 168472643 | E24: 252801353 | F24: 275871134 | G24: 257673771 | H24: =SUM(H21:H23) -> 200295859 | I24: =SUM(I21:I23) -> 177289514 | J24: =SUM(J21:J23) -> 155882778 | K24: 156193402 | L24: =SUM(L21:L23) -> 205750487 | M24: =SUM(M21:M23) -> 187233329.5 | N24: =SUM(N21:N23) -> 174532951.5 | O24: 2360281118
C25: =C24-C13 -> 0 | D25: =D24-D13 -> 0 | E25: 0 | F25: 0 | G25: 0 | H25: =H24-H13 -> 0 | I25: =I24-I13 -> 0 | J25: =J24-J13 -> 0 | K25: 0 | L25: =L24-L13 -> 0 | M25: =M24-M13 -> 0 | N25: =N24-N13 -> 0 | O25: 0
A27: Block ID 98 | B27: Schedule 011/012
B28: Block 1 | C28: 31020437 | D28: 32073405 | E28: 38318704 | F28: 38318704 | G28: =36120044.33339+5613169 -> 41733213.33 | H28: =30925462.99997+4472056 -> 35397519 | I28: =29721025+3900849 -> 33621874 | J28: =28429760.33332+3602969 -> 32032729.33 | K28: =28538011.6667+3297536 -> 31835547.67 | L28: =30961784.66666+3496567 -> 34458351.67 | M28: =30627648+3453736 -> 34081384 | N28: =30144632+3591186 -> 33735818 | O28: =SUM(C28:N28) -> 416627687 | R28: 0 | S28: =R28/$R$30 -> 
B29: Block 2 | C29: 12819261 | D29: 12136560 | E29: 17552033 | F29: 17552033 | G29: =16713221.66661+911418 -> 17624639.67 | H29: =12950957.00003+585232 -> 13536189 | I29: =12043014+536908 -> 12579922 | J29: =11778505.66668+447559 -> 12226064.67 | K29: =13951336.3333+405572 -> 14356908.33 | L29: =18497719.33334+582494 -> 19080213.33 | M29: =17290400+621550 -> 17911950 | N29: =16089673+664928 -> 16754601 | O29: =SUM(C29:N29) -> 184130375 | R29: 0 | S29: =R29/$R$30 -> 
A30: kWhs | B30: Total | C30: =SUM(C28:C29) -> 43839698 | D30: 44209965 | E30: 55870737 | F30: 55870737 | G30: 59357853 | H30: 48933708 | I30: =SUM(I28:I29) -> 46201796 | J30: =SUM(J28:J29) -> 44258794 | K30: 46192456 | L30: 53538565 | M30: 51993334 | N30: 50490419 | O30: 600758062 | R30: =SUM(R28:R29) -> 0 | S30: =SUM(S28:S29) -> 
B31: Revenue Run Total | C31: ='Rev Runs 12MESEPT2015'!D48+'Rev Runs 12MESEPT2015'!D49 -> 44266985 | D31: ='Rev Runs 12MESEPT2015'!E48+'Rev Runs 12MESEPT2015'!E49 -> 44625088 | E31: ='Rev Runs 12MESEPT2015'!F48+'Rev Runs 12MESEPT2015'!F49 -> 56128853 | F31: ='Rev Runs 12MESEPT2015'!G48+'Rev Runs 12MESEPT2015'!G49 -> 55704439 | G31: ='Rev Runs 12MESEPT2015'!H48+'Rev Runs 12MESEPT2015'!H49 -> 59303692 | H31: ='Rev Runs 12MESEPT2015'!I48+'Rev Runs 12MESEPT2015'!I49 -> 48906028 | I31: ='Rev Runs 12MESEPT2015'!J48+'Rev Runs 12MESEPT2015'!J49 -> 46196450 | J31: ='Rev Runs 12MESEPT2015'!K48+'Rev Runs 12MESEPT2015'!K49 -> 44263314 | K31: ='Rev Runs 12MESEPT2015'!L48+'Rev Runs 12MESEPT2015'!L49 -> 46192456 | L31: ='Rev Runs 12MESEPT2015'!M48+'Rev Runs 12MESEPT2015'!M49 -> 53538565 | M31: ='Rev Runs 12MESEPT2015'!N48+'Rev Runs 12MESEPT2015'!N49 -> 51993334 | N31: ='Rev Runs 12MESEPT2015'!O48+'Rev Runs 12MESEPT2015'!O49 -> 50490419 | O31: =SUM(C31:N31) -> 601609623
C32: =C31-C30 -> 427287 | D32: 415123 | E32: 258116 | F32: -166298 | G32: -54161 | H32: -27680 | I32: -5346 | J32: 4520 | K32: 0 | L32: 0 | M32: 0 | N32: 0 | O32: =SUM(C32:N32) -> 851561 | P32: =O32/O31 -> 0.001415471042
B34: Block 1 | C34: =(C28/C$30)*C$32 -> 302343.0833 | D34: =(D28/D$30)*D$32 -> 301163.0546 | E34: 177027.7453 | F34: -114054.7661 | G34: -38079.4192 | H34: -20023.07542 | I34: -3890.379898 | J34: 3271.393626 | K34: 0 | L34: 0 | M34: 0 | N34: 0 | O34: =SUM(C34:N34) -> 607757.6363
B35: Block 2 | C35: =(C29/C$30)*C$32 -> 124943.9167 | D35: 113959.9454 | E35: 81088.25466 | F35: -52243.23395 | G35: -16081.5808 | H35: -7656.924579 | I35: -1455.620102 | J35: 1248.606374 | K35: 0 | L35: 0 | M35: 0 | N35: 0 | O35: =SUM(C35:N35) -> 243803.3637
C36: =SUM(C34:C35) -> 427287 | D36: =SUM(D34:D35) -> 415123 | E36: 258116 | F36: -166298 | G36: -54161 | H36: -27680 | I36: -5346 | J36: 4520 | K36: 0 | L36: 0 | M36: 0 | N36: 0 | O36: =SUM(O34:O35) -> 851561
B38: Block 1 | C38: =C28+C34 -> 31322780.08 | D38: =D28+D34 -> 32374568.05 | E38: 38495731.75 | F38: 38204649.23 | G38: 41695133.91 | H38: 35377495.92 | I38: 33617983.62 | J38: 32036000.73 | K38: 31835547.67 | L38: 34458351.67 | M38: 34081384 | N38: 33735818 | O38: =SUM(C38:N38) -> 417235444.6
B39: Block 2 | C39: =C29+C35 -> 12944204.92 | D39: =D29+D35 -> 12250519.95 | E39: 17633121.25 | F39: 17499789.77 | G39: 17608558.09 | H39: 13528532.08 | I39: 12578466.38 | J39: 12227313.27 | K39: 14356908.33 | L39: 19080213.33 | M39: 17911950 | N39: 16754601 | O39: =SUM(C39:N39) -> 184374178.4
C40: =SUM(C38:C39) -> 44266985 | D40: 44625088 | E40: 56128853 | F40: 55704439 | G40: 59303692 | H40: 48906028 | I40: 46196450 | J40: 44263314 | K40: 46192456 | L40: 53538565 | M40: 51993334 | N40: 50490419 | O40: 601609623
C41: =C40-C31 -> 0 | D41: 0 | E41: 0 | F41: 0 | G41: 0 | H41: 0 | I41: 0 | J41: 0 | K41: 0 | L41: 0 | M41: 0 | N41: 0 | O41: 0
A43: Block ID 11 | B43: Schedule 011/012
B44: Block 1 | O44: =SUM(C44:N44) -> 0 | R44: 0
B45: Block 2 | C45: 33023 | D45: 31459 | E45: 33765 | F45: =E45 -> 33765 | G45: =32361+1271 -> 33632 | H45: =29251+729 -> 29980 | I45: =27642+768 -> 28410 | J45: =29423+718 -> 30141 | K45: =32945+694 -> 33639 | L45: =39731+732 -> 40463 | M45: =39030+917 -> 39947 | N45: =38606+996 -> 39602 | O45: =SUM(C45:N45) -> 407826 | R45: 0
A46: kW | B46: Total | C46: =SUM(C44:C45) -> 33023 | D46: 31459 | E46: 33765 | F46: 33765 | G46: 33632 | H46: 29980 | I46: =SUM(I44:I45) -> 28410 | J46: =SUM(J44:J45) -> 30141 | K46: 33639 | L46: 40463 | M46: 39947 | N46: 39602 | O46: 407826 | R46: =SUM(R44:R45) -> 0
A48: Block ID 111 | B48: Schedule 011/012
B49: kVar | C49: 1144 | D49: 1184 | E49: 1346 | F49: =E49 -> 1346 | G49: 1225 | H49: 1132 | I49: 1127 | J49: 1100 | K49: 936 | L49: 1067 | M49: 1003 | N49: 1220 | O49: =SUM(C49:N49) -> 13830 | R49: 0
B50: pf Charge | C50: 0.5 | D50: 0.5 | E50: 0.5 | F50: 0.5 | G50: 0.5 | H50: 0.5 | I50: 0.5 | J50: 0.5 | K50: 0.5 | L50: 0.5 | M50: 0.5 | N50: 0.5 | O50: 0.5
B51: pf Revenue | C51: =C49*C50 -> 572 | D51: 592 | E51: 673 | F51: 673 | G51: 612.5 | H51: 566 | I51: 563.5 | J51: 550 | K51: 468 | L51: 533.5 | M51: 501.5 | N51: 610 | O51: 6915
A53: Block ID 221 | B53: Schedule 021/022
B54: Block 1 | C54: 104977970 | D54: 102431497 | E54: 111812317 | F54: 104977970 | G54: =112824355+4452460 -> 117276815 | H54: =99936036.33333+2853780 -> 102789816.3 | I54: =97677501+2751280 -> 100428781 | J54: =98448165+2587460 -> 101035625 | K54: =103750157+2683540 -> 106433697 | L54: =111051981+2966000 -> 114017981 | M54: =108383752+2920460 -> 111304212 | N54: =105965682+2800820 -> 108766502 | O54: =SUM(C54:N54) -> 1286253183 | R54: 0 | S54: =R54/$R$56 -> 
B55: Block 2 | C55: 13557939 | D55: 11800518 | E55: 14000503 | F55: 13557939 | G55: =13209325+44240 -> 13253565 | H55: 11399948.67 | I55: 11743725 | J55: 11586624 | K55: 14323396 | L55: 17149808 | M55: =16914658+13040 -> 16927698 | N55: 15725897 | O55: =SUM(C55:N55) -> 165027560.7 | R55: 0 | S55: =R55/$R$56 -> 
A56: kWhs | B56: Total | C56: =SUM(C54:C55) -> 118535909 | D56: 114232015 | E56: 125812820 | F56: 118535909 | G56: 130530380 | H56: 114189765 | I56: =SUM(I54:I55) -> 112172506 | J56: =SUM(J54:J55) -> 112622249 | K56: 120757093 | L56: 131167789 | M56: 128231910 | N56: 124492399 | O56: 1451280744 | R56: =SUM(R54:R55) -> 0 | S56: =SUM(S54:S55) -> 
B57: Revenue Run Total | C57: ='Rev Runs 12MESEPT2015'!D50+'Rev Runs 12MESEPT2015'!D51 -> 118477559 | D57: ='Rev Runs 12MESEPT2015'!E50+'Rev Runs 12MESEPT2015'!E51 -> 113721275 | E57: ='Rev Runs 12MESEPT2015'!F50+'Rev Runs 12MESEPT2015'!F51 -> 125426458 | F57: ='Rev Runs 12MESEPT2015'!G50+'Rev Runs 12MESEPT2015'!G51 -> 120012845 | G57: ='Rev Runs 12MESEPT2015'!H50+'Rev Runs 12MESEPT2015'!H51 -> 130519932 | H57: ='Rev Runs 12MESEPT2015'!I50+'Rev Runs 12MESEPT2015'!I51 -> 114182085 | I57: ='Rev Runs 12MESEPT2015'!J50+'Rev Runs 12MESEPT2015'!J51 -> 112172506 | J57: ='Rev Runs 12MESEPT2015'!K50+'Rev Runs 12MESEPT2015'!K51 -> 112622249 | K57: ='Rev Runs 12MESEPT2015'!L50+'Rev Runs 12MESEPT2015'!L51 -> 120757093 | L57: ='Rev Runs 12MESEPT2015'!M50+'Rev Runs 12MESEPT2015'!M51 -> 131167789 | M57: ='Rev Runs 12MESEPT2015'!N50+'Rev Runs 12MESEPT2015'!N51 -> 128231910 | N57: ='Rev Runs 12MESEPT2015'!O50+'Rev Runs 12MESEPT2015'!O51 -> 124492399 | O57: =SUM(C57:N57) -> 1451784100
C58: =C57-C56 -> -58350 | D58: -510740 | E58: -386362 | F58: 1476936 | G58: -10448 | H58: -7680 | I58: 0 | J58: 0 | K58: 0 | L58: 0 | M58: 0 | N58: 0 | O58: =SUM(C58:N58) -> 503356 | P58: =O58/O57 -> 0.0003467154655
B60: Block 1 | C60: =(C54/C$56)*C$58 -> -51676.0246 | D60: =(D54/D$56)*D$58 -> -457978.9893 | E60: -343367.4758 | F60: 1308006.531 | G60: -9387.149284 | H60: -6913.279745 | I60: 0 | J60: 0 | K60: 0 | L60: 0 | M60: 0 | N60: 0 | O60: =SUM(C60:N60) -> 438683.612
B61: Block 2 | C61: =(C55/C$56)*C$58 -> -6673.9754 | D61: =(D55/D$56)*D$58 -> -52761.01068 | E61: -42994.52425 | F61: 168929.4693 | G61: -1060.850716 | H61: -766.7202552 | I61: 0 | J61: 0 | K61: 0 | L61: 0 | M61: 0 | N61: 0 | O61: =SUM(C61:N61) -> 64672.38796
C62: =SUM(C60:C61) -> -58350 | D62: =SUM(D60:D61) -> -510740 | E62: =SUM(E60:E61) -> -386362 | F62: =SUM(F60:F61) -> 1476936 | G62: =SUM(G60:G61) -> -10448 | H62: =SUM(H60:H61) -> -7680 | I62: =SUM(I60:I61) -> 0 | J62: =SUM(J60:J61) -> 0 | K62: =SUM(K60:K61) -> 0 | L62: =SUM(L60:L61) -> 0 | M62: =SUM(M60:M61) -> 0 | N62: =SUM(N60:N61) -> 0 | O62: =SUM(O60:O61) -> 503356
B64: Block 1 | C64: =C54+C60 -> 104926294 | D64: =D54+D60 -> 101973518 | E64: 111468949.5 | F64: 106285976.5 | G64: 117267427.9 | H64: 102782903.1 | I64: 100428781 | J64: 101035625 | K64: 106433697 | L64: 114017981 | M64: 111304212 | N64: 108766502 | O64: =SUM(C64:N64) -> 1286691867
B65: Block 2 | C65: =C55+C61 -> 13551265.02 | D65: =D55+D61 -> 11747756.99 | E65: 13957508.48 | F65: 13726868.47 | G65: 13252504.15 | H65: 11399181.95 | I65: 11743725 | J65: 11586624 | K65: 14323396 | L65: 17149808 | M65: 16927698 | N65: 15725897 | O65: =SUM(C65:N65) -> 165092233.1
C66: =SUM(C64:C65) -> 118477559 | D66: 113721275 | E66: 125426458 | F66: 120012845 | G66: 130519932 | H66: 114182085 | I66: 112172506 | J66: 112622249 | K66: 120757093 | L66: 131167789 | M66: 128231910 | N66: 124492399 | O66: 1451784100
C67: =C66-C57 -> 0 | D67: 0 | E67: 0 | F67: 0 | G67: 0 | H67: 0 | I67: 0 | J67: 0 | K67: 0 | L67: 0 | M67: 0 | N67: 0 | O67: 0
A69: Block ID 21 | B69: Schedule 021/022
B70: Block 1 | O70: =SUM(C70:N70) -> 0 | R70: 0
B71: Block 2 | C71: 245224 | D71: 231344 | E71: 226380 | F71: 226380 | G71: =237975.286666667+6764 -> 244739.2867 | H71: =210411.106666667+4048 -> 214459.1067 | I71: =210944.873333333+4073 -> 215017.8733 | J71: =218797.4+3580 -> 222377.4 | K71: =241043.413333333+3886 -> 244929.4133 | L71: =260866.723333333+4658 -> 265524.7233 | M71: =247666+4576 -> 252242 | N71: =245391.73+4020 -> 249411.73 | O71: =SUM(C71:N71) -> 2838029.533 | R71: 0
A72: kW | B72: Total | C72: =SUM(C70:C71) -> 245224 | D72: 231344 | E72: 226380 | F72: 226380 | G72: 244739.2867 | H72: 214459.1067 | I72: 215017.8733 | J72: 222377.4 | K72: 244929.4133 | L72: 265524.7233 | M72: 252242 | N72: 249411.73 | O72: 2838029.533 | R72: =SUM(R70:R71) -> 0
A74: Block ID 21 | B74: Schedule 021/022
B75: kVar | C75: 23151 | D75: 22366 | E75: 19528 | F75: 23151 | G75: =22913.98+4 -> 22917.98 | H75: =17833.48+2 -> 17835.48 | I75: =19850.58+10 -> 19860.58 | J75: =20287.56+21 -> 20308.56 | K75: =21450.18+11 -> 21461.18 | L75: =22329.12+10 -> 22339.12 | M75: =22122.08+5 -> 22127.08 | N75: =22225.82+8 -> 22233.82 | O75: =SUM(C75:N75) -> 257279.8 | R75: 0
B76: pf Charge | C76: 0.5 | D76: 0.5 | E76: 0.5 | F76: 0.5 | G76: 0.5 | H76: 0.5 | I76: 0.5 | J76: 0.5 | K76: 0.5 | L76: 0.5 | M76: 0.5 | N76: 0.5 | O76: 0.5
B77: pf Revenue | C77: =C75*C76 -> 11575.5 | D77: 11183 | E77: 9764 | F77: 11575.5 | G77: 11458.99 | H77: 8917.74 | I77: =I75*I76 -> 9930.29 | J77: =J75*J76 -> 10154.28 | K77: 10730.59 | L77: 11169.56 | M77: 11063.54 | N77: 11116.91 | O77: 128639.9
A79: Block ID 30 | B79: Schedule 30/31/32
B80: Block 1 | C80: 4555912 | D80: 3056350 | E80: 1716152 | F80: =E80 -> 1716152 | G80: 2469540.823 | H80: 1554886.357 | I80: 2110083.648 | J80: 3683483.46 | K80: 4698588.385 | L80: 5212868.513 | M80: 5019965 | N80: 5379438 | O80: =SUM(C80:N80) -> 41173420.19 | R80: 0 | S80: =R80/$R$83 -> 
B81: Block 2 | C81: 1094456 | D81: 548939 | E81: 417330 | F81: =E81 -> 417330 | G81: 538393.9033 | H81: 425480.5167 | I81: 562708.2367 | J81: 1182016.738 | K81: 1613545.03 | L81: 1859695.088 | M81: 1876244 | N81: 1587324 | O81: =SUM(C81:N81) -> 12123462.51 | R81: 0 | S81: =R81/$R$83 -> 
B82: Block 3 | C82: 9003480 | D82: 2809321 | E82: 2203815 | F82: 2203815 | G82: 2218842.273 | H82: 1718478.393 | I82: 3078922.115 | J82: 8706440.502 | K82: 13799982.88 | L82: 20000575.4 | M82: 19816800 | N82: 18427742 | O82: =SUM(C82:N82) -> 103988214.6 | R82: 0
A83: kWhs | B83: Total | C83: =SUM(C80:C82) -> 14653848 | D83: 6414610 | E83: 4337297 | F83: 4337297 | G83: 5226777 | H83: 3698845.267 | I83: 5751714 | J83: 13571940.7 | K83: 20112116.3 | L83: 27073139 | M83: 26713009 | N83: 25394504 | O83: 157285097.3 | R83: =SUM(R80:R82) -> 0 | S83: =SUM(S80:S82) -> 
B84: Revenue Run Total | C84: ='Rev Runs 12MESEPT2015'!D53+'Rev Runs 12MESEPT2015'!D54+'Rev Runs 12MESEPT2015'!D55 -> 14701811 | D84: ='Rev Runs 12MESEPT2015'!E53+'Rev Runs 12MESEPT2015'!E54+'Rev Runs 12MESEPT2015'!E55 -> 6312682 | E84: ='Rev Runs 12MESEPT2015'!F53+'Rev Runs 12MESEPT2015'!F54+'Rev Runs 12MESEPT2015'!F55 -> 3351321 | F84: ='Rev Runs 12MESEPT2015'!G53+'Rev Runs 12MESEPT2015'!G54+'Rev Runs 12MESEPT2015'!G55 -> 2822376 | G84: ='Rev Runs 12MESEPT2015'!H53+'Rev Runs 12MESEPT2015'!H54+'Rev Runs 12MESEPT2015'!H55 -> 5227220 | H84: ='Rev Runs 12MESEPT2015'!I53+'Rev Runs 12MESEPT2015'!I54+'Rev Runs 12MESEPT2015'!I55 -> 3692381.267 | I84: ='Rev Runs 12MESEPT2015'!J53+'Rev Runs 12MESEPT2015'!J54+'Rev Runs 12MESEPT2015'!J55 -> 5744844 | J84: ='Rev Runs 12MESEPT2015'!K53+'Rev Runs 12MESEPT2015'!K54+'Rev Runs 12MESEPT2015'!K55 -> 13571940.7 | K84: ='Rev Runs 12MESEPT2015'!L53+'Rev Runs 12MESEPT2015'!L54+'Rev Runs 12MESEPT2015'!L55 -> 20112230.3 | L84: ='Rev Runs 12MESEPT2015'!M53+'Rev Runs 12MESEPT2015'!M54+'Rev Runs 12MESEPT2015'!M55 -> 27073129 | M84: ='Rev Runs 12MESEPT2015'!N53+'Rev Runs 12MESEPT2015'!N54+'Rev Runs 12MESEPT2015'!N55 -> 26713009 | N84: ='Rev Runs 12MESEPT2015'!O53+'Rev Runs 12MESEPT2015'!O54+'Rev Runs 12MESEPT2015'!O55 -> 25394505 | O84: =SUM(C84:N84) -> 154717449.3
C85: =C84-C83 -> 47963 | D85: -101928 | E85: -985976 | F85: -1514921 | G85: 443 | H85: -6464 | I85: -6870 | J85: 0 | K85: 114 | L85: -10 | M85: 0 | N85: 1 | O85: =SUM(C85:N85) -> -2567648 | P85: =O85/O84 -> -0.01659572344
B87: Block 1 | C87: =(C80/C$83)*C$85 -> 14911.79704 | D87: =(D80/D$83)*D$85 -> -48565.32865 | E87: -390124.2374 | F87: -599413.5758 | G87: 209.3080659 | H87: -2717.276524 | I87: -2520.339965 | J87: 0 | K87: 26.63265605 | L87: =(L80/L$83)*L$85 -> -1.925476213 | M87: 0 | N87: 0.211834734 | O87: =SUM(C87:N87) -> -1028194.734 | P87: =O87/$O$90 -> 0.4004422468
B88: Block 2 | C88: =(C81/C$83)*C$85 -> 3582.225851 | D88: -8722.627625 | E88: -94869.53835 | F88: -145764.051 | G88: 45.63204039 | H88: -743.5580192 | I88: -672.1136666 | J88: 0 | K88: 9.145936244 | L88: -0.6869152074 | M88: 0 | N88: 0.06250659592 | O88: =SUM(C88:N88) -> -247135.5092 | P88: =O88/$O$90 -> 0.09624976212
B89: Block 3 | C89: 29468.97711 | D89: -44640.04373 | E89: -500982.2243 | F89: -769743.3733 | G89: 188.0598937 | H89: -3003.165457 | I89: -3677.546368 | J89: 0 | K89: 78.2214077 | L89: -7.387608583 | M89: 0 | N89: 0.7256586701 | O89: -1292317.757 | P89: 0.5033079911
C90: =SUM(C87:C89) -> 47963 | D90: =SUM(D87:D89) -> -101928 | E90: =SUM(E87:E89) -> -985976 | F90: =SUM(F87:F89) -> -1514921 | G90: =SUM(G87:G89) -> 443 | H90: =SUM(H87:H89) -> -6464 | I90: =SUM(I87:I89) -> -6870 | J90: =SUM(J87:J89) -> 0 | K90: =SUM(K87:K89) -> 114 | L90: =SUM(L87:L89) -> -10 | M90: =SUM(M87:M89) -> 0 | N90: =SUM(N87:N89) -> 1 | O90: =SUM(O87:O89) -> -2567648 | P90: =SUM(P87:P89) -> 1
B92: Block 1 | C92: =C80+C87 -> 4570823.797 | D92: =D80+D87 -> 3007784.671 | E92: 1326027.763 | F92: 1116738.424 | G92: 2469750.131 | H92: 1552169.08 | I92: 2107563.308 | J92: 3683483.46 | K92: 4698615.018 | L92: =L80+L87 -> 5212866.588 | M92: 5019965 | N92: 5379438.212 | O92: =SUM(C92:N92) -> 40145225.45 | P92: =O92/$O$95 -> 0.2594744526
B93: Block 2 | C93: =C81+C88 -> 1098038.226 | D93: 540216.3724 | E93: 322460.4616 | F93: 271565.949 | G93: 538439.5354 | H93: 424736.9587 | I93: 562036.123 | J93: 1182016.738 | K93: 1613554.176 | L93: 1859694.401 | M93: 1876244 | N93: 1587324.063 | O93: =SUM(C93:N93) -> 11876327 | P93: =O93/$O$95 -> 0.0767613935
B94: Block 3 | C94: 9032948.977 | D94: 2764680.956 | E94: 1702832.776 | F94: 1434071.627 | G94: 2219030.333 | H94: 1715475.228 | I94: 3075244.569 | J94: 8706440.502 | K94: 13800061.11 | L94: 20000568.01 | M94: 19816800 | N94: 18427742.73 | O94: 102695896.8 | P94: 0.6637641539
C95: =SUM(C92:C94) -> 14701811 | D95: =SUM(D92:D94) -> 6312682 | E95: =SUM(E92:E94) -> 3351321 | F95: =SUM(F92:F94) -> 2822376 | G95: =SUM(G92:G94) -> 5227220 | H95: =SUM(H92:H94) -> 3692381.267 | I95: =SUM(I92:I94) -> 5744844 | J95: =SUM(J92:J94) -> 13571940.7 | K95: =SUM(K92:K94) -> 20112230.3 | L95: =SUM(L92:L94) -> 27073129 | M95: =SUM(M92:M94) -> 26713009 | N95: =SUM(N92:N94) -> 25394505 | O95: =SUM(O92:O94) -> 154717449.3 | P95: 1
C96: =C95-C84 -> 0 | D96: =D95-D84 -> 0 | E96: =E95-E84 -> 0 | F96: =F95-F84 -> 0 | G96: =G95-G84 -> 0 | H96: =H95-H84 -> 0 | I96: =I95-I84 -> 0 | J96: =J95-J84 -> 0 | K96: =K95-K84 -> 0 | L96: =L95-L84 -> 0 | M96: =M95-M84 -> 0 | N96: =N95-N84 -> 0 | O96: =O95-O84 -> 0
A98: Block ID 131 | B98: Schedule 31/32
B99: kVar | C99: 911 | D99: 612 | E99: 405 | F99: =E99 -> 405 | G99: 463.44 | H99: 569.02 | I99: 1009.52 | J99: 935.72 | K99: 1044.04 | L99: 903.24 | M99: 1109.42 | N99: 868.62 | O99: =SUM(C99:N99) -> 9236.02 | R99: 0
B100: pf Charge | C100: 0.5 | D100: 0.5 | E100: 0.5 | F100: 0.5 | G100: 0.5 | H100: 0.5 | I100: 0.5 | J100: 0.5 | K100: 0.5 | L100: 0.5 | M100: 0.5 | N100: 0.5 | O100: 0.5
B101: pf Revenue | C101: =C99*C100 -> 455.5 | D101: 306 | E101: 202.5 | F101: 202.5 | G101: 231.72 | H101: 284.51 | I101: =I99*I100 -> 504.76 | J101: =J99*J100 -> 467.86 | K101: 522.02 | L101: 451.62 | M101: 554.71 | N101: 434.31 | O101: 4618.01

Sheet Rev Runs 12MESEPT2015
B4: Electric Revenue Meters Report by Location Twelve Months Ended for Report Date : '09/30/2015'
B6: State Cde:WA
D8: Meters
C9: Period | D9: 201410 | E9: 201411 | F9: 201412 | G9: 201501 | H9: 201502 | I9: 201503 | J9: 201504 | K9: 201505 | L9: 201506 | M9: 201507 | N9: 201508 | O9: 201509 | P9: 12 Month Average
B10: Rate Schedule Num
B11: 001 | D11: 206253 | E11: 206879 | F11: 207339 | G11: 207224 | H11: =231832-24582 -> 207250 | I11: 206422 | J11: 206679 | K11: 206185 | L11: 206224 | M11: 207030 | N11: 206682 | O11: 207742 | P11: =AVERAGE(D11:O11) -> 206825.75
B12: 011 | D12: 21813 | E12: 21827 | F12: 21911 | G12: 21856 | H12: =24482-2284 -> 22198 | I12: 21759 | J12: 21998 | K12: 21813 | L12: 21822 | M12: 21616 | N12: 21823 | O12: 21851 | P12: =AVERAGE(D12:O12) -> 21857.25
B13: 012 | D13: 8866 | E13: 8899 | F13: 8923 | G13: 8876 | H13: =9701-778 -> 8923 | I13: 8903 | J13: 8868 | K13: 8963 | L13: 8919 | M13: 8943 | N13: 8939 | O13: 8939 | P13: 8913.416667
B14: 021 | D14: 1967 | E14: 1958 | F14: 1959 | G14: 1937 | H14: =2182-220 -> 1962 | I14: 1980 | J14: 1950 | K14: 1971 | L14: 1952 | M14: 1965 | N14: 1958 | O14: 1951 | P14: 1959.166667
B15: 022 | D15: 54 | E15: 53 | F15: 54 | G15: 54 | H15: =67-12 -> 55 | I15: 54 | J15: 55 | K15: 55 | L15: 55 | M15: 55 | N15: 55 | O15: 55 | P15: 54.5
B16: 025 | D16: 21 | E16: 21 | F16: 21 | G16: 21 | H16: 41 | I16: 22 | J16: 20 | K16: 22 | L16: 20 | M16: 21 | N16: 22 | O16: 21 | P16: 22.75
B17: 030 | D17: 32 | E17: 29 | F17: 35 | G17: 32 | H17: 30 | I17: 32 | J17: 32 | K17: 32 | L17: 32 | M17: 29 | N17: 34 | O17: 30 | P17: 31.58333333
B18: 031 | D18: 1198 | E18: 1193 | F18: 1198 | G18: 1114 | H18: =1345-138 -> 1207 | I18: 1204 | J18: 1184 | K18: 1185 | L18: 1232 | M18: 1194 | N18: 1225 | O18: 1210 | P18: 1195.333333
B19: 032 | D19: 1216 | E19: 1208 | F19: 1211 | G19: 1190 | H19: =1306-102 -> 1204 | I19: 1208 | J19: 1206 | K19: 1202 | L19: 1200 | M19: 1202 | N19: 1204 | O19: 1196 | P19: 1203.916667
B20: 041 | D20: 11 | E20: 11 | F20: 11 | G20: 11 | H20: =19-5 -> 14 | I20: 11 | J20: 11 | K20: 11 | L20: 12 | M20: 10 | N20: 12 | O20: 11 | P20: 11.33333333
B21: 042 | D21: 292 | E21: 293 | F21: 291 | G21: 289 | H21: =492-167 -> 325 | I21: 303 | J21: 293 | K21: 287 | L21: 295 | M21: 290 | N21: 294 | O21: 291 | P21: 295.25
B22: 044 | D22: 13 | E22: 13 | F22: 13 | G22: 13 | H22: =22-6 -> 16 | I22: 14 | J22: 14 | K22: 14 | L22: 14 | M22: 14 | N22: 14 | O22: 13 | P22: 13.75
B23: 044A | D23: 1 | E23: 1 | F23: 1 | G23: 1 | H23: 0 | I23: 0 | J23: 0 | K23: 0 | L23: 0 | M23: 0 | N23: 0 | O23: 0 | P23: 0.3333333333
B24: 045 | D24: 11 | E24: 11 | F24: 11 | G24: 10 | H24: =13-2 -> 11 | I24: 11 | J24: 11 | K24: 11 | L24: 11 | M24: 11 | N24: 11 | O24: 9 | P24: 10.75
B25: 046 | D25: 53 | E25: 53 | F25: 53 | G25: 52 | H25: =73-18 -> 55 | I25: 53 | J25: 53 | K25: 53 | L25: 53 | M25: 34 | N25: 53 | O25: 34 | P25: 49.91666667
B26: 047 | D26: 0 | E26: 0 | F26: 0 | G26: 0 | H26: 0 | I26: 0 | J26: 0 | K26: 0 | L26: 0 | M26: 0 | N26: 0 | O26: 0 | P26: 0
B27: 048 | D27: 0 | E27: 0 | F27: 0 | G27: 0 | H27: 0 | I27: 0 | J27: 0 | K27: 0 | L27: 0 | M27: 0 | N27: 0 | O27: 0 | P27: 0
B28: 058 | D28: 0 | E28: 0 | F28: 0 | G28: 0 | H28: 0 | I28: 0 | J28: 0 | K28: 0 | L28: 0 | M28: 0 | N28: 0 | O28: 0 | P28: 0
B29: 058A | D29: 0 | E29: 0 | F29: 0 | G29: 0 | H29: 0 | I29: 0 | J29: 0 | K29: 0 | L29: 0 | M29: 0 | N29: 0 | O29: 0 | P29: 0
B30: 062 | D30: 0 | E30: 0 | F30: 0 | H30: 0 | I30: 0 | J30: 0 | K30: 0 | L30: 0 | M30: 0 | N30: 0 | O30: 0 | P30: 0
B31: 090 | D31: 0 | E31: 0 | F31: 0 | G31: 0 | H31: 0 | I31: 0 | J31: 0 | K31: 0 | L31: 0 | M31: 0 | N31: 0 | O31: 0 | P31: 0
B32: 095 | D32: 0 | E32: 0 | F32: 0 | G32: 0 | H32: 0 | I32: 0 | J32: 0 | K32: 0 | L32: 0 | M32: 0 | N32: 0 | O32: 0 | P32: 0
B33: 099 | D33: 0 | E33: 0 | F33: 0 | G33: 0 | H33: 0 | I33: 0 | J33: 0 | K33: 0 | L33: 0 | M33: 0 | N33: 0 | O33: 0 | P33: 0
B34: Total for WA | D34: =SUM(D11:D33) -> 241801 | E34: =SUM(E11:E33) -> 242449 | F34: 243031 | G34: 242680 | H34: 243291 | I34: 241976 | J34: 242374 | K34: 241804 | L34: 241841 | M34: 242414 | N34: 242326 | O34: 243353 | P34: 242445
B40: Electric Revenue Usage Report by Location Twelve Months Ended for Report Date : '09/30/2015'
B42: State Cde:WA
D44: Usage
C45: Period | D45: 201410 | E45: 201411 | F45: 201412 | G45: 201501 | H45: 201502 | I45: 201503 | J45: 201504 | K45: 201505 | L45: 201506 | M45: 201507 | N45: 201508 | O45: 201509 | P45: 12 Month Total
B46: Rate Schedule Num
B47: 001 | D47: 148283896 | E47: 168472643 | F47: 252801353 | G47: 275871134 | H47: 257673771 | I47: 200295859 | J47: 177289514 | K47: 155882778 | L47: 156193402 | M47: 205750487 | N47: 187233329.5 | O47: 174532951.5 | P47: 2360281118
B48: 011 | D48: 40443515 | E48: 40450016 | F48: 50001310 | G48: 49116925 | H48: 52781813 | I48: 43849773 | J48: 41758703 | K48: 40212786 | L48: 42489348 | M48: 49459504 | N48: 47918048 | O48: 46234305 | P48: 544716046
B49: 012 | D49: 3823470 | E49: 4175072 | F49: 6127543 | G49: 6587514 | H49: 6521879 | I49: 5056255 | J49: 4437747 | K49: 4050528 | L49: 3703108 | M49: 4079061 | N49: 4075286 | O49: 4256114 | P49: 56893577
B50: 021 | D50: 115973079 | E50: 111120355 | F50: 120628298 | G50: 116237565 | H50: 126023232 | I50: 111328305 | J50: 109421226 | K50: 110034789 | L50: 118073553 | M50: 128201789 | N50: 125298410 | O50: 121691579 | P50: 1414032180
B51: 022 | D51: 2504480 | E51: 2600920 | F51: 4798160 | G51: 3775280 | H51: 4496700 | I51: 2853780 | J51: 2751280 | K51: 2587460 | L51: 2683540 | M51: 2966000 | N51: 2933500 | O51: 2800820 | P51: 37751920
B52: 025 | D52: 93878439 | E52: 95705491 | F52: 91551612 | G52: 92033172 | H52: 138682038 | I52: 132229991 | J52: 88925502 | K52: 92480328 | L52: 89455036 | M52: 60678004 | N52: 138370082 | O52: 88560285 | P52: 1202549980
B53: 030 | D53: 3060770 | E53: 429329 | F53: 53450 | G53: 3390 | H53: 6120 | I53: 73308 | J53: 1290056 | K53: 3857858 | L53: 4914656 | M53: 4080575 | N53: 4794580 | O53: 3555240 | P53: 26119332
B54: 031 | D54: 10829045 | E54: 5579275 | F54: 3009796 | G54: 2537886 | H54: 4927416 | I54: 3396647 | J54: 4098791 | K54: 8852589.7 | L54: 13958517.3 | M54: 21061579 | N54: 20020637 | O54: 20481103 | P54: 118753282
B55: 032 | D55: 811996 | E55: 304078 | F55: 288075 | G55: 281100 | H55: 293684 | I55: 222426.2667 | J55: 355997 | K55: 861493 | L55: 1239057 | M55: 1930975 | N55: 1897792 | O55: 1358162 | P55: 9844835.267
B56: 041 | D56: 8720 | E56: 8592 | F56: 8560 | G56: 8560 | H56: 16368.96747 | I56: 8270.9671 | J56: 8561.33377 | K56: 5749.50044 | L56: 11566.50042 | M56: 6742.20033 | N56: 10805.70053 | O56: 8699.80042 | P56: 111196.9705
B57: 042 | D57: 1121888 | E57: 1076132 | F57: 1123584 | G57: 1121018 | H57: 1538882.55 | I57: 1130043.69 | J57: 1096569.197 | K57: 1158304.387 | L57: 1149347.654 | M57: 1087819.866 | N57: 1194666.812 | O57: 1137476.823 | P57: 13935732.98
B58: 044 | D58: 24587 | E58: 19935 | F58: 26015 | G58: 26015 | H58: 46117.99518 | I58: 25097.49739 | J58: 26012.56393 | K58: 26764.6972 | L58: 25622.26399 | M58: 26155.49726 | N58: 26621.76387 | O58: 26447.63057 | P58: 325391.9094
B59: 044A | D59: 0 | E59: 0 | F59: 0 | G59: 0 | H59: 0 | I59: 0 | J59: 0 | K59: 0 | L59: 0 | M59: 0 | N59: 0 | O59: 0 | P59: 0
B60: 045 | D60: 89173 | E60: 87547 | F60: 87547 | G60: 29307 | H60: 101784.1718 | I60: 84617.67095 | J60: 83351.73759 | K60: 89932.47128 | L60: 84367.971 | M60: 82082.93759 | N60: 89453.53791 | O60: 84519.33767 | P60: 993683.8358
B61: 046 | D61: 118955 | E61: 98674 | F61: 107003 | G61: 103824 | H61: 164314.3589 | I61: 102025.4287 | J61: 103189.7619 | K61: 109579.5614 | L61: 104051.4952 | M61: 112334.7954 | N61: 109713.9948 | O61: 105860.8619 | P61: 1339526.258
B62: 047 | D62: 466282 | E62: 457611 | F62: 465017 | G62: 429561 | H62: 591845.2673 | I62: 464001.2407 | J62: 464534.0737 | K62: 480754.2396 | L62: 470434.14 | M62: 472009.1061 | N62: 465093.5735 | O62: 487160.1725 | P62: 5714302.814
B63: 048 | D63: 260116 | E63: 258532 | F63: 259512 | G63: 253596 | H63: 315425.8245 | I63: 255415.0602 | J63: 258076.8553 | K63: 267035.17 | L63: 262240.2519 | M63: 263958.5223 | N63: 256255.2018 | O63: 267342.6436 | P63: 3177505.53
B64: 058 | D64: 0 | E64: 0 | F64: 0 | G64: 0 | H64: 0 | I64: 0 | J64: 0 | K64: 0 | L64: 0 | M64: 0 | N64: 0 | O64: 0 | P64: 0
B65: 058A | D65: 0 | E65: 0 | F65: 0 | G65: 0 | H65: 0 | I65: 0 | J65: 0 | K65: 0 | L65: 0 | M65: 0 | N65: 0 | O65: 0 | P65: 0
B66: 062 | D66: 0 | E66: 0 | F66: 0 | H66: 0 | I66: 0 | J66: 0 | K66: 0 | L66: 0 | M66: 0 | N66: 0 | O66: 0 | P66: 0
B67: 090 | D67: 0 | E67: 0 | F67: 0 | G67: 0 | H67: 0 | I67: 0 | J67: 0 | K67: 0 | L67: 0 | M67: 0 | N67: 0 | O67: 0 | P67: 0
B68: 095 | D68: 0 | E68: 0 | F68: 0 | G68: 0 | H68: 0 | I68: 0 | J68: 0 | K68: 0 | L68: 0 | M68: 0 | N68: 0 | O68: 0 | P68: 0
B69: 099 | D69: 0 | E69: 0 | F69: 0 | G69: 0 | H69: 0 | I69: 0 | J69: 0 | K69: 0 | L69: 0 | M69: 0 | N69: 0 | O69: 0 | P69: 0
B70: Total for WA | D70: =SUM(D47:D69) -> 421698411 | E70: =SUM(E47:E69) -> 430844202 | F70: 531336835 | G70: 548415847 | H70: 594181392.1 | I70: 501375815.8 | J70: 432369111.5 | K70: 420958729.7 | L70: 434817847.6 | M70: 480259076.9 | N70: 534694275.1 | O70: 465588066.8 | P70: 5796539611
O72: Sch 1 | P72: =P47 -> 2360281118
O73: Sch 11/12 | P73: =P48+P49 -> 601609623
O74: Sch 21/22 | P74: =P50+P51 -> 1451784100
O75: Sch 25 | P75: =P52 -> 1202549980
O76: Sch 31/32 | P76: =P53+P54+P55 -> 154717449.3
O77: Sch 41-48 | P77: =SUM(P56:P63) -> 25597340.29
A79: Jurisdiction:WA
D81: Unbilled Usage
C82: Period | D82: 201410 | E82: 201411 | F82: 201412 | G82: 201501 | H82: 201502 | I82: 201503 | J82: 201504 | K82: 201505 | L82: 201506 | M82: 201507 | N82: 201508 | O82: 201509 | P82: 12 Month Total
A83: Source Id | B83: Rate Schedule Num
A84: REVUNBL-E | B84: 001 | D84: 108636877 | E84: 152149735 | F84: 171928083 | G84: 170023902 | H84: 109968773 | I84: 106184843 | J84: 102953487 | K84: 91441830 | L84: 102056134 | M84: 111703944 | N84: 111069306 | O84: 85176034 | P84: 1423292948
B85: 011 | D85: 29606074 | E85: 36427024 | F85: 33881006 | G85: 30177767 | H85: 22463930 | I85: 23161716 | J85: 24186086 | K85: 23514426 | L85: 27699073 | M85: 26827448 | N85: 28363192 | O85: 22508902 | P85: 328816644
B86: 012 | D86: 2821285 | E86: 3765184 | F86: 4145017 | G86: 4046181 | H86: 2786224 | I86: 2678165 | J86: 2572359 | K86: 2388406 | L86: 2431473 | M86: 2213595 | N86: 2417511 | O86: 2082674 | P86: 34348074
B87: 021 | D87: 84603710 | E87: 100389792 | F87: 81864080 | G87: 71187499 | H87: 53518717 | I87: 58684196 | J87: 63244545 | K87: 64202628 | L87: 76755676 | M87: 69282216 | N87: 73955405 | O87: 59089205 | P87: 856777669
B88: 022 | D88: 1846026 | E88: 2358911 | F88: 3243926 | G88: 2318124 | H88: 1915529 | I88: 1500950 | J88: 1596637 | K88: 1506970 | L88: 1741460 | M88: 1618898 | N88: 1736522 | O88: 1361749 | P88: 22745702
B89: 025 | D89: 95705491 | E89: 91590393 | F89: 91403949 | G89: 92986001 | H89: 38217986 | I89: 0 | J89: 1214450 | K89: 0 | L89: 4480447 | M89: 40690342 | N89: 0 | O89: 0 | P89: 456289059
B90: 031 | D90: 7941394 | E90: 5035367 | F90: 2027453 | G90: 1559466 | H90: 2089668 | I90: 1795253 | J90: 2335820 | K90: 5174879 | L90: 9101593 | M90: 11431401 | N90: 11849209 | O90: 9986155 | P90: 70327658
B91: 032 | D91: 417968 | E91: 226818 | F91: 180218 | G91: 168591 | H91: 116092 | I91: 117722 | J91: 118269 | K91: 341201 | L91: 558582 | M91: 759891 | N91: 783137 | O91: 480617 | P91: 4269106
B92: Total for REVUNBL-E | D92: 331578825 | E92: 391943224 | F92: 388673732 | G92: 372467531 | H92: 231076919 | I92: 194122845 | J92: 198221653 | K92: 188570340 | L92: 224824438 | M92: 264527735 | N92: 230174282 | O92: 180685336 | P92: 3196866860
A93: REVUNBL-ER | B93: 001 | D93: -106274602 | E93: -108636877 | F93: -152149735 | G93: -171928083 | H93: -170023902 | I93: -109968773 | J93: -106184843 | K93: -102953487 | L93: -91441830 | M93: -102056134 | N93: -111703944 | O93: -111069306 | P93: -1444391516
B94: 011 | D94: -27811391 | E94: -29606074 | F94: -36427024 | G94: -33881006 | H94: -30177767 | I94: -22463930 | J94: -23161716 | K94: -24186086 | L94: -23514426 | M94: -27699073 | N94: -26827448 | O94: -28363192 | P94: -334119133
B95: 012 | D95: -2436746 | E95: -2821285 | F95: -3765184 | G95: -4145017 | H95: -4046181 | I95: -2786224 | J95: -2678165 | K95: -2572359 | L95: -2388406 | M95: -2431473 | N95: -2213595 | O95: -2417511 | P95: -34702146
B96: 021 | D96: -74564418 | E96: -84603710 | F96: -100389792 | G96: -81864080 | H96: -71187499 | I96: -53518717 | J96: -58684196 | K96: -63244545 | L96: -64202628 | M96: -76755676 | N96: -69282216 | O96: -73955405 | P96: -872252882
B97: 022 | D97: -1656987 | E97: -1846026 | F97: -2358911 | G97: -3243926 | H97: -2318124 | I97: -1915529 | J97: -1500950 | K97: -1596637 | L97: -1506970 | M97: -1741460 | N97: -1618898 | O97: -1736522 | P97: -23040940
B98: 025 | D98: -93914752 | E98: -95705491 | F98: -91590393 | G98: -91403949 | H98: -92986001 | I98: -38217986 | J98: 0 | K98: -1214450 | L98: 0 | M98: -4480447 | N98: -40690342 | O98: 0 | P98: -550203811
B99: 031 | D99: -9811963 | E99: -7941394 | F99: -5035367 | G99: -2027453 | H99: -1559466 | I99: -2089668 | J99: -1795253 | K99: -2335820 | L99: -5174879 | M99: -9101593 | N99: -11431401 | O99: -11849209 | P99: -70153466
B100: 032 | D100: -487349 | E100: -417968 | F100: -226818 | G100: -180218 | H100: -168591 | I100: -116092 | J100: -117722 | K100: -118269 | L100: -341201 | M100: -558582 | N100: -759891 | O100: -783137 | P100: -4275838
B101: Total for REVUNBL-ER | D101: -316958208 | E101: -331578825 | F101: -391943224 | G101: -388673732 | H101: -372467531 | I101: -231076919 | J101: -194122845 | K101: -198221653 | L101: -188570340 | M101: -224824438 | N101: -264527735 | O101: -230174282 | P101: -3333139732
A102: Total for WA | D102: 14620617 | E102: 60364399 | F102: -3269492 | G102: -16206201 | H102: -141390612 | I102: -36954074 | J102: 4098808 | K102: -9651313 | L102: 36254098 | M102: 39703297 | N102: -34353453 | O102: -49488946 | P102: -136272872
O104: Sch 1 | P104: =P84+P93 -> -21098568
O105: Sch 11/12 | P105: =P85+P86+P94+P95 -> -5656561
O106: Sch 21/22 | P106: =P87+P88+P96+P97 -> -15770451
O107: Sch 25 | P107: =P89+P98 -> -93914752 | Q107: in Sch 25
O108: Sch 31/32 | P108: =P90+P91+P99+P100 -> 167460
A109: Total Usage
B110: 001 | D110: =D47+D84+D93 -> 150646171 | E110: =E47+E84+E93 -> 211985501 | F110: 272579701 | G110: 273966953 | H110: 197618642 | I110: 196511929 | J110: 174058158 | K110: 144371121 | L110: 166807706 | M110: 215398297 | N110: 186598691.5 | O110: 148639679.5 | P110: =P47+P84+P93 -> 2339182550
B111: 011/012 | D111: =D48+D49+D85+D86+D94+D95 -> 46446207 | E111: =E48+E49+E85+E86+E94+E95 -> 52389937 | F111: 53962668 | G111: 51902364 | H111: 50329898 | I111: 49495755 | J111: 47115014 | K111: 43407701 | L111: 50420170 | M111: 52449062 | N111: 53732994 | O111: 44301292 | P111: 595953062
B112: 021/022 | D112: =D50+D51+D87+D88+D96+D97 -> 128705890 | E112: =E50+E51+E87+E88+E96+E97 -> 130020242 | F112: 107785761 | G112: 108410462 | H112: 112448555 | I112: 118932985 | J112: 116828542 | K112: 113490665 | L112: 133544631 | M112: 123571767 | N112: 133022723 | O112: 109251426 | P112: 1436013649
B113: 025 | D113: =D52+D89+D98 -> 95669178 | E113: =E52+E89+E98 -> 91590393 | F113: 91365168 | G113: 93615224 | H113: 83914023 | I113: 94012005 | J113: 90139952 | K113: 91265878 | L113: 93935483 | M113: 96887899 | N113: 97679740 | O113: 88560285 | P113: 1108635228
B114: 030/031/032 | D114: =D53+D54+D55+D90+D91+D99+D100 -> 12761861 | E114: =E53+E54+E55+E90+E91+E99+E100 -> 3215505 | F114: 296807 | G114: 2342762 | H114: 5704923 | I114: 3399596.267 | J114: 6285958 | K114: 16633931.7 | L114: 24256325.3 | M114: 29604246 | N114: 27154063 | O114: 23228931 | P114: =P53+P54+P55+P90+P91+P99+P100 -> 154884909.3
B115: 04X | D115: =SUM(D56:D63) -> 2089721 | E115: =SUM(E56:E63) -> 2007023 | F115: 2077238 | G115: 1971881 | H115: 2774739.135 | I115: 2069471.555 | J115: 2040295.523 | K115: 2138120.027 | L115: 2107630.276 | M115: 2051102.924 | N115: 2152610.584 | O115: 2117507.269 | P115: 25597340.29
B116: Total | D116: =SUM(D110:D115) -> 436319028 | E116: =SUM(E110:E115) -> 491208601 | F116: 528067343 | G116: 532209646 | H116: 452790780.1 | I116: 464421741.8 | J116: 436467919.5 | K116: 411307416.7 | L116: 471071945.6 | M116: 519962373.9 | N116: 500340822.1 | O116: 416099120.8 | P116: 5660266739
D118: =D70+D92+D101-D116 -> 0 | E118: =E70+E92+E101-E116 -> 0 | F118: 0 | G118: 0 | H118: 0 | I118: 0 | J118: 0 | K118: 0 | L118: 0 | M118: 0 | N118: 0 | O118: 0 | P118: 0
